Workbook

Sheet Introduktion

Sheet Benzin - diesel - hybrid
B1: TCO-værktøj til tilbudsevaluering
B2: Motorkøretøjer - operationel leasing
B3: For følgende køretøjer: Benzin- eller dielsel samt hybrid (ikke plugin hybrid)
B6: 3 Tilbudsgiver: Oplysninger om produktet
C8: Produktets navn | E8: PRODUKT 1 | G8: PRODUKT 2 | I8: PRODUKT 3 | K8: PRODUKT 4 | M8: PRODUKT 5 | O8: PRODUKT 6 | Q8: PRODUKT 7 | S8: PRODUKT 8
C9: Investeringsomkostninger
C10: Evt. etableringsgebyr | D10: kr. per køretøj
C12: Driftsomkostninger
C13: Brændstofforbrug (jf. WLTP eller VECTO) | D13: km/liter
C15: Service, vedligehold og løbende omkostninger
C16: Pris finansieret via leasing jf. kravsspecifikation | D16: kr./år per køretøj
C17: Grøn ejerafgift | D17: kr./år per køretøj
B21: 2 Ordregiver: Oplysninger om brugen
C22: Antal køretøjer | D22: stk. | E22: 1 | G22: =$E22 -> 1 | I22: =$E22 -> 1 | K22: =$E22 -> 1 | M22: =$E22 -> 1 | O22: =$E22 -> 1 | Q22: =$E22 -> 1 | S22: =$E22 -> 1
C23: Årligt kørselsforbrug per motorkøretøj | D23: km/år per køretøj | G23: =$E23 -> 0 | I23: =$E23 -> 0 | K23: =$E23 -> 0 | M23: =$E23 -> 0 | O23: =$E23 -> 0 | Q23: =$E23 -> 0 | S23: =$E23 -> 0
B27: 1 Ordregiver: Baggrundsdata
C28: TCO-evalueringsperiode (samme som serviceaftale-perioden jf. kravspecifikationen) | D28: antal år | E28: 4 | G28: =$E28 -> 4 | I28: =$E28 -> 4 | K28: =$E28 -> 4 | M28: =$E28 -> 4 | O28: =$E28 -> 4 | Q28: =$E28 -> 4 | S28: =$E28 -> 4
C29: Diskonteringsrente | D29: % per år | E29: 4 | G29: 4 | I29: 4 | K29: 4 | M29: 4 | O29: 4 | Q29: 4 | S29: 4
C30: Brændstofprisstigning (årligt, ud over inflation) for benzin | D30: % per år | E30: ='ENS udvikling i brændstofspris'!G10*100 -> 1.385046076 | G30: =$E30 -> 1.385046076 | I30: =$E30 -> 1.385046076 | K30: =$E30 -> 1.385046076 | M30: =$E30 -> 1.385046076 | O30: =$E30 -> 1.385046076 | Q30: =$E30 -> 1.385046076 | S30: =$E30 -> 1.385046076
C31: Brændstofprisstigning (årligt, ud over inflation) for diesel | D31: % per år | E31: ='ENS udvikling i brændstofspris'!I10*100 -> 1.44773262 | G31: =$E31 -> 1.44773262 | I31: =$E31 -> 1.44773262 | K31: =$E31 -> 1.44773262 | M31: =$E31 -> 1.44773262 | O31: =$E31 -> 1.44773262 | Q31: =$E31 -> 1.44773262 | S31: =$E31 -> 1.44773262
C33: Driftsomkostninger
C34: Pris for benzin | D34: kr./liter | E34: =12.33 -> 12.33 | G34: =$E34 -> 12.33 | I34: =$E34 -> 12.33 | K34: =$E34 -> 12.33 | M34: =$E34 -> 12.33 | O34: =$E34 -> 12.33 | Q34: =$E34 -> 12.33 | S34: =$E34 -> 12.33
C35: Pris for diesel | D35: kr./liter | E35: =10.83 -> 10.83 | G35: =$E35 -> 10.83 | I35: =$E35 -> 10.83 | K35: =$E35 -> 10.83 | M35: =$E35 -> 10.83 | O35: =$E35 -> 10.83 | Q35: =$E35 -> 10.83 | S35: =$E35 -> 10.83
C36: Valg af type brændstof | E36: Klik for valg | G36: Klik for valg | I36: Klik for valg | K36: Klik for valg | M36: Klik for valg | O36: Klik for valg | Q36: Klik for valg | S36: Klik for valg
C38: Service, vedligehold og løbende omkostninger
C39: Forsikring | D39: kr./år per køretøj
C40: Andre løbende omkostninger | D40: kr./år per køretøj
B44: 4 Resultat
C46: =C9&" i alt" -> Investeringsomkostninger i alt | D46: kr. | E46: =E10*E22 -> 0 | G46: =G10*G22 -> 0 | I46: =I10*I22 -> 0 | K46: =K10*K22 -> 0 | M46: =M10*M22 -> 0 | O46: =O10*O22 -> 0 | Q46: =Q10*Q22 -> 0 | S46: =S10*S22 -> 0
C47: =C12&" i alt" -> Driftsomkostninger i alt | D47: kr. | E47: =SUM('Interne beregninger - B&D&H'!E24:E38)*E22 ->  | G47: =SUM('Interne beregninger - B&D&H'!G24:G38)*G22 ->  | I47: =SUM('Interne beregninger - B&D&H'!I24:I38)*I22 ->  | K47: =SUM('Interne beregninger - B&D&H'!K24:K38)*K22 ->  | M47: =SUM('Interne beregninger - B&D&H'!M24:M38)*M22 ->  | O47: =SUM('Interne beregninger - B&D&H'!O24:O38)*O22 ->  | Q47: =SUM('Interne beregninger - B&D&H'!Q24:Q38)*Q22 ->  | S47: =SUM('Interne beregninger - B&D&H'!S24:S38)*S22 -> 
C48: =C15&" i alt" -> Service, vedligehold og løbende omkostninger i alt | D48: kr. | E48: =SUM('Interne beregninger - B&D&H'!E42:E56)*E22 -> 0 | G48: =SUM('Interne beregninger - B&D&H'!G42:G56)*G22 -> 0 | I48: =SUM('Interne beregninger - B&D&H'!I42:I56)*I22 -> 0 | K48: =SUM('Interne beregninger - B&D&H'!K42:K56)*K22 -> 0 | M48: =SUM('Interne beregninger - B&D&H'!M42:M56)*M22 -> 0 | O48: =SUM('Interne beregninger - B&D&H'!O42:O56)*O22 -> 0 | Q48: =SUM('Interne beregninger - B&D&H'!Q42:Q56)*Q22 -> 0 | S48: =SUM('Interne beregninger - B&D&H'!S42:S56)*S22 -> 0
C50: Samlet TCO (nutidsværdi) | D50: kr. | E50: =SUM(E46:E48) ->  | G50: =SUM(G46:G48) ->  | I50: =SUM(I46:I48) ->  | K50: =SUM(K46:K48) ->  | M50: =SUM(M46:M48) ->  | O50: =SUM(O46:O48) ->  | Q50: =SUM(Q46:Q48) ->  | S50: =SUM(S46:S48) -> 
C51: Gennemsnitlige årlige omkostninger | D51: kr./år | E51: =IF(E28=1,E50,PMT(E29/100,E28,-E50)) ->  | G51: =IF(G28=1,G50,PMT(G29/100,G28,-G50)) ->  | I51: =IF(I28=1,I50,PMT(I29/100,I28,-I50)) ->  | K51: =IF(K28=1,K50,PMT(K29/100,K28,-K50)) ->  | M51: =IF(M28=1,M50,PMT(M29/100,M28,-M50)) ->  | O51: =IF(O28=1,O50,PMT(O29/100,O28,-O50)) ->  | Q51: =IF(Q28=1,Q50,PMT(Q29/100,Q28,-Q50)) ->  | S51: =IF(S28=1,S50,PMT(S29/100,S28,-S50)) -> 
D123: DENNE TEKST SKAL SKRIVES MED HVID TEKST OG SKJULES TIL SIDST!
C126: Akkumulerede samlede udgifter (nutidsværdi) | E126: =+'Interne beregninger - B&D&H'!E5 -> PRODUKT 1 | G126: =+'Interne beregninger - B&D&H'!G5 -> PRODUKT 2 | I126: =+'Interne beregninger - B&D&H'!I5 -> PRODUKT 3 | K126: =+'Interne beregninger - B&D&H'!K5 -> PRODUKT 4 | M126: =+'Interne beregninger - B&D&H'!M5 -> PRODUKT 5 | O126: =+'Interne beregninger - B&D&H'!O5 -> PRODUKT 6 | Q126: =+'Interne beregninger - B&D&H'!Q5 -> PRODUKT 7 | S126: =+'Interne beregninger - B&D&H'!S5 -> PRODUKT 8
E127: =+'Interne beregninger - B&D&H'!E6 ->  | G127: =+'Interne beregninger - B&D&H'!G6 ->  | I127: =+'Interne beregninger - B&D&H'!I6 ->  | K127: =+'Interne beregninger - B&D&H'!K6 ->  | M127: =+'Interne beregninger - B&D&H'!M6 ->  | O127: =+'Interne beregninger - B&D&H'!O6 ->  | Q127: =+'Interne beregninger - B&D&H'!Q6 ->  | S127: =+'Interne beregninger - B&D&H'!S6 -> 
E128: =+'Interne beregninger - B&D&H'!E7 ->  | G128: =+'Interne beregninger - B&D&H'!G7 ->  | I128: =+'Interne beregninger - B&D&H'!I7 ->  | K128: =+'Interne beregninger - B&D&H'!K7 ->  | M128: =+'Interne beregninger - B&D&H'!M7 ->  | O128: =+'Interne beregninger - B&D&H'!O7 ->  | Q128: =+'Interne beregninger - B&D&H'!Q7 ->  | S128: =+'Interne beregninger - B&D&H'!S7 -> 
E129: =+'Interne beregninger - B&D&H'!E8 ->  | G129: =+'Interne beregninger - B&D&H'!G8 ->  | I129: =+'Interne beregninger - B&D&H'!I8 ->  | K129: =+'Interne beregninger - B&D&H'!K8 ->  | M129: =+'Interne beregninger - B&D&H'!M8 ->  | O129: =+'Interne beregninger - B&D&H'!O8 ->  | Q129: =+'Interne beregninger - B&D&H'!Q8 ->  | S129: =+'Interne beregninger - B&D&H'!S8 -> 
E130: =+'Interne beregninger - B&D&H'!E9 ->  | G130: =+'Interne beregninger - B&D&H'!G9 ->  | I130: =+'Interne beregninger - B&D&H'!I9 ->  | K130: =+'Interne beregninger - B&D&H'!K9 ->  | M130: =+'Interne beregninger - B&D&H'!M9 ->  | O130: =+'Interne beregninger - B&D&H'!O9 ->  | Q130: =+'Interne beregninger - B&D&H'!Q9 ->  | S130: =+'Interne beregninger - B&D&H'!S9 -> 
E131: =+'Interne beregninger - B&D&H'!E10 ->  | G131: =+'Interne beregninger - B&D&H'!G10 ->  | I131: =+'Interne beregninger - B&D&H'!I10 ->  | K131: =+'Interne beregninger - B&D&H'!K10 ->  | M131: =+'Interne beregninger - B&D&H'!M10 ->  | O131: =+'Interne beregninger - B&D&H'!O10 ->  | Q131: =+'Interne beregninger - B&D&H'!Q10 ->  | S131: =+'Interne beregninger - B&D&H'!S10 -> 
E132: =+'Interne beregninger - B&D&H'!E11 ->  | G132: =+'Interne beregninger - B&D&H'!G11 ->  | I132: =+'Interne beregninger - B&D&H'!I11 ->  | K132: =+'Interne beregninger - B&D&H'!K11 ->  | M132: =+'Interne beregninger - B&D&H'!M11 ->  | O132: =+'Interne beregninger - B&D&H'!O11 ->  | Q132: =+'Interne beregninger - B&D&H'!Q11 ->  | S132: =+'Interne beregninger - B&D&H'!S11 -> 
E133: =+'Interne beregninger - B&D&H'!E12 ->  | G133: =+'Interne beregninger - B&D&H'!G12 ->  | I133: =+'Interne beregninger - B&D&H'!I12 ->  | K133: =+'Interne beregninger - B&D&H'!K12 ->  | M133: =+'Interne beregninger - B&D&H'!M12 ->  | O133: =+'Interne beregninger - B&D&H'!O12 ->  | Q133: =+'Interne beregninger - B&D&H'!Q12 ->  | S133: =+'Interne beregninger - B&D&H'!S12 -> 
E134: =+'Interne beregninger - B&D&H'!E13 ->  | G134: =+'Interne beregninger - B&D&H'!G13 ->  | I134: =+'Interne beregninger - B&D&H'!I13 ->  | K134: =+'Interne beregninger - B&D&H'!K13 ->  | M134: =+'Interne beregninger - B&D&H'!M13 ->  | O134: =+'Interne beregninger - B&D&H'!O13 ->  | Q134: =+'Interne beregninger - B&D&H'!Q13 ->  | S134: =+'Interne beregninger - B&D&H'!S13 -> 
E135: =+'Interne beregninger - B&D&H'!E14 ->  | G135: =+'Interne beregninger - B&D&H'!G14 ->  | I135: =+'Interne beregninger - B&D&H'!I14 ->  | K135: =+'Interne beregninger - B&D&H'!K14 ->  | M135: =+'Interne beregninger - B&D&H'!M14 ->  | O135: =+'Interne beregninger - B&D&H'!O14 ->  | Q135: =+'Interne beregninger - B&D&H'!Q14 ->  | S135: =+'Interne beregninger - B&D&H'!S14 -> 
E136: =+'Interne beregninger - B&D&H'!E15 ->  | G136: =+'Interne beregninger - B&D&H'!G15 ->  | I136: =+'Interne beregninger - B&D&H'!I15 ->  | K136: =+'Interne beregninger - B&D&H'!K15 ->  | M136: =+'Interne beregninger - B&D&H'!M15 ->  | O136: =+'Interne beregninger - B&D&H'!O15 ->  | Q136: =+'Interne beregninger - B&D&H'!Q15 ->  | S136: =+'Interne beregninger - B&D&H'!S15 -> 
E137: =+'Interne beregninger - B&D&H'!E16 ->  | G137: =+'Interne beregninger - B&D&H'!G16 ->  | I137: =+'Interne beregninger - B&D&H'!I16 ->  | K137: =+'Interne beregninger - B&D&H'!K16 ->  | M137: =+'Interne beregninger - B&D&H'!M16 ->  | O137: =+'Interne beregninger - B&D&H'!O16 ->  | Q137: =+'Interne beregninger - B&D&H'!Q16 ->  | S137: =+'Interne beregninger - B&D&H'!S16 -> 
E138: =+'Interne beregninger - B&D&H'!E17 ->  | G138: =+'Interne beregninger - B&D&H'!G17 ->  | I138: =+'Interne beregninger - B&D&H'!I17 ->  | K138: =+'Interne beregninger - B&D&H'!K17 ->  | M138: =+'Interne beregninger - B&D&H'!M17 ->  | O138: =+'Interne beregninger - B&D&H'!O17 ->  | Q138: =+'Interne beregninger - B&D&H'!Q17 ->  | S138: =+'Interne beregninger - B&D&H'!S17 -> 
E139: =+'Interne beregninger - B&D&H'!E18 ->  | G139: =+'Interne beregninger - B&D&H'!G18 ->  | I139: =+'Interne beregninger - B&D&H'!I18 ->  | K139: =+'Interne beregninger - B&D&H'!K18 ->  | M139: =+'Interne beregninger - B&D&H'!M18 ->  | O139: =+'Interne beregninger - B&D&H'!O18 ->  | Q139: =+'Interne beregninger - B&D&H'!Q18 ->  | S139: =+'Interne beregninger - B&D&H'!S18 -> 
E140: =+'Interne beregninger - B&D&H'!E19 ->  | G140: =+'Interne beregninger - B&D&H'!G19 ->  | I140: =+'Interne beregninger - B&D&H'!I19 ->  | K140: =+'Interne beregninger - B&D&H'!K19 ->  | M140: =+'Interne beregninger - B&D&H'!M19 ->  | O140: =+'Interne beregninger - B&D&H'!O19 ->  | Q140: =+'Interne beregninger - B&D&H'!Q19 ->  | S140: =+'Interne beregninger - B&D&H'!S19 -> 
E141: =+'Interne beregninger - B&D&H'!E20 ->  | G141: =+'Interne beregninger - B&D&H'!G20 ->  | I141: =+'Interne beregninger - B&D&H'!I20 ->  | K141: =+'Interne beregninger - B&D&H'!K20 ->  | M141: =+'Interne beregninger - B&D&H'!M20 ->  | O141: =+'Interne beregninger - B&D&H'!O20 ->  | Q141: =+'Interne beregninger - B&D&H'!Q20 ->  | S141: =+'Interne beregninger - B&D&H'!S20 -> 
C143: Gennemsnitlige årlige omkostninger (relation til levetid) | E143: =+'Interne beregninger - B&D&H'!E77 -> PRODUKT 1 | G143: =+'Interne beregninger - B&D&H'!G77 -> PRODUKT 2 | I143: =+'Interne beregninger - B&D&H'!I77 -> PRODUKT 3 | K143: =+'Interne beregninger - B&D&H'!K77 -> PRODUKT 4 | M143: =+'Interne beregninger - B&D&H'!M77 -> PRODUKT 5 | O143: =+'Interne beregninger - B&D&H'!O77 -> PRODUKT 6 | Q143: =+'Interne beregninger - B&D&H'!Q77 -> PRODUKT 7 | S143: =+'Interne beregninger - B&D&H'!S77 -> PRODUKT 8
E144: =+'Interne beregninger - B&D&H'!E78 ->  | G144: =+'Interne beregninger - B&D&H'!G78 ->  | I144: =+'Interne beregninger - B&D&H'!I78 ->  | K144: =+'Interne beregninger - B&D&H'!K78 ->  | M144: =+'Interne beregninger - B&D&H'!M78 ->  | O144: =+'Interne beregninger - B&D&H'!O78 ->  | Q144: =+'Interne beregninger - B&D&H'!Q78 ->  | S144: =+'Interne beregninger - B&D&H'!S78 -> 
E145: =+'Interne beregninger - B&D&H'!E79 ->  | G145: =+'Interne beregninger - B&D&H'!G79 ->  | I145: =+'Interne beregninger - B&D&H'!I79 ->  | K145: =+'Interne beregninger - B&D&H'!K79 ->  | M145: =+'Interne beregninger - B&D&H'!M79 ->  | O145: =+'Interne beregninger - B&D&H'!O79 ->  | Q145: =+'Interne beregninger - B&D&H'!Q79 ->  | S145: =+'Interne beregninger - B&D&H'!S79 -> 
E146: =+'Interne beregninger - B&D&H'!E80 ->  | G146: =+'Interne beregninger - B&D&H'!G80 ->  | I146: =+'Interne beregninger - B&D&H'!I80 ->  | K146: =+'Interne beregninger - B&D&H'!K80 ->  | M146: =+'Interne beregninger - B&D&H'!M80 ->  | O146: =+'Interne beregninger - B&D&H'!O80 ->  | Q146: =+'Interne beregninger - B&D&H'!Q80 ->  | S146: =+'Interne beregninger - B&D&H'!S80 -> 
E147: =+'Interne beregninger - B&D&H'!E81 ->  | G147: =+'Interne beregninger - B&D&H'!G81 ->  | I147: =+'Interne beregninger - B&D&H'!I81 ->  | K147: =+'Interne beregninger - B&D&H'!K81 ->  | M147: =+'Interne beregninger - B&D&H'!M81 ->  | O147: =+'Interne beregninger - B&D&H'!O81 ->  | Q147: =+'Interne beregninger - B&D&H'!Q81 ->  | S147: =+'Interne beregninger - B&D&H'!S81 -> 
E148: =+'Interne beregninger - B&D&H'!E82 ->  | G148: =+'Interne beregninger - B&D&H'!G82 ->  | I148: =+'Interne beregninger - B&D&H'!I82 ->  | K148: =+'Interne beregninger - B&D&H'!K82 ->  | M148: =+'Interne beregninger - B&D&H'!M82 ->  | O148: =+'Interne beregninger - B&D&H'!O82 ->  | Q148: =+'Interne beregninger - B&D&H'!Q82 ->  | S148: =+'Interne beregninger - B&D&H'!S82 -> 
E149: =+'Interne beregninger - B&D&H'!E83 ->  | G149: =+'Interne beregninger - B&D&H'!G83 ->  | I149: =+'Interne beregninger - B&D&H'!I83 ->  | K149: =+'Interne beregninger - B&D&H'!K83 ->  | M149: =+'Interne beregninger - B&D&H'!M83 ->  | O149: =+'Interne beregninger - B&D&H'!O83 ->  | Q149: =+'Interne beregninger - B&D&H'!Q83 ->  | S149: =+'Interne beregninger - B&D&H'!S83 -> 
E150: =+'Interne beregninger - B&D&H'!E84 ->  | G150: =+'Interne beregninger - B&D&H'!G84 ->  | I150: =+'Interne beregninger - B&D&H'!I84 ->  | K150: =+'Interne beregninger - B&D&H'!K84 ->  | M150: =+'Interne beregninger - B&D&H'!M84 ->  | O150: =+'Interne beregninger - B&D&H'!O84 ->  | Q150: =+'Interne beregninger - B&D&H'!Q84 ->  | S150: =+'Interne beregninger - B&D&H'!S84 -> 
E151: =+'Interne beregninger - B&D&H'!E85 ->  | G151: =+'Interne beregninger - B&D&H'!G85 ->  | I151: =+'Interne beregninger - B&D&H'!I85 ->  | K151: =+'Interne beregninger - B&D&H'!K85 ->  | M151: =+'Interne beregninger - B&D&H'!M85 ->  | O151: =+'Interne beregninger - B&D&H'!O85 ->  | Q151: =+'Interne beregninger - B&D&H'!Q85 ->  | S151: =+'Interne beregninger - B&D&H'!S85 -> 
E152: =+'Interne beregninger - B&D&H'!E86 ->  | G152: =+'Interne beregninger - B&D&H'!G86 ->  | I152: =+'Interne beregninger - B&D&H'!I86 ->  | K152: =+'Interne beregninger - B&D&H'!K86 ->  | M152: =+'Interne beregninger - B&D&H'!M86 ->  | O152: =+'Interne beregninger - B&D&H'!O86 ->  | Q152: =+'Interne beregninger - B&D&H'!Q86 ->  | S152: =+'Interne beregninger - B&D&H'!S86 -> 
E153: =+'Interne beregninger - B&D&H'!E87 ->  | G153: =+'Interne beregninger - B&D&H'!G87 ->  | I153: =+'Interne beregninger - B&D&H'!I87 ->  | K153: =+'Interne beregninger - B&D&H'!K87 ->  | M153: =+'Interne beregninger - B&D&H'!M87 ->  | O153: =+'Interne beregninger - B&D&H'!O87 ->  | Q153: =+'Interne beregninger - B&D&H'!Q87 ->  | S153: =+'Interne beregninger - B&D&H'!S87 -> 
E154: =+'Interne beregninger - B&D&H'!E88 ->  | G154: =+'Interne beregninger - B&D&H'!G88 ->  | I154: =+'Interne beregninger - B&D&H'!I88 ->  | K154: =+'Interne beregninger - B&D&H'!K88 ->  | M154: =+'Interne beregninger - B&D&H'!M88 ->  | O154: =+'Interne beregninger - B&D&H'!O88 ->  | Q154: =+'Interne beregninger - B&D&H'!Q88 ->  | S154: =+'Interne beregninger - B&D&H'!S88 -> 
E155: =+'Interne beregninger - B&D&H'!E89 ->  | G155: =+'Interne beregninger - B&D&H'!G89 ->  | I155: =+'Interne beregninger - B&D&H'!I89 ->  | K155: =+'Interne beregninger - B&D&H'!K89 ->  | M155: =+'Interne beregninger - B&D&H'!M89 ->  | O155: =+'Interne beregninger - B&D&H'!O89 ->  | Q155: =+'Interne beregninger - B&D&H'!Q89 ->  | S155: =+'Interne beregninger - B&D&H'!S89 -> 
E156: =+'Interne beregninger - B&D&H'!E90 ->  | G156: =+'Interne beregninger - B&D&H'!G90 ->  | I156: =+'Interne beregninger - B&D&H'!I90 ->  | K156: =+'Interne beregninger - B&D&H'!K90 ->  | M156: =+'Interne beregninger - B&D&H'!M90 ->  | O156: =+'Interne beregninger - B&D&H'!O90 ->  | Q156: =+'Interne beregninger - B&D&H'!Q90 ->  | S156: =+'Interne beregninger - B&D&H'!S90 -> 
E157: =+'Interne beregninger - B&D&H'!E91 ->  | G157: =+'Interne beregninger - B&D&H'!G91 ->  | I157: =+'Interne beregninger - B&D&H'!I91 ->  | K157: =+'Interne beregninger - B&D&H'!K91 ->  | M157: =+'Interne beregninger - B&D&H'!M91 ->  | O157: =+'Interne beregninger - B&D&H'!O91 ->  | Q157: =+'Interne beregninger - B&D&H'!Q91 ->  | S157: =+'Interne beregninger - B&D&H'!S91 -> 
E158: =+'Interne beregninger - B&D&H'!E92 ->  | G158: =+'Interne beregninger - B&D&H'!G92 ->  | I158: =+'Interne beregninger - B&D&H'!I92 ->  | K158: =+'Interne beregninger - B&D&H'!K92 ->  | M158: =+'Interne beregninger - B&D&H'!M92 ->  | O158: =+'Interne beregninger - B&D&H'!O92 ->  | Q158: =+'Interne beregninger - B&D&H'!Q92 ->  | S158: =+'Interne beregninger - B&D&H'!S92 -> 

Sheet El og plugin hybrid
B1: TCO-værktøj til tilbudsevaluering
B2: Motorkøretøjer - finansieret ved køb eller finansiel leasing
B3: For følgende køretøjer: El og plugin hybrid
B6: 3 Tilbudsgiver: Oplysninger om produktet
C8: Produktets navn | E8: PRODUKT 1 EL | G8: PRODUKT 2 EL | I8: PRODUKT 3 EL | K8: PRODUKT 4 EL | M8: PRODUKT 5 EL | O8: PRODUKT 6 EL | Q8: PRODUKT 7 EL | S8: PRODUKT 8 EL
C9: Investeringsomkostninger
C10: Evt. tilkøb af ekstra garantiperiode | D10: kr. per køretøj
C12: Driftsomkostninger
C13: Elektrisk forbrug (jf. WLTP) | D13: Wh/km
C15: Service, vedligehold og løbende omkostninger
C16: Pris finansieret via leasing jf. kravsspecifikation | D16: kr./år per køretøj
C17: Grøn ejerafgift | D17: kr./år per køretøj
B20: 3A Kun for plugin hybridkøretøjer
C22: Driftsomkostninger
C23: Brændstofforbrug (jf. WLTP) | D23: km/liter
B27: 2 Ordregiver: Oplysninger om brugen
C28: Antal køretøjer | D28: stk. | E28: 1 | G28: =$E28 -> 1 | I28: =$E28 -> 1 | K28: =$E28 -> 1 | M28: =$E28 -> 1 | O28: =$E28 -> 1 | Q28: =$E28 -> 1 | S28: =$E28 -> 1
C29: Årligt kørselsforbrug per motorkøretøj | D29: km/år per køretøj | G29: =$E29 -> 0 | I29: =$E29 -> 0 | K29: =$E29 -> 0 | M29: =$E29 -> 0 | O29: =$E29 -> 0 | Q29: =$E29 -> 0 | S29: =$E29 -> 0
B33: 1 Ordregiver: Baggrundsdata
C34: TCO-evalueringsperiode (samme som serviceaftale-perioden jf. kravspecifikationen) | D34: antal år | E34: 4 | G34: =$E34 -> 4 | I34: =$E34 -> 4 | K34: =$E34 -> 4 | M34: =$E34 -> 4 | O34: =$E34 -> 4 | Q34: =$E34 -> 4 | S34: =$E34 -> 4
C35: Elpris | D35: kr./kWh | E35: 2.13 | G35: 2.13 | I35: 2.13 | K35: 2.13 | M35: 2.13 | O35: 2.13 | Q35: 2.13 | S35: 2.13
C36: Elprisstigning (årligt, ud over inflation) | D36: % per år | E36: 1.671037391 | G36: 1.671037391 | I36: 1.671037391 | K36: 1.671037391 | M36: 1.671037391 | O36: 1.671037391 | Q36: 1.671037391 | S36: 1.671037391
C37: Diskonteringsrente | D37: % per år | E37: 4 | G37: 4 | I37: 4 | K37: 4 | M37: 4 | O37: 4 | Q37: 4 | S37: 4
C38: Forventet levetid for ladestandere (evt. ladebokse) | D38: år | E38: 10 | G38: 10 | I38: 10 | K38: 10 | M38: 10 | O38: 10 | Q38: 10 | S38: 10
C40: Investeringsomkostninger
C41: Indkøbspris for ladestandere (evt. ladebokse) | D41: kr. per køretøj
C43: Driftsomkostninger
C44: Opladningsabonnement | D44: kr./år per køretøj
C46: Service, vedligehold og løbende omkostninger
C47: Forsikring | D47: kr./år per køretøj
C48: Andre løbende omkostninger | D48: kr./år per køretøj
C50: Valg af type køretøj | E50: Klik for valg | G50: Klik for valg | I50: Klik for valg | K50: Klik for valg | M50: Klik for valg | O50: Klik for valg | Q50: Klik for valg | S50: Klik for valg
C51: Type brændstof | E51: =IF('Interne beregninger - E&PH'!$A$2=E$50,'Interne beregninger - E&PH'!$D2,IF('Interne beregninger - E&PH'!$A$4=E$50,'Interne beregninger - E&PH'!$D4,IF('Interne beregninger - E&PH'!$A$3=E$50,'Interne beregninger - E&PH'!$D3,"Vælg ovenfor"))) -> Vælg ovenfor | G51: =IF('Interne beregninger - E&PH'!$A$2=G$50,'Interne beregninger - E&PH'!$D2,IF('Interne beregninger - E&PH'!$A$4=G$50,'Interne beregninger - E&PH'!$D4,IF('Interne beregninger - E&PH'!$A$3=G$50,'Interne beregninger - E&PH'!$D3,"Vælg ovenfor"))) -> Vælg ovenfor | I51: =IF('Interne beregninger - E&PH'!$A$2=I$50,'Interne beregninger - E&PH'!$D2,IF('Interne beregninger - E&PH'!$A$4=I$50,'Interne beregninger - E&PH'!$D4,IF('Interne beregninger - E&PH'!$A$3=I$50,'Interne beregninger - E&PH'!$D3,"Vælg ovenfor"))) -> Vælg ovenfor | K51: =IF('Interne beregninger - E&PH'!$A$2=K$50,'Interne beregninger - E&PH'!$D2,IF('Interne beregninger - E&PH'!$A$4=K$50,'Interne beregninger - E&PH'!$D4,IF('Interne beregninger - E&PH'!$A$3=K$50,'Interne beregninger - E&PH'!$D3,"Vælg ovenfor"))) -> Vælg ovenfor | M51: =IF('Interne beregninger - E&PH'!$A$2=M$50,'Interne beregninger - E&PH'!$D2,IF('Interne beregninger - E&PH'!$A$4=M$50,'Interne beregninger - E&PH'!$D4,IF('Interne beregninger - E&PH'!$A$3=M$50,'Interne beregninger - E&PH'!$D3,"Vælg ovenfor"))) -> Vælg ovenfor | O51: =IF('Interne beregninger - E&PH'!$A$2=O$50,'Interne beregninger - E&PH'!$D2,IF('Interne beregninger - E&PH'!$A$4=O$50,'Interne beregninger - E&PH'!$D4,IF('Interne beregninger - E&PH'!$A$3=O$50,'Interne beregninger - E&PH'!$D3,"Vælg ovenfor"))) -> Vælg ovenfor | Q51: =IF('Interne beregninger - E&PH'!$A$2=Q$50,'Interne beregninger - E&PH'!$D2,IF('Interne beregninger - E&PH'!$A$4=Q$50,'Interne beregninger - E&PH'!$D4,IF('Interne beregninger - E&PH'!$A$3=Q$50,'Interne beregninger - E&PH'!$D3,"Vælg ovenfor"))) -> Vælg ovenfor | S51: =IF('Interne beregninger - E&PH'!$A$2=S$50,'Interne beregninger - E&PH'!$D2,IF('Interne beregninger - E&PH'!$A$4=S$50,'Interne beregninger - E&PH'!$D4,IF('Interne beregninger - E&PH'!$A$3=S$50,'Interne beregninger - E&PH'!$D3,"Vælg ovenfor"))) -> Vælg ovenfor
B53: 1A Kun for plugin hybridkøretøjer
C55: Driftsomkostninger for plugin hybridkøretøjer
C56: Benzinpris | D56: kr./liter | E56: =12.33 -> 12.33 | G56: =$E56 -> 12.33 | I56: =$E56 -> 12.33 | K56: =$E56 -> 12.33 | M56: =$E56 -> 12.33 | O56: =$E56 -> 12.33 | Q56: =$E56 -> 12.33 | S56: =$E56 -> 12.33
C57: Dieselpris | D57: kr./liter | E57: =10.83 -> 10.83 | G57: =$E57 -> 10.83 | I57: =$E57 -> 10.83 | K57: =$E57 -> 10.83 | M57: =$E57 -> 10.83 | O57: =$E57 -> 10.83 | Q57: =$E57 -> 10.83 | S57: =$E57 -> 10.83
C58: Brændstofprisstigning (årligt, ud over inflation) for benzin | D58: % per år | E58: ='ENS udvikling i brændstofspris'!G10*100 -> 1.385046076 | G58: =E$58 -> 1.385046076 | I58: =G$58 -> 1.385046076 | K58: =I$58 -> 1.385046076 | M58: =K$58 -> 1.385046076 | O58: =M$58 -> 1.385046076 | Q58: =O$58 -> 1.385046076 | S58: =Q$58 -> 1.385046076
C59: Brændstofprisstigning (årligt, ud over inflation) for diesel | D59: % per år | E59: ='ENS udvikling i brændstofspris'!I10*100 -> 1.44773262 | G59: =E$59 -> 1.44773262 | I59: =G$59 -> 1.44773262 | K59: =I$59 -> 1.44773262 | M59: =K$59 -> 1.44773262 | O59: =M$59 -> 1.44773262 | Q59: =O$59 -> 1.44773262 | S59: =Q$59 -> 1.44773262
B63: 4 Resultat
C65: =C9&" (uden ladestandere/ladebokse)" -> Investeringsomkostninger (uden ladestandere/ladebokse) | D65: kr. | E65: =E10*E28 -> 0 | G65: =G10*G28 -> 0 | I65: =I10*I28 -> 0 | K65: =K10*K28 -> 0 | M65: =M10*M28 -> 0 | O65: =O10*O28 -> 0 | Q65: =Q10*Q28 -> 0 | S65: =S10*S28 -> 0
C66: =C9&" (kun ladestandere/ladebokse)" -> Investeringsomkostninger (kun ladestandere/ladebokse) | D66: kr. | E66: =+(E41*E34/E38)*E28 -> 0 | G66: =+(G41*G34/G38)*G28 -> 0 | I66: =+(I41*I34/I38)*I28 -> 0 | K66: =+(K41*K34/K38)*K28 -> 0 | M66: =+(M41*M34/M38)*M28 -> 0 | O66: =+(O41*O34/O38)*O28 -> 0 | Q66: =+(Q41*Q34/Q38)*Q28 -> 0 | S66: =+(S41*S34/S38)*S28 -> 0
C67: =C12&" i alt" -> Driftsomkostninger i alt | D67: kr. | E67: =(SUM('Interne beregninger - E&PH'!E25:E39)*E28)+(SUM('Interne beregninger - E&PH'!E43:E57)*E28) -> 0 | G67: =(SUM('Interne beregninger - E&PH'!G25:G39)*G28)+(SUM('Interne beregninger - E&PH'!G43:G57)*G28) -> 0 | I67: =(SUM('Interne beregninger - E&PH'!I25:I39)*I28)+(SUM('Interne beregninger - E&PH'!I43:I57)*I28) -> 0 | K67: =(SUM('Interne beregninger - E&PH'!K25:K39)*K28)+(SUM('Interne beregninger - E&PH'!K43:K57)*K28) -> 0 | M67: =(SUM('Interne beregninger - E&PH'!M25:M39)*M28)+(SUM('Interne beregninger - E&PH'!M43:M57)*M28) -> 0 | O67: =(SUM('Interne beregninger - E&PH'!O25:O39)*O28)+(SUM('Interne beregninger - E&PH'!O43:O57)*O28) -> 0 | Q67: =(SUM('Interne beregninger - E&PH'!Q25:Q39)*Q28)+(SUM('Interne beregninger - E&PH'!Q43:Q57)*Q28) -> 0 | S67: =(SUM('Interne beregninger - E&PH'!S25:S39)*S28)+(SUM('Interne beregninger - E&PH'!S43:S57)*S28) -> 0
C68: =C15&" i alt" -> Service, vedligehold og løbende omkostninger i alt | D68: kr. | E68: =SUM('Interne beregninger - E&PH'!E61:E75)*E28 -> 0 | G68: =SUM('Interne beregninger - E&PH'!G61:G75)*G28 -> 0 | I68: =SUM('Interne beregninger - E&PH'!I61:I75)*I28 -> 0 | K68: =SUM('Interne beregninger - E&PH'!K61:K75)*K28 -> 0 | M68: =SUM('Interne beregninger - E&PH'!M61:M75)*M28 -> 0 | O68: =SUM('Interne beregninger - E&PH'!O61:O75)*O28 -> 0 | Q68: =SUM('Interne beregninger - E&PH'!Q61:Q75)*Q28 -> 0 | S68: =SUM('Interne beregninger - E&PH'!S61:S75)*S28 -> 0
C70: Samlet TCO (nutidsværdi) | D70: kr. | E70: =SUM(E65:E68) -> 0 | G70: =SUM(G65:G68) -> 0 | I70: =SUM(I65:I68) -> 0 | K70: =SUM(K65:K68) -> 0 | M70: =SUM(M65:M68) -> 0 | O70: =SUM(O65:O68) -> 0 | Q70: =SUM(Q65:Q68) -> 0 | S70: =SUM(S65:S68) -> 0
C71: Gennemsnitlige årlige omkostninger | D71: kr./år | E71: =IF(E34=1,E70,PMT(E37/100,E34,-E70)) -> 0 | G71: =IF(G34=1,G70,PMT(G37/100,G34,-G70)) -> 0 | I71: =IF(I34=1,I70,PMT(I37/100,I34,-I70)) -> 0 | K71: =IF(K34=1,K70,PMT(K37/100,K34,-K70)) -> 0 | M71: =IF(M34=1,M70,PMT(M37/100,M34,-M70)) -> 0 | O71: =IF(O34=1,O70,PMT(O37/100,O34,-O70)) -> 0 | Q71: =IF(Q34=1,Q70,PMT(Q37/100,Q34,-Q70)) -> 0 | S71: =IF(S34=1,S70,PMT(S37/100,S34,-S70)) -> 0
D143: DENNE TEKST SKAL SKRIVES MED HVID TEKST OG SKJULES TIL SIDST!
C146: Akkumulerede samlede udgifter (nutidsværdi) | E146: =+'Interne beregninger - E&PH'!E6 -> PRODUKT 1 EL | G146: =+'Interne beregninger - E&PH'!G6 -> PRODUKT 2 EL | I146: =+'Interne beregninger - E&PH'!I6 -> PRODUKT 3 EL | K146: =+'Interne beregninger - E&PH'!K6 -> PRODUKT 4 EL | M146: =+'Interne beregninger - E&PH'!M6 -> PRODUKT 5 EL | O146: =+'Interne beregninger - E&PH'!O6 -> PRODUKT 6 EL | Q146: =+'Interne beregninger - E&PH'!Q6 -> PRODUKT 7 EL | S146: =+'Interne beregninger - E&PH'!S6 -> PRODUKT 8 EL
E147: =+'Interne beregninger - E&PH'!E7 -> 0 | G147: =+'Interne beregninger - E&PH'!G7 -> 0 | I147: =+'Interne beregninger - E&PH'!I7 -> 0 | K147: =+'Interne beregninger - E&PH'!K7 -> 0 | M147: =+'Interne beregninger - E&PH'!M7 -> 0 | O147: =+'Interne beregninger - E&PH'!O7 -> 0 | Q147: =+'Interne beregninger - E&PH'!Q7 -> 0 | S147: =+'Interne beregninger - E&PH'!S7 -> 0
E148: =+'Interne beregninger - E&PH'!E8 -> 0 | G148: =+'Interne beregninger - E&PH'!G8 -> 0 | I148: =+'Interne beregninger - E&PH'!I8 -> 0 | K148: =+'Interne beregninger - E&PH'!K8 -> 0 | M148: =+'Interne beregninger - E&PH'!M8 -> 0 | O148: =+'Interne beregninger - E&PH'!O8 -> 0 | Q148: =+'Interne beregninger - E&PH'!Q8 -> 0 | S148: =+'Interne beregninger - E&PH'!S8 -> 0
E149: =+'Interne beregninger - E&PH'!E9 -> 0 | G149: =+'Interne beregninger - E&PH'!G9 -> 0 | I149: =+'Interne beregninger - E&PH'!I9 -> 0 | K149: =+'Interne beregninger - E&PH'!K9 -> 0 | M149: =+'Interne beregninger - E&PH'!M9 -> 0 | O149: =+'Interne beregninger - E&PH'!O9 -> 0 | Q149: =+'Interne beregninger - E&PH'!Q9 -> 0 | S149: =+'Interne beregninger - E&PH'!S9 -> 0
E150: =+'Interne beregninger - E&PH'!E10 -> 0 | G150: =+'Interne beregninger - E&PH'!G10 -> 0 | I150: =+'Interne beregninger - E&PH'!I10 -> 0 | K150: =+'Interne beregninger - E&PH'!K10 -> 0 | M150: =+'Interne beregninger - E&PH'!M10 -> 0 | O150: =+'Interne beregninger - E&PH'!O10 -> 0 | Q150: =+'Interne beregninger - E&PH'!Q10 -> 0 | S150: =+'Interne beregninger - E&PH'!S10 -> 0
E151: =+'Interne beregninger - E&PH'!E11 -> 0 | G151: =+'Interne beregninger - E&PH'!G11 -> 0 | I151: =+'Interne beregninger - E&PH'!I11 -> 0 | K151: =+'Interne beregninger - E&PH'!K11 -> 0 | M151: =+'Interne beregninger - E&PH'!M11 -> 0 | O151: =+'Interne beregninger - E&PH'!O11 -> 0 | Q151: =+'Interne beregninger - E&PH'!Q11 -> 0 | S151: =+'Interne beregninger - E&PH'!S11 -> 0
E152: =+'Interne beregninger - E&PH'!E12 -> 0 | G152: =+'Interne beregninger - E&PH'!G12 -> 0 | I152: =+'Interne beregninger - E&PH'!I12 -> 0 | K152: =+'Interne beregninger - E&PH'!K12 -> 0 | M152: =+'Interne beregninger - E&PH'!M12 -> 0 | O152: =+'Interne beregninger - E&PH'!O12 -> 0 | Q152: =+'Interne beregninger - E&PH'!Q12 -> 0 | S152: =+'Interne beregninger - E&PH'!S12 -> 0
E153: =+'Interne beregninger - E&PH'!E13 -> 0 | G153: =+'Interne beregninger - E&PH'!G13 -> 0 | I153: =+'Interne beregninger - E&PH'!I13 -> 0 | K153: =+'Interne beregninger - E&PH'!K13 -> 0 | M153: =+'Interne beregninger - E&PH'!M13 -> 0 | O153: =+'Interne beregninger - E&PH'!O13 -> 0 | Q153: =+'Interne beregninger - E&PH'!Q13 -> 0 | S153: =+'Interne beregninger - E&PH'!S13 -> 0
E154: =+'Interne beregninger - E&PH'!E14 -> 0 | G154: =+'Interne beregninger - E&PH'!G14 -> 0 | I154: =+'Interne beregninger - E&PH'!I14 -> 0 | K154: =+'Interne beregninger - E&PH'!K14 -> 0 | M154: =+'Interne beregninger - E&PH'!M14 -> 0 | O154: =+'Interne beregninger - E&PH'!O14 -> 0 | Q154: =+'Interne beregninger - E&PH'!Q14 -> 0 | S154: =+'Interne beregninger - E&PH'!S14 -> 0
E155: =+'Interne beregninger - E&PH'!E15 -> 0 | G155: =+'Interne beregninger - E&PH'!G15 -> 0 | I155: =+'Interne beregninger - E&PH'!I15 -> 0 | K155: =+'Interne beregninger - E&PH'!K15 -> 0 | M155: =+'Interne beregninger - E&PH'!M15 -> 0 | O155: =+'Interne beregninger - E&PH'!O15 -> 0 | Q155: =+'Interne beregninger - E&PH'!Q15 -> 0 | S155: =+'Interne beregninger - E&PH'!S15 -> 0
E156: =+'Interne beregninger - E&PH'!E16 -> 0 | G156: =+'Interne beregninger - E&PH'!G16 -> 0 | I156: =+'Interne beregninger - E&PH'!I16 -> 0 | K156: =+'Interne beregninger - E&PH'!K16 -> 0 | M156: =+'Interne beregninger - E&PH'!M16 -> 0 | O156: =+'Interne beregninger - E&PH'!O16 -> 0 | Q156: =+'Interne beregninger - E&PH'!Q16 -> 0 | S156: =+'Interne beregninger - E&PH'!S16 -> 0
E157: =+'Interne beregninger - E&PH'!E17 -> 0 | G157: =+'Interne beregninger - E&PH'!G17 -> 0 | I157: =+'Interne beregninger - E&PH'!I17 -> 0 | K157: =+'Interne beregninger - E&PH'!K17 -> 0 | M157: =+'Interne beregninger - E&PH'!M17 -> 0 | O157: =+'Interne beregninger - E&PH'!O17 -> 0 | Q157: =+'Interne beregninger - E&PH'!Q17 -> 0 | S157: =+'Interne beregninger - E&PH'!S17 -> 0
E158: =+'Interne beregninger - E&PH'!E18 -> 0 | G158: =+'Interne beregninger - E&PH'!G18 -> 0 | I158: =+'Interne beregninger - E&PH'!I18 -> 0 | K158: =+'Interne beregninger - E&PH'!K18 -> 0 | M158: =+'Interne beregninger - E&PH'!M18 -> 0 | O158: =+'Interne beregninger - E&PH'!O18 -> 0 | Q158: =+'Interne beregninger - E&PH'!Q18 -> 0 | S158: =+'Interne beregninger - E&PH'!S18 -> 0
E159: =+'Interne beregninger - E&PH'!E19 -> 0 | G159: =+'Interne beregninger - E&PH'!G19 -> 0 | I159: =+'Interne beregninger - E&PH'!I19 -> 0 | K159: =+'Interne beregninger - E&PH'!K19 -> 0 | M159: =+'Interne beregninger - E&PH'!M19 -> 0 | O159: =+'Interne beregninger - E&PH'!O19 -> 0 | Q159: =+'Interne beregninger - E&PH'!Q19 -> 0 | S159: =+'Interne beregninger - E&PH'!S19 -> 0
E160: =+'Interne beregninger - E&PH'!E20 -> 0 | G160: =+'Interne beregninger - E&PH'!G20 -> 0 | I160: =+'Interne beregninger - E&PH'!I20 -> 0 | K160: =+'Interne beregninger - E&PH'!K20 -> 0 | M160: =+'Interne beregninger - E&PH'!M20 -> 0 | O160: =+'Interne beregninger - E&PH'!O20 -> 0 | Q160: =+'Interne beregninger - E&PH'!Q20 -> 0 | S160: =+'Interne beregninger - E&PH'!S20 -> 0
E161: =+'Interne beregninger - E&PH'!E21 -> 0 | G161: =+'Interne beregninger - E&PH'!G21 -> 0 | I161: =+'Interne beregninger - E&PH'!I21 -> 0 | K161: =+'Interne beregninger - E&PH'!K21 -> 0 | M161: =+'Interne beregninger - E&PH'!M21 -> 0 | O161: =+'Interne beregninger - E&PH'!O21 -> 0 | Q161: =+'Interne beregninger - E&PH'!Q21 -> 0 | S161: =+'Interne beregninger - E&PH'!S21 -> 0
C163: Gennemsnitlige årlige omkostninger (relation til levetid) | E163: =+'Interne beregninger - E&PH'!E96 -> PRODUKT 1 EL | G163: =+'Interne beregninger - E&PH'!G96 -> PRODUKT 2 EL | I163: =+'Interne beregninger - E&PH'!I96 -> PRODUKT 3 EL | K163: =+'Interne beregninger - E&PH'!K96 -> PRODUKT 4 EL | M163: =+'Interne beregninger - E&PH'!M96 -> PRODUKT 5 EL | O163: =+'Interne beregninger - E&PH'!O96 -> PRODUKT 6 EL | Q163: =+'Interne beregninger - E&PH'!Q96 -> PRODUKT 7 EL | S163: =+'Interne beregninger - E&PH'!S96 -> PRODUKT 8 EL
E164: =+'Interne beregninger - E&PH'!E97 -> 0 | G164: =+'Interne beregninger - E&PH'!G97 -> 0 | I164: =+'Interne beregninger - E&PH'!I97 -> 0 | K164: =+'Interne beregninger - E&PH'!K97 -> 0 | M164: =+'Interne beregninger - E&PH'!M97 -> 0 | O164: =+'Interne beregninger - E&PH'!O97 -> 0 | Q164: =+'Interne beregninger - E&PH'!Q97 -> 0 | S164: =+'Interne beregninger - E&PH'!S97 -> 0
E165: =+'Interne beregninger - E&PH'!E98 -> 0 | G165: =+'Interne beregninger - E&PH'!G98 -> 0 | I165: =+'Interne beregninger - E&PH'!I98 -> 0 | K165: =+'Interne beregninger - E&PH'!K98 -> 0 | M165: =+'Interne beregninger - E&PH'!M98 -> 0 | O165: =+'Interne beregninger - E&PH'!O98 -> 0 | Q165: =+'Interne beregninger - E&PH'!Q98 -> 0 | S165: =+'Interne beregninger - E&PH'!S98 -> 0
E166: =+'Interne beregninger - E&PH'!E99 -> 0 | G166: =+'Interne beregninger - E&PH'!G99 -> 0 | I166: =+'Interne beregninger - E&PH'!I99 -> 0 | K166: =+'Interne beregninger - E&PH'!K99 -> 0 | M166: =+'Interne beregninger - E&PH'!M99 -> 0 | O166: =+'Interne beregninger - E&PH'!O99 -> 0 | Q166: =+'Interne beregninger - E&PH'!Q99 -> 0 | S166: =+'Interne beregninger - E&PH'!S99 -> 0
E167: =+'Interne beregninger - E&PH'!E100 -> 0 | G167: =+'Interne beregninger - E&PH'!G100 -> 0 | I167: =+'Interne beregninger - E&PH'!I100 -> 0 | K167: =+'Interne beregninger - E&PH'!K100 -> 0 | M167: =+'Interne beregninger - E&PH'!M100 -> 0 | O167: =+'Interne beregninger - E&PH'!O100 -> 0 | Q167: =+'Interne beregninger - E&PH'!Q100 -> 0 | S167: =+'Interne beregninger - E&PH'!S100 -> 0
E168: =+'Interne beregninger - E&PH'!E101 -> 0 | G168: =+'Interne beregninger - E&PH'!G101 -> 0 | I168: =+'Interne beregninger - E&PH'!I101 -> 0 | K168: =+'Interne beregninger - E&PH'!K101 -> 0 | M168: =+'Interne beregninger - E&PH'!M101 -> 0 | O168: =+'Interne beregninger - E&PH'!O101 -> 0 | Q168: =+'Interne beregninger - E&PH'!Q101 -> 0 | S168: =+'Interne beregninger - E&PH'!S101 -> 0
E169: =+'Interne beregninger - E&PH'!E102 -> 0 | G169: =+'Interne beregninger - E&PH'!G102 -> 0 | I169: =+'Interne beregninger - E&PH'!I102 -> 0 | K169: =+'Interne beregninger - E&PH'!K102 -> 0 | M169: =+'Interne beregninger - E&PH'!M102 -> 0 | O169: =+'Interne beregninger - E&PH'!O102 -> 0 | Q169: =+'Interne beregninger - E&PH'!Q102 -> 0 | S169: =+'Interne beregninger - E&PH'!S102 -> 0
E170: =+'Interne beregninger - E&PH'!E103 -> 0 | G170: =+'Interne beregninger - E&PH'!G103 -> 0 | I170: =+'Interne beregninger - E&PH'!I103 -> 0 | K170: =+'Interne beregninger - E&PH'!K103 -> 0 | M170: =+'Interne beregninger - E&PH'!M103 -> 0 | O170: =+'Interne beregninger - E&PH'!O103 -> 0 | Q170: =+'Interne beregninger - E&PH'!Q103 -> 0 | S170: =+'Interne beregninger - E&PH'!S103 -> 0
E171: =+'Interne beregninger - E&PH'!E104 -> 0 | G171: =+'Interne beregninger - E&PH'!G104 -> 0 | I171: =+'Interne beregninger - E&PH'!I104 -> 0 | K171: =+'Interne beregninger - E&PH'!K104 -> 0 | M171: =+'Interne beregninger - E&PH'!M104 -> 0 | O171: =+'Interne beregninger - E&PH'!O104 -> 0 | Q171: =+'Interne beregninger - E&PH'!Q104 -> 0 | S171: =+'Interne beregninger - E&PH'!S104 -> 0
E172: =+'Interne beregninger - E&PH'!E105 -> 0 | G172: =+'Interne beregninger - E&PH'!G105 -> 0 | I172: =+'Interne beregninger - E&PH'!I105 -> 0 | K172: =+'Interne beregninger - E&PH'!K105 -> 0 | M172: =+'Interne beregninger - E&PH'!M105 -> 0 | O172: =+'Interne beregninger - E&PH'!O105 -> 0 | Q172: =+'Interne beregninger - E&PH'!Q105 -> 0 | S172: =+'Interne beregninger - E&PH'!S105 -> 0
E173: =+'Interne beregninger - E&PH'!E106 -> 0 | G173: =+'Interne beregninger - E&PH'!G106 -> 0 | I173: =+'Interne beregninger - E&PH'!I106 -> 0 | K173: =+'Interne beregninger - E&PH'!K106 -> 0 | M173: =+'Interne beregninger - E&PH'!M106 -> 0 | O173: =+'Interne beregninger - E&PH'!O106 -> 0 | Q173: =+'Interne beregninger - E&PH'!Q106 -> 0 | S173: =+'Interne beregninger - E&PH'!S106 -> 0
E174: =+'Interne beregninger - E&PH'!E107 -> 0 | G174: =+'Interne beregninger - E&PH'!G107 -> 0 | I174: =+'Interne beregninger - E&PH'!I107 -> 0 | K174: =+'Interne beregninger - E&PH'!K107 -> 0 | M174: =+'Interne beregninger - E&PH'!M107 -> 0 | O174: =+'Interne beregninger - E&PH'!O107 -> 0 | Q174: =+'Interne beregninger - E&PH'!Q107 -> 0 | S174: =+'Interne beregninger - E&PH'!S107 -> 0
E175: =+'Interne beregninger - E&PH'!E108 -> 0 | G175: =+'Interne beregninger - E&PH'!G108 -> 0 | I175: =+'Interne beregninger - E&PH'!I108 -> 0 | K175: =+'Interne beregninger - E&PH'!K108 -> 0 | M175: =+'Interne beregninger - E&PH'!M108 -> 0 | O175: =+'Interne beregninger - E&PH'!O108 -> 0 | Q175: =+'Interne beregninger - E&PH'!Q108 -> 0 | S175: =+'Interne beregninger - E&PH'!S108 -> 0
E176: =+'Interne beregninger - E&PH'!E109 -> 0 | G176: =+'Interne beregninger - E&PH'!G109 -> 0 | I176: =+'Interne beregninger - E&PH'!I109 -> 0 | K176: =+'Interne beregninger - E&PH'!K109 -> 0 | M176: =+'Interne beregninger - E&PH'!M109 -> 0 | O176: =+'Interne beregninger - E&PH'!O109 -> 0 | Q176: =+'Interne beregninger - E&PH'!Q109 -> 0 | S176: =+'Interne beregninger - E&PH'!S109 -> 0
E177: =+'Interne beregninger - E&PH'!E110 -> 0 | G177: =+'Interne beregninger - E&PH'!G110 -> 0 | I177: =+'Interne beregninger - E&PH'!I110 -> 0 | K177: =+'Interne beregninger - E&PH'!K110 -> 0 | M177: =+'Interne beregninger - E&PH'!M110 -> 0 | O177: =+'Interne beregninger - E&PH'!O110 -> 0 | Q177: =+'Interne beregninger - E&PH'!Q110 -> 0 | S177: =+'Interne beregninger - E&PH'!S110 -> 0
E178: =+'Interne beregninger - E&PH'!E111 -> 0 | G178: =+'Interne beregninger - E&PH'!G111 -> 0 | I178: =+'Interne beregninger - E&PH'!I111 -> 0 | K178: =+'Interne beregninger - E&PH'!K111 -> 0 | M178: =+'Interne beregninger - E&PH'!M111 -> 0 | O178: =+'Interne beregninger - E&PH'!O111 -> 0 | Q178: =+'Interne beregninger - E&PH'!Q111 -> 0 | S178: =+'Interne beregninger - E&PH'!S111 -> 0

Sheet Sammenligning på tværs
B2: TCO-værktøj
B3: Motorkøretøjer - sammenligning af to bedste motorkøretøjer
B4: Må ikke anvendes i udbudssituationen - men kan bruges internt til sammenligning af f.eks. benzin med el
C7: Valg af produkter til sammenligning
C8: Vælg kun bedste produkt fra hhv. faneblad "Benzin-diesel-hybrid" samt "El og plugin hybrid" | E8: "Benzin-diesel-hybrid" | G8: "El og plugin hybrid"
C10: Produktets navn | E10: PRODUKT 1 | G10: PRODUKT 2 EL
C11: Angiv produkts navn fra det pågældende ark (f.eks. PRODUKT 1)
C14: Resultat
C16: Investeringsomkostninger i alt (dog uden evt. ladestander/ladeboks) | D16: kr. | E16: =HLOOKUP(E$10,'Benzin - diesel - hybrid'!$E$8:$S$51,39,FALSE) -> 0 | G16: =HLOOKUP(G$10,'El og plugin hybrid'!$E$8:$S$71,58,FALSE) -> 0
C17: Investeringsomkostninger for ladestandere (evt. ladeboks) | D17: kr. | E17: 0 | G17: =HLOOKUP(G$10,'El og plugin hybrid'!$E$8:$S$71,59,FALSE) -> 0
C18: Driftsomkostninger i alt | D18: kr. | E18: =HLOOKUP(E$10,'Benzin - diesel - hybrid'!$E$8:$S$51,40,FALSE) ->  | G18: =HLOOKUP(G$10,'El og plugin hybrid'!$E$8:$S$71,60,FALSE) -> 0
C19: Service, vedligehold og løbende omkostninger i alt | D19: kr. | E19: =HLOOKUP(E$10,'Benzin - diesel - hybrid'!$E$8:$S$51,41,FALSE) -> 0 | G19: =HLOOKUP(G$10,'El og plugin hybrid'!$E$8:$S$71,61,FALSE) -> 0
C21: Samlet TCO (nutidsværdi) | D21: kr. | E21: =SUM(E16:E19) ->  | G21: =SUM(G16:G19) -> 0
C22: Gennemsnitlige årlige omkostninger | D22: kr./år | E22: =IF('Benzin - diesel - hybrid'!E28=1,E21,PMT('Benzin - diesel - hybrid'!E29/100,'Benzin - diesel - hybrid'!E28,-E21)) ->  | G22: =IF('El og plugin hybrid'!E34=1,G21,PMT('El og plugin hybrid'!E37/100,'El og plugin hybrid'!E34,-G21)) -> 0
D94: DENNE TEKST SKAL SKRIVES MED HVID TEKST OG SKJULES TIL SIDST!
C97: Akkumulerede samlede udgifter (nutidsværdi) | E97: =+E10 -> PRODUKT 1 | G97: =+G10 -> PRODUKT 2 EL
E98: =HLOOKUP(E$97,'Benzin - diesel - hybrid'!$E$126:$S$141,2,FALSE) ->  | G98: =HLOOKUP(G$97,'El og plugin hybrid'!$E$146:$S$161,2,FALSE) -> 0
E99: =HLOOKUP(E$97,'Benzin - diesel - hybrid'!$E$126:$S$141,3,FALSE) ->  | G99: =HLOOKUP(G$97,'El og plugin hybrid'!$E$146:$S$161,3,FALSE) -> 0
E100: =HLOOKUP(E$97,'Benzin - diesel - hybrid'!$E$126:$S$141,4,FALSE) ->  | G100: =HLOOKUP(G$97,'El og plugin hybrid'!$E$146:$S$161,4,FALSE) -> 0
E101: =HLOOKUP(E$97,'Benzin - diesel - hybrid'!$E$126:$S$141,5,FALSE) ->  | G101: =HLOOKUP(G$97,'El og plugin hybrid'!$E$146:$S$161,5,FALSE) -> 0
E102: =HLOOKUP(E$97,'Benzin - diesel - hybrid'!$E$126:$S$141,6,FALSE) ->  | G102: =HLOOKUP(G$97,'El og plugin hybrid'!$E$146:$S$161,6,FALSE) -> 0
E103: =HLOOKUP(E$97,'Benzin - diesel - hybrid'!$E$126:$S$141,7,FALSE) ->  | G103: =HLOOKUP(G$97,'El og plugin hybrid'!$E$146:$S$161,7,FALSE) -> 0
E104: =HLOOKUP(E$97,'Benzin - diesel - hybrid'!$E$126:$S$141,8,FALSE) ->  | G104: =HLOOKUP(G$97,'El og plugin hybrid'!$E$146:$S$161,8,FALSE) -> 0
E105: =HLOOKUP(E$97,'Benzin - diesel - hybrid'!$E$126:$S$141,9,FALSE) ->  | G105: =HLOOKUP(G$97,'El og plugin hybrid'!$E$146:$S$161,9,FALSE) -> 0
E106: =HLOOKUP(E$97,'Benzin - diesel - hybrid'!$E$126:$S$141,10,FALSE) ->  | G106: =HLOOKUP(G$97,'El og plugin hybrid'!$E$146:$S$161,10,FALSE) -> 0
E107: =HLOOKUP(E$97,'Benzin - diesel - hybrid'!$E$126:$S$141,11,FALSE) ->  | G107: =HLOOKUP(G$97,'El og plugin hybrid'!$E$146:$S$161,11,FALSE) -> 0
E108: =HLOOKUP(E$97,'Benzin - diesel - hybrid'!$E$126:$S$141,12,FALSE) ->  | G108: =HLOOKUP(G$97,'El og plugin hybrid'!$E$146:$S$161,12,FALSE) -> 0
E109: =HLOOKUP(E$97,'Benzin - diesel - hybrid'!$E$126:$S$141,13,FALSE) ->  | G109: =HLOOKUP(G$97,'El og plugin hybrid'!$E$146:$S$161,13,FALSE) -> 0
E110: =HLOOKUP(E$97,'Benzin - diesel - hybrid'!$E$126:$S$141,14,FALSE) ->  | G110: =HLOOKUP(G$97,'El og plugin hybrid'!$E$146:$S$161,14,FALSE) -> 0
E111: =HLOOKUP(E$97,'Benzin - diesel - hybrid'!$E$126:$S$141,15,FALSE) ->  | G111: =HLOOKUP(G$97,'El og plugin hybrid'!$E$146:$S$161,15,FALSE) -> 0
E112: =HLOOKUP(E$97,'Benzin - diesel - hybrid'!$E$126:$S$141,16,FALSE) ->  | G112: =HLOOKUP(G$97,'El og plugin hybrid'!$E$146:$S$161,16,FALSE) -> 0
C114: Gennemsnitlige årlige omkostninger (relation til levetid) | E114: =+E10 -> PRODUKT 1 | G114: =+G10 -> PRODUKT 2 EL
E115: =HLOOKUP(E$114,'Benzin - diesel - hybrid'!$E$143:$S$158,2,FALSE) ->  | G115: =HLOOKUP(G$114,'El og plugin hybrid'!$E$163:$S$178,2,FALSE) -> 0
E116: =HLOOKUP(E$114,'Benzin - diesel - hybrid'!$E$143:$S$158,3,FALSE) ->  | G116: =HLOOKUP(G$114,'El og plugin hybrid'!$E$163:$S$178,3,FALSE) -> 0
E117: =HLOOKUP(E$114,'Benzin - diesel - hybrid'!$E$143:$S$158,4,FALSE) ->  | G117: =HLOOKUP(G$114,'El og plugin hybrid'!$E$163:$S$178,4,FALSE) -> 0
E118: =HLOOKUP(E$114,'Benzin - diesel - hybrid'!$E$143:$S$158,5,FALSE) ->  | G118: =HLOOKUP(G$114,'El og plugin hybrid'!$E$163:$S$178,5,FALSE) -> 0
E119: =HLOOKUP(E$114,'Benzin - diesel - hybrid'!$E$143:$S$158,6,FALSE) ->  | G119: =HLOOKUP(G$114,'El og plugin hybrid'!$E$163:$S$178,6,FALSE) -> 0
E120: =HLOOKUP(E$114,'Benzin - diesel - hybrid'!$E$143:$S$158,7,FALSE) ->  | G120: =HLOOKUP(G$114,'El og plugin hybrid'!$E$163:$S$178,7,FALSE) -> 0
E121: =HLOOKUP(E$114,'Benzin - diesel - hybrid'!$E$143:$S$158,8,FALSE) ->  | G121: =HLOOKUP(G$114,'El og plugin hybrid'!$E$163:$S$178,8,FALSE) -> 0
E122: =HLOOKUP(E$114,'Benzin - diesel - hybrid'!$E$143:$S$158,9,FALSE) ->  | G122: =HLOOKUP(G$114,'El og plugin hybrid'!$E$163:$S$178,9,FALSE) -> 0
E123: =HLOOKUP(E$114,'Benzin - diesel - hybrid'!$E$143:$S$158,10,FALSE) ->  | G123: =HLOOKUP(G$114,'El og plugin hybrid'!$E$163:$S$178,10,FALSE) -> 0
E124: =HLOOKUP(E$114,'Benzin - diesel - hybrid'!$E$143:$S$158,11,FALSE) ->  | G124: =HLOOKUP(G$114,'El og plugin hybrid'!$E$163:$S$178,11,FALSE) -> 0
E125: =HLOOKUP(E$114,'Benzin - diesel - hybrid'!$E$143:$S$158,12,FALSE) ->  | G125: =HLOOKUP(G$114,'El og plugin hybrid'!$E$163:$S$178,12,FALSE) -> 0
E126: =HLOOKUP(E$114,'Benzin - diesel - hybrid'!$E$143:$S$158,13,FALSE) ->  | G126: =HLOOKUP(G$114,'El og plugin hybrid'!$E$163:$S$178,13,FALSE) -> 0
E127: =HLOOKUP(E$114,'Benzin - diesel - hybrid'!$E$143:$S$158,14,FALSE) ->  | G127: =HLOOKUP(G$114,'El og plugin hybrid'!$E$163:$S$178,14,FALSE) -> 0
E128: =HLOOKUP(E$114,'Benzin - diesel - hybrid'!$E$143:$S$158,15,FALSE) ->  | G128: =HLOOKUP(G$114,'El og plugin hybrid'!$E$163:$S$178,15,FALSE) -> 0
E129: =HLOOKUP(E$114,'Benzin - diesel - hybrid'!$E$143:$S$158,16,FALSE) ->  | G129: =HLOOKUP(G$114,'El og plugin hybrid'!$E$163:$S$178,16,FALSE) -> 0

Sheet Beregningsmetode

Sheet Interne beregninger - B&D&H (hidden)
A1: Klik for valg | D1: Type brændstof | G1: Gns. pris - bortskaffelse
A2: Benzin | D2: El og benzin/d. | I2: ja
A3: Diesel | D3: El | I3: nej
A5: Til graf: Akkumulerede samlede udgifter | E5: ='Benzin - diesel - hybrid'!E8 -> PRODUKT 1 | G5: ='Benzin - diesel - hybrid'!G8 -> PRODUKT 2 | I5: ='Benzin - diesel - hybrid'!I8 -> PRODUKT 3 | K5: ='Benzin - diesel - hybrid'!K8 -> PRODUKT 4 | M5: ='Benzin - diesel - hybrid'!M8 -> PRODUKT 5 | O5: ='Benzin - diesel - hybrid'!O8 -> PRODUKT 6 | Q5: ='Benzin - diesel - hybrid'!Q8 -> PRODUKT 7 | S5: ='Benzin - diesel - hybrid'!S8 -> PRODUKT 8
B6: 1 | C6: 1 | E6: ='Benzin - diesel - hybrid'!E46+(E24+E42+E60)*'Benzin - diesel - hybrid'!E22 ->  | G6: ='Benzin - diesel - hybrid'!G46+(G24+G42+G60)*'Benzin - diesel - hybrid'!G22 ->  | I6: ='Benzin - diesel - hybrid'!I46+(I24+I42+I60)*'Benzin - diesel - hybrid'!I22 ->  | K6: ='Benzin - diesel - hybrid'!K46+(K24+K42+K60)*'Benzin - diesel - hybrid'!K22 ->  | M6: ='Benzin - diesel - hybrid'!M46+(M24+M42+M60)*'Benzin - diesel - hybrid'!M22 ->  | O6: ='Benzin - diesel - hybrid'!O46+(O24+O42+O60)*'Benzin - diesel - hybrid'!O22 ->  | Q6: ='Benzin - diesel - hybrid'!Q46+(Q24+Q42+Q60)*'Benzin - diesel - hybrid'!Q22 ->  | S6: ='Benzin - diesel - hybrid'!S46+(S24+S42+S60)*'Benzin - diesel - hybrid'!S22 -> 
B7: 2 | C7: 2 | E7: =E6+(E25+E43+E61)*'Benzin - diesel - hybrid'!E22 ->  | G7: =G6+(G25+G43+G61)*'Benzin - diesel - hybrid'!G22 ->  | I7: =I6+(I25+I43+I61)*'Benzin - diesel - hybrid'!I22 ->  | K7: =K6+(K25+K43+K61)*'Benzin - diesel - hybrid'!K22 ->  | M7: =M6+(M25+M43+M61)*'Benzin - diesel - hybrid'!M22 ->  | O7: =O6+(O25+O43+O61)*'Benzin - diesel - hybrid'!O22 ->  | Q7: =Q6+(Q25+Q43+Q61)*'Benzin - diesel - hybrid'!Q22 ->  | S7: =S6+(S25+S43+S61)*'Benzin - diesel - hybrid'!S22 -> 
B8: 3 | C8: 3 | E8: =E7+(E26+E44+E62)*'Benzin - diesel - hybrid'!E22 ->  | G8: =G7+(G26+G44+G62)*'Benzin - diesel - hybrid'!G22 ->  | I8: =I7+(I26+I44+I62)*'Benzin - diesel - hybrid'!I22 ->  | K8: =K7+(K26+K44+K62)*'Benzin - diesel - hybrid'!K22 ->  | M8: =M7+(M26+M44+M62)*'Benzin - diesel - hybrid'!M22 ->  | O8: =O7+(O26+O44+O62)*'Benzin - diesel - hybrid'!O22 ->  | Q8: =Q7+(Q26+Q44+Q62)*'Benzin - diesel - hybrid'!Q22 ->  | S8: =S7+(S26+S44+S62)*'Benzin - diesel - hybrid'!S22 -> 
B9: 4 | C9: 4 | E9: =E8+(E27+E45+E63)*'Benzin - diesel - hybrid'!E22 ->  | G9: =G8+(G27+G45+G63)*'Benzin - diesel - hybrid'!G22 ->  | I9: =I8+(I27+I45+I63)*'Benzin - diesel - hybrid'!I22 ->  | K9: =K8+(K27+K45+K63)*'Benzin - diesel - hybrid'!K22 ->  | M9: =M8+(M27+M45+M63)*'Benzin - diesel - hybrid'!M22 ->  | O9: =O8+(O27+O45+O63)*'Benzin - diesel - hybrid'!O22 ->  | Q9: =Q8+(Q27+Q45+Q63)*'Benzin - diesel - hybrid'!Q22 ->  | S9: =S8+(S27+S45+S63)*'Benzin - diesel - hybrid'!S22 -> 
B10: 5 | C10: 5 | E10: =E9+(E28+E46+E64)*'Benzin - diesel - hybrid'!E22 ->  | G10: =G9+(G28+G46+G64)*'Benzin - diesel - hybrid'!G22 ->  | I10: =I9+(I28+I46+I64)*'Benzin - diesel - hybrid'!I22 ->  | K10: =K9+(K28+K46+K64)*'Benzin - diesel - hybrid'!K22 ->  | M10: =M9+(M28+M46+M64)*'Benzin - diesel - hybrid'!M22 ->  | O10: =O9+(O28+O46+O64)*'Benzin - diesel - hybrid'!O22 ->  | Q10: =Q9+(Q28+Q46+Q64)*'Benzin - diesel - hybrid'!Q22 ->  | S10: =S9+(S28+S46+S64)*'Benzin - diesel - hybrid'!S22 -> 
B11: 6 | C11: 6 | E11: =E10+(E29+E47+E65)*'Benzin - diesel - hybrid'!E22 ->  | G11: =G10+(G29+G47+G65)*'Benzin - diesel - hybrid'!G22 ->  | I11: =I10+(I29+I47+I65)*'Benzin - diesel - hybrid'!I22 ->  | K11: =K10+(K29+K47+K65)*'Benzin - diesel - hybrid'!K22 ->  | M11: =M10+(M29+M47+M65)*'Benzin - diesel - hybrid'!M22 ->  | O11: =O10+(O29+O47+O65)*'Benzin - diesel - hybrid'!O22 ->  | Q11: =Q10+(Q29+Q47+Q65)*'Benzin - diesel - hybrid'!Q22 ->  | S11: =S10+(S29+S47+S65)*'Benzin - diesel - hybrid'!S22 -> 
B12: 7 | C12: 7 | E12: =E11+(E30+E48+E66)*'Benzin - diesel - hybrid'!E22 ->  | G12: =G11+(G30+G48+G66)*'Benzin - diesel - hybrid'!G22 ->  | I12: =I11+(I30+I48+I66)*'Benzin - diesel - hybrid'!I22 ->  | K12: =K11+(K30+K48+K66)*'Benzin - diesel - hybrid'!K22 ->  | M12: =M11+(M30+M48+M66)*'Benzin - diesel - hybrid'!M22 ->  | O12: =O11+(O30+O48+O66)*'Benzin - diesel - hybrid'!O22 ->  | Q12: =Q11+(Q30+Q48+Q66)*'Benzin - diesel - hybrid'!Q22 ->  | S12: =S11+(S30+S48+S66)*'Benzin - diesel - hybrid'!S22 -> 
B13: 8 | C13: 8 | E13: =E12+(E31+E49+E67)*'Benzin - diesel - hybrid'!E22 ->  | G13: =G12+(G31+G49+G67)*'Benzin - diesel - hybrid'!G22 ->  | I13: =I12+(I31+I49+I67)*'Benzin - diesel - hybrid'!I22 ->  | K13: =K12+(K31+K49+K67)*'Benzin - diesel - hybrid'!K22 ->  | M13: =M12+(M31+M49+M67)*'Benzin - diesel - hybrid'!M22 ->  | O13: =O12+(O31+O49+O67)*'Benzin - diesel - hybrid'!O22 ->  | Q13: =Q12+(Q31+Q49+Q67)*'Benzin - diesel - hybrid'!Q22 ->  | S13: =S12+(S31+S49+S67)*'Benzin - diesel - hybrid'!S22 -> 
B14: 9 | C14: 9 | E14: =E13+(E32+E50+E68)*'Benzin - diesel - hybrid'!E22 ->  | G14: =G13+(G32+G50+G68)*'Benzin - diesel - hybrid'!G22 ->  | I14: =I13+(I32+I50+I68)*'Benzin - diesel - hybrid'!I22 ->  | K14: =K13+(K32+K50+K68)*'Benzin - diesel - hybrid'!K22 ->  | M14: =M13+(M32+M50+M68)*'Benzin - diesel - hybrid'!M22 ->  | O14: =O13+(O32+O50+O68)*'Benzin - diesel - hybrid'!O22 ->  | Q14: =Q13+(Q32+Q50+Q68)*'Benzin - diesel - hybrid'!Q22 ->  | S14: =S13+(S32+S50+S68)*'Benzin - diesel - hybrid'!S22 -> 
B15: 10 | C15: 10 | E15: =E14+(E33+E51+E69)*'Benzin - diesel - hybrid'!E22 ->  | G15: =G14+(G33+G51+G69)*'Benzin - diesel - hybrid'!G22 ->  | I15: =I14+(I33+I51+I69)*'Benzin - diesel - hybrid'!I22 ->  | K15: =K14+(K33+K51+K69)*'Benzin - diesel - hybrid'!K22 ->  | M15: =M14+(M33+M51+M69)*'Benzin - diesel - hybrid'!M22 ->  | O15: =O14+(O33+O51+O69)*'Benzin - diesel - hybrid'!O22 ->  | Q15: =Q14+(Q33+Q51+Q69)*'Benzin - diesel - hybrid'!Q22 ->  | S15: =S14+(S33+S51+S69)*'Benzin - diesel - hybrid'!S22 -> 
B16: 11 | C16: 11 | E16: =E15+(E34+E52+E70)*'Benzin - diesel - hybrid'!E22 ->  | G16: =G15+(G34+G52+G70)*'Benzin - diesel - hybrid'!G22 ->  | I16: =I15+(I34+I52+I70)*'Benzin - diesel - hybrid'!I22 ->  | K16: =K15+(K34+K52+K70)*'Benzin - diesel - hybrid'!K22 ->  | M16: =M15+(M34+M52+M70)*'Benzin - diesel - hybrid'!M22 ->  | O16: =O15+(O34+O52+O70)*'Benzin - diesel - hybrid'!O22 ->  | Q16: =Q15+(Q34+Q52+Q70)*'Benzin - diesel - hybrid'!Q22 ->  | S16: =S15+(S34+S52+S70)*'Benzin - diesel - hybrid'!S22 -> 
B17: 12 | C17: 12 | E17: =E16+(E35+E53+E71)*'Benzin - diesel - hybrid'!E22 ->  | G17: =G16+(G35+G53+G71)*'Benzin - diesel - hybrid'!G22 ->  | I17: =I16+(I35+I53+I71)*'Benzin - diesel - hybrid'!I22 ->  | K17: =K16+(K35+K53+K71)*'Benzin - diesel - hybrid'!K22 ->  | M17: =M16+(M35+M53+M71)*'Benzin - diesel - hybrid'!M22 ->  | O17: =O16+(O35+O53+O71)*'Benzin - diesel - hybrid'!O22 ->  | Q17: =Q16+(Q35+Q53+Q71)*'Benzin - diesel - hybrid'!Q22 ->  | S17: =S16+(S35+S53+S71)*'Benzin - diesel - hybrid'!S22 -> 
B18: 13 | C18: 13 | E18: =E17+(E36+E54+E72)*'Benzin - diesel - hybrid'!E22 ->  | G18: =G17+(G36+G54+G72)*'Benzin - diesel - hybrid'!G22 ->  | I18: =I17+(I36+I54+I72)*'Benzin - diesel - hybrid'!I22 ->  | K18: =K17+(K36+K54+K72)*'Benzin - diesel - hybrid'!K22 ->  | M18: =M17+(M36+M54+M72)*'Benzin - diesel - hybrid'!M22 ->  | O18: =O17+(O36+O54+O72)*'Benzin - diesel - hybrid'!O22 ->  | Q18: =Q17+(Q36+Q54+Q72)*'Benzin - diesel - hybrid'!Q22 ->  | S18: =S17+(S36+S54+S72)*'Benzin - diesel - hybrid'!S22 -> 
B19: 14 | C19: 14 | E19: =E18+(E37+E55+E73)*'Benzin - diesel - hybrid'!E22 ->  | G19: =G18+(G37+G55+G73)*'Benzin - diesel - hybrid'!G22 ->  | I19: =I18+(I37+I55+I73)*'Benzin - diesel - hybrid'!I22 ->  | K19: =K18+(K37+K55+K73)*'Benzin - diesel - hybrid'!K22 ->  | M19: =M18+(M37+M55+M73)*'Benzin - diesel - hybrid'!M22 ->  | O19: =O18+(O37+O55+O73)*'Benzin - diesel - hybrid'!O22 ->  | Q19: =Q18+(Q37+Q55+Q73)*'Benzin - diesel - hybrid'!Q22 ->  | S19: =S18+(S37+S55+S73)*'Benzin - diesel - hybrid'!S22 -> 
B20: 15 | C20: 15 | E20: =E19+(E38+E56+E74)*'Benzin - diesel - hybrid'!E22 ->  | G20: =G19+(G38+G56+G74)*'Benzin - diesel - hybrid'!G22 ->  | I20: =I19+(I38+I56+I74)*'Benzin - diesel - hybrid'!I22 ->  | K20: =K19+(K38+K56+K74)*'Benzin - diesel - hybrid'!K22 ->  | M20: =M19+(M38+M56+M74)*'Benzin - diesel - hybrid'!M22 ->  | O20: =O19+(O38+O56+O74)*'Benzin - diesel - hybrid'!O22 ->  | Q20: =Q19+(Q38+Q56+Q74)*'Benzin - diesel - hybrid'!Q22 ->  | S20: =S19+(S38+S56+S74)*'Benzin - diesel - hybrid'!S22 -> 
A22: Driftsomkostninger
B23: År indeks | C23: Benzinpris | D23: Dieselpris | E23: ='Benzin - diesel - hybrid'!E8 -> PRODUKT 1 | F23: Valgt pris 1 | G23: ='Benzin - diesel - hybrid'!G8 -> PRODUKT 2 | H23: Valgt pris 2 | I23: ='Benzin - diesel - hybrid'!I8 -> PRODUKT 3 | J23: Valgt pris 3 | K23: ='Benzin - diesel - hybrid'!K8 -> PRODUKT 4 | L23: Valgt pris 4 | M23: ='Benzin - diesel - hybrid'!M8 -> PRODUKT 5 | N23: Valgt pris 5 | O23: ='Benzin - diesel - hybrid'!O8 -> PRODUKT 6 | P23: Valgt pris 6 | Q23: ='Benzin - diesel - hybrid'!Q8 -> PRODUKT 7 | R23: Valgt pris 7 | S23: ='Benzin - diesel - hybrid'!S8 -> PRODUKT 8 | T23: Valgt pris 8
B24: 1 | C24: ='Benzin - diesel - hybrid'!E34 -> 12.33 | D24: =+'Benzin - diesel - hybrid'!E35 -> 10.83 | E24: =(IF($B24<='Benzin - diesel - hybrid'!E$28,'Benzin - diesel - hybrid'!E$23/'Benzin - diesel - hybrid'!E$13*F24,0)*(1+'Benzin - diesel - hybrid'!E$29/100)^-$B24) ->  | F24: =IF('Benzin - diesel - hybrid'!E$36="Diesel",$D24,IF('Benzin - diesel - hybrid'!E$36="Benzin",$C24,"Brændstof ikke valgt")) -> Brændstof ikke valgt | G24: =(IF($B24<='Benzin - diesel - hybrid'!G$28,'Benzin - diesel - hybrid'!G$23/'Benzin - diesel - hybrid'!G$13*H24,0)*(1+'Benzin - diesel - hybrid'!G$29/100)^-$B24) ->  | H24: =IF('Benzin - diesel - hybrid'!G$36="Diesel",$D24,IF('Benzin - diesel - hybrid'!G$36="Benzin",$C24,"Brændstof ikke valgt")) -> Brændstof ikke valgt | I24: =(IF($B24<='Benzin - diesel - hybrid'!I$28,'Benzin - diesel - hybrid'!I$23/'Benzin - diesel - hybrid'!I$13*J24,0)*(1+'Benzin - diesel - hybrid'!I$29/100)^-$B24) ->  | J24: =IF('Benzin - diesel - hybrid'!I$36="Diesel",$D24,IF('Benzin - diesel - hybrid'!I$36="Benzin",$C24,"Brændstof ikke valgt")) -> Brændstof ikke valgt | K24: =(IF($B24<='Benzin - diesel - hybrid'!K$28,'Benzin - diesel - hybrid'!K$23/'Benzin - diesel - hybrid'!K$13*L24,0)*(1+'Benzin - diesel - hybrid'!K$29/100)^-$B24) ->  | L24: =IF('Benzin - diesel - hybrid'!K$36="Diesel",$D24,IF('Benzin - diesel - hybrid'!K$36="Benzin",$C24,"Brændstof ikke valgt")) -> Brændstof ikke valgt | M24: =(IF($B24<='Benzin - diesel - hybrid'!M$28,'Benzin - diesel - hybrid'!M$23/'Benzin - diesel - hybrid'!M$13*N24,0)*(1+'Benzin - diesel - hybrid'!M$29/100)^-$B24) ->  | N24: =IF('Benzin - diesel - hybrid'!M$36="Diesel",$D24,IF('Benzin - diesel - hybrid'!M$36="Benzin",$C24,"Brændstof ikke valgt")) -> Brændstof ikke valgt | O24: =(IF($B24<='Benzin - diesel - hybrid'!O$28,'Benzin - diesel - hybrid'!O$23/'Benzin - diesel - hybrid'!O$13*P24,0)*(1+'Benzin - diesel - hybrid'!O$29/100)^-$B24) ->  | P24: =IF('Benzin - diesel - hybrid'!O$36="Diesel",$D24,IF('Benzin - diesel - hybrid'!O$36="Benzin",$C24,"Brændstof ikke valgt")) -> Brændstof ikke valgt | Q24: =(IF($B24<='Benzin - diesel - hybrid'!Q$28,'Benzin - diesel - hybrid'!Q$23/'Benzin - diesel - hybrid'!Q$13*R24,0)*(1+'Benzin - diesel - hybrid'!Q$29/100)^-$B24) ->  | R24: =IF('Benzin - diesel - hybrid'!Q$36="Diesel",$D24,IF('Benzin - diesel - hybrid'!Q$36="Benzin",$C24,"Brændstof ikke valgt")) -> Brændstof ikke valgt | S24: =(IF($B24<='Benzin - diesel - hybrid'!S$28,'Benzin - diesel - hybrid'!S$23/'Benzin - diesel - hybrid'!S$13*T24,0)*(1+'Benzin - diesel - hybrid'!S$29/100)^-$B24) ->  | T24: =IF('Benzin - diesel - hybrid'!S$36="Diesel",$D24,IF('Benzin - diesel - hybrid'!S$36="Benzin",$C24,"Brændstof ikke valgt")) -> Brændstof ikke valgt
B25: 2 | C25: =C24*(1+'Benzin - diesel - hybrid'!$E$30/100) -> 12.50077618 | D25: =D24*(1+'Benzin - diesel - hybrid'!$E$31/100) -> 10.98678944 | E25: =(IF($B25<='Benzin - diesel - hybrid'!E$28,'Benzin - diesel - hybrid'!E$23/'Benzin - diesel - hybrid'!E$13*F25,0)*(1+'Benzin - diesel - hybrid'!E$29/100)^-$B25) ->  | F25: =IF('Benzin - diesel - hybrid'!E$36="Diesel",$D25,IF('Benzin - diesel - hybrid'!E$36="Benzin",$C25,"Brændstof ikke valgt")) -> Brændstof ikke valgt | G25: =(IF($B25<='Benzin - diesel - hybrid'!G$28,'Benzin - diesel - hybrid'!G$23/'Benzin - diesel - hybrid'!G$13*H25,0)*(1+'Benzin - diesel - hybrid'!G$29/100)^-$B25) ->  | H25: =IF('Benzin - diesel - hybrid'!G$36="Diesel",$D25,IF('Benzin - diesel - hybrid'!G$36="Benzin",$C25,"Brændstof ikke valgt")) -> Brændstof ikke valgt | I25: =(IF($B25<='Benzin - diesel - hybrid'!I$28,'Benzin - diesel - hybrid'!I$23/'Benzin - diesel - hybrid'!I$13*J25,0)*(1+'Benzin - diesel - hybrid'!I$29/100)^-$B25) ->  | J25: =IF('Benzin - diesel - hybrid'!I$36="Diesel",$D25,IF('Benzin - diesel - hybrid'!I$36="Benzin",$C25,"Brændstof ikke valgt")) -> Brændstof ikke valgt | K25: =(IF($B25<='Benzin - diesel - hybrid'!K$28,'Benzin - diesel - hybrid'!K$23/'Benzin - diesel - hybrid'!K$13*L25,0)*(1+'Benzin - diesel - hybrid'!K$29/100)^-$B25) ->  | L25: =IF('Benzin - diesel - hybrid'!K$36="Diesel",$D25,IF('Benzin - diesel - hybrid'!K$36="Benzin",$C25,"Brændstof ikke valgt")) -> Brændstof ikke valgt | M25: =(IF($B25<='Benzin - diesel - hybrid'!M$28,'Benzin - diesel - hybrid'!M$23/'Benzin - diesel - hybrid'!M$13*N25,0)*(1+'Benzin - diesel - hybrid'!M$29/100)^-$B25) ->  | N25: =IF('Benzin - diesel - hybrid'!M$36="Diesel",$D25,IF('Benzin - diesel - hybrid'!M$36="Benzin",$C25,"Brændstof ikke valgt")) -> Brændstof ikke valgt | O25: =(IF($B25<='Benzin - diesel - hybrid'!O$28,'Benzin - diesel - hybrid'!O$23/'Benzin - diesel - hybrid'!O$13*P25,0)*(1+'Benzin - diesel - hybrid'!O$29/100)^-$B25) ->  | P25: =IF('Benzin - diesel - hybrid'!O$36="Diesel",$D25,IF('Benzin - diesel - hybrid'!O$36="Benzin",$C25,"Brændstof ikke valgt")) -> Brændstof ikke valgt | Q25: =(IF($B25<='Benzin - diesel - hybrid'!Q$28,'Benzin - diesel - hybrid'!Q$23/'Benzin - diesel - hybrid'!Q$13*R25,0)*(1+'Benzin - diesel - hybrid'!Q$29/100)^-$B25) ->  | R25: =IF('Benzin - diesel - hybrid'!Q$36="Diesel",$D25,IF('Benzin - diesel - hybrid'!Q$36="Benzin",$C25,"Brændstof ikke valgt")) -> Brændstof ikke valgt | S25: =(IF($B25<='Benzin - diesel - hybrid'!S$28,'Benzin - diesel - hybrid'!S$23/'Benzin - diesel - hybrid'!S$13*T25,0)*(1+'Benzin - diesel - hybrid'!S$29/100)^-$B25) ->  | T25: =IF('Benzin - diesel - hybrid'!S$36="Diesel",$D25,IF('Benzin - diesel - hybrid'!S$36="Benzin",$C25,"Brændstof ikke valgt")) -> Brændstof ikke valgt
B26: 3 | C26: =C25*(1+'Benzin - diesel - hybrid'!$E$30/100) -> 12.67391769 | D26: =D25*(1+'Benzin - diesel - hybrid'!$E$31/100) -> 11.14584878 | E26: =(IF($B26<='Benzin - diesel - hybrid'!E$28,'Benzin - diesel - hybrid'!E$23/'Benzin - diesel - hybrid'!E$13*F26,0)*(1+'Benzin - diesel - hybrid'!E$29/100)^-$B26) ->  | F26: =IF('Benzin - diesel - hybrid'!E$36="Diesel",$D26,IF('Benzin - diesel - hybrid'!E$36="Benzin",$C26,"Brændstof ikke valgt")) -> Brændstof ikke valgt | G26: =(IF($B26<='Benzin - diesel - hybrid'!G$28,'Benzin - diesel - hybrid'!G$23/'Benzin - diesel - hybrid'!G$13*H26,0)*(1+'Benzin - diesel - hybrid'!G$29/100)^-$B26) ->  | H26: =IF('Benzin - diesel - hybrid'!G$36="Diesel",$D26,IF('Benzin - diesel - hybrid'!G$36="Benzin",$C26,"Brændstof ikke valgt")) -> Brændstof ikke valgt | I26: =(IF($B26<='Benzin - diesel - hybrid'!I$28,'Benzin - diesel - hybrid'!I$23/'Benzin - diesel - hybrid'!I$13*J26,0)*(1+'Benzin - diesel - hybrid'!I$29/100)^-$B26) ->  | J26: =IF('Benzin - diesel - hybrid'!I$36="Diesel",$D26,IF('Benzin - diesel - hybrid'!I$36="Benzin",$C26,"Brændstof ikke valgt")) -> Brændstof ikke valgt | K26: =(IF($B26<='Benzin - diesel - hybrid'!K$28,'Benzin - diesel - hybrid'!K$23/'Benzin - diesel - hybrid'!K$13*L26,0)*(1+'Benzin - diesel - hybrid'!K$29/100)^-$B26) ->  | L26: =IF('Benzin - diesel - hybrid'!K$36="Diesel",$D26,IF('Benzin - diesel - hybrid'!K$36="Benzin",$C26,"Brændstof ikke valgt")) -> Brændstof ikke valgt | M26: =(IF($B26<='Benzin - diesel - hybrid'!M$28,'Benzin - diesel - hybrid'!M$23/'Benzin - diesel - hybrid'!M$13*N26,0)*(1+'Benzin - diesel - hybrid'!M$29/100)^-$B26) ->  | N26: =IF('Benzin - diesel - hybrid'!M$36="Diesel",$D26,IF('Benzin - diesel - hybrid'!M$36="Benzin",$C26,"Brændstof ikke valgt")) -> Brændstof ikke valgt | O26: =(IF($B26<='Benzin - diesel - hybrid'!O$28,'Benzin - diesel - hybrid'!O$23/'Benzin - diesel - hybrid'!O$13*P26,0)*(1+'Benzin - diesel - hybrid'!O$29/100)^-$B26) ->  | P26: =IF('Benzin - diesel - hybrid'!O$36="Diesel",$D26,IF('Benzin - diesel - hybrid'!O$36="Benzin",$C26,"Brændstof ikke valgt")) -> Brændstof ikke valgt | Q26: =(IF($B26<='Benzin - diesel - hybrid'!Q$28,'Benzin - diesel - hybrid'!Q$23/'Benzin - diesel - hybrid'!Q$13*R26,0)*(1+'Benzin - diesel - hybrid'!Q$29/100)^-$B26) ->  | R26: =IF('Benzin - diesel - hybrid'!Q$36="Diesel",$D26,IF('Benzin - diesel - hybrid'!Q$36="Benzin",$C26,"Brændstof ikke valgt")) -> Brændstof ikke valgt | S26: =(IF($B26<='Benzin - diesel - hybrid'!S$28,'Benzin - diesel - hybrid'!S$23/'Benzin - diesel - hybrid'!S$13*T26,0)*(1+'Benzin - diesel - hybrid'!S$29/100)^-$B26) ->  | T26: =IF('Benzin - diesel - hybrid'!S$36="Diesel",$D26,IF('Benzin - diesel - hybrid'!S$36="Benzin",$C26,"Brændstof ikke valgt")) -> Brændstof ikke valgt
B27: 4 | C27: =C26*(1+'Benzin - diesel - hybrid'!$E$30/100) -> 12.84945729 | D27: =D26*(1+'Benzin - diesel - hybrid'!$E$31/100) -> 11.30721087 | E27: =(IF($B27<='Benzin - diesel - hybrid'!E$28,'Benzin - diesel - hybrid'!E$23/'Benzin - diesel - hybrid'!E$13*F27,0)*(1+'Benzin - diesel - hybrid'!E$29/100)^-$B27) ->  | F27: =IF('Benzin - diesel - hybrid'!E$36="Diesel",$D27,IF('Benzin - diesel - hybrid'!E$36="Benzin",$C27,"Brændstof ikke valgt")) -> Brændstof ikke valgt | G27: =(IF($B27<='Benzin - diesel - hybrid'!G$28,'Benzin - diesel - hybrid'!G$23/'Benzin - diesel - hybrid'!G$13*H27,0)*(1+'Benzin - diesel - hybrid'!G$29/100)^-$B27) ->  | H27: =IF('Benzin - diesel - hybrid'!G$36="Diesel",$D27,IF('Benzin - diesel - hybrid'!G$36="Benzin",$C27,"Brændstof ikke valgt")) -> Brændstof ikke valgt | I27: =(IF($B27<='Benzin - diesel - hybrid'!I$28,'Benzin - diesel - hybrid'!I$23/'Benzin - diesel - hybrid'!I$13*J27,0)*(1+'Benzin - diesel - hybrid'!I$29/100)^-$B27) ->  | J27: =IF('Benzin - diesel - hybrid'!I$36="Diesel",$D27,IF('Benzin - diesel - hybrid'!I$36="Benzin",$C27,"Brændstof ikke valgt")) -> Brændstof ikke valgt | K27: =(IF($B27<='Benzin - diesel - hybrid'!K$28,'Benzin - diesel - hybrid'!K$23/'Benzin - diesel - hybrid'!K$13*L27,0)*(1+'Benzin - diesel - hybrid'!K$29/100)^-$B27) ->  | L27: =IF('Benzin - diesel - hybrid'!K$36="Diesel",$D27,IF('Benzin - diesel - hybrid'!K$36="Benzin",$C27,"Brændstof ikke valgt")) -> Brændstof ikke valgt | M27: =(IF($B27<='Benzin - diesel - hybrid'!M$28,'Benzin - diesel - hybrid'!M$23/'Benzin - diesel - hybrid'!M$13*N27,0)*(1+'Benzin - diesel - hybrid'!M$29/100)^-$B27) ->  | N27: =IF('Benzin - diesel - hybrid'!M$36="Diesel",$D27,IF('Benzin - diesel - hybrid'!M$36="Benzin",$C27,"Brændstof ikke valgt")) -> Brændstof ikke valgt | O27: =(IF($B27<='Benzin - diesel - hybrid'!O$28,'Benzin - diesel - hybrid'!O$23/'Benzin - diesel - hybrid'!O$13*P27,0)*(1+'Benzin - diesel - hybrid'!O$29/100)^-$B27) ->  | P27: =IF('Benzin - diesel - hybrid'!O$36="Diesel",$D27,IF('Benzin - diesel - hybrid'!O$36="Benzin",$C27,"Brændstof ikke valgt")) -> Brændstof ikke valgt | Q27: =(IF($B27<='Benzin - diesel - hybrid'!Q$28,'Benzin - diesel - hybrid'!Q$23/'Benzin - diesel - hybrid'!Q$13*R27,0)*(1+'Benzin - diesel - hybrid'!Q$29/100)^-$B27) ->  | R27: =IF('Benzin - diesel - hybrid'!Q$36="Diesel",$D27,IF('Benzin - diesel - hybrid'!Q$36="Benzin",$C27,"Brændstof ikke valgt")) -> Brændstof ikke valgt | S27: =(IF($B27<='Benzin - diesel - hybrid'!S$28,'Benzin - diesel - hybrid'!S$23/'Benzin - diesel - hybrid'!S$13*T27,0)*(1+'Benzin - diesel - hybrid'!S$29/100)^-$B27) ->  | T27: =IF('Benzin - diesel - hybrid'!S$36="Diesel",$D27,IF('Benzin - diesel - hybrid'!S$36="Benzin",$C27,"Brændstof ikke valgt")) -> Brændstof ikke valgt
B28: 5 | C28: =C27*(1+'Benzin - diesel - hybrid'!$E$30/100) -> 13.02742819 | D28: =D27*(1+'Benzin - diesel - hybrid'!$E$31/100) -> 11.47090905 | E28: =(IF($B28<='Benzin - diesel - hybrid'!E$28,'Benzin - diesel - hybrid'!E$23/'Benzin - diesel - hybrid'!E$13*F28,0)*(1+'Benzin - diesel - hybrid'!E$29/100)^-$B28) -> 0 | F28: =IF('Benzin - diesel - hybrid'!E$36="Diesel",$D28,IF('Benzin - diesel - hybrid'!E$36="Benzin",$C28,"Brændstof ikke valgt")) -> Brændstof ikke valgt | G28: =(IF($B28<='Benzin - diesel - hybrid'!G$28,'Benzin - diesel - hybrid'!G$23/'Benzin - diesel - hybrid'!G$13*H28,0)*(1+'Benzin - diesel - hybrid'!G$29/100)^-$B28) -> 0 | H28: =IF('Benzin - diesel - hybrid'!G$36="Diesel",$D28,IF('Benzin - diesel - hybrid'!G$36="Benzin",$C28,"Brændstof ikke valgt")) -> Brændstof ikke valgt | I28: =(IF($B28<='Benzin - diesel - hybrid'!I$28,'Benzin - diesel - hybrid'!I$23/'Benzin - diesel - hybrid'!I$13*J28,0)*(1+'Benzin - diesel - hybrid'!I$29/100)^-$B28) -> 0 | J28: =IF('Benzin - diesel - hybrid'!I$36="Diesel",$D28,IF('Benzin - diesel - hybrid'!I$36="Benzin",$C28,"Brændstof ikke valgt")) -> Brændstof ikke valgt | K28: =(IF($B28<='Benzin - diesel - hybrid'!K$28,'Benzin - diesel - hybrid'!K$23/'Benzin - diesel - hybrid'!K$13*L28,0)*(1+'Benzin - diesel - hybrid'!K$29/100)^-$B28) -> 0 | L28: =IF('Benzin - diesel - hybrid'!K$36="Diesel",$D28,IF('Benzin - diesel - hybrid'!K$36="Benzin",$C28,"Brændstof ikke valgt")) -> Brændstof ikke valgt | M28: =(IF($B28<='Benzin - diesel - hybrid'!M$28,'Benzin - diesel - hybrid'!M$23/'Benzin - diesel - hybrid'!M$13*N28,0)*(1+'Benzin - diesel - hybrid'!M$29/100)^-$B28) -> 0 | N28: =IF('Benzin - diesel - hybrid'!M$36="Diesel",$D28,IF('Benzin - diesel - hybrid'!M$36="Benzin",$C28,"Brændstof ikke valgt")) -> Brændstof ikke valgt | O28: =(IF($B28<='Benzin - diesel - hybrid'!O$28,'Benzin - diesel - hybrid'!O$23/'Benzin - diesel - hybrid'!O$13*P28,0)*(1+'Benzin - diesel - hybrid'!O$29/100)^-$B28) -> 0 | P28: =IF('Benzin - diesel - hybrid'!O$36="Diesel",$D28,IF('Benzin - diesel - hybrid'!O$36="Benzin",$C28,"Brændstof ikke valgt")) -> Brændstof ikke valgt | Q28: =(IF($B28<='Benzin - diesel - hybrid'!Q$28,'Benzin - diesel - hybrid'!Q$23/'Benzin - diesel - hybrid'!Q$13*R28,0)*(1+'Benzin - diesel - hybrid'!Q$29/100)^-$B28) -> 0 | R28: =IF('Benzin - diesel - hybrid'!Q$36="Diesel",$D28,IF('Benzin - diesel - hybrid'!Q$36="Benzin",$C28,"Brændstof ikke valgt")) -> Brændstof ikke valgt | S28: =(IF($B28<='Benzin - diesel - hybrid'!S$28,'Benzin - diesel - hybrid'!S$23/'Benzin - diesel - hybrid'!S$13*T28,0)*(1+'Benzin - diesel - hybrid'!S$29/100)^-$B28) -> 0 | T28: =IF('Benzin - diesel - hybrid'!S$36="Diesel",$D28,IF('Benzin - diesel - hybrid'!S$36="Benzin",$C28,"Brændstof ikke valgt")) -> Brændstof ikke valgt
B29: 6 | C29: =C28*(1+'Benzin - diesel - hybrid'!$E$30/100) -> 13.20786408 | D29: =D28*(1+'Benzin - diesel - hybrid'!$E$31/100) -> 11.63697714 | E29: =(IF($B29<='Benzin - diesel - hybrid'!E$28,'Benzin - diesel - hybrid'!E$23/'Benzin - diesel - hybrid'!E$13*F29,0)*(1+'Benzin - diesel - hybrid'!E$29/100)^-$B29) -> 0 | F29: =IF('Benzin - diesel - hybrid'!E$36="Diesel",$D29,IF('Benzin - diesel - hybrid'!E$36="Benzin",$C29,"Brændstof ikke valgt")) -> Brændstof ikke valgt | G29: =(IF($B29<='Benzin - diesel - hybrid'!G$28,'Benzin - diesel - hybrid'!G$23/'Benzin - diesel - hybrid'!G$13*H29,0)*(1+'Benzin - diesel - hybrid'!G$29/100)^-$B29) -> 0 | H29: =IF('Benzin - diesel - hybrid'!G$36="Diesel",$D29,IF('Benzin - diesel - hybrid'!G$36="Benzin",$C29,"Brændstof ikke valgt")) -> Brændstof ikke valgt | I29: =(IF($B29<='Benzin - diesel - hybrid'!I$28,'Benzin - diesel - hybrid'!I$23/'Benzin - diesel - hybrid'!I$13*J29,0)*(1+'Benzin - diesel - hybrid'!I$29/100)^-$B29) -> 0 | J29: =IF('Benzin - diesel - hybrid'!I$36="Diesel",$D29,IF('Benzin - diesel - hybrid'!I$36="Benzin",$C29,"Brændstof ikke valgt")) -> Brændstof ikke valgt | K29: =(IF($B29<='Benzin - diesel - hybrid'!K$28,'Benzin - diesel - hybrid'!K$23/'Benzin - diesel - hybrid'!K$13*L29,0)*(1+'Benzin - diesel - hybrid'!K$29/100)^-$B29) -> 0 | L29: =IF('Benzin - diesel - hybrid'!K$36="Diesel",$D29,IF('Benzin - diesel - hybrid'!K$36="Benzin",$C29,"Brændstof ikke valgt")) -> Brændstof ikke valgt | M29: =(IF($B29<='Benzin - diesel - hybrid'!M$28,'Benzin - diesel - hybrid'!M$23/'Benzin - diesel - hybrid'!M$13*N29,0)*(1+'Benzin - diesel - hybrid'!M$29/100)^-$B29) -> 0 | N29: =IF('Benzin - diesel - hybrid'!M$36="Diesel",$D29,IF('Benzin - diesel - hybrid'!M$36="Benzin",$C29,"Brændstof ikke valgt")) -> Brændstof ikke valgt | O29: =(IF($B29<='Benzin - diesel - hybrid'!O$28,'Benzin - diesel - hybrid'!O$23/'Benzin - diesel - hybrid'!O$13*P29,0)*(1+'Benzin - diesel - hybrid'!O$29/100)^-$B29) -> 0 | P29: =IF('Benzin - diesel - hybrid'!O$36="Diesel",$D29,IF('Benzin - diesel - hybrid'!O$36="Benzin",$C29,"Brændstof ikke valgt")) -> Brændstof ikke valgt | Q29: =(IF($B29<='Benzin - diesel - hybrid'!Q$28,'Benzin - diesel - hybrid'!Q$23/'Benzin - diesel - hybrid'!Q$13*R29,0)*(1+'Benzin - diesel - hybrid'!Q$29/100)^-$B29) -> 0 | R29: =IF('Benzin - diesel - hybrid'!Q$36="Diesel",$D29,IF('Benzin - diesel - hybrid'!Q$36="Benzin",$C29,"Brændstof ikke valgt")) -> Brændstof ikke valgt | S29: =(IF($B29<='Benzin - diesel - hybrid'!S$28,'Benzin - diesel - hybrid'!S$23/'Benzin - diesel - hybrid'!S$13*T29,0)*(1+'Benzin - diesel - hybrid'!S$29/100)^-$B29) -> 0 | T29: =IF('Benzin - diesel - hybrid'!S$36="Diesel",$D29,IF('Benzin - diesel - hybrid'!S$36="Benzin",$C29,"Brændstof ikke valgt")) -> Brændstof ikke valgt
B30: 7 | C30: =C29*(1+'Benzin - diesel - hybrid'!$E$30/100) -> 13.39079908 | D30: =D29*(1+'Benzin - diesel - hybrid'!$E$31/100) -> 11.80544945 | E30: =(IF($B30<='Benzin - diesel - hybrid'!E$28,'Benzin - diesel - hybrid'!E$23/'Benzin - diesel - hybrid'!E$13*F30,0)*(1+'Benzin - diesel - hybrid'!E$29/100)^-$B30) -> 0 | F30: =IF('Benzin - diesel - hybrid'!E$36="Diesel",$D30,IF('Benzin - diesel - hybrid'!E$36="Benzin",$C30,"Brændstof ikke valgt")) -> Brændstof ikke valgt | G30: =(IF($B30<='Benzin - diesel - hybrid'!G$28,'Benzin - diesel - hybrid'!G$23/'Benzin - diesel - hybrid'!G$13*H30,0)*(1+'Benzin - diesel - hybrid'!G$29/100)^-$B30) -> 0 | H30: =IF('Benzin - diesel - hybrid'!G$36="Diesel",$D30,IF('Benzin - diesel - hybrid'!G$36="Benzin",$C30,"Brændstof ikke valgt")) -> Brændstof ikke valgt | I30: =(IF($B30<='Benzin - diesel - hybrid'!I$28,'Benzin - diesel - hybrid'!I$23/'Benzin - diesel - hybrid'!I$13*J30,0)*(1+'Benzin - diesel - hybrid'!I$29/100)^-$B30) -> 0 | J30: =IF('Benzin - diesel - hybrid'!I$36="Diesel",$D30,IF('Benzin - diesel - hybrid'!I$36="Benzin",$C30,"Brændstof ikke valgt")) -> Brændstof ikke valgt | K30: =(IF($B30<='Benzin - diesel - hybrid'!K$28,'Benzin - diesel - hybrid'!K$23/'Benzin - diesel - hybrid'!K$13*L30,0)*(1+'Benzin - diesel - hybrid'!K$29/100)^-$B30) -> 0 | L30: =IF('Benzin - diesel - hybrid'!K$36="Diesel",$D30,IF('Benzin - diesel - hybrid'!K$36="Benzin",$C30,"Brændstof ikke valgt")) -> Brændstof ikke valgt | M30: =(IF($B30<='Benzin - diesel - hybrid'!M$28,'Benzin - diesel - hybrid'!M$23/'Benzin - diesel - hybrid'!M$13*N30,0)*(1+'Benzin - diesel - hybrid'!M$29/100)^-$B30) -> 0 | N30: =IF('Benzin - diesel - hybrid'!M$36="Diesel",$D30,IF('Benzin - diesel - hybrid'!M$36="Benzin",$C30,"Brændstof ikke valgt")) -> Brændstof ikke valgt | O30: =(IF($B30<='Benzin - diesel - hybrid'!O$28,'Benzin - diesel - hybrid'!O$23/'Benzin - diesel - hybrid'!O$13*P30,0)*(1+'Benzin - diesel - hybrid'!O$29/100)^-$B30) -> 0 | P30: =IF('Benzin - diesel - hybrid'!O$36="Diesel",$D30,IF('Benzin - diesel - hybrid'!O$36="Benzin",$C30,"Brændstof ikke valgt")) -> Brændstof ikke valgt | Q30: =(IF($B30<='Benzin - diesel - hybrid'!Q$28,'Benzin - diesel - hybrid'!Q$23/'Benzin - diesel - hybrid'!Q$13*R30,0)*(1+'Benzin - diesel - hybrid'!Q$29/100)^-$B30) -> 0 | R30: =IF('Benzin - diesel - hybrid'!Q$36="Diesel",$D30,IF('Benzin - diesel - hybrid'!Q$36="Benzin",$C30,"Brændstof ikke valgt")) -> Brændstof ikke valgt | S30: =(IF($B30<='Benzin - diesel - hybrid'!S$28,'Benzin - diesel - hybrid'!S$23/'Benzin - diesel - hybrid'!S$13*T30,0)*(1+'Benzin - diesel - hybrid'!S$29/100)^-$B30) -> 0 | T30: =IF('Benzin - diesel - hybrid'!S$36="Diesel",$D30,IF('Benzin - diesel - hybrid'!S$36="Benzin",$C30,"Brændstof ikke valgt")) -> Brændstof ikke valgt
B31: 8 | C31: =C30*(1+'Benzin - diesel - hybrid'!$E$30/100) -> 13.57626782 | D31: =D30*(1+'Benzin - diesel - hybrid'!$E$31/100) -> 11.97636079 | E31: =(IF($B31<='Benzin - diesel - hybrid'!E$28,'Benzin - diesel - hybrid'!E$23/'Benzin - diesel - hybrid'!E$13*F31,0)*(1+'Benzin - diesel - hybrid'!E$29/100)^-$B31) -> 0 | F31: =IF('Benzin - diesel - hybrid'!E$36="Diesel",$D31,IF('Benzin - diesel - hybrid'!E$36="Benzin",$C31,"Brændstof ikke valgt")) -> Brændstof ikke valgt | G31: =(IF($B31<='Benzin - diesel - hybrid'!G$28,'Benzin - diesel - hybrid'!G$23/'Benzin - diesel - hybrid'!G$13*H31,0)*(1+'Benzin - diesel - hybrid'!G$29/100)^-$B31) -> 0 | H31: =IF('Benzin - diesel - hybrid'!G$36="Diesel",$D31,IF('Benzin - diesel - hybrid'!G$36="Benzin",$C31,"Brændstof ikke valgt")) -> Brændstof ikke valgt | I31: =(IF($B31<='Benzin - diesel - hybrid'!I$28,'Benzin - diesel - hybrid'!I$23/'Benzin - diesel - hybrid'!I$13*J31,0)*(1+'Benzin - diesel - hybrid'!I$29/100)^-$B31) -> 0 | J31: =IF('Benzin - diesel - hybrid'!I$36="Diesel",$D31,IF('Benzin - diesel - hybrid'!I$36="Benzin",$C31,"Brændstof ikke valgt")) -> Brændstof ikke valgt | K31: =(IF($B31<='Benzin - diesel - hybrid'!K$28,'Benzin - diesel - hybrid'!K$23/'Benzin - diesel - hybrid'!K$13*L31,0)*(1+'Benzin - diesel - hybrid'!K$29/100)^-$B31) -> 0 | L31: =IF('Benzin - diesel - hybrid'!K$36="Diesel",$D31,IF('Benzin - diesel - hybrid'!K$36="Benzin",$C31,"Brændstof ikke valgt")) -> Brændstof ikke valgt | M31: =(IF($B31<='Benzin - diesel - hybrid'!M$28,'Benzin - diesel - hybrid'!M$23/'Benzin - diesel - hybrid'!M$13*N31,0)*(1+'Benzin - diesel - hybrid'!M$29/100)^-$B31) -> 0 | N31: =IF('Benzin - diesel - hybrid'!M$36="Diesel",$D31,IF('Benzin - diesel - hybrid'!M$36="Benzin",$C31,"Brændstof ikke valgt")) -> Brændstof ikke valgt | O31: =(IF($B31<='Benzin - diesel - hybrid'!O$28,'Benzin - diesel - hybrid'!O$23/'Benzin - diesel - hybrid'!O$13*P31,0)*(1+'Benzin - diesel - hybrid'!O$29/100)^-$B31) -> 0 | P31: =IF('Benzin - diesel - hybrid'!O$36="Diesel",$D31,IF('Benzin - diesel - hybrid'!O$36="Benzin",$C31,"Brændstof ikke valgt")) -> Brændstof ikke valgt | Q31: =(IF($B31<='Benzin - diesel - hybrid'!Q$28,'Benzin - diesel - hybrid'!Q$23/'Benzin - diesel - hybrid'!Q$13*R31,0)*(1+'Benzin - diesel - hybrid'!Q$29/100)^-$B31) -> 0 | R31: =IF('Benzin - diesel - hybrid'!Q$36="Diesel",$D31,IF('Benzin - diesel - hybrid'!Q$36="Benzin",$C31,"Brændstof ikke valgt")) -> Brændstof ikke valgt | S31: =(IF($B31<='Benzin - diesel - hybrid'!S$28,'Benzin - diesel - hybrid'!S$23/'Benzin - diesel - hybrid'!S$13*T31,0)*(1+'Benzin - diesel - hybrid'!S$29/100)^-$B31) -> 0 | T31: =IF('Benzin - diesel - hybrid'!S$36="Diesel",$D31,IF('Benzin - diesel - hybrid'!S$36="Benzin",$C31,"Brændstof ikke valgt")) -> Brændstof ikke valgt
B32: 9 | C32: =C31*(1+'Benzin - diesel - hybrid'!$E$30/100) -> 13.76430538 | D32: =D31*(1+'Benzin - diesel - hybrid'!$E$31/100) -> 12.14974648 | E32: =(IF($B32<='Benzin - diesel - hybrid'!E$28,'Benzin - diesel - hybrid'!E$23/'Benzin - diesel - hybrid'!E$13*F32,0)*(1+'Benzin - diesel - hybrid'!E$29/100)^-$B32) -> 0 | F32: =IF('Benzin - diesel - hybrid'!E$36="Diesel",$D32,IF('Benzin - diesel - hybrid'!E$36="Benzin",$C32,"Brændstof ikke valgt")) -> Brændstof ikke valgt | G32: =(IF($B32<='Benzin - diesel - hybrid'!G$28,'Benzin - diesel - hybrid'!G$23/'Benzin - diesel - hybrid'!G$13*H32,0)*(1+'Benzin - diesel - hybrid'!G$29/100)^-$B32) -> 0 | H32: =IF('Benzin - diesel - hybrid'!G$36="Diesel",$D32,IF('Benzin - diesel - hybrid'!G$36="Benzin",$C32,"Brændstof ikke valgt")) -> Brændstof ikke valgt | I32: =(IF($B32<='Benzin - diesel - hybrid'!I$28,'Benzin - diesel - hybrid'!I$23/'Benzin - diesel - hybrid'!I$13*J32,0)*(1+'Benzin - diesel - hybrid'!I$29/100)^-$B32) -> 0 | J32: =IF('Benzin - diesel - hybrid'!I$36="Diesel",$D32,IF('Benzin - diesel - hybrid'!I$36="Benzin",$C32,"Brændstof ikke valgt")) -> Brændstof ikke valgt | K32: =(IF($B32<='Benzin - diesel - hybrid'!K$28,'Benzin - diesel - hybrid'!K$23/'Benzin - diesel - hybrid'!K$13*L32,0)*(1+'Benzin - diesel - hybrid'!K$29/100)^-$B32) -> 0 | L32: =IF('Benzin - diesel - hybrid'!K$36="Diesel",$D32,IF('Benzin - diesel - hybrid'!K$36="Benzin",$C32,"Brændstof ikke valgt")) -> Brændstof ikke valgt | M32: =(IF($B32<='Benzin - diesel - hybrid'!M$28,'Benzin - diesel - hybrid'!M$23/'Benzin - diesel - hybrid'!M$13*N32,0)*(1+'Benzin - diesel - hybrid'!M$29/100)^-$B32) -> 0 | N32: =IF('Benzin - diesel - hybrid'!M$36="Diesel",$D32,IF('Benzin - diesel - hybrid'!M$36="Benzin",$C32,"Brændstof ikke valgt")) -> Brændstof ikke valgt | O32: =(IF($B32<='Benzin - diesel - hybrid'!O$28,'Benzin - diesel - hybrid'!O$23/'Benzin - diesel - hybrid'!O$13*P32,0)*(1+'Benzin - diesel - hybrid'!O$29/100)^-$B32) -> 0 | P32: =IF('Benzin - diesel - hybrid'!O$36="Diesel",$D32,IF('Benzin - diesel - hybrid'!O$36="Benzin",$C32,"Brændstof ikke valgt")) -> Brændstof ikke valgt | Q32: =(IF($B32<='Benzin - diesel - hybrid'!Q$28,'Benzin - diesel - hybrid'!Q$23/'Benzin - diesel - hybrid'!Q$13*R32,0)*(1+'Benzin - diesel - hybrid'!Q$29/100)^-$B32) -> 0 | R32: =IF('Benzin - diesel - hybrid'!Q$36="Diesel",$D32,IF('Benzin - diesel - hybrid'!Q$36="Benzin",$C32,"Brændstof ikke valgt")) -> Brændstof ikke valgt | S32: =(IF($B32<='Benzin - diesel - hybrid'!S$28,'Benzin - diesel - hybrid'!S$23/'Benzin - diesel - hybrid'!S$13*T32,0)*(1+'Benzin - diesel - hybrid'!S$29/100)^-$B32) -> 0 | T32: =IF('Benzin - diesel - hybrid'!S$36="Diesel",$D32,IF('Benzin - diesel - hybrid'!S$36="Benzin",$C32,"Brændstof ikke valgt")) -> Brændstof ikke valgt
B33: 10 | C33: =C32*(1+'Benzin - diesel - hybrid'!$E$30/100) -> 13.95494735 | D33: =D32*(1+'Benzin - diesel - hybrid'!$E$31/100) -> 12.32564232 | E33: =(IF($B33<='Benzin - diesel - hybrid'!E$28,'Benzin - diesel - hybrid'!E$23/'Benzin - diesel - hybrid'!E$13*F33,0)*(1+'Benzin - diesel - hybrid'!E$29/100)^-$B33) -> 0 | F33: =IF('Benzin - diesel - hybrid'!E$36="Diesel",$D33,IF('Benzin - diesel - hybrid'!E$36="Benzin",$C33,"Brændstof ikke valgt")) -> Brændstof ikke valgt | G33: =(IF($B33<='Benzin - diesel - hybrid'!G$28,'Benzin - diesel - hybrid'!G$23/'Benzin - diesel - hybrid'!G$13*H33,0)*(1+'Benzin - diesel - hybrid'!G$29/100)^-$B33) -> 0 | H33: =IF('Benzin - diesel - hybrid'!G$36="Diesel",$D33,IF('Benzin - diesel - hybrid'!G$36="Benzin",$C33,"Brændstof ikke valgt")) -> Brændstof ikke valgt | I33: =(IF($B33<='Benzin - diesel - hybrid'!I$28,'Benzin - diesel - hybrid'!I$23/'Benzin - diesel - hybrid'!I$13*J33,0)*(1+'Benzin - diesel - hybrid'!I$29/100)^-$B33) -> 0 | J33: =IF('Benzin - diesel - hybrid'!I$36="Diesel",$D33,IF('Benzin - diesel - hybrid'!I$36="Benzin",$C33,"Brændstof ikke valgt")) -> Brændstof ikke valgt | K33: =(IF($B33<='Benzin - diesel - hybrid'!K$28,'Benzin - diesel - hybrid'!K$23/'Benzin - diesel - hybrid'!K$13*L33,0)*(1+'Benzin - diesel - hybrid'!K$29/100)^-$B33) -> 0 | L33: =IF('Benzin - diesel - hybrid'!K$36="Diesel",$D33,IF('Benzin - diesel - hybrid'!K$36="Benzin",$C33,"Brændstof ikke valgt")) -> Brændstof ikke valgt | M33: =(IF($B33<='Benzin - diesel - hybrid'!M$28,'Benzin - diesel - hybrid'!M$23/'Benzin - diesel - hybrid'!M$13*N33,0)*(1+'Benzin - diesel - hybrid'!M$29/100)^-$B33) -> 0 | N33: =IF('Benzin - diesel - hybrid'!M$36="Diesel",$D33,IF('Benzin - diesel - hybrid'!M$36="Benzin",$C33,"Brændstof ikke valgt")) -> Brændstof ikke valgt | O33: =(IF($B33<='Benzin - diesel - hybrid'!O$28,'Benzin - diesel - hybrid'!O$23/'Benzin - diesel - hybrid'!O$13*P33,0)*(1+'Benzin - diesel - hybrid'!O$29/100)^-$B33) -> 0 | P33: =IF('Benzin - diesel - hybrid'!O$36="Diesel",$D33,IF('Benzin - diesel - hybrid'!O$36="Benzin",$C33,"Brændstof ikke valgt")) -> Brændstof ikke valgt | Q33: =(IF($B33<='Benzin - diesel - hybrid'!Q$28,'Benzin - diesel - hybrid'!Q$23/'Benzin - diesel - hybrid'!Q$13*R33,0)*(1+'Benzin - diesel - hybrid'!Q$29/100)^-$B33) -> 0 | R33: =IF('Benzin - diesel - hybrid'!Q$36="Diesel",$D33,IF('Benzin - diesel - hybrid'!Q$36="Benzin",$C33,"Brændstof ikke valgt")) -> Brændstof ikke valgt | S33: =(IF($B33<='Benzin - diesel - hybrid'!S$28,'Benzin - diesel - hybrid'!S$23/'Benzin - diesel - hybrid'!S$13*T33,0)*(1+'Benzin - diesel - hybrid'!S$29/100)^-$B33) -> 0 | T33: =IF('Benzin - diesel - hybrid'!S$36="Diesel",$D33,IF('Benzin - diesel - hybrid'!S$36="Benzin",$C33,"Brændstof ikke valgt")) -> Brændstof ikke valgt
B34: 11 | C34: =C33*(1+'Benzin - diesel - hybrid'!$E$30/100) -> 14.1482298 | D34: =D33*(1+'Benzin - diesel - hybrid'!$E$31/100) -> 12.50408466 | E34: =(IF($B34<='Benzin - diesel - hybrid'!E$28,'Benzin - diesel - hybrid'!E$23/'Benzin - diesel - hybrid'!E$13*F34,0)*(1+'Benzin - diesel - hybrid'!E$29/100)^-$B34) -> 0 | F34: =IF('Benzin - diesel - hybrid'!E$36="Diesel",$D34,IF('Benzin - diesel - hybrid'!E$36="Benzin",$C34,"Brændstof ikke valgt")) -> Brændstof ikke valgt | G34: =(IF($B34<='Benzin - diesel - hybrid'!G$28,'Benzin - diesel - hybrid'!G$23/'Benzin - diesel - hybrid'!G$13*H34,0)*(1+'Benzin - diesel - hybrid'!G$29/100)^-$B34) -> 0 | H34: =IF('Benzin - diesel - hybrid'!G$36="Diesel",$D34,IF('Benzin - diesel - hybrid'!G$36="Benzin",$C34,"Brændstof ikke valgt")) -> Brændstof ikke valgt | I34: =(IF($B34<='Benzin - diesel - hybrid'!I$28,'Benzin - diesel - hybrid'!I$23/'Benzin - diesel - hybrid'!I$13*J34,0)*(1+'Benzin - diesel - hybrid'!I$29/100)^-$B34) -> 0 | J34: =IF('Benzin - diesel - hybrid'!I$36="Diesel",$D34,IF('Benzin - diesel - hybrid'!I$36="Benzin",$C34,"Brændstof ikke valgt")) -> Brændstof ikke valgt | K34: =(IF($B34<='Benzin - diesel - hybrid'!K$28,'Benzin - diesel - hybrid'!K$23/'Benzin - diesel - hybrid'!K$13*L34,0)*(1+'Benzin - diesel - hybrid'!K$29/100)^-$B34) -> 0 | L34: =IF('Benzin - diesel - hybrid'!K$36="Diesel",$D34,IF('Benzin - diesel - hybrid'!K$36="Benzin",$C34,"Brændstof ikke valgt")) -> Brændstof ikke valgt | M34: =(IF($B34<='Benzin - diesel - hybrid'!M$28,'Benzin - diesel - hybrid'!M$23/'Benzin - diesel - hybrid'!M$13*N34,0)*(1+'Benzin - diesel - hybrid'!M$29/100)^-$B34) -> 0 | N34: =IF('Benzin - diesel - hybrid'!M$36="Diesel",$D34,IF('Benzin - diesel - hybrid'!M$36="Benzin",$C34,"Brændstof ikke valgt")) -> Brændstof ikke valgt | O34: =(IF($B34<='Benzin - diesel - hybrid'!O$28,'Benzin - diesel - hybrid'!O$23/'Benzin - diesel - hybrid'!O$13*P34,0)*(1+'Benzin - diesel - hybrid'!O$29/100)^-$B34) -> 0 | P34: =IF('Benzin - diesel - hybrid'!O$36="Diesel",$D34,IF('Benzin - diesel - hybrid'!O$36="Benzin",$C34,"Brændstof ikke valgt")) -> Brændstof ikke valgt | Q34: =(IF($B34<='Benzin - diesel - hybrid'!Q$28,'Benzin - diesel - hybrid'!Q$23/'Benzin - diesel - hybrid'!Q$13*R34,0)*(1+'Benzin - diesel - hybrid'!Q$29/100)^-$B34) -> 0 | R34: =IF('Benzin - diesel - hybrid'!Q$36="Diesel",$D34,IF('Benzin - diesel - hybrid'!Q$36="Benzin",$C34,"Brændstof ikke valgt")) -> Brændstof ikke valgt | S34: =(IF($B34<='Benzin - diesel - hybrid'!S$28,'Benzin - diesel - hybrid'!S$23/'Benzin - diesel - hybrid'!S$13*T34,0)*(1+'Benzin - diesel - hybrid'!S$29/100)^-$B34) -> 0 | T34: =IF('Benzin - diesel - hybrid'!S$36="Diesel",$D34,IF('Benzin - diesel - hybrid'!S$36="Benzin",$C34,"Brændstof ikke valgt")) -> Brændstof ikke valgt
B35: 12 | C35: =C34*(1+'Benzin - diesel - hybrid'!$E$30/100) -> 14.34418931 | D35: =D34*(1+'Benzin - diesel - hybrid'!$E$31/100) -> 12.68511038 | E35: =(IF($B35<='Benzin - diesel - hybrid'!E$28,'Benzin - diesel - hybrid'!E$23/'Benzin - diesel - hybrid'!E$13*F35,0)*(1+'Benzin - diesel - hybrid'!E$29/100)^-$B35) -> 0 | F35: =IF('Benzin - diesel - hybrid'!E$36="Diesel",$D35,IF('Benzin - diesel - hybrid'!E$36="Benzin",$C35,"Brændstof ikke valgt")) -> Brændstof ikke valgt | G35: =(IF($B35<='Benzin - diesel - hybrid'!G$28,'Benzin - diesel - hybrid'!G$23/'Benzin - diesel - hybrid'!G$13*H35,0)*(1+'Benzin - diesel - hybrid'!G$29/100)^-$B35) -> 0 | H35: =IF('Benzin - diesel - hybrid'!G$36="Diesel",$D35,IF('Benzin - diesel - hybrid'!G$36="Benzin",$C35,"Brændstof ikke valgt")) -> Brændstof ikke valgt | I35: =(IF($B35<='Benzin - diesel - hybrid'!I$28,'Benzin - diesel - hybrid'!I$23/'Benzin - diesel - hybrid'!I$13*J35,0)*(1+'Benzin - diesel - hybrid'!I$29/100)^-$B35) -> 0 | J35: =IF('Benzin - diesel - hybrid'!I$36="Diesel",$D35,IF('Benzin - diesel - hybrid'!I$36="Benzin",$C35,"Brændstof ikke valgt")) -> Brændstof ikke valgt | K35: =(IF($B35<='Benzin - diesel - hybrid'!K$28,'Benzin - diesel - hybrid'!K$23/'Benzin - diesel - hybrid'!K$13*L35,0)*(1+'Benzin - diesel - hybrid'!K$29/100)^-$B35) -> 0 | L35: =IF('Benzin - diesel - hybrid'!K$36="Diesel",$D35,IF('Benzin - diesel - hybrid'!K$36="Benzin",$C35,"Brændstof ikke valgt")) -> Brændstof ikke valgt | M35: =(IF($B35<='Benzin - diesel - hybrid'!M$28,'Benzin - diesel - hybrid'!M$23/'Benzin - diesel - hybrid'!M$13*N35,0)*(1+'Benzin - diesel - hybrid'!M$29/100)^-$B35) -> 0 | N35: =IF('Benzin - diesel - hybrid'!M$36="Diesel",$D35,IF('Benzin - diesel - hybrid'!M$36="Benzin",$C35,"Brændstof ikke valgt")) -> Brændstof ikke valgt | O35: =(IF($B35<='Benzin - diesel - hybrid'!O$28,'Benzin - diesel - hybrid'!O$23/'Benzin - diesel - hybrid'!O$13*P35,0)*(1+'Benzin - diesel - hybrid'!O$29/100)^-$B35) -> 0 | P35: =IF('Benzin - diesel - hybrid'!O$36="Diesel",$D35,IF('Benzin - diesel - hybrid'!O$36="Benzin",$C35,"Brændstof ikke valgt")) -> Brændstof ikke valgt | Q35: =(IF($B35<='Benzin - diesel - hybrid'!Q$28,'Benzin - diesel - hybrid'!Q$23/'Benzin - diesel - hybrid'!Q$13*R35,0)*(1+'Benzin - diesel - hybrid'!Q$29/100)^-$B35) -> 0 | R35: =IF('Benzin - diesel - hybrid'!Q$36="Diesel",$D35,IF('Benzin - diesel - hybrid'!Q$36="Benzin",$C35,"Brændstof ikke valgt")) -> Brændstof ikke valgt | S35: =(IF($B35<='Benzin - diesel - hybrid'!S$28,'Benzin - diesel - hybrid'!S$23/'Benzin - diesel - hybrid'!S$13*T35,0)*(1+'Benzin - diesel - hybrid'!S$29/100)^-$B35) -> 0 | T35: =IF('Benzin - diesel - hybrid'!S$36="Diesel",$D35,IF('Benzin - diesel - hybrid'!S$36="Benzin",$C35,"Brændstof ikke valgt")) -> Brændstof ikke valgt
B36: 13 | C36: =C35*(1+'Benzin - diesel - hybrid'!$E$30/100) -> 14.54286294 | D36: =D35*(1+'Benzin - diesel - hybrid'!$E$31/100) -> 12.86875686 | E36: =(IF($B36<='Benzin - diesel - hybrid'!E$28,'Benzin - diesel - hybrid'!E$23/'Benzin - diesel - hybrid'!E$13*F36,0)*(1+'Benzin - diesel - hybrid'!E$29/100)^-$B36) -> 0 | F36: =IF('Benzin - diesel - hybrid'!E$36="Diesel",$D36,IF('Benzin - diesel - hybrid'!E$36="Benzin",$C36,"Brændstof ikke valgt")) -> Brændstof ikke valgt | G36: =(IF($B36<='Benzin - diesel - hybrid'!G$28,'Benzin - diesel - hybrid'!G$23/'Benzin - diesel - hybrid'!G$13*H36,0)*(1+'Benzin - diesel - hybrid'!G$29/100)^-$B36) -> 0 | H36: =IF('Benzin - diesel - hybrid'!G$36="Diesel",$D36,IF('Benzin - diesel - hybrid'!G$36="Benzin",$C36,"Brændstof ikke valgt")) -> Brændstof ikke valgt | I36: =(IF($B36<='Benzin - diesel - hybrid'!I$28,'Benzin - diesel - hybrid'!I$23/'Benzin - diesel - hybrid'!I$13*J36,0)*(1+'Benzin - diesel - hybrid'!I$29/100)^-$B36) -> 0 | J36: =IF('Benzin - diesel - hybrid'!I$36="Diesel",$D36,IF('Benzin - diesel - hybrid'!I$36="Benzin",$C36,"Brændstof ikke valgt")) -> Brændstof ikke valgt | K36: =(IF($B36<='Benzin - diesel - hybrid'!K$28,'Benzin - diesel - hybrid'!K$23/'Benzin - diesel - hybrid'!K$13*L36,0)*(1+'Benzin - diesel - hybrid'!K$29/100)^-$B36) -> 0 | L36: =IF('Benzin - diesel - hybrid'!K$36="Diesel",$D36,IF('Benzin - diesel - hybrid'!K$36="Benzin",$C36,"Brændstof ikke valgt")) -> Brændstof ikke valgt | M36: =(IF($B36<='Benzin - diesel - hybrid'!M$28,'Benzin - diesel - hybrid'!M$23/'Benzin - diesel - hybrid'!M$13*N36,0)*(1+'Benzin - diesel - hybrid'!M$29/100)^-$B36) -> 0 | N36: =IF('Benzin - diesel - hybrid'!M$36="Diesel",$D36,IF('Benzin - diesel - hybrid'!M$36="Benzin",$C36,"Brændstof ikke valgt")) -> Brændstof ikke valgt | O36: =(IF($B36<='Benzin - diesel - hybrid'!O$28,'Benzin - diesel - hybrid'!O$23/'Benzin - diesel - hybrid'!O$13*P36,0)*(1+'Benzin - diesel - hybrid'!O$29/100)^-$B36) -> 0 | P36: =IF('Benzin - diesel - hybrid'!O$36="Diesel",$D36,IF('Benzin - diesel - hybrid'!O$36="Benzin",$C36,"Brændstof ikke valgt")) -> Brændstof ikke valgt | Q36: =(IF($B36<='Benzin - diesel - hybrid'!Q$28,'Benzin - diesel - hybrid'!Q$23/'Benzin - diesel - hybrid'!Q$13*R36,0)*(1+'Benzin - diesel - hybrid'!Q$29/100)^-$B36) -> 0 | R36: =IF('Benzin - diesel - hybrid'!Q$36="Diesel",$D36,IF('Benzin - diesel - hybrid'!Q$36="Benzin",$C36,"Brændstof ikke valgt")) -> Brændstof ikke valgt | S36: =(IF($B36<='Benzin - diesel - hybrid'!S$28,'Benzin - diesel - hybrid'!S$23/'Benzin - diesel - hybrid'!S$13*T36,0)*(1+'Benzin - diesel - hybrid'!S$29/100)^-$B36) -> 0 | T36: =IF('Benzin - diesel - hybrid'!S$36="Diesel",$D36,IF('Benzin - diesel - hybrid'!S$36="Benzin",$C36,"Brændstof ikke valgt")) -> Brændstof ikke valgt
B37: 14 | C37: =C36*(1+'Benzin - diesel - hybrid'!$E$30/100) -> 14.74428829 | D37: =D36*(1+'Benzin - diesel - hybrid'!$E$31/100) -> 13.05506205 | E37: =(IF($B37<='Benzin - diesel - hybrid'!E$28,'Benzin - diesel - hybrid'!E$23/'Benzin - diesel - hybrid'!E$13*F37,0)*(1+'Benzin - diesel - hybrid'!E$29/100)^-$B37) -> 0 | F37: =IF('Benzin - diesel - hybrid'!E$36="Diesel",$D37,IF('Benzin - diesel - hybrid'!E$36="Benzin",$C37,"Brændstof ikke valgt")) -> Brændstof ikke valgt | G37: =(IF($B37<='Benzin - diesel - hybrid'!G$28,'Benzin - diesel - hybrid'!G$23/'Benzin - diesel - hybrid'!G$13*H37,0)*(1+'Benzin - diesel - hybrid'!G$29/100)^-$B37) -> 0 | H37: =IF('Benzin - diesel - hybrid'!G$36="Diesel",$D37,IF('Benzin - diesel - hybrid'!G$36="Benzin",$C37,"Brændstof ikke valgt")) -> Brændstof ikke valgt | I37: =(IF($B37<='Benzin - diesel - hybrid'!I$28,'Benzin - diesel - hybrid'!I$23/'Benzin - diesel - hybrid'!I$13*J37,0)*(1+'Benzin - diesel - hybrid'!I$29/100)^-$B37) -> 0 | J37: =IF('Benzin - diesel - hybrid'!I$36="Diesel",$D37,IF('Benzin - diesel - hybrid'!I$36="Benzin",$C37,"Brændstof ikke valgt")) -> Brændstof ikke valgt | K37: =(IF($B37<='Benzin - diesel - hybrid'!K$28,'Benzin - diesel - hybrid'!K$23/'Benzin - diesel - hybrid'!K$13*L37,0)*(1+'Benzin - diesel - hybrid'!K$29/100)^-$B37) -> 0 | L37: =IF('Benzin - diesel - hybrid'!K$36="Diesel",$D37,IF('Benzin - diesel - hybrid'!K$36="Benzin",$C37,"Brændstof ikke valgt")) -> Brændstof ikke valgt | M37: =(IF($B37<='Benzin - diesel - hybrid'!M$28,'Benzin - diesel - hybrid'!M$23/'Benzin - diesel - hybrid'!M$13*N37,0)*(1+'Benzin - diesel - hybrid'!M$29/100)^-$B37) -> 0 | N37: =IF('Benzin - diesel - hybrid'!M$36="Diesel",$D37,IF('Benzin - diesel - hybrid'!M$36="Benzin",$C37,"Brændstof ikke valgt")) -> Brændstof ikke valgt | O37: =(IF($B37<='Benzin - diesel - hybrid'!O$28,'Benzin - diesel - hybrid'!O$23/'Benzin - diesel - hybrid'!O$13*P37,0)*(1+'Benzin - diesel - hybrid'!O$29/100)^-$B37) -> 0 | P37: =IF('Benzin - diesel - hybrid'!O$36="Diesel",$D37,IF('Benzin - diesel - hybrid'!O$36="Benzin",$C37,"Brændstof ikke valgt")) -> Brændstof ikke valgt | Q37: =(IF($B37<='Benzin - diesel - hybrid'!Q$28,'Benzin - diesel - hybrid'!Q$23/'Benzin - diesel - hybrid'!Q$13*R37,0)*(1+'Benzin - diesel - hybrid'!Q$29/100)^-$B37) -> 0 | R37: =IF('Benzin - diesel - hybrid'!Q$36="Diesel",$D37,IF('Benzin - diesel - hybrid'!Q$36="Benzin",$C37,"Brændstof ikke valgt")) -> Brændstof ikke valgt | S37: =(IF($B37<='Benzin - diesel - hybrid'!S$28,'Benzin - diesel - hybrid'!S$23/'Benzin - diesel - hybrid'!S$13*T37,0)*(1+'Benzin - diesel - hybrid'!S$29/100)^-$B37) -> 0 | T37: =IF('Benzin - diesel - hybrid'!S$36="Diesel",$D37,IF('Benzin - diesel - hybrid'!S$36="Benzin",$C37,"Brændstof ikke valgt")) -> Brændstof ikke valgt
B38: 15 | C38: =C37*(1+'Benzin - diesel - hybrid'!$E$30/100) -> 14.94850348 | D38: =D37*(1+'Benzin - diesel - hybrid'!$E$31/100) -> 13.24406444 | E38: =(IF($B38<='Benzin - diesel - hybrid'!E$28,'Benzin - diesel - hybrid'!E$23/'Benzin - diesel - hybrid'!E$13*F38,0)*(1+'Benzin - diesel - hybrid'!E$29/100)^-$B38) -> 0 | F38: =IF('Benzin - diesel - hybrid'!E$36="Diesel",$D38,IF('Benzin - diesel - hybrid'!E$36="Benzin",$C38,"Brændstof ikke valgt")) -> Brændstof ikke valgt | G38: =(IF($B38<='Benzin - diesel - hybrid'!G$28,'Benzin - diesel - hybrid'!G$23/'Benzin - diesel - hybrid'!G$13*H38,0)*(1+'Benzin - diesel - hybrid'!G$29/100)^-$B38) -> 0 | H38: =IF('Benzin - diesel - hybrid'!G$36="Diesel",$D38,IF('Benzin - diesel - hybrid'!G$36="Benzin",$C38,"Brændstof ikke valgt")) -> Brændstof ikke valgt | I38: =(IF($B38<='Benzin - diesel - hybrid'!I$28,'Benzin - diesel - hybrid'!I$23/'Benzin - diesel - hybrid'!I$13*J38,0)*(1+'Benzin - diesel - hybrid'!I$29/100)^-$B38) -> 0 | J38: =IF('Benzin - diesel - hybrid'!I$36="Diesel",$D38,IF('Benzin - diesel - hybrid'!I$36="Benzin",$C38,"Brændstof ikke valgt")) -> Brændstof ikke valgt | K38: =(IF($B38<='Benzin - diesel - hybrid'!K$28,'Benzin - diesel - hybrid'!K$23/'Benzin - diesel - hybrid'!K$13*L38,0)*(1+'Benzin - diesel - hybrid'!K$29/100)^-$B38) -> 0 | L38: =IF('Benzin - diesel - hybrid'!K$36="Diesel",$D38,IF('Benzin - diesel - hybrid'!K$36="Benzin",$C38,"Brændstof ikke valgt")) -> Brændstof ikke valgt | M38: =(IF($B38<='Benzin - diesel - hybrid'!M$28,'Benzin - diesel - hybrid'!M$23/'Benzin - diesel - hybrid'!M$13*N38,0)*(1+'Benzin - diesel - hybrid'!M$29/100)^-$B38) -> 0 | N38: =IF('Benzin - diesel - hybrid'!M$36="Diesel",$D38,IF('Benzin - diesel - hybrid'!M$36="Benzin",$C38,"Brændstof ikke valgt")) -> Brændstof ikke valgt | O38: =(IF($B38<='Benzin - diesel - hybrid'!O$28,'Benzin - diesel - hybrid'!O$23/'Benzin - diesel - hybrid'!O$13*P38,0)*(1+'Benzin - diesel - hybrid'!O$29/100)^-$B38) -> 0 | P38: =IF('Benzin - diesel - hybrid'!O$36="Diesel",$D38,IF('Benzin - diesel - hybrid'!O$36="Benzin",$C38,"Brændstof ikke valgt")) -> Brændstof ikke valgt | Q38: =(IF($B38<='Benzin - diesel - hybrid'!Q$28,'Benzin - diesel - hybrid'!Q$23/'Benzin - diesel - hybrid'!Q$13*R38,0)*(1+'Benzin - diesel - hybrid'!Q$29/100)^-$B38) -> 0 | R38: =IF('Benzin - diesel - hybrid'!Q$36="Diesel",$D38,IF('Benzin - diesel - hybrid'!Q$36="Benzin",$C38,"Brændstof ikke valgt")) -> Brændstof ikke valgt | S38: =(IF($B38<='Benzin - diesel - hybrid'!S$28,'Benzin - diesel - hybrid'!S$23/'Benzin - diesel - hybrid'!S$13*T38,0)*(1+'Benzin - diesel - hybrid'!S$29/100)^-$B38) -> 0 | T38: =IF('Benzin - diesel - hybrid'!S$36="Diesel",$D38,IF('Benzin - diesel - hybrid'!S$36="Benzin",$C38,"Brændstof ikke valgt")) -> Brændstof ikke valgt
A40: ='Benzin - diesel - hybrid'!C15 -> Service, vedligehold og løbende omkostninger
B41: År indeks | C41: ='Benzin - diesel - hybrid'!#REF!&" og "&'Benzin - diesel - hybrid'!C16&"og "&'Benzin - diesel - hybrid'!C17&" og "&'Benzin - diesel - hybrid'!C39&" og "&'Benzin - diesel - hybrid'!C40 ->  | E41: ='Benzin - diesel - hybrid'!E8 -> PRODUKT 1 | G41: ='Benzin - diesel - hybrid'!G8 -> PRODUKT 2 | I41: ='Benzin - diesel - hybrid'!I8 -> PRODUKT 3 | K41: ='Benzin - diesel - hybrid'!K8 -> PRODUKT 4 | M41: ='Benzin - diesel - hybrid'!M8 -> PRODUKT 5 | O41: ='Benzin - diesel - hybrid'!O8 -> PRODUKT 6 | Q41: ='Benzin - diesel - hybrid'!Q8 -> PRODUKT 7 | S41: ='Benzin - diesel - hybrid'!S8 -> PRODUKT 8
B42: 1 | C42: =B42 -> 1 | E42: =(IF($B42<='Benzin - diesel - hybrid'!E$28,'Benzin - diesel - hybrid'!E$16,0)+IF($B42<='Benzin - diesel - hybrid'!E$28,'Benzin - diesel - hybrid'!E$17,0)+IF($B42<='Benzin - diesel - hybrid'!E$28,'Benzin - diesel - hybrid'!E$39,0)+IF($B42<='Benzin - diesel - hybrid'!E$28,'Benzin - diesel - hybrid'!E$40,0))*(1+'Benzin - diesel - hybrid'!E$29/100)^-$B42 -> 0 | G42: =(IF($B42<='Benzin - diesel - hybrid'!G$28,'Benzin - diesel - hybrid'!G$16,0)+IF($B42<='Benzin - diesel - hybrid'!G$28,'Benzin - diesel - hybrid'!G$17,0)+IF($B42<='Benzin - diesel - hybrid'!G$28,'Benzin - diesel - hybrid'!G$39,0)+IF($B42<='Benzin - diesel - hybrid'!G$28,'Benzin - diesel - hybrid'!G$40,0))*(1+'Benzin - diesel - hybrid'!G$29/100)^-$B42 -> 0 | I42: =(IF($B42<='Benzin - diesel - hybrid'!I$28,'Benzin - diesel - hybrid'!I$16,0)+IF($B42<='Benzin - diesel - hybrid'!I$28,'Benzin - diesel - hybrid'!I$17,0)+IF($B42<='Benzin - diesel - hybrid'!I$28,'Benzin - diesel - hybrid'!I$39,0)+IF($B42<='Benzin - diesel - hybrid'!I$28,'Benzin - diesel - hybrid'!I$40,0))*(1+'Benzin - diesel - hybrid'!I$29/100)^-$B42 -> 0 | K42: =(IF($B42<='Benzin - diesel - hybrid'!K$28,'Benzin - diesel - hybrid'!K$16,0)+IF($B42<='Benzin - diesel - hybrid'!K$28,'Benzin - diesel - hybrid'!K$17,0)+IF($B42<='Benzin - diesel - hybrid'!K$28,'Benzin - diesel - hybrid'!K$39,0)+IF($B42<='Benzin - diesel - hybrid'!K$28,'Benzin - diesel - hybrid'!K$40,0))*(1+'Benzin - diesel - hybrid'!K$29/100)^-$B42 -> 0 | M42: =(IF($B42<='Benzin - diesel - hybrid'!M$28,'Benzin - diesel - hybrid'!M$16,0)+IF($B42<='Benzin - diesel - hybrid'!M$28,'Benzin - diesel - hybrid'!M$17,0)+IF($B42<='Benzin - diesel - hybrid'!M$28,'Benzin - diesel - hybrid'!M$39,0)+IF($B42<='Benzin - diesel - hybrid'!M$28,'Benzin - diesel - hybrid'!M$40,0))*(1+'Benzin - diesel - hybrid'!M$29/100)^-$B42 -> 0 | O42: =(IF($B42<='Benzin - diesel - hybrid'!O$28,'Benzin - diesel - hybrid'!O$16,0)+IF($B42<='Benzin - diesel - hybrid'!O$28,'Benzin - diesel - hybrid'!O$17,0)+IF($B42<='Benzin - diesel - hybrid'!O$28,'Benzin - diesel - hybrid'!O$39,0)+IF($B42<='Benzin - diesel - hybrid'!O$28,'Benzin - diesel - hybrid'!O$40,0))*(1+'Benzin - diesel - hybrid'!O$29/100)^-$B42 -> 0 | Q42: =(IF($B42<='Benzin - diesel - hybrid'!Q$28,'Benzin - diesel - hybrid'!Q$16,0)+IF($B42<='Benzin - diesel - hybrid'!Q$28,'Benzin - diesel - hybrid'!Q$17,0)+IF($B42<='Benzin - diesel - hybrid'!Q$28,'Benzin - diesel - hybrid'!Q$39,0)+IF($B42<='Benzin - diesel - hybrid'!Q$28,'Benzin - diesel - hybrid'!Q$40,0))*(1+'Benzin - diesel - hybrid'!Q$29/100)^-$B42 -> 0 | S42: =(IF($B42<='Benzin - diesel - hybrid'!S$28,'Benzin - diesel - hybrid'!S$16,0)+IF($B42<='Benzin - diesel - hybrid'!S$28,'Benzin - diesel - hybrid'!S$17,0)+IF($B42<='Benzin - diesel - hybrid'!S$28,'Benzin - diesel - hybrid'!S$39,0)+IF($B42<='Benzin - diesel - hybrid'!S$28,'Benzin - diesel - hybrid'!S$40,0))*(1+'Benzin - diesel - hybrid'!S$29/100)^-$B42 -> 0
B43: 2 | C43: =B43 -> 2 | E43: =(IF($B43<='Benzin - diesel - hybrid'!E$28,'Benzin - diesel - hybrid'!E$16,0)+IF($B43<='Benzin - diesel - hybrid'!E$28,'Benzin - diesel - hybrid'!E$17,0)+IF($B43<='Benzin - diesel - hybrid'!E$28,'Benzin - diesel - hybrid'!E$39,0)+IF($B43<='Benzin - diesel - hybrid'!E$28,'Benzin - diesel - hybrid'!E$40,0))*(1+'Benzin - diesel - hybrid'!E$29/100)^-$B43 -> 0 | G43: =(IF($B43<='Benzin - diesel - hybrid'!G$28,'Benzin - diesel - hybrid'!G$16,0)+IF($B43<='Benzin - diesel - hybrid'!G$28,'Benzin - diesel - hybrid'!G$17,0)+IF($B43<='Benzin - diesel - hybrid'!G$28,'Benzin - diesel - hybrid'!G$39,0)+IF($B43<='Benzin - diesel - hybrid'!G$28,'Benzin - diesel - hybrid'!G$40,0))*(1+'Benzin - diesel - hybrid'!G$29/100)^-$B43 -> 0 | I43: =(IF($B43<='Benzin - diesel - hybrid'!I$28,'Benzin - diesel - hybrid'!I$16,0)+IF($B43<='Benzin - diesel - hybrid'!I$28,'Benzin - diesel - hybrid'!I$17,0)+IF($B43<='Benzin - diesel - hybrid'!I$28,'Benzin - diesel - hybrid'!I$39,0)+IF($B43<='Benzin - diesel - hybrid'!I$28,'Benzin - diesel - hybrid'!I$40,0))*(1+'Benzin - diesel - hybrid'!I$29/100)^-$B43 -> 0 | K43: =(IF($B43<='Benzin - diesel - hybrid'!K$28,'Benzin - diesel - hybrid'!K$16,0)+IF($B43<='Benzin - diesel - hybrid'!K$28,'Benzin - diesel - hybrid'!K$17,0)+IF($B43<='Benzin - diesel - hybrid'!K$28,'Benzin - diesel - hybrid'!K$39,0)+IF($B43<='Benzin - diesel - hybrid'!K$28,'Benzin - diesel - hybrid'!K$40,0))*(1+'Benzin - diesel - hybrid'!K$29/100)^-$B43 -> 0 | M43: =(IF($B43<='Benzin - diesel - hybrid'!M$28,'Benzin - diesel - hybrid'!M$16,0)+IF($B43<='Benzin - diesel - hybrid'!M$28,'Benzin - diesel - hybrid'!M$17,0)+IF($B43<='Benzin - diesel - hybrid'!M$28,'Benzin - diesel - hybrid'!M$39,0)+IF($B43<='Benzin - diesel - hybrid'!M$28,'Benzin - diesel - hybrid'!M$40,0))*(1+'Benzin - diesel - hybrid'!M$29/100)^-$B43 -> 0 | O43: =(IF($B43<='Benzin - diesel - hybrid'!O$28,'Benzin - diesel - hybrid'!O$16,0)+IF($B43<='Benzin - diesel - hybrid'!O$28,'Benzin - diesel - hybrid'!O$17,0)+IF($B43<='Benzin - diesel - hybrid'!O$28,'Benzin - diesel - hybrid'!O$39,0)+IF($B43<='Benzin - diesel - hybrid'!O$28,'Benzin - diesel - hybrid'!O$40,0))*(1+'Benzin - diesel - hybrid'!O$29/100)^-$B43 -> 0 | Q43: =(IF($B43<='Benzin - diesel - hybrid'!Q$28,'Benzin - diesel - hybrid'!Q$16,0)+IF($B43<='Benzin - diesel - hybrid'!Q$28,'Benzin - diesel - hybrid'!Q$17,0)+IF($B43<='Benzin - diesel - hybrid'!Q$28,'Benzin - diesel - hybrid'!Q$39,0)+IF($B43<='Benzin - diesel - hybrid'!Q$28,'Benzin - diesel - hybrid'!Q$40,0))*(1+'Benzin - diesel - hybrid'!Q$29/100)^-$B43 -> 0 | S43: =(IF($B43<='Benzin - diesel - hybrid'!S$28,'Benzin - diesel - hybrid'!S$16,0)+IF($B43<='Benzin - diesel - hybrid'!S$28,'Benzin - diesel - hybrid'!S$17,0)+IF($B43<='Benzin - diesel - hybrid'!S$28,'Benzin - diesel - hybrid'!S$39,0)+IF($B43<='Benzin - diesel - hybrid'!S$28,'Benzin - diesel - hybrid'!S$40,0))*(1+'Benzin - diesel - hybrid'!S$29/100)^-$B43 -> 0
B44: 3 | C44: 3 | E44: =(IF($B44<='Benzin - diesel - hybrid'!E$28,'Benzin - diesel - hybrid'!E$16,0)+IF($B44<='Benzin - diesel - hybrid'!E$28,'Benzin - diesel - hybrid'!E$17,0)+IF($B44<='Benzin - diesel - hybrid'!E$28,'Benzin - diesel - hybrid'!E$39,0)+IF($B44<='Benzin - diesel - hybrid'!E$28,'Benzin - diesel - hybrid'!E$40,0))*(1+'Benzin - diesel - hybrid'!E$29/100)^-$B44 -> 0 | G44: =(IF($B44<='Benzin - diesel - hybrid'!G$28,'Benzin - diesel - hybrid'!G$16,0)+IF($B44<='Benzin - diesel - hybrid'!G$28,'Benzin - diesel - hybrid'!G$17,0)+IF($B44<='Benzin - diesel - hybrid'!G$28,'Benzin - diesel - hybrid'!G$39,0)+IF($B44<='Benzin - diesel - hybrid'!G$28,'Benzin - diesel - hybrid'!G$40,0))*(1+'Benzin - diesel - hybrid'!G$29/100)^-$B44 -> 0 | I44: =(IF($B44<='Benzin - diesel - hybrid'!I$28,'Benzin - diesel - hybrid'!I$16,0)+IF($B44<='Benzin - diesel - hybrid'!I$28,'Benzin - diesel - hybrid'!I$17,0)+IF($B44<='Benzin - diesel - hybrid'!I$28,'Benzin - diesel - hybrid'!I$39,0)+IF($B44<='Benzin - diesel - hybrid'!I$28,'Benzin - diesel - hybrid'!I$40,0))*(1+'Benzin - diesel - hybrid'!I$29/100)^-$B44 -> 0 | K44: =(IF($B44<='Benzin - diesel - hybrid'!K$28,'Benzin - diesel - hybrid'!K$16,0)+IF($B44<='Benzin - diesel - hybrid'!K$28,'Benzin - diesel - hybrid'!K$17,0)+IF($B44<='Benzin - diesel - hybrid'!K$28,'Benzin - diesel - hybrid'!K$39,0)+IF($B44<='Benzin - diesel - hybrid'!K$28,'Benzin - diesel - hybrid'!K$40,0))*(1+'Benzin - diesel - hybrid'!K$29/100)^-$B44 -> 0 | M44: =(IF($B44<='Benzin - diesel - hybrid'!M$28,'Benzin - diesel - hybrid'!M$16,0)+IF($B44<='Benzin - diesel - hybrid'!M$28,'Benzin - diesel - hybrid'!M$17,0)+IF($B44<='Benzin - diesel - hybrid'!M$28,'Benzin - diesel - hybrid'!M$39,0)+IF($B44<='Benzin - diesel - hybrid'!M$28,'Benzin - diesel - hybrid'!M$40,0))*(1+'Benzin - diesel - hybrid'!M$29/100)^-$B44 -> 0 | O44: =(IF($B44<='Benzin - diesel - hybrid'!O$28,'Benzin - diesel - hybrid'!O$16,0)+IF($B44<='Benzin - diesel - hybrid'!O$28,'Benzin - diesel - hybrid'!O$17,0)+IF($B44<='Benzin - diesel - hybrid'!O$28,'Benzin - diesel - hybrid'!O$39,0)+IF($B44<='Benzin - diesel - hybrid'!O$28,'Benzin - diesel - hybrid'!O$40,0))*(1+'Benzin - diesel - hybrid'!O$29/100)^-$B44 -> 0 | Q44: =(IF($B44<='Benzin - diesel - hybrid'!Q$28,'Benzin - diesel - hybrid'!Q$16,0)+IF($B44<='Benzin - diesel - hybrid'!Q$28,'Benzin - diesel - hybrid'!Q$17,0)+IF($B44<='Benzin - diesel - hybrid'!Q$28,'Benzin - diesel - hybrid'!Q$39,0)+IF($B44<='Benzin - diesel - hybrid'!Q$28,'Benzin - diesel - hybrid'!Q$40,0))*(1+'Benzin - diesel - hybrid'!Q$29/100)^-$B44 -> 0 | S44: =(IF($B44<='Benzin - diesel - hybrid'!S$28,'Benzin - diesel - hybrid'!S$16,0)+IF($B44<='Benzin - diesel - hybrid'!S$28,'Benzin - diesel - hybrid'!S$17,0)+IF($B44<='Benzin - diesel - hybrid'!S$28,'Benzin - diesel - hybrid'!S$39,0)+IF($B44<='Benzin - diesel - hybrid'!S$28,'Benzin - diesel - hybrid'!S$40,0))*(1+'Benzin - diesel - hybrid'!S$29/100)^-$B44 -> 0
B45: 4 | C45: 4 | E45: =(IF($B45<='Benzin - diesel - hybrid'!E$28,'Benzin - diesel - hybrid'!E$16,0)+IF($B45<='Benzin - diesel - hybrid'!E$28,'Benzin - diesel - hybrid'!E$17,0)+IF($B45<='Benzin - diesel - hybrid'!E$28,'Benzin - diesel - hybrid'!E$39,0)+IF($B45<='Benzin - diesel - hybrid'!E$28,'Benzin - diesel - hybrid'!E$40,0))*(1+'Benzin - diesel - hybrid'!E$29/100)^-$B45 -> 0 | G45: =(IF($B45<='Benzin - diesel - hybrid'!G$28,'Benzin - diesel - hybrid'!G$16,0)+IF($B45<='Benzin - diesel - hybrid'!G$28,'Benzin - diesel - hybrid'!G$17,0)+IF($B45<='Benzin - diesel - hybrid'!G$28,'Benzin - diesel - hybrid'!G$39,0)+IF($B45<='Benzin - diesel - hybrid'!G$28,'Benzin - diesel - hybrid'!G$40,0))*(1+'Benzin - diesel - hybrid'!G$29/100)^-$B45 -> 0 | I45: =(IF($B45<='Benzin - diesel - hybrid'!I$28,'Benzin - diesel - hybrid'!I$16,0)+IF($B45<='Benzin - diesel - hybrid'!I$28,'Benzin - diesel - hybrid'!I$17,0)+IF($B45<='Benzin - diesel - hybrid'!I$28,'Benzin - diesel - hybrid'!I$39,0)+IF($B45<='Benzin - diesel - hybrid'!I$28,'Benzin - diesel - hybrid'!I$40,0))*(1+'Benzin - diesel - hybrid'!I$29/100)^-$B45 -> 0 | K45: =(IF($B45<='Benzin - diesel - hybrid'!K$28,'Benzin - diesel - hybrid'!K$16,0)+IF($B45<='Benzin - diesel - hybrid'!K$28,'Benzin - diesel - hybrid'!K$17,0)+IF($B45<='Benzin - diesel - hybrid'!K$28,'Benzin - diesel - hybrid'!K$39,0)+IF($B45<='Benzin - diesel - hybrid'!K$28,'Benzin - diesel - hybrid'!K$40,0))*(1+'Benzin - diesel - hybrid'!K$29/100)^-$B45 -> 0 | M45: =(IF($B45<='Benzin - diesel - hybrid'!M$28,'Benzin - diesel - hybrid'!M$16,0)+IF($B45<='Benzin - diesel - hybrid'!M$28,'Benzin - diesel - hybrid'!M$17,0)+IF($B45<='Benzin - diesel - hybrid'!M$28,'Benzin - diesel - hybrid'!M$39,0)+IF($B45<='Benzin - diesel - hybrid'!M$28,'Benzin - diesel - hybrid'!M$40,0))*(1+'Benzin - diesel - hybrid'!M$29/100)^-$B45 -> 0 | O45: =(IF($B45<='Benzin - diesel - hybrid'!O$28,'Benzin - diesel - hybrid'!O$16,0)+IF($B45<='Benzin - diesel - hybrid'!O$28,'Benzin - diesel - hybrid'!O$17,0)+IF($B45<='Benzin - diesel - hybrid'!O$28,'Benzin - diesel - hybrid'!O$39,0)+IF($B45<='Benzin - diesel - hybrid'!O$28,'Benzin - diesel - hybrid'!O$40,0))*(1+'Benzin - diesel - hybrid'!O$29/100)^-$B45 -> 0 | Q45: =(IF($B45<='Benzin - diesel - hybrid'!Q$28,'Benzin - diesel - hybrid'!Q$16,0)+IF($B45<='Benzin - diesel - hybrid'!Q$28,'Benzin - diesel - hybrid'!Q$17,0)+IF($B45<='Benzin - diesel - hybrid'!Q$28,'Benzin - diesel - hybrid'!Q$39,0)+IF($B45<='Benzin - diesel - hybrid'!Q$28,'Benzin - diesel - hybrid'!Q$40,0))*(1+'Benzin - diesel - hybrid'!Q$29/100)^-$B45 -> 0 | S45: =(IF($B45<='Benzin - diesel - hybrid'!S$28,'Benzin - diesel - hybrid'!S$16,0)+IF($B45<='Benzin - diesel - hybrid'!S$28,'Benzin - diesel - hybrid'!S$17,0)+IF($B45<='Benzin - diesel - hybrid'!S$28,'Benzin - diesel - hybrid'!S$39,0)+IF($B45<='Benzin - diesel - hybrid'!S$28,'Benzin - diesel - hybrid'!S$40,0))*(1+'Benzin - diesel - hybrid'!S$29/100)^-$B45 -> 0
B46: 5 | C46: 5 | E46: =(IF($B46<='Benzin - diesel - hybrid'!E$28,'Benzin - diesel - hybrid'!E$16,0)+IF($B46<='Benzin - diesel - hybrid'!E$28,'Benzin - diesel - hybrid'!E$17,0)+IF($B46<='Benzin - diesel - hybrid'!E$28,'Benzin - diesel - hybrid'!E$39,0)+IF($B46<='Benzin - diesel - hybrid'!E$28,'Benzin - diesel - hybrid'!E$40,0))*(1+'Benzin - diesel - hybrid'!E$29/100)^-$B46 -> 0 | G46: =(IF($B46<='Benzin - diesel - hybrid'!G$28,'Benzin - diesel - hybrid'!G$16,0)+IF($B46<='Benzin - diesel - hybrid'!G$28,'Benzin - diesel - hybrid'!G$17,0)+IF($B46<='Benzin - diesel - hybrid'!G$28,'Benzin - diesel - hybrid'!G$39,0)+IF($B46<='Benzin - diesel - hybrid'!G$28,'Benzin - diesel - hybrid'!G$40,0))*(1+'Benzin - diesel - hybrid'!G$29/100)^-$B46 -> 0 | I46: =(IF($B46<='Benzin - diesel - hybrid'!I$28,'Benzin - diesel - hybrid'!I$16,0)+IF($B46<='Benzin - diesel - hybrid'!I$28,'Benzin - diesel - hybrid'!I$17,0)+IF($B46<='Benzin - diesel - hybrid'!I$28,'Benzin - diesel - hybrid'!I$39,0)+IF($B46<='Benzin - diesel - hybrid'!I$28,'Benzin - diesel - hybrid'!I$40,0))*(1+'Benzin - diesel - hybrid'!I$29/100)^-$B46 -> 0 | K46: =(IF($B46<='Benzin - diesel - hybrid'!K$28,'Benzin - diesel - hybrid'!K$16,0)+IF($B46<='Benzin - diesel - hybrid'!K$28,'Benzin - diesel - hybrid'!K$17,0)+IF($B46<='Benzin - diesel - hybrid'!K$28,'Benzin - diesel - hybrid'!K$39,0)+IF($B46<='Benzin - diesel - hybrid'!K$28,'Benzin - diesel - hybrid'!K$40,0))*(1+'Benzin - diesel - hybrid'!K$29/100)^-$B46 -> 0 | M46: =(IF($B46<='Benzin - diesel - hybrid'!M$28,'Benzin - diesel - hybrid'!M$16,0)+IF($B46<='Benzin - diesel - hybrid'!M$28,'Benzin - diesel - hybrid'!M$17,0)+IF($B46<='Benzin - diesel - hybrid'!M$28,'Benzin - diesel - hybrid'!M$39,0)+IF($B46<='Benzin - diesel - hybrid'!M$28,'Benzin - diesel - hybrid'!M$40,0))*(1+'Benzin - diesel - hybrid'!M$29/100)^-$B46 -> 0 | O46: =(IF($B46<='Benzin - diesel - hybrid'!O$28,'Benzin - diesel - hybrid'!O$16,0)+IF($B46<='Benzin - diesel - hybrid'!O$28,'Benzin - diesel - hybrid'!O$17,0)+IF($B46<='Benzin - diesel - hybrid'!O$28,'Benzin - diesel - hybrid'!O$39,0)+IF($B46<='Benzin - diesel - hybrid'!O$28,'Benzin - diesel - hybrid'!O$40,0))*(1+'Benzin - diesel - hybrid'!O$29/100)^-$B46 -> 0 | Q46: =(IF($B46<='Benzin - diesel - hybrid'!Q$28,'Benzin - diesel - hybrid'!Q$16,0)+IF($B46<='Benzin - diesel - hybrid'!Q$28,'Benzin - diesel - hybrid'!Q$17,0)+IF($B46<='Benzin - diesel - hybrid'!Q$28,'Benzin - diesel - hybrid'!Q$39,0)+IF($B46<='Benzin - diesel - hybrid'!Q$28,'Benzin - diesel - hybrid'!Q$40,0))*(1+'Benzin - diesel - hybrid'!Q$29/100)^-$B46 -> 0 | S46: =(IF($B46<='Benzin - diesel - hybrid'!S$28,'Benzin - diesel - hybrid'!S$16,0)+IF($B46<='Benzin - diesel - hybrid'!S$28,'Benzin - diesel - hybrid'!S$17,0)+IF($B46<='Benzin - diesel - hybrid'!S$28,'Benzin - diesel - hybrid'!S$39,0)+IF($B46<='Benzin - diesel - hybrid'!S$28,'Benzin - diesel - hybrid'!S$40,0))*(1+'Benzin - diesel - hybrid'!S$29/100)^-$B46 -> 0
B47: 6 | C47: 6 | E47: =(IF($B47<='Benzin - diesel - hybrid'!E$28,'Benzin - diesel - hybrid'!E$16,0)+IF($B47<='Benzin - diesel - hybrid'!E$28,'Benzin - diesel - hybrid'!E$17,0)+IF($B47<='Benzin - diesel - hybrid'!E$28,'Benzin - diesel - hybrid'!E$39,0)+IF($B47<='Benzin - diesel - hybrid'!E$28,'Benzin - diesel - hybrid'!E$40,0))*(1+'Benzin - diesel - hybrid'!E$29/100)^-$B47 -> 0 | G47: =(IF($B47<='Benzin - diesel - hybrid'!G$28,'Benzin - diesel - hybrid'!G$16,0)+IF($B47<='Benzin - diesel - hybrid'!G$28,'Benzin - diesel - hybrid'!G$17,0)+IF($B47<='Benzin - diesel - hybrid'!G$28,'Benzin - diesel - hybrid'!G$39,0)+IF($B47<='Benzin - diesel - hybrid'!G$28,'Benzin - diesel - hybrid'!G$40,0))*(1+'Benzin - diesel - hybrid'!G$29/100)^-$B47 -> 0 | I47: =(IF($B47<='Benzin - diesel - hybrid'!I$28,'Benzin - diesel - hybrid'!I$16,0)+IF($B47<='Benzin - diesel - hybrid'!I$28,'Benzin - diesel - hybrid'!I$17,0)+IF($B47<='Benzin - diesel - hybrid'!I$28,'Benzin - diesel - hybrid'!I$39,0)+IF($B47<='Benzin - diesel - hybrid'!I$28,'Benzin - diesel - hybrid'!I$40,0))*(1+'Benzin - diesel - hybrid'!I$29/100)^-$B47 -> 0 | K47: =(IF($B47<='Benzin - diesel - hybrid'!K$28,'Benzin - diesel - hybrid'!K$16,0)+IF($B47<='Benzin - diesel - hybrid'!K$28,'Benzin - diesel - hybrid'!K$17,0)+IF($B47<='Benzin - diesel - hybrid'!K$28,'Benzin - diesel - hybrid'!K$39,0)+IF($B47<='Benzin - diesel - hybrid'!K$28,'Benzin - diesel - hybrid'!K$40,0))*(1+'Benzin - diesel - hybrid'!K$29/100)^-$B47 -> 0 | M47: =(IF($B47<='Benzin - diesel - hybrid'!M$28,'Benzin - diesel - hybrid'!M$16,0)+IF($B47<='Benzin - diesel - hybrid'!M$28,'Benzin - diesel - hybrid'!M$17,0)+IF($B47<='Benzin - diesel - hybrid'!M$28,'Benzin - diesel - hybrid'!M$39,0)+IF($B47<='Benzin - diesel - hybrid'!M$28,'Benzin - diesel - hybrid'!M$40,0))*(1+'Benzin - diesel - hybrid'!M$29/100)^-$B47 -> 0 | O47: =(IF($B47<='Benzin - diesel - hybrid'!O$28,'Benzin - diesel - hybrid'!O$16,0)+IF($B47<='Benzin - diesel - hybrid'!O$28,'Benzin - diesel - hybrid'!O$17,0)+IF($B47<='Benzin - diesel - hybrid'!O$28,'Benzin - diesel - hybrid'!O$39,0)+IF($B47<='Benzin - diesel - hybrid'!O$28,'Benzin - diesel - hybrid'!O$40,0))*(1+'Benzin - diesel - hybrid'!O$29/100)^-$B47 -> 0 | Q47: =(IF($B47<='Benzin - diesel - hybrid'!Q$28,'Benzin - diesel - hybrid'!Q$16,0)+IF($B47<='Benzin - diesel - hybrid'!Q$28,'Benzin - diesel - hybrid'!Q$17,0)+IF($B47<='Benzin - diesel - hybrid'!Q$28,'Benzin - diesel - hybrid'!Q$39,0)+IF($B47<='Benzin - diesel - hybrid'!Q$28,'Benzin - diesel - hybrid'!Q$40,0))*(1+'Benzin - diesel - hybrid'!Q$29/100)^-$B47 -> 0 | S47: =(IF($B47<='Benzin - diesel - hybrid'!S$28,'Benzin - diesel - hybrid'!S$16,0)+IF($B47<='Benzin - diesel - hybrid'!S$28,'Benzin - diesel - hybrid'!S$17,0)+IF($B47<='Benzin - diesel - hybrid'!S$28,'Benzin - diesel - hybrid'!S$39,0)+IF($B47<='Benzin - diesel - hybrid'!S$28,'Benzin - diesel - hybrid'!S$40,0))*(1+'Benzin - diesel - hybrid'!S$29/100)^-$B47 -> 0
B48: 7 | C48: 7 | E48: =(IF($B48<='Benzin - diesel - hybrid'!E$28,'Benzin - diesel - hybrid'!E$16,0)+IF($B48<='Benzin - diesel - hybrid'!E$28,'Benzin - diesel - hybrid'!E$17,0)+IF($B48<='Benzin - diesel - hybrid'!E$28,'Benzin - diesel - hybrid'!E$39,0)+IF($B48<='Benzin - diesel - hybrid'!E$28,'Benzin - diesel - hybrid'!E$40,0))*(1+'Benzin - diesel - hybrid'!E$29/100)^-$B48 -> 0 | G48: =(IF($B48<='Benzin - diesel - hybrid'!G$28,'Benzin - diesel - hybrid'!G$16,0)+IF($B48<='Benzin - diesel - hybrid'!G$28,'Benzin - diesel - hybrid'!G$17,0)+IF($B48<='Benzin - diesel - hybrid'!G$28,'Benzin - diesel - hybrid'!G$39,0)+IF($B48<='Benzin - diesel - hybrid'!G$28,'Benzin - diesel - hybrid'!G$40,0))*(1+'Benzin - diesel - hybrid'!G$29/100)^-$B48 -> 0 | I48: =(IF($B48<='Benzin - diesel - hybrid'!I$28,'Benzin - diesel - hybrid'!I$16,0)+IF($B48<='Benzin - diesel - hybrid'!I$28,'Benzin - diesel - hybrid'!I$17,0)+IF($B48<='Benzin - diesel - hybrid'!I$28,'Benzin - diesel - hybrid'!I$39,0)+IF($B48<='Benzin - diesel - hybrid'!I$28,'Benzin - diesel - hybrid'!I$40,0))*(1+'Benzin - diesel - hybrid'!I$29/100)^-$B48 -> 0 | K48: =(IF($B48<='Benzin - diesel - hybrid'!K$28,'Benzin - diesel - hybrid'!K$16,0)+IF($B48<='Benzin - diesel - hybrid'!K$28,'Benzin - diesel - hybrid'!K$17,0)+IF($B48<='Benzin - diesel - hybrid'!K$28,'Benzin - diesel - hybrid'!K$39,0)+IF($B48<='Benzin - diesel - hybrid'!K$28,'Benzin - diesel - hybrid'!K$40,0))*(1+'Benzin - diesel - hybrid'!K$29/100)^-$B48 -> 0 | M48: =(IF($B48<='Benzin - diesel - hybrid'!M$28,'Benzin - diesel - hybrid'!M$16,0)+IF($B48<='Benzin - diesel - hybrid'!M$28,'Benzin - diesel - hybrid'!M$17,0)+IF($B48<='Benzin - diesel - hybrid'!M$28,'Benzin - diesel - hybrid'!M$39,0)+IF($B48<='Benzin - diesel - hybrid'!M$28,'Benzin - diesel - hybrid'!M$40,0))*(1+'Benzin - diesel - hybrid'!M$29/100)^-$B48 -> 0 | O48: =(IF($B48<='Benzin - diesel - hybrid'!O$28,'Benzin - diesel - hybrid'!O$16,0)+IF($B48<='Benzin - diesel - hybrid'!O$28,'Benzin - diesel - hybrid'!O$17,0)+IF($B48<='Benzin - diesel - hybrid'!O$28,'Benzin - diesel - hybrid'!O$39,0)+IF($B48<='Benzin - diesel - hybrid'!O$28,'Benzin - diesel - hybrid'!O$40,0))*(1+'Benzin - diesel - hybrid'!O$29/100)^-$B48 -> 0 | Q48: =(IF($B48<='Benzin - diesel - hybrid'!Q$28,'Benzin - diesel - hybrid'!Q$16,0)+IF($B48<='Benzin - diesel - hybrid'!Q$28,'Benzin - diesel - hybrid'!Q$17,0)+IF($B48<='Benzin - diesel - hybrid'!Q$28,'Benzin - diesel - hybrid'!Q$39,0)+IF($B48<='Benzin - diesel - hybrid'!Q$28,'Benzin - diesel - hybrid'!Q$40,0))*(1+'Benzin - diesel - hybrid'!Q$29/100)^-$B48 -> 0 | S48: =(IF($B48<='Benzin - diesel - hybrid'!S$28,'Benzin - diesel - hybrid'!S$16,0)+IF($B48<='Benzin - diesel - hybrid'!S$28,'Benzin - diesel - hybrid'!S$17,0)+IF($B48<='Benzin - diesel - hybrid'!S$28,'Benzin - diesel - hybrid'!S$39,0)+IF($B48<='Benzin - diesel - hybrid'!S$28,'Benzin - diesel - hybrid'!S$40,0))*(1+'Benzin - diesel - hybrid'!S$29/100)^-$B48 -> 0
B49: 8 | C49: 8 | E49: =(IF($B49<='Benzin - diesel - hybrid'!E$28,'Benzin - diesel - hybrid'!E$16,0)+IF($B49<='Benzin - diesel - hybrid'!E$28,'Benzin - diesel - hybrid'!E$17,0)+IF($B49<='Benzin - diesel - hybrid'!E$28,'Benzin - diesel - hybrid'!E$39,0)+IF($B49<='Benzin - diesel - hybrid'!E$28,'Benzin - diesel - hybrid'!E$40,0))*(1+'Benzin - diesel - hybrid'!E$29/100)^-$B49 -> 0 | G49: =(IF($B49<='Benzin - diesel - hybrid'!G$28,'Benzin - diesel - hybrid'!G$16,0)+IF($B49<='Benzin - diesel - hybrid'!G$28,'Benzin - diesel - hybrid'!G$17,0)+IF($B49<='Benzin - diesel - hybrid'!G$28,'Benzin - diesel - hybrid'!G$39,0)+IF($B49<='Benzin - diesel - hybrid'!G$28,'Benzin - diesel - hybrid'!G$40,0))*(1+'Benzin - diesel - hybrid'!G$29/100)^-$B49 -> 0 | I49: =(IF($B49<='Benzin - diesel - hybrid'!I$28,'Benzin - diesel - hybrid'!I$16,0)+IF($B49<='Benzin - diesel - hybrid'!I$28,'Benzin - diesel - hybrid'!I$17,0)+IF($B49<='Benzin - diesel - hybrid'!I$28,'Benzin - diesel - hybrid'!I$39,0)+IF($B49<='Benzin - diesel - hybrid'!I$28,'Benzin - diesel - hybrid'!I$40,0))*(1+'Benzin - diesel - hybrid'!I$29/100)^-$B49 -> 0 | K49: =(IF($B49<='Benzin - diesel - hybrid'!K$28,'Benzin - diesel - hybrid'!K$16,0)+IF($B49<='Benzin - diesel - hybrid'!K$28,'Benzin - diesel - hybrid'!K$17,0)+IF($B49<='Benzin - diesel - hybrid'!K$28,'Benzin - diesel - hybrid'!K$39,0)+IF($B49<='Benzin - diesel - hybrid'!K$28,'Benzin - diesel - hybrid'!K$40,0))*(1+'Benzin - diesel - hybrid'!K$29/100)^-$B49 -> 0 | M49: =(IF($B49<='Benzin - diesel - hybrid'!M$28,'Benzin - diesel - hybrid'!M$16,0)+IF($B49<='Benzin - diesel - hybrid'!M$28,'Benzin - diesel - hybrid'!M$17,0)+IF($B49<='Benzin - diesel - hybrid'!M$28,'Benzin - diesel - hybrid'!M$39,0)+IF($B49<='Benzin - diesel - hybrid'!M$28,'Benzin - diesel - hybrid'!M$40,0))*(1+'Benzin - diesel - hybrid'!M$29/100)^-$B49 -> 0 | O49: =(IF($B49<='Benzin - diesel - hybrid'!O$28,'Benzin - diesel - hybrid'!O$16,0)+IF($B49<='Benzin - diesel - hybrid'!O$28,'Benzin - diesel - hybrid'!O$17,0)+IF($B49<='Benzin - diesel - hybrid'!O$28,'Benzin - diesel - hybrid'!O$39,0)+IF($B49<='Benzin - diesel - hybrid'!O$28,'Benzin - diesel - hybrid'!O$40,0))*(1+'Benzin - diesel - hybrid'!O$29/100)^-$B49 -> 0 | Q49: =(IF($B49<='Benzin - diesel - hybrid'!Q$28,'Benzin - diesel - hybrid'!Q$16,0)+IF($B49<='Benzin - diesel - hybrid'!Q$28,'Benzin - diesel - hybrid'!Q$17,0)+IF($B49<='Benzin - diesel - hybrid'!Q$28,'Benzin - diesel - hybrid'!Q$39,0)+IF($B49<='Benzin - diesel - hybrid'!Q$28,'Benzin - diesel - hybrid'!Q$40,0))*(1+'Benzin - diesel - hybrid'!Q$29/100)^-$B49 -> 0 | S49: =(IF($B49<='Benzin - diesel - hybrid'!S$28,'Benzin - diesel - hybrid'!S$16,0)+IF($B49<='Benzin - diesel - hybrid'!S$28,'Benzin - diesel - hybrid'!S$17,0)+IF($B49<='Benzin - diesel - hybrid'!S$28,'Benzin - diesel - hybrid'!S$39,0)+IF($B49<='Benzin - diesel - hybrid'!S$28,'Benzin - diesel - hybrid'!S$40,0))*(1+'Benzin - diesel - hybrid'!S$29/100)^-$B49 -> 0
B50: 9 | C50: 9 | E50: =(IF($B50<='Benzin - diesel - hybrid'!E$28,'Benzin - diesel - hybrid'!E$16,0)+IF($B50<='Benzin - diesel - hybrid'!E$28,'Benzin - diesel - hybrid'!E$17,0)+IF($B50<='Benzin - diesel - hybrid'!E$28,'Benzin - diesel - hybrid'!E$39,0)+IF($B50<='Benzin - diesel - hybrid'!E$28,'Benzin - diesel - hybrid'!E$40,0))*(1+'Benzin - diesel - hybrid'!E$29/100)^-$B50 -> 0 | G50: =(IF($B50<='Benzin - diesel - hybrid'!G$28,'Benzin - diesel - hybrid'!G$16,0)+IF($B50<='Benzin - diesel - hybrid'!G$28,'Benzin - diesel - hybrid'!G$17,0)+IF($B50<='Benzin - diesel - hybrid'!G$28,'Benzin - diesel - hybrid'!G$39,0)+IF($B50<='Benzin - diesel - hybrid'!G$28,'Benzin - diesel - hybrid'!G$40,0))*(1+'Benzin - diesel - hybrid'!G$29/100)^-$B50 -> 0 | I50: =(IF($B50<='Benzin - diesel - hybrid'!I$28,'Benzin - diesel - hybrid'!I$16,0)+IF($B50<='Benzin - diesel - hybrid'!I$28,'Benzin - diesel - hybrid'!I$17,0)+IF($B50<='Benzin - diesel - hybrid'!I$28,'Benzin - diesel - hybrid'!I$39,0)+IF($B50<='Benzin - diesel - hybrid'!I$28,'Benzin - diesel - hybrid'!I$40,0))*(1+'Benzin - diesel - hybrid'!I$29/100)^-$B50 -> 0 | K50: =(IF($B50<='Benzin - diesel - hybrid'!K$28,'Benzin - diesel - hybrid'!K$16,0)+IF($B50<='Benzin - diesel - hybrid'!K$28,'Benzin - diesel - hybrid'!K$17,0)+IF($B50<='Benzin - diesel - hybrid'!K$28,'Benzin - diesel - hybrid'!K$39,0)+IF($B50<='Benzin - diesel - hybrid'!K$28,'Benzin - diesel - hybrid'!K$40,0))*(1+'Benzin - diesel - hybrid'!K$29/100)^-$B50 -> 0 | M50: =(IF($B50<='Benzin - diesel - hybrid'!M$28,'Benzin - diesel - hybrid'!M$16,0)+IF($B50<='Benzin - diesel - hybrid'!M$28,'Benzin - diesel - hybrid'!M$17,0)+IF($B50<='Benzin - diesel - hybrid'!M$28,'Benzin - diesel - hybrid'!M$39,0)+IF($B50<='Benzin - diesel - hybrid'!M$28,'Benzin - diesel - hybrid'!M$40,0))*(1+'Benzin - diesel - hybrid'!M$29/100)^-$B50 -> 0 | O50: =(IF($B50<='Benzin - diesel - hybrid'!O$28,'Benzin - diesel - hybrid'!O$16,0)+IF($B50<='Benzin - diesel - hybrid'!O$28,'Benzin - diesel - hybrid'!O$17,0)+IF($B50<='Benzin - diesel - hybrid'!O$28,'Benzin - diesel - hybrid'!O$39,0)+IF($B50<='Benzin - diesel - hybrid'!O$28,'Benzin - diesel - hybrid'!O$40,0))*(1+'Benzin - diesel - hybrid'!O$29/100)^-$B50 -> 0 | Q50: =(IF($B50<='Benzin - diesel - hybrid'!Q$28,'Benzin - diesel - hybrid'!Q$16,0)+IF($B50<='Benzin - diesel - hybrid'!Q$28,'Benzin - diesel - hybrid'!Q$17,0)+IF($B50<='Benzin - diesel - hybrid'!Q$28,'Benzin - diesel - hybrid'!Q$39,0)+IF($B50<='Benzin - diesel - hybrid'!Q$28,'Benzin - diesel - hybrid'!Q$40,0))*(1+'Benzin - diesel - hybrid'!Q$29/100)^-$B50 -> 0 | S50: =(IF($B50<='Benzin - diesel - hybrid'!S$28,'Benzin - diesel - hybrid'!S$16,0)+IF($B50<='Benzin - diesel - hybrid'!S$28,'Benzin - diesel - hybrid'!S$17,0)+IF($B50<='Benzin - diesel - hybrid'!S$28,'Benzin - diesel - hybrid'!S$39,0)+IF($B50<='Benzin - diesel - hybrid'!S$28,'Benzin - diesel - hybrid'!S$40,0))*(1+'Benzin - diesel - hybrid'!S$29/100)^-$B50 -> 0
B51: 10 | C51: 10 | E51: =(IF($B51<='Benzin - diesel - hybrid'!E$28,'Benzin - diesel - hybrid'!E$16,0)+IF($B51<='Benzin - diesel - hybrid'!E$28,'Benzin - diesel - hybrid'!E$17,0)+IF($B51<='Benzin - diesel - hybrid'!E$28,'Benzin - diesel - hybrid'!E$39,0)+IF($B51<='Benzin - diesel - hybrid'!E$28,'Benzin - diesel - hybrid'!E$40,0))*(1+'Benzin - diesel - hybrid'!E$29/100)^-$B51 -> 0 | G51: =(IF($B51<='Benzin - diesel - hybrid'!G$28,'Benzin - diesel - hybrid'!G$16,0)+IF($B51<='Benzin - diesel - hybrid'!G$28,'Benzin - diesel - hybrid'!G$17,0)+IF($B51<='Benzin - diesel - hybrid'!G$28,'Benzin - diesel - hybrid'!G$39,0)+IF($B51<='Benzin - diesel - hybrid'!G$28,'Benzin - diesel - hybrid'!G$40,0))*(1+'Benzin - diesel - hybrid'!G$29/100)^-$B51 -> 0 | I51: =(IF($B51<='Benzin - diesel - hybrid'!I$28,'Benzin - diesel - hybrid'!I$16,0)+IF($B51<='Benzin - diesel - hybrid'!I$28,'Benzin - diesel - hybrid'!I$17,0)+IF($B51<='Benzin - diesel - hybrid'!I$28,'Benzin - diesel - hybrid'!I$39,0)+IF($B51<='Benzin - diesel - hybrid'!I$28,'Benzin - diesel - hybrid'!I$40,0))*(1+'Benzin - diesel - hybrid'!I$29/100)^-$B51 -> 0 | K51: =(IF($B51<='Benzin - diesel - hybrid'!K$28,'Benzin - diesel - hybrid'!K$16,0)+IF($B51<='Benzin - diesel - hybrid'!K$28,'Benzin - diesel - hybrid'!K$17,0)+IF($B51<='Benzin - diesel - hybrid'!K$28,'Benzin - diesel - hybrid'!K$39,0)+IF($B51<='Benzin - diesel - hybrid'!K$28,'Benzin - diesel - hybrid'!K$40,0))*(1+'Benzin - diesel - hybrid'!K$29/100)^-$B51 -> 0 | M51: =(IF($B51<='Benzin - diesel - hybrid'!M$28,'Benzin - diesel - hybrid'!M$16,0)+IF($B51<='Benzin - diesel - hybrid'!M$28,'Benzin - diesel - hybrid'!M$17,0)+IF($B51<='Benzin - diesel - hybrid'!M$28,'Benzin - diesel - hybrid'!M$39,0)+IF($B51<='Benzin - diesel - hybrid'!M$28,'Benzin - diesel - hybrid'!M$40,0))*(1+'Benzin - diesel - hybrid'!M$29/100)^-$B51 -> 0 | O51: =(IF($B51<='Benzin - diesel - hybrid'!O$28,'Benzin - diesel - hybrid'!O$16,0)+IF($B51<='Benzin - diesel - hybrid'!O$28,'Benzin - diesel - hybrid'!O$17,0)+IF($B51<='Benzin - diesel - hybrid'!O$28,'Benzin - diesel - hybrid'!O$39,0)+IF($B51<='Benzin - diesel - hybrid'!O$28,'Benzin - diesel - hybrid'!O$40,0))*(1+'Benzin - diesel - hybrid'!O$29/100)^-$B51 -> 0 | Q51: =(IF($B51<='Benzin - diesel - hybrid'!Q$28,'Benzin - diesel - hybrid'!Q$16,0)+IF($B51<='Benzin - diesel - hybrid'!Q$28,'Benzin - diesel - hybrid'!Q$17,0)+IF($B51<='Benzin - diesel - hybrid'!Q$28,'Benzin - diesel - hybrid'!Q$39,0)+IF($B51<='Benzin - diesel - hybrid'!Q$28,'Benzin - diesel - hybrid'!Q$40,0))*(1+'Benzin - diesel - hybrid'!Q$29/100)^-$B51 -> 0 | S51: =(IF($B51<='Benzin - diesel - hybrid'!S$28,'Benzin - diesel - hybrid'!S$16,0)+IF($B51<='Benzin - diesel - hybrid'!S$28,'Benzin - diesel - hybrid'!S$17,0)+IF($B51<='Benzin - diesel - hybrid'!S$28,'Benzin - diesel - hybrid'!S$39,0)+IF($B51<='Benzin - diesel - hybrid'!S$28,'Benzin - diesel - hybrid'!S$40,0))*(1+'Benzin - diesel - hybrid'!S$29/100)^-$B51 -> 0
B52: 11 | C52: 11 | E52: =(IF($B52<='Benzin - diesel - hybrid'!E$28,'Benzin - diesel - hybrid'!E$16,0)+IF($B52<='Benzin - diesel - hybrid'!E$28,'Benzin - diesel - hybrid'!E$17,0)+IF($B52<='Benzin - diesel - hybrid'!E$28,'Benzin - diesel - hybrid'!E$39,0)+IF($B52<='Benzin - diesel - hybrid'!E$28,'Benzin - diesel - hybrid'!E$40,0))*(1+'Benzin - diesel - hybrid'!E$29/100)^-$B52 -> 0 | G52: =(IF($B52<='Benzin - diesel - hybrid'!G$28,'Benzin - diesel - hybrid'!G$16,0)+IF($B52<='Benzin - diesel - hybrid'!G$28,'Benzin - diesel - hybrid'!G$17,0)+IF($B52<='Benzin - diesel - hybrid'!G$28,'Benzin - diesel - hybrid'!G$39,0)+IF($B52<='Benzin - diesel - hybrid'!G$28,'Benzin - diesel - hybrid'!G$40,0))*(1+'Benzin - diesel - hybrid'!G$29/100)^-$B52 -> 0 | I52: =(IF($B52<='Benzin - diesel - hybrid'!I$28,'Benzin - diesel - hybrid'!I$16,0)+IF($B52<='Benzin - diesel - hybrid'!I$28,'Benzin - diesel - hybrid'!I$17,0)+IF($B52<='Benzin - diesel - hybrid'!I$28,'Benzin - diesel - hybrid'!I$39,0)+IF($B52<='Benzin - diesel - hybrid'!I$28,'Benzin - diesel - hybrid'!I$40,0))*(1+'Benzin - diesel - hybrid'!I$29/100)^-$B52 -> 0 | K52: =(IF($B52<='Benzin - diesel - hybrid'!K$28,'Benzin - diesel - hybrid'!K$16,0)+IF($B52<='Benzin - diesel - hybrid'!K$28,'Benzin - diesel - hybrid'!K$17,0)+IF($B52<='Benzin - diesel - hybrid'!K$28,'Benzin - diesel - hybrid'!K$39,0)+IF($B52<='Benzin - diesel - hybrid'!K$28,'Benzin - diesel - hybrid'!K$40,0))*(1+'Benzin - diesel - hybrid'!K$29/100)^-$B52 -> 0 | M52: =(IF($B52<='Benzin - diesel - hybrid'!M$28,'Benzin - diesel - hybrid'!M$16,0)+IF($B52<='Benzin - diesel - hybrid'!M$28,'Benzin - diesel - hybrid'!M$17,0)+IF($B52<='Benzin - diesel - hybrid'!M$28,'Benzin - diesel - hybrid'!M$39,0)+IF($B52<='Benzin - diesel - hybrid'!M$28,'Benzin - diesel - hybrid'!M$40,0))*(1+'Benzin - diesel - hybrid'!M$29/100)^-$B52 -> 0 | O52: =(IF($B52<='Benzin - diesel - hybrid'!O$28,'Benzin - diesel - hybrid'!O$16,0)+IF($B52<='Benzin - diesel - hybrid'!O$28,'Benzin - diesel - hybrid'!O$17,0)+IF($B52<='Benzin - diesel - hybrid'!O$28,'Benzin - diesel - hybrid'!O$39,0)+IF($B52<='Benzin - diesel - hybrid'!O$28,'Benzin - diesel - hybrid'!O$40,0))*(1+'Benzin - diesel - hybrid'!O$29/100)^-$B52 -> 0 | Q52: =(IF($B52<='Benzin - diesel - hybrid'!Q$28,'Benzin - diesel - hybrid'!Q$16,0)+IF($B52<='Benzin - diesel - hybrid'!Q$28,'Benzin - diesel - hybrid'!Q$17,0)+IF($B52<='Benzin - diesel - hybrid'!Q$28,'Benzin - diesel - hybrid'!Q$39,0)+IF($B52<='Benzin - diesel - hybrid'!Q$28,'Benzin - diesel - hybrid'!Q$40,0))*(1+'Benzin - diesel - hybrid'!Q$29/100)^-$B52 -> 0 | S52: =(IF($B52<='Benzin - diesel - hybrid'!S$28,'Benzin - diesel - hybrid'!S$16,0)+IF($B52<='Benzin - diesel - hybrid'!S$28,'Benzin - diesel - hybrid'!S$17,0)+IF($B52<='Benzin - diesel - hybrid'!S$28,'Benzin - diesel - hybrid'!S$39,0)+IF($B52<='Benzin - diesel - hybrid'!S$28,'Benzin - diesel - hybrid'!S$40,0))*(1+'Benzin - diesel - hybrid'!S$29/100)^-$B52 -> 0
B53: 12 | C53: 12 | E53: =(IF($B53<='Benzin - diesel - hybrid'!E$28,'Benzin - diesel - hybrid'!E$16,0)+IF($B53<='Benzin - diesel - hybrid'!E$28,'Benzin - diesel - hybrid'!E$17,0)+IF($B53<='Benzin - diesel - hybrid'!E$28,'Benzin - diesel - hybrid'!E$39,0)+IF($B53<='Benzin - diesel - hybrid'!E$28,'Benzin - diesel - hybrid'!E$40,0))*(1+'Benzin - diesel - hybrid'!E$29/100)^-$B53 -> 0 | G53: =(IF($B53<='Benzin - diesel - hybrid'!G$28,'Benzin - diesel - hybrid'!G$16,0)+IF($B53<='Benzin - diesel - hybrid'!G$28,'Benzin - diesel - hybrid'!G$17,0)+IF($B53<='Benzin - diesel - hybrid'!G$28,'Benzin - diesel - hybrid'!G$39,0)+IF($B53<='Benzin - diesel - hybrid'!G$28,'Benzin - diesel - hybrid'!G$40,0))*(1+'Benzin - diesel - hybrid'!G$29/100)^-$B53 -> 0 | I53: =(IF($B53<='Benzin - diesel - hybrid'!I$28,'Benzin - diesel - hybrid'!I$16,0)+IF($B53<='Benzin - diesel - hybrid'!I$28,'Benzin - diesel - hybrid'!I$17,0)+IF($B53<='Benzin - diesel - hybrid'!I$28,'Benzin - diesel - hybrid'!I$39,0)+IF($B53<='Benzin - diesel - hybrid'!I$28,'Benzin - diesel - hybrid'!I$40,0))*(1+'Benzin - diesel - hybrid'!I$29/100)^-$B53 -> 0 | K53: =(IF($B53<='Benzin - diesel - hybrid'!K$28,'Benzin - diesel - hybrid'!K$16,0)+IF($B53<='Benzin - diesel - hybrid'!K$28,'Benzin - diesel - hybrid'!K$17,0)+IF($B53<='Benzin - diesel - hybrid'!K$28,'Benzin - diesel - hybrid'!K$39,0)+IF($B53<='Benzin - diesel - hybrid'!K$28,'Benzin - diesel - hybrid'!K$40,0))*(1+'Benzin - diesel - hybrid'!K$29/100)^-$B53 -> 0 | M53: =(IF($B53<='Benzin - diesel - hybrid'!M$28,'Benzin - diesel - hybrid'!M$16,0)+IF($B53<='Benzin - diesel - hybrid'!M$28,'Benzin - diesel - hybrid'!M$17,0)+IF($B53<='Benzin - diesel - hybrid'!M$28,'Benzin - diesel - hybrid'!M$39,0)+IF($B53<='Benzin - diesel - hybrid'!M$28,'Benzin - diesel - hybrid'!M$40,0))*(1+'Benzin - diesel - hybrid'!M$29/100)^-$B53 -> 0 | O53: =(IF($B53<='Benzin - diesel - hybrid'!O$28,'Benzin - diesel - hybrid'!O$16,0)+IF($B53<='Benzin - diesel - hybrid'!O$28,'Benzin - diesel - hybrid'!O$17,0)+IF($B53<='Benzin - diesel - hybrid'!O$28,'Benzin - diesel - hybrid'!O$39,0)+IF($B53<='Benzin - diesel - hybrid'!O$28,'Benzin - diesel - hybrid'!O$40,0))*(1+'Benzin - diesel - hybrid'!O$29/100)^-$B53 -> 0 | Q53: =(IF($B53<='Benzin - diesel - hybrid'!Q$28,'Benzin - diesel - hybrid'!Q$16,0)+IF($B53<='Benzin - diesel - hybrid'!Q$28,'Benzin - diesel - hybrid'!Q$17,0)+IF($B53<='Benzin - diesel - hybrid'!Q$28,'Benzin - diesel - hybrid'!Q$39,0)+IF($B53<='Benzin - diesel - hybrid'!Q$28,'Benzin - diesel - hybrid'!Q$40,0))*(1+'Benzin - diesel - hybrid'!Q$29/100)^-$B53 -> 0 | S53: =(IF($B53<='Benzin - diesel - hybrid'!S$28,'Benzin - diesel - hybrid'!S$16,0)+IF($B53<='Benzin - diesel - hybrid'!S$28,'Benzin - diesel - hybrid'!S$17,0)+IF($B53<='Benzin - diesel - hybrid'!S$28,'Benzin - diesel - hybrid'!S$39,0)+IF($B53<='Benzin - diesel - hybrid'!S$28,'Benzin - diesel - hybrid'!S$40,0))*(1+'Benzin - diesel - hybrid'!S$29/100)^-$B53 -> 0
B54: 13 | C54: 13 | E54: =(IF($B54<='Benzin - diesel - hybrid'!E$28,'Benzin - diesel - hybrid'!E$16,0)+IF($B54<='Benzin - diesel - hybrid'!E$28,'Benzin - diesel - hybrid'!E$17,0)+IF($B54<='Benzin - diesel - hybrid'!E$28,'Benzin - diesel - hybrid'!E$39,0)+IF($B54<='Benzin - diesel - hybrid'!E$28,'Benzin - diesel - hybrid'!E$40,0))*(1+'Benzin - diesel - hybrid'!E$29/100)^-$B54 -> 0 | G54: =(IF($B54<='Benzin - diesel - hybrid'!G$28,'Benzin - diesel - hybrid'!G$16,0)+IF($B54<='Benzin - diesel - hybrid'!G$28,'Benzin - diesel - hybrid'!G$17,0)+IF($B54<='Benzin - diesel - hybrid'!G$28,'Benzin - diesel - hybrid'!G$39,0)+IF($B54<='Benzin - diesel - hybrid'!G$28,'Benzin - diesel - hybrid'!G$40,0))*(1+'Benzin - diesel - hybrid'!G$29/100)^-$B54 -> 0 | I54: =(IF($B54<='Benzin - diesel - hybrid'!I$28,'Benzin - diesel - hybrid'!I$16,0)+IF($B54<='Benzin - diesel - hybrid'!I$28,'Benzin - diesel - hybrid'!I$17,0)+IF($B54<='Benzin - diesel - hybrid'!I$28,'Benzin - diesel - hybrid'!I$39,0)+IF($B54<='Benzin - diesel - hybrid'!I$28,'Benzin - diesel - hybrid'!I$40,0))*(1+'Benzin - diesel - hybrid'!I$29/100)^-$B54 -> 0 | K54: =(IF($B54<='Benzin - diesel - hybrid'!K$28,'Benzin - diesel - hybrid'!K$16,0)+IF($B54<='Benzin - diesel - hybrid'!K$28,'Benzin - diesel - hybrid'!K$17,0)+IF($B54<='Benzin - diesel - hybrid'!K$28,'Benzin - diesel - hybrid'!K$39,0)+IF($B54<='Benzin - diesel - hybrid'!K$28,'Benzin - diesel - hybrid'!K$40,0))*(1+'Benzin - diesel - hybrid'!K$29/100)^-$B54 -> 0 | M54: =(IF($B54<='Benzin - diesel - hybrid'!M$28,'Benzin - diesel - hybrid'!M$16,0)+IF($B54<='Benzin - diesel - hybrid'!M$28,'Benzin - diesel - hybrid'!M$17,0)+IF($B54<='Benzin - diesel - hybrid'!M$28,'Benzin - diesel - hybrid'!M$39,0)+IF($B54<='Benzin - diesel - hybrid'!M$28,'Benzin - diesel - hybrid'!M$40,0))*(1+'Benzin - diesel - hybrid'!M$29/100)^-$B54 -> 0 | O54: =(IF($B54<='Benzin - diesel - hybrid'!O$28,'Benzin - diesel - hybrid'!O$16,0)+IF($B54<='Benzin - diesel - hybrid'!O$28,'Benzin - diesel - hybrid'!O$17,0)+IF($B54<='Benzin - diesel - hybrid'!O$28,'Benzin - diesel - hybrid'!O$39,0)+IF($B54<='Benzin - diesel - hybrid'!O$28,'Benzin - diesel - hybrid'!O$40,0))*(1+'Benzin - diesel - hybrid'!O$29/100)^-$B54 -> 0 | Q54: =(IF($B54<='Benzin - diesel - hybrid'!Q$28,'Benzin - diesel - hybrid'!Q$16,0)+IF($B54<='Benzin - diesel - hybrid'!Q$28,'Benzin - diesel - hybrid'!Q$17,0)+IF($B54<='Benzin - diesel - hybrid'!Q$28,'Benzin - diesel - hybrid'!Q$39,0)+IF($B54<='Benzin - diesel - hybrid'!Q$28,'Benzin - diesel - hybrid'!Q$40,0))*(1+'Benzin - diesel - hybrid'!Q$29/100)^-$B54 -> 0 | S54: =(IF($B54<='Benzin - diesel - hybrid'!S$28,'Benzin - diesel - hybrid'!S$16,0)+IF($B54<='Benzin - diesel - hybrid'!S$28,'Benzin - diesel - hybrid'!S$17,0)+IF($B54<='Benzin - diesel - hybrid'!S$28,'Benzin - diesel - hybrid'!S$39,0)+IF($B54<='Benzin - diesel - hybrid'!S$28,'Benzin - diesel - hybrid'!S$40,0))*(1+'Benzin - diesel - hybrid'!S$29/100)^-$B54 -> 0
B55: 14 | C55: 14 | E55: =(IF($B55<='Benzin - diesel - hybrid'!E$28,'Benzin - diesel - hybrid'!E$16,0)+IF($B55<='Benzin - diesel - hybrid'!E$28,'Benzin - diesel - hybrid'!E$17,0)+IF($B55<='Benzin - diesel - hybrid'!E$28,'Benzin - diesel - hybrid'!E$39,0)+IF($B55<='Benzin - diesel - hybrid'!E$28,'Benzin - diesel - hybrid'!E$40,0))*(1+'Benzin - diesel - hybrid'!E$29/100)^-$B55 -> 0 | G55: =(IF($B55<='Benzin - diesel - hybrid'!G$28,'Benzin - diesel - hybrid'!G$16,0)+IF($B55<='Benzin - diesel - hybrid'!G$28,'Benzin - diesel - hybrid'!G$17,0)+IF($B55<='Benzin - diesel - hybrid'!G$28,'Benzin - diesel - hybrid'!G$39,0)+IF($B55<='Benzin - diesel - hybrid'!G$28,'Benzin - diesel - hybrid'!G$40,0))*(1+'Benzin - diesel - hybrid'!G$29/100)^-$B55 -> 0 | I55: =(IF($B55<='Benzin - diesel - hybrid'!I$28,'Benzin - diesel - hybrid'!I$16,0)+IF($B55<='Benzin - diesel - hybrid'!I$28,'Benzin - diesel - hybrid'!I$17,0)+IF($B55<='Benzin - diesel - hybrid'!I$28,'Benzin - diesel - hybrid'!I$39,0)+IF($B55<='Benzin - diesel - hybrid'!I$28,'Benzin - diesel - hybrid'!I$40,0))*(1+'Benzin - diesel - hybrid'!I$29/100)^-$B55 -> 0 | K55: =(IF($B55<='Benzin - diesel - hybrid'!K$28,'Benzin - diesel - hybrid'!K$16,0)+IF($B55<='Benzin - diesel - hybrid'!K$28,'Benzin - diesel - hybrid'!K$17,0)+IF($B55<='Benzin - diesel - hybrid'!K$28,'Benzin - diesel - hybrid'!K$39,0)+IF($B55<='Benzin - diesel - hybrid'!K$28,'Benzin - diesel - hybrid'!K$40,0))*(1+'Benzin - diesel - hybrid'!K$29/100)^-$B55 -> 0 | M55: =(IF($B55<='Benzin - diesel - hybrid'!M$28,'Benzin - diesel - hybrid'!M$16,0)+IF($B55<='Benzin - diesel - hybrid'!M$28,'Benzin - diesel - hybrid'!M$17,0)+IF($B55<='Benzin - diesel - hybrid'!M$28,'Benzin - diesel - hybrid'!M$39,0)+IF($B55<='Benzin - diesel - hybrid'!M$28,'Benzin - diesel - hybrid'!M$40,0))*(1+'Benzin - diesel - hybrid'!M$29/100)^-$B55 -> 0 | O55: =(IF($B55<='Benzin - diesel - hybrid'!O$28,'Benzin - diesel - hybrid'!O$16,0)+IF($B55<='Benzin - diesel - hybrid'!O$28,'Benzin - diesel - hybrid'!O$17,0)+IF($B55<='Benzin - diesel - hybrid'!O$28,'Benzin - diesel - hybrid'!O$39,0)+IF($B55<='Benzin - diesel - hybrid'!O$28,'Benzin - diesel - hybrid'!O$40,0))*(1+'Benzin - diesel - hybrid'!O$29/100)^-$B55 -> 0 | Q55: =(IF($B55<='Benzin - diesel - hybrid'!Q$28,'Benzin - diesel - hybrid'!Q$16,0)+IF($B55<='Benzin - diesel - hybrid'!Q$28,'Benzin - diesel - hybrid'!Q$17,0)+IF($B55<='Benzin - diesel - hybrid'!Q$28,'Benzin - diesel - hybrid'!Q$39,0)+IF($B55<='Benzin - diesel - hybrid'!Q$28,'Benzin - diesel - hybrid'!Q$40,0))*(1+'Benzin - diesel - hybrid'!Q$29/100)^-$B55 -> 0 | S55: =(IF($B55<='Benzin - diesel - hybrid'!S$28,'Benzin - diesel - hybrid'!S$16,0)+IF($B55<='Benzin - diesel - hybrid'!S$28,'Benzin - diesel - hybrid'!S$17,0)+IF($B55<='Benzin - diesel - hybrid'!S$28,'Benzin - diesel - hybrid'!S$39,0)+IF($B55<='Benzin - diesel - hybrid'!S$28,'Benzin - diesel - hybrid'!S$40,0))*(1+'Benzin - diesel - hybrid'!S$29/100)^-$B55 -> 0
B56: 15 | C56: 15 | E56: =(IF($B56<='Benzin - diesel - hybrid'!E$28,'Benzin - diesel - hybrid'!E$16,0)+IF($B56<='Benzin - diesel - hybrid'!E$28,'Benzin - diesel - hybrid'!E$17,0)+IF($B56<='Benzin - diesel - hybrid'!E$28,'Benzin - diesel - hybrid'!E$39,0)+IF($B56<='Benzin - diesel - hybrid'!E$28,'Benzin - diesel - hybrid'!E$40,0))*(1+'Benzin - diesel - hybrid'!E$29/100)^-$B56 -> 0 | G56: =(IF($B56<='Benzin - diesel - hybrid'!G$28,'Benzin - diesel - hybrid'!G$16,0)+IF($B56<='Benzin - diesel - hybrid'!G$28,'Benzin - diesel - hybrid'!G$17,0)+IF($B56<='Benzin - diesel - hybrid'!G$28,'Benzin - diesel - hybrid'!G$39,0)+IF($B56<='Benzin - diesel - hybrid'!G$28,'Benzin - diesel - hybrid'!G$40,0))*(1+'Benzin - diesel - hybrid'!G$29/100)^-$B56 -> 0 | I56: =(IF($B56<='Benzin - diesel - hybrid'!I$28,'Benzin - diesel - hybrid'!I$16,0)+IF($B56<='Benzin - diesel - hybrid'!I$28,'Benzin - diesel - hybrid'!I$17,0)+IF($B56<='Benzin - diesel - hybrid'!I$28,'Benzin - diesel - hybrid'!I$39,0)+IF($B56<='Benzin - diesel - hybrid'!I$28,'Benzin - diesel - hybrid'!I$40,0))*(1+'Benzin - diesel - hybrid'!I$29/100)^-$B56 -> 0 | K56: =(IF($B56<='Benzin - diesel - hybrid'!K$28,'Benzin - diesel - hybrid'!K$16,0)+IF($B56<='Benzin - diesel - hybrid'!K$28,'Benzin - diesel - hybrid'!K$17,0)+IF($B56<='Benzin - diesel - hybrid'!K$28,'Benzin - diesel - hybrid'!K$39,0)+IF($B56<='Benzin - diesel - hybrid'!K$28,'Benzin - diesel - hybrid'!K$40,0))*(1+'Benzin - diesel - hybrid'!K$29/100)^-$B56 -> 0 | M56: =(IF($B56<='Benzin - diesel - hybrid'!M$28,'Benzin - diesel - hybrid'!M$16,0)+IF($B56<='Benzin - diesel - hybrid'!M$28,'Benzin - diesel - hybrid'!M$17,0)+IF($B56<='Benzin - diesel - hybrid'!M$28,'Benzin - diesel - hybrid'!M$39,0)+IF($B56<='Benzin - diesel - hybrid'!M$28,'Benzin - diesel - hybrid'!M$40,0))*(1+'Benzin - diesel - hybrid'!M$29/100)^-$B56 -> 0 | O56: =(IF($B56<='Benzin - diesel - hybrid'!O$28,'Benzin - diesel - hybrid'!O$16,0)+IF($B56<='Benzin - diesel - hybrid'!O$28,'Benzin - diesel - hybrid'!O$17,0)+IF($B56<='Benzin - diesel - hybrid'!O$28,'Benzin - diesel - hybrid'!O$39,0)+IF($B56<='Benzin - diesel - hybrid'!O$28,'Benzin - diesel - hybrid'!O$40,0))*(1+'Benzin - diesel - hybrid'!O$29/100)^-$B56 -> 0 | Q56: =(IF($B56<='Benzin - diesel - hybrid'!Q$28,'Benzin - diesel - hybrid'!Q$16,0)+IF($B56<='Benzin - diesel - hybrid'!Q$28,'Benzin - diesel - hybrid'!Q$17,0)+IF($B56<='Benzin - diesel - hybrid'!Q$28,'Benzin - diesel - hybrid'!Q$39,0)+IF($B56<='Benzin - diesel - hybrid'!Q$28,'Benzin - diesel - hybrid'!Q$40,0))*(1+'Benzin - diesel - hybrid'!Q$29/100)^-$B56 -> 0 | S56: =(IF($B56<='Benzin - diesel - hybrid'!S$28,'Benzin - diesel - hybrid'!S$16,0)+IF($B56<='Benzin - diesel - hybrid'!S$28,'Benzin - diesel - hybrid'!S$17,0)+IF($B56<='Benzin - diesel - hybrid'!S$28,'Benzin - diesel - hybrid'!S$39,0)+IF($B56<='Benzin - diesel - hybrid'!S$28,'Benzin - diesel - hybrid'!S$40,0))*(1+'Benzin - diesel - hybrid'!S$29/100)^-$B56 -> 0
A58: Efterbrugsomkostninger | C58: BEREGNES IKKE FOR OPERATIONEL LEASING!
B59: År indeks | E59: ='Benzin - diesel - hybrid'!E8 -> PRODUKT 1 | G59: ='Benzin - diesel - hybrid'!G8 -> PRODUKT 2 | I59: ='Benzin - diesel - hybrid'!I8 -> PRODUKT 3 | K59: ='Benzin - diesel - hybrid'!K8 -> PRODUKT 4 | M59: ='Benzin - diesel - hybrid'!M8 -> PRODUKT 5 | O59: ='Benzin - diesel - hybrid'!O8 -> PRODUKT 6 | Q59: ='Benzin - diesel - hybrid'!Q8 -> PRODUKT 7 | S59: ='Benzin - diesel - hybrid'!S8 -> PRODUKT 8
B60: 1 | C60: =B60 -> 1
B61: 2 | C61: =B61 -> 2
B62: 3 | C62: 3
B63: 4 | C63: 4
B64: 5 | C64: 5
B65: 6 | C65: 6
B66: 7 | C66: 7
B67: 8 | C67: 8
B68: 9 | C68: 9
B69: 10 | C69: 10
B70: 11 | C70: 11
B71: 12 | C71: 12
B72: 13 | C72: 13
B73: 14 | C73: 14
B74: 15 | C74: 15
A76: Gennemsnitlige årlige omkostninger
B77: År indeks | E77: ='Benzin - diesel - hybrid'!E8 -> PRODUKT 1 | G77: ='Benzin - diesel - hybrid'!G8 -> PRODUKT 2 | I77: ='Benzin - diesel - hybrid'!I8 -> PRODUKT 3 | K77: ='Benzin - diesel - hybrid'!K8 -> PRODUKT 4 | M77: ='Benzin - diesel - hybrid'!M8 -> PRODUKT 5 | O77: ='Benzin - diesel - hybrid'!O8 -> PRODUKT 6 | Q77: ='Benzin - diesel - hybrid'!Q8 -> PRODUKT 7 | S77: ='Benzin - diesel - hybrid'!S8 -> PRODUKT 8
B78: 1 | C78: =B78 -> 1 | E78: ='Benzin - diesel - hybrid'!E$50 ->  | G78: ='Benzin - diesel - hybrid'!G$50 ->  | I78: ='Benzin - diesel - hybrid'!I$50 ->  | K78: =IF($B78<='Benzin - diesel - hybrid'!K$28,'Benzin - diesel - hybrid'!K$50,0) ->  | M78: =IF($B78<='Benzin - diesel - hybrid'!M$28,'Benzin - diesel - hybrid'!M$50,0) ->  | O78: =IF($B78<='Benzin - diesel - hybrid'!O$28,'Benzin - diesel - hybrid'!O$50,0) ->  | Q78: =IF($B78<='Benzin - diesel - hybrid'!Q$28,'Benzin - diesel - hybrid'!Q$50,0) ->  | S78: =IF($B78<='Benzin - diesel - hybrid'!S$28,'Benzin - diesel - hybrid'!S$50,0) -> 
B79: 2 | C79: =B79 -> 2 | E79: =PMT('Benzin - diesel - hybrid'!E$29/100,$B79,-E7) ->  | G79: =PMT('Benzin - diesel - hybrid'!G$29/100,$B79,-G7) ->  | I79: =PMT('Benzin - diesel - hybrid'!I$29/100,$B79,-I7) ->  | K79: =IF($B79<='Benzin - diesel - hybrid'!K$28,PMT('Benzin - diesel - hybrid'!K$29/100,$B79,-K7),K78) ->  | M79: =IF($B79<='Benzin - diesel - hybrid'!M$28,PMT('Benzin - diesel - hybrid'!M$29/100,$B79,-M7),M78) ->  | O79: =IF($B79<='Benzin - diesel - hybrid'!O$28,PMT('Benzin - diesel - hybrid'!O$29/100,$B79,-O7),O78) ->  | Q79: =IF($B79<='Benzin - diesel - hybrid'!Q$28,PMT('Benzin - diesel - hybrid'!Q$29/100,$B79,-Q7),Q78) ->  | S79: =IF($B79<='Benzin - diesel - hybrid'!S$28,PMT('Benzin - diesel - hybrid'!S$29/100,$B79,-S7),S78) -> 
B80: 3 | C80: 3 | E80: =PMT('Benzin - diesel - hybrid'!E$29/100,$B80,-E8) ->  | G80: =PMT('Benzin - diesel - hybrid'!G$29/100,$B80,-G8) ->  | I80: =PMT('Benzin - diesel - hybrid'!I$29/100,$B80,-I8) ->  | K80: =IF($B80<='Benzin - diesel - hybrid'!K$28,PMT('Benzin - diesel - hybrid'!K$29/100,$B80,-K8),K79) ->  | M80: =IF($B80<='Benzin - diesel - hybrid'!M$28,PMT('Benzin - diesel - hybrid'!M$29/100,$B80,-M8),M79) ->  | O80: =IF($B80<='Benzin - diesel - hybrid'!O$28,PMT('Benzin - diesel - hybrid'!O$29/100,$B80,-O8),O79) ->  | Q80: =IF($B80<='Benzin - diesel - hybrid'!Q$28,PMT('Benzin - diesel - hybrid'!Q$29/100,$B80,-Q8),Q79) ->  | S80: =IF($B80<='Benzin - diesel - hybrid'!S$28,PMT('Benzin - diesel - hybrid'!S$29/100,$B80,-S8),S79) -> 
B81: 4 | C81: 4 | E81: =PMT('Benzin - diesel - hybrid'!E$29/100,$B81,-E9) ->  | G81: =PMT('Benzin - diesel - hybrid'!G$29/100,$B81,-G9) ->  | I81: =PMT('Benzin - diesel - hybrid'!I$29/100,$B81,-I9) ->  | K81: =IF($B81<='Benzin - diesel - hybrid'!K$28,PMT('Benzin - diesel - hybrid'!K$29/100,$B81,-K9),K80) ->  | M81: =IF($B81<='Benzin - diesel - hybrid'!M$28,PMT('Benzin - diesel - hybrid'!M$29/100,$B81,-M9),M80) ->  | O81: =IF($B81<='Benzin - diesel - hybrid'!O$28,PMT('Benzin - diesel - hybrid'!O$29/100,$B81,-O9),O80) ->  | Q81: =IF($B81<='Benzin - diesel - hybrid'!Q$28,PMT('Benzin - diesel - hybrid'!Q$29/100,$B81,-Q9),Q80) ->  | S81: =IF($B81<='Benzin - diesel - hybrid'!S$28,PMT('Benzin - diesel - hybrid'!S$29/100,$B81,-S9),S80) -> 
B82: 5 | C82: 5 | E82: =PMT('Benzin - diesel - hybrid'!E$29/100,$B82,-E10) ->  | G82: =PMT('Benzin - diesel - hybrid'!G$29/100,$B82,-G10) ->  | I82: =PMT('Benzin - diesel - hybrid'!I$29/100,$B82,-I10) ->  | K82: =IF($B82<='Benzin - diesel - hybrid'!K$28,PMT('Benzin - diesel - hybrid'!K$29/100,$B82,-K10),K81) ->  | M82: =IF($B82<='Benzin - diesel - hybrid'!M$28,PMT('Benzin - diesel - hybrid'!M$29/100,$B82,-M10),M81) ->  | O82: =IF($B82<='Benzin - diesel - hybrid'!O$28,PMT('Benzin - diesel - hybrid'!O$29/100,$B82,-O10),O81) ->  | Q82: =IF($B82<='Benzin - diesel - hybrid'!Q$28,PMT('Benzin - diesel - hybrid'!Q$29/100,$B82,-Q10),Q81) ->  | S82: =IF($B82<='Benzin - diesel - hybrid'!S$28,PMT('Benzin - diesel - hybrid'!S$29/100,$B82,-S10),S81) -> 
B83: 6 | C83: 6 | E83: =PMT('Benzin - diesel - hybrid'!E$29/100,$B83,-E11) ->  | G83: =PMT('Benzin - diesel - hybrid'!G$29/100,$B83,-G11) ->  | I83: =PMT('Benzin - diesel - hybrid'!I$29/100,$B83,-I11) ->  | K83: =IF($B83<='Benzin - diesel - hybrid'!K$28,PMT('Benzin - diesel - hybrid'!K$29/100,$B83,-K11),K82) ->  | M83: =IF($B83<='Benzin - diesel - hybrid'!M$28,PMT('Benzin - diesel - hybrid'!M$29/100,$B83,-M11),M82) ->  | O83: =IF($B83<='Benzin - diesel - hybrid'!O$28,PMT('Benzin - diesel - hybrid'!O$29/100,$B83,-O11),O82) ->  | Q83: =IF($B83<='Benzin - diesel - hybrid'!Q$28,PMT('Benzin - diesel - hybrid'!Q$29/100,$B83,-Q11),Q82) ->  | S83: =IF($B83<='Benzin - diesel - hybrid'!S$28,PMT('Benzin - diesel - hybrid'!S$29/100,$B83,-S11),S82) -> 
B84: 7 | C84: 7 | E84: =PMT('Benzin - diesel - hybrid'!E$29/100,$B84,-E12) ->  | G84: =PMT('Benzin - diesel - hybrid'!G$29/100,$B84,-G12) ->  | I84: =PMT('Benzin - diesel - hybrid'!I$29/100,$B84,-I12) ->  | K84: =IF($B84<='Benzin - diesel - hybrid'!K$28,PMT('Benzin - diesel - hybrid'!K$29/100,$B84,-K12),K83) ->  | M84: =IF($B84<='Benzin - diesel - hybrid'!M$28,PMT('Benzin - diesel - hybrid'!M$29/100,$B84,-M12),M83) ->  | O84: =IF($B84<='Benzin - diesel - hybrid'!O$28,PMT('Benzin - diesel - hybrid'!O$29/100,$B84,-O12),O83) ->  | Q84: =IF($B84<='Benzin - diesel - hybrid'!Q$28,PMT('Benzin - diesel - hybrid'!Q$29/100,$B84,-Q12),Q83) ->  | S84: =IF($B84<='Benzin - diesel - hybrid'!S$28,PMT('Benzin - diesel - hybrid'!S$29/100,$B84,-S12),S83) -> 
B85: 8 | C85: 8 | E85: =PMT('Benzin - diesel - hybrid'!E$29/100,$B85,-E13) ->  | G85: =PMT('Benzin - diesel - hybrid'!G$29/100,$B85,-G13) ->  | I85: =PMT('Benzin - diesel - hybrid'!I$29/100,$B85,-I13) ->  | K85: =IF($B85<='Benzin - diesel - hybrid'!K$28,PMT('Benzin - diesel - hybrid'!K$29/100,$B85,-K13),K84) ->  | M85: =IF($B85<='Benzin - diesel - hybrid'!M$28,PMT('Benzin - diesel - hybrid'!M$29/100,$B85,-M13),M84) ->  | O85: =IF($B85<='Benzin - diesel - hybrid'!O$28,PMT('Benzin - diesel - hybrid'!O$29/100,$B85,-O13),O84) ->  | Q85: =IF($B85<='Benzin - diesel - hybrid'!Q$28,PMT('Benzin - diesel - hybrid'!Q$29/100,$B85,-Q13),Q84) ->  | S85: =IF($B85<='Benzin - diesel - hybrid'!S$28,PMT('Benzin - diesel - hybrid'!S$29/100,$B85,-S13),S84) -> 
B86: 9 | C86: 9 | E86: =PMT('Benzin - diesel - hybrid'!E$29/100,$B86,-E14) ->  | G86: =PMT('Benzin - diesel - hybrid'!G$29/100,$B86,-G14) ->  | I86: =PMT('Benzin - diesel - hybrid'!I$29/100,$B86,-I14) ->  | K86: =IF($B86<='Benzin - diesel - hybrid'!K$28,PMT('Benzin - diesel - hybrid'!K$29/100,$B86,-K14),K85) ->  | M86: =IF($B86<='Benzin - diesel - hybrid'!M$28,PMT('Benzin - diesel - hybrid'!M$29/100,$B86,-M14),M85) ->  | O86: =IF($B86<='Benzin - diesel - hybrid'!O$28,PMT('Benzin - diesel - hybrid'!O$29/100,$B86,-O14),O85) ->  | Q86: =IF($B86<='Benzin - diesel - hybrid'!Q$28,PMT('Benzin - diesel - hybrid'!Q$29/100,$B86,-Q14),Q85) ->  | S86: =IF($B86<='Benzin - diesel - hybrid'!S$28,PMT('Benzin - diesel - hybrid'!S$29/100,$B86,-S14),S85) -> 
B87: 10 | C87: 10 | E87: =PMT('Benzin - diesel - hybrid'!E$29/100,$B87,-E15) ->  | G87: =PMT('Benzin - diesel - hybrid'!G$29/100,$B87,-G15) ->  | I87: =PMT('Benzin - diesel - hybrid'!I$29/100,$B87,-I15) ->  | K87: =IF($B87<='Benzin - diesel - hybrid'!K$28,PMT('Benzin - diesel - hybrid'!K$29/100,$B87,-K15),K86) ->  | M87: =IF($B87<='Benzin - diesel - hybrid'!M$28,PMT('Benzin - diesel - hybrid'!M$29/100,$B87,-M15),M86) ->  | O87: =IF($B87<='Benzin - diesel - hybrid'!O$28,PMT('Benzin - diesel - hybrid'!O$29/100,$B87,-O15),O86) ->  | Q87: =IF($B87<='Benzin - diesel - hybrid'!Q$28,PMT('Benzin - diesel - hybrid'!Q$29/100,$B87,-Q15),Q86) ->  | S87: =IF($B87<='Benzin - diesel - hybrid'!S$28,PMT('Benzin - diesel - hybrid'!S$29/100,$B87,-S15),S86) -> 
B88: 11 | C88: 11 | E88: =PMT('Benzin - diesel - hybrid'!E$29/100,$B88,-E16) ->  | G88: =PMT('Benzin - diesel - hybrid'!G$29/100,$B88,-G16) ->  | I88: =PMT('Benzin - diesel - hybrid'!I$29/100,$B88,-I16) ->  | K88: =IF($B88<='Benzin - diesel - hybrid'!K$28,PMT('Benzin - diesel - hybrid'!K$29/100,$B88,-K16),K87) ->  | M88: =IF($B88<='Benzin - diesel - hybrid'!M$28,PMT('Benzin - diesel - hybrid'!M$29/100,$B88,-M16),M87) ->  | O88: =IF($B88<='Benzin - diesel - hybrid'!O$28,PMT('Benzin - diesel - hybrid'!O$29/100,$B88,-O16),O87) ->  | Q88: =IF($B88<='Benzin - diesel - hybrid'!Q$28,PMT('Benzin - diesel - hybrid'!Q$29/100,$B88,-Q16),Q87) ->  | S88: =IF($B88<='Benzin - diesel - hybrid'!S$28,PMT('Benzin - diesel - hybrid'!S$29/100,$B88,-S16),S87) -> 
B89: 12 | C89: 12 | E89: =PMT('Benzin - diesel - hybrid'!E$29/100,$B89,-E17) ->  | G89: =PMT('Benzin - diesel - hybrid'!G$29/100,$B89,-G17) ->  | I89: =PMT('Benzin - diesel - hybrid'!I$29/100,$B89,-I17) ->  | K89: =IF($B89<='Benzin - diesel - hybrid'!K$28,PMT('Benzin - diesel - hybrid'!K$29/100,$B89,-K17),K88) ->  | M89: =IF($B89<='Benzin - diesel - hybrid'!M$28,PMT('Benzin - diesel - hybrid'!M$29/100,$B89,-M17),M88) ->  | O89: =IF($B89<='Benzin - diesel - hybrid'!O$28,PMT('Benzin - diesel - hybrid'!O$29/100,$B89,-O17),O88) ->  | Q89: =IF($B89<='Benzin - diesel - hybrid'!Q$28,PMT('Benzin - diesel - hybrid'!Q$29/100,$B89,-Q17),Q88) ->  | S89: =IF($B89<='Benzin - diesel - hybrid'!S$28,PMT('Benzin - diesel - hybrid'!S$29/100,$B89,-S17),S88) -> 
B90: 13 | C90: 13 | E90: =PMT('Benzin - diesel - hybrid'!E$29/100,$B90,-E18) ->  | G90: =PMT('Benzin - diesel - hybrid'!G$29/100,$B90,-G18) ->  | I90: =PMT('Benzin - diesel - hybrid'!I$29/100,$B90,-I18) ->  | K90: =IF($B90<='Benzin - diesel - hybrid'!K$28,PMT('Benzin - diesel - hybrid'!K$29/100,$B90,-K18),K89) ->  | M90: =IF($B90<='Benzin - diesel - hybrid'!M$28,PMT('Benzin - diesel - hybrid'!M$29/100,$B90,-M18),M89) ->  | O90: =IF($B90<='Benzin - diesel - hybrid'!O$28,PMT('Benzin - diesel - hybrid'!O$29/100,$B90,-O18),O89) ->  | Q90: =IF($B90<='Benzin - diesel - hybrid'!Q$28,PMT('Benzin - diesel - hybrid'!Q$29/100,$B90,-Q18),Q89) ->  | S90: =IF($B90<='Benzin - diesel - hybrid'!S$28,PMT('Benzin - diesel - hybrid'!S$29/100,$B90,-S18),S89) -> 
B91: 14 | C91: 14 | E91: =PMT('Benzin - diesel - hybrid'!E$29/100,$B91,-E19) ->  | G91: =PMT('Benzin - diesel - hybrid'!G$29/100,$B91,-G19) ->  | I91: =PMT('Benzin - diesel - hybrid'!I$29/100,$B91,-I19) ->  | K91: =IF($B91<='Benzin - diesel - hybrid'!K$28,PMT('Benzin - diesel - hybrid'!K$29/100,$B91,-K19),K90) ->  | M91: =IF($B91<='Benzin - diesel - hybrid'!M$28,PMT('Benzin - diesel - hybrid'!M$29/100,$B91,-M19),M90) ->  | O91: =IF($B91<='Benzin - diesel - hybrid'!O$28,PMT('Benzin - diesel - hybrid'!O$29/100,$B91,-O19),O90) ->  | Q91: =IF($B91<='Benzin - diesel - hybrid'!Q$28,PMT('Benzin - diesel - hybrid'!Q$29/100,$B91,-Q19),Q90) ->  | S91: =IF($B91<='Benzin - diesel - hybrid'!S$28,PMT('Benzin - diesel - hybrid'!S$29/100,$B91,-S19),S90) -> 
B92: 15 | C92: 15 | E92: =PMT('Benzin - diesel - hybrid'!E$29/100,$B92,-E20) ->  | G92: =PMT('Benzin - diesel - hybrid'!G$29/100,$B92,-G20) ->  | I92: =PMT('Benzin - diesel - hybrid'!I$29/100,$B92,-I20) ->  | K92: =IF($B92<='Benzin - diesel - hybrid'!K$28,PMT('Benzin - diesel - hybrid'!K$29/100,$B92,-K20),K91) ->  | M92: =IF($B92<='Benzin - diesel - hybrid'!M$28,PMT('Benzin - diesel - hybrid'!M$29/100,$B92,-M20),M91) ->  | O92: =IF($B92<='Benzin - diesel - hybrid'!O$28,PMT('Benzin - diesel - hybrid'!O$29/100,$B92,-O20),O91) ->  | Q92: =IF($B92<='Benzin - diesel - hybrid'!Q$28,PMT('Benzin - diesel - hybrid'!Q$29/100,$B92,-Q20),Q91) ->  | S92: =IF($B92<='Benzin - diesel - hybrid'!S$28,PMT('Benzin - diesel - hybrid'!S$29/100,$B92,-S20),S91) -> 

Sheet Interne beregninger - E&PH (hidden)
A1: Klik for valg | D1: Type brændstof | G1: Gns. pris - bortskaffelse
A2: Plugin hybrid benzin | D2: El og benzin | I2: ja
A3: Plugin hybrid diesel | D3: El og diesel
A4: El | D4: El | I4: nej
C5: Omkostninger for ladestander er blot lagt til fra forsiden som omkostning med en andel af TCO-perode delt med levetid for ladestander
A6: Til graf: Akkumulerede samlede udgifter | E6: ='El og plugin hybrid'!E8 -> PRODUKT 1 EL | G6: ='El og plugin hybrid'!G8 -> PRODUKT 2 EL | I6: ='El og plugin hybrid'!I8 -> PRODUKT 3 EL | K6: ='El og plugin hybrid'!K8 -> PRODUKT 4 EL | M6: ='El og plugin hybrid'!M8 -> PRODUKT 5 EL | O6: ='El og plugin hybrid'!O8 -> PRODUKT 6 EL | Q6: ='El og plugin hybrid'!Q8 -> PRODUKT 7 EL | S6: ='El og plugin hybrid'!S8 -> PRODUKT 8 EL
B7: 1 | C7: 1 | E7: ='El og plugin hybrid'!E65+(E25+E43+E61+E79)*'El og plugin hybrid'!E28 -> 0 | G7: ='El og plugin hybrid'!G65+(G25+G43+G61+G79)*'El og plugin hybrid'!G28 -> 0 | I7: ='El og plugin hybrid'!I65+(I25+I43+I61+I79)*'El og plugin hybrid'!I28 -> 0 | K7: ='El og plugin hybrid'!K65+(K25+K43+K61+K79)*'El og plugin hybrid'!K28 -> 0 | M7: ='El og plugin hybrid'!M65+(M25+M43+M61+M79)*'El og plugin hybrid'!M28 -> 0 | O7: ='El og plugin hybrid'!O65+(O25+O43+O61+O79)*'El og plugin hybrid'!O28 -> 0 | Q7: ='El og plugin hybrid'!Q65+(Q25+Q43+Q61+Q79)*'El og plugin hybrid'!Q28 -> 0 | S7: ='El og plugin hybrid'!S65+(S25+S43+S61+S79)*'El og plugin hybrid'!S28 -> 0
B8: 2 | C8: 2 | E8: =+E7+(E26+E44+E62+E80)*'El og plugin hybrid'!E28 -> 0 | G8: =+G7+(G26+G44+G62+G80)*'El og plugin hybrid'!G28 -> 0 | I8: =+I7+(I26+I44+I62+I80)*'El og plugin hybrid'!I28 -> 0 | K8: =+K7+(K26+K44+K62+K80)*'El og plugin hybrid'!K28 -> 0 | M8: =+M7+(M26+M44+M62+M80)*'El og plugin hybrid'!M28 -> 0 | O8: =+O7+(O26+O44+O62+O80)*'El og plugin hybrid'!O28 -> 0 | Q8: =+Q7+(Q26+Q44+Q62+Q80)*'El og plugin hybrid'!Q28 -> 0 | S8: =+S7+(S26+S44+S62+S80)*'El og plugin hybrid'!S28 -> 0
B9: 3 | C9: 3 | E9: =+E8+(E27+E45+E63+E81)*'El og plugin hybrid'!E28 -> 0 | G9: =+G8+(G27+G45+G63+G81)*'El og plugin hybrid'!G28 -> 0 | I9: =+I8+(I27+I45+I63+I81)*'El og plugin hybrid'!I28 -> 0 | K9: =+K8+(K27+K45+K63+K81)*'El og plugin hybrid'!K28 -> 0 | M9: =+M8+(M27+M45+M63+M81)*'El og plugin hybrid'!M28 -> 0 | O9: =+O8+(O27+O45+O63+O81)*'El og plugin hybrid'!O28 -> 0 | Q9: =+Q8+(Q27+Q45+Q63+Q81)*'El og plugin hybrid'!Q28 -> 0 | S9: =+S8+(S27+S45+S63+S81)*'El og plugin hybrid'!S28 -> 0
B10: 4 | C10: 4 | E10: =+E9+(E28+E46+E64+E82)*'El og plugin hybrid'!E28 -> 0 | G10: =+G9+(G28+G46+G64+G82)*'El og plugin hybrid'!G28 -> 0 | I10: =+I9+(I28+I46+I64+I82)*'El og plugin hybrid'!I28 -> 0 | K10: =+K9+(K28+K46+K64+K82)*'El og plugin hybrid'!K28 -> 0 | M10: =+M9+(M28+M46+M64+M82)*'El og plugin hybrid'!M28 -> 0 | O10: =+O9+(O28+O46+O64+O82)*'El og plugin hybrid'!O28 -> 0 | Q10: =+Q9+(Q28+Q46+Q64+Q82)*'El og plugin hybrid'!Q28 -> 0 | S10: =+S9+(S28+S46+S64+S82)*'El og plugin hybrid'!S28 -> 0
B11: 5 | C11: 5 | E11: =+E10+(E29+E47+E65+E83)*'El og plugin hybrid'!E28 -> 0 | G11: =+G10+(G29+G47+G65+G83)*'El og plugin hybrid'!G28 -> 0 | I11: =+I10+(I29+I47+I65+I83)*'El og plugin hybrid'!I28 -> 0 | K11: =+K10+(K29+K47+K65+K83)*'El og plugin hybrid'!K28 -> 0 | M11: =+M10+(M29+M47+M65+M83)*'El og plugin hybrid'!M28 -> 0 | O11: =+O10+(O29+O47+O65+O83)*'El og plugin hybrid'!O28 -> 0 | Q11: =+Q10+(Q29+Q47+Q65+Q83)*'El og plugin hybrid'!Q28 -> 0 | S11: =+S10+(S29+S47+S65+S83)*'El og plugin hybrid'!S28 -> 0
B12: 6 | C12: 6 | E12: =+E11+(E30+E48+E66+E84)*'El og plugin hybrid'!E28 -> 0 | G12: =+G11+(G30+G48+G66+G84)*'El og plugin hybrid'!G28 -> 0 | I12: =+I11+(I30+I48+I66+I84)*'El og plugin hybrid'!I28 -> 0 | K12: =+K11+(K30+K48+K66+K84)*'El og plugin hybrid'!K28 -> 0 | M12: =+M11+(M30+M48+M66+M84)*'El og plugin hybrid'!M28 -> 0 | O12: =+O11+(O30+O48+O66+O84)*'El og plugin hybrid'!O28 -> 0 | Q12: =+Q11+(Q30+Q48+Q66+Q84)*'El og plugin hybrid'!Q28 -> 0 | S12: =+S11+(S30+S48+S66+S84)*'El og plugin hybrid'!S28 -> 0
B13: 7 | C13: 7 | E13: =+E12+(E31+E49+E67+E85)*'El og plugin hybrid'!E28 -> 0 | G13: =+G12+(G31+G49+G67+G85)*'El og plugin hybrid'!G28 -> 0 | I13: =+I12+(I31+I49+I67+I85)*'El og plugin hybrid'!I28 -> 0 | K13: =+K12+(K31+K49+K67+K85)*'El og plugin hybrid'!K28 -> 0 | M13: =+M12+(M31+M49+M67+M85)*'El og plugin hybrid'!M28 -> 0 | O13: =+O12+(O31+O49+O67+O85)*'El og plugin hybrid'!O28 -> 0 | Q13: =+Q12+(Q31+Q49+Q67+Q85)*'El og plugin hybrid'!Q28 -> 0 | S13: =+S12+(S31+S49+S67+S85)*'El og plugin hybrid'!S28 -> 0
B14: 8 | C14: 8 | E14: =+E13+(E32+E50+E68+E86)*'El og plugin hybrid'!E28 -> 0 | G14: =+G13+(G32+G50+G68+G86)*'El og plugin hybrid'!G28 -> 0 | I14: =+I13+(I32+I50+I68+I86)*'El og plugin hybrid'!I28 -> 0 | K14: =+K13+(K32+K50+K68+K86)*'El og plugin hybrid'!K28 -> 0 | M14: =+M13+(M32+M50+M68+M86)*'El og plugin hybrid'!M28 -> 0 | O14: =+O13+(O32+O50+O68+O86)*'El og plugin hybrid'!O28 -> 0 | Q14: =+Q13+(Q32+Q50+Q68+Q86)*'El og plugin hybrid'!Q28 -> 0 | S14: =+S13+(S32+S50+S68+S86)*'El og plugin hybrid'!S28 -> 0
B15: 9 | C15: 9 | E15: =+E14+(E33+E51+E69+E87)*'El og plugin hybrid'!E28 -> 0 | G15: =+G14+(G33+G51+G69+G87)*'El og plugin hybrid'!G28 -> 0 | I15: =+I14+(I33+I51+I69+I87)*'El og plugin hybrid'!I28 -> 0 | K15: =+K14+(K33+K51+K69+K87)*'El og plugin hybrid'!K28 -> 0 | M15: =+M14+(M33+M51+M69+M87)*'El og plugin hybrid'!M28 -> 0 | O15: =+O14+(O33+O51+O69+O87)*'El og plugin hybrid'!O28 -> 0 | Q15: =+Q14+(Q33+Q51+Q69+Q87)*'El og plugin hybrid'!Q28 -> 0 | S15: =+S14+(S33+S51+S69+S87)*'El og plugin hybrid'!S28 -> 0
B16: 10 | C16: 10 | E16: =+E15+(E34+E52+E70+E88)*'El og plugin hybrid'!E28 -> 0 | G16: =+G15+(G34+G52+G70+G88)*'El og plugin hybrid'!G28 -> 0 | I16: =+I15+(I34+I52+I70+I88)*'El og plugin hybrid'!I28 -> 0 | K16: =+K15+(K34+K52+K70+K88)*'El og plugin hybrid'!K28 -> 0 | M16: =+M15+(M34+M52+M70+M88)*'El og plugin hybrid'!M28 -> 0 | O16: =+O15+(O34+O52+O70+O88)*'El og plugin hybrid'!O28 -> 0 | Q16: =+Q15+(Q34+Q52+Q70+Q88)*'El og plugin hybrid'!Q28 -> 0 | S16: =+S15+(S34+S52+S70+S88)*'El og plugin hybrid'!S28 -> 0
B17: 11 | C17: 11 | E17: =+E16+(E35+E53+E71+E89)*'El og plugin hybrid'!E28 -> 0 | G17: =+G16+(G35+G53+G71+G89)*'El og plugin hybrid'!G28 -> 0 | I17: =+I16+(I35+I53+I71+I89)*'El og plugin hybrid'!I28 -> 0 | K17: =+K16+(K35+K53+K71+K89)*'El og plugin hybrid'!K28 -> 0 | M17: =+M16+(M35+M53+M71+M89)*'El og plugin hybrid'!M28 -> 0 | O17: =+O16+(O35+O53+O71+O89)*'El og plugin hybrid'!O28 -> 0 | Q17: =+Q16+(Q35+Q53+Q71+Q89)*'El og plugin hybrid'!Q28 -> 0 | S17: =+S16+(S35+S53+S71+S89)*'El og plugin hybrid'!S28 -> 0
B18: 12 | C18: 12 | E18: =+E17+(E36+E54+E72+E90)*'El og plugin hybrid'!E28 -> 0 | G18: =+G17+(G36+G54+G72+G90)*'El og plugin hybrid'!G28 -> 0 | I18: =+I17+(I36+I54+I72+I90)*'El og plugin hybrid'!I28 -> 0 | K18: =+K17+(K36+K54+K72+K90)*'El og plugin hybrid'!K28 -> 0 | M18: =+M17+(M36+M54+M72+M90)*'El og plugin hybrid'!M28 -> 0 | O18: =+O17+(O36+O54+O72+O90)*'El og plugin hybrid'!O28 -> 0 | Q18: =+Q17+(Q36+Q54+Q72+Q90)*'El og plugin hybrid'!Q28 -> 0 | S18: =+S17+(S36+S54+S72+S90)*'El og plugin hybrid'!S28 -> 0
B19: 13 | C19: 13 | E19: =+E18+(E37+E55+E73+E91)*'El og plugin hybrid'!E28 -> 0 | G19: =+G18+(G37+G55+G73+G91)*'El og plugin hybrid'!G28 -> 0 | I19: =+I18+(I37+I55+I73+I91)*'El og plugin hybrid'!I28 -> 0 | K19: =+K18+(K37+K55+K73+K91)*'El og plugin hybrid'!K28 -> 0 | M19: =+M18+(M37+M55+M73+M91)*'El og plugin hybrid'!M28 -> 0 | O19: =+O18+(O37+O55+O73+O91)*'El og plugin hybrid'!O28 -> 0 | Q19: =+Q18+(Q37+Q55+Q73+Q91)*'El og plugin hybrid'!Q28 -> 0 | S19: =+S18+(S37+S55+S73+S91)*'El og plugin hybrid'!S28 -> 0
B20: 14 | C20: 14 | E20: =+E19+(E38+E56+E74+E92)*'El og plugin hybrid'!E28 -> 0 | G20: =+G19+(G38+G56+G74+G92)*'El og plugin hybrid'!G28 -> 0 | I20: =+I19+(I38+I56+I74+I92)*'El og plugin hybrid'!I28 -> 0 | K20: =+K19+(K38+K56+K74+K92)*'El og plugin hybrid'!K28 -> 0 | M20: =+M19+(M38+M56+M74+M92)*'El og plugin hybrid'!M28 -> 0 | O20: =+O19+(O38+O56+O74+O92)*'El og plugin hybrid'!O28 -> 0 | Q20: =+Q19+(Q38+Q56+Q74+Q92)*'El og plugin hybrid'!Q28 -> 0 | S20: =+S19+(S38+S56+S74+S92)*'El og plugin hybrid'!S28 -> 0
B21: 15 | C21: 15 | E21: =+E20+(E39+E57+E75+E93)*'El og plugin hybrid'!E28 -> 0 | G21: =+G20+(G39+G57+G75+G93)*'El og plugin hybrid'!G28 -> 0 | I21: =+I20+(I39+I57+I75+I93)*'El og plugin hybrid'!I28 -> 0 | K21: =+K20+(K39+K57+K75+K93)*'El og plugin hybrid'!K28 -> 0 | M21: =+M20+(M39+M57+M75+M93)*'El og plugin hybrid'!M28 -> 0 | O21: =+O20+(O39+O57+O75+O93)*'El og plugin hybrid'!O28 -> 0 | Q21: =+Q20+(Q39+Q57+Q75+Q93)*'El og plugin hybrid'!Q28 -> 0 | S21: =+S20+(S39+S57+S75+S93)*'El og plugin hybrid'!S28 -> 0
A23: Driftsomkostninger elbil
B24: År indeks | C24: Elpris | E24: ='El og plugin hybrid'!E8 -> PRODUKT 1 EL | G24: ='El og plugin hybrid'!G8 -> PRODUKT 2 EL | I24: ='El og plugin hybrid'!I8 -> PRODUKT 3 EL | K24: ='El og plugin hybrid'!K8 -> PRODUKT 4 EL | M24: ='El og plugin hybrid'!M8 -> PRODUKT 5 EL | O24: ='El og plugin hybrid'!O8 -> PRODUKT 6 EL | Q24: ='El og plugin hybrid'!Q8 -> PRODUKT 7 EL | S24: ='El og plugin hybrid'!S8 -> PRODUKT 8 EL
B25: 1 | C25: ='El og plugin hybrid'!E35 -> 2.13 | E25: =IF($B25<='El og plugin hybrid'!E$34,(IF('El og plugin hybrid'!E$44=0,(('El og plugin hybrid'!E$29*'El og plugin hybrid'!E$13/1000)*'Interne beregninger - E&PH'!$C25)*(1+'El og plugin hybrid'!E$37/100)^-$B25,('El og plugin hybrid'!E$44)*(1+'El og plugin hybrid'!E$37/100)^-$B25)),0) -> 0 | G25: =IF($B25<='El og plugin hybrid'!G$34,(IF('El og plugin hybrid'!G$44=0,(('El og plugin hybrid'!G$29*'El og plugin hybrid'!G$13/1000)*'Interne beregninger - E&PH'!$C25)*(1+'El og plugin hybrid'!G$37/100)^-$B25,('El og plugin hybrid'!G$44)*(1+'El og plugin hybrid'!G$37/100)^-$B25)),0) -> 0 | I25: =IF($B25<='El og plugin hybrid'!I$34,(IF('El og plugin hybrid'!I$44=0,(('El og plugin hybrid'!I$29*'El og plugin hybrid'!I$13/1000)*'Interne beregninger - E&PH'!$C25)*(1+'El og plugin hybrid'!I$37/100)^-$B25,('El og plugin hybrid'!I$44)*(1+'El og plugin hybrid'!I$37/100)^-$B25)),0) -> 0 | K25: =IF($B25<='El og plugin hybrid'!K$34,(IF('El og plugin hybrid'!K$44=0,(('El og plugin hybrid'!K$29*'El og plugin hybrid'!K$13/1000)*'Interne beregninger - E&PH'!$C25)*(1+'El og plugin hybrid'!K$37/100)^-$B25,('El og plugin hybrid'!K$44)*(1+'El og plugin hybrid'!K$37/100)^-$B25)),0) -> 0 | M25: =IF($B25<='El og plugin hybrid'!M$34,(IF('El og plugin hybrid'!M$44=0,(('El og plugin hybrid'!M$29*'El og plugin hybrid'!M$13/1000)*'Interne beregninger - E&PH'!$C25)*(1+'El og plugin hybrid'!M$37/100)^-$B25,('El og plugin hybrid'!M$44)*(1+'El og plugin hybrid'!M$37/100)^-$B25)),0) -> 0 | O25: =IF($B25<='El og plugin hybrid'!O$34,(IF('El og plugin hybrid'!O$44=0,(('El og plugin hybrid'!O$29*'El og plugin hybrid'!O$13/1000)*'Interne beregninger - E&PH'!$C25)*(1+'El og plugin hybrid'!O$37/100)^-$B25,('El og plugin hybrid'!O$44)*(1+'El og plugin hybrid'!O$37/100)^-$B25)),0) -> 0 | Q25: =IF($B25<='El og plugin hybrid'!Q$34,(IF('El og plugin hybrid'!Q$44=0,(('El og plugin hybrid'!Q$29*'El og plugin hybrid'!Q$13/1000)*'Interne beregninger - E&PH'!$C25)*(1+'El og plugin hybrid'!Q$37/100)^-$B25,('El og plugin hybrid'!Q$44)*(1+'El og plugin hybrid'!Q$37/100)^-$B25)),0) -> 0 | S25: =IF($B25<='El og plugin hybrid'!S$34,(IF('El og plugin hybrid'!S$44=0,(('El og plugin hybrid'!S$29*'El og plugin hybrid'!S$13/1000)*'Interne beregninger - E&PH'!$C25)*(1+'El og plugin hybrid'!S$37/100)^-$B25,('El og plugin hybrid'!S$44)*(1+'El og plugin hybrid'!S$37/100)^-$B25)),0) -> 0
B26: 2 | C26: =C25*(1+'El og plugin hybrid'!$E$36/100) -> 2.165593096 | E26: =IF($B26<='El og plugin hybrid'!E$34,(IF('El og plugin hybrid'!E$44=0,(('El og plugin hybrid'!E$29*'El og plugin hybrid'!E$13/1000)*'Interne beregninger - E&PH'!$C26)*(1+'El og plugin hybrid'!E$37/100)^-$B26,('El og plugin hybrid'!E$44)*(1+'El og plugin hybrid'!E$37/100)^-$B26)),0) -> 0 | G26: =IF($B26<='El og plugin hybrid'!G$34,(IF('El og plugin hybrid'!G$44=0,(('El og plugin hybrid'!G$29*'El og plugin hybrid'!G$13/1000)*'Interne beregninger - E&PH'!$C26)*(1+'El og plugin hybrid'!G$37/100)^-$B26,('El og plugin hybrid'!G$44)*(1+'El og plugin hybrid'!G$37/100)^-$B26)),0) -> 0 | I26: =IF($B26<='El og plugin hybrid'!I$34,(IF('El og plugin hybrid'!I$44=0,(('El og plugin hybrid'!I$29*'El og plugin hybrid'!I$13/1000)*'Interne beregninger - E&PH'!$C26)*(1+'El og plugin hybrid'!I$37/100)^-$B26,('El og plugin hybrid'!I$44)*(1+'El og plugin hybrid'!I$37/100)^-$B26)),0) -> 0 | K26: =IF($B26<='El og plugin hybrid'!K$34,(IF('El og plugin hybrid'!K$44=0,(('El og plugin hybrid'!K$29*'El og plugin hybrid'!K$13/1000)*'Interne beregninger - E&PH'!$C26)*(1+'El og plugin hybrid'!K$37/100)^-$B26,('El og plugin hybrid'!K$44)*(1+'El og plugin hybrid'!K$37/100)^-$B26)),0) -> 0 | M26: =IF($B26<='El og plugin hybrid'!M$34,(IF('El og plugin hybrid'!M$44=0,(('El og plugin hybrid'!M$29*'El og plugin hybrid'!M$13/1000)*'Interne beregninger - E&PH'!$C26)*(1+'El og plugin hybrid'!M$37/100)^-$B26,('El og plugin hybrid'!M$44)*(1+'El og plugin hybrid'!M$37/100)^-$B26)),0) -> 0 | O26: =IF($B26<='El og plugin hybrid'!O$34,(IF('El og plugin hybrid'!O$44=0,(('El og plugin hybrid'!O$29*'El og plugin hybrid'!O$13/1000)*'Interne beregninger - E&PH'!$C26)*(1+'El og plugin hybrid'!O$37/100)^-$B26,('El og plugin hybrid'!O$44)*(1+'El og plugin hybrid'!O$37/100)^-$B26)),0) -> 0 | Q26: =IF($B26<='El og plugin hybrid'!Q$34,(IF('El og plugin hybrid'!Q$44=0,(('El og plugin hybrid'!Q$29*'El og plugin hybrid'!Q$13/1000)*'Interne beregninger - E&PH'!$C26)*(1+'El og plugin hybrid'!Q$37/100)^-$B26,('El og plugin hybrid'!Q$44)*(1+'El og plugin hybrid'!Q$37/100)^-$B26)),0) -> 0 | S26: =IF($B26<='El og plugin hybrid'!S$34,(IF('El og plugin hybrid'!S$44=0,(('El og plugin hybrid'!S$29*'El og plugin hybrid'!S$13/1000)*'Interne beregninger - E&PH'!$C26)*(1+'El og plugin hybrid'!S$37/100)^-$B26,('El og plugin hybrid'!S$44)*(1+'El og plugin hybrid'!S$37/100)^-$B26)),0) -> 0
B27: 3 | C27: =C26*(1+'El og plugin hybrid'!$E$36/100) -> 2.201780967 | E27: =IF($B27<='El og plugin hybrid'!E$34,(IF('El og plugin hybrid'!E$44=0,(('El og plugin hybrid'!E$29*'El og plugin hybrid'!E$13/1000)*'Interne beregninger - E&PH'!$C27)*(1+'El og plugin hybrid'!E$37/100)^-$B27,('El og plugin hybrid'!E$44)*(1+'El og plugin hybrid'!E$37/100)^-$B27)),0) -> 0 | G27: =IF($B27<='El og plugin hybrid'!G$34,(IF('El og plugin hybrid'!G$44=0,(('El og plugin hybrid'!G$29*'El og plugin hybrid'!G$13/1000)*'Interne beregninger - E&PH'!$C27)*(1+'El og plugin hybrid'!G$37/100)^-$B27,('El og plugin hybrid'!G$44)*(1+'El og plugin hybrid'!G$37/100)^-$B27)),0) -> 0 | I27: =IF($B27<='El og plugin hybrid'!I$34,(IF('El og plugin hybrid'!I$44=0,(('El og plugin hybrid'!I$29*'El og plugin hybrid'!I$13/1000)*'Interne beregninger - E&PH'!$C27)*(1+'El og plugin hybrid'!I$37/100)^-$B27,('El og plugin hybrid'!I$44)*(1+'El og plugin hybrid'!I$37/100)^-$B27)),0) -> 0 | K27: =IF($B27<='El og plugin hybrid'!K$34,(IF('El og plugin hybrid'!K$44=0,(('El og plugin hybrid'!K$29*'El og plugin hybrid'!K$13/1000)*'Interne beregninger - E&PH'!$C27)*(1+'El og plugin hybrid'!K$37/100)^-$B27,('El og plugin hybrid'!K$44)*(1+'El og plugin hybrid'!K$37/100)^-$B27)),0) -> 0 | M27: =IF($B27<='El og plugin hybrid'!M$34,(IF('El og plugin hybrid'!M$44=0,(('El og plugin hybrid'!M$29*'El og plugin hybrid'!M$13/1000)*'Interne beregninger - E&PH'!$C27)*(1+'El og plugin hybrid'!M$37/100)^-$B27,('El og plugin hybrid'!M$44)*(1+'El og plugin hybrid'!M$37/100)^-$B27)),0) -> 0 | O27: =IF($B27<='El og plugin hybrid'!O$34,(IF('El og plugin hybrid'!O$44=0,(('El og plugin hybrid'!O$29*'El og plugin hybrid'!O$13/1000)*'Interne beregninger - E&PH'!$C27)*(1+'El og plugin hybrid'!O$37/100)^-$B27,('El og plugin hybrid'!O$44)*(1+'El og plugin hybrid'!O$37/100)^-$B27)),0) -> 0 | Q27: =IF($B27<='El og plugin hybrid'!Q$34,(IF('El og plugin hybrid'!Q$44=0,(('El og plugin hybrid'!Q$29*'El og plugin hybrid'!Q$13/1000)*'Interne beregninger - E&PH'!$C27)*(1+'El og plugin hybrid'!Q$37/100)^-$B27,('El og plugin hybrid'!Q$44)*(1+'El og plugin hybrid'!Q$37/100)^-$B27)),0) -> 0 | S27: =IF($B27<='El og plugin hybrid'!S$34,(IF('El og plugin hybrid'!S$44=0,(('El og plugin hybrid'!S$29*'El og plugin hybrid'!S$13/1000)*'Interne beregninger - E&PH'!$C27)*(1+'El og plugin hybrid'!S$37/100)^-$B27,('El og plugin hybrid'!S$44)*(1+'El og plugin hybrid'!S$37/100)^-$B27)),0) -> 0
B28: 4 | C28: =C27*(1+'El og plugin hybrid'!$E$36/100) -> 2.23857355 | E28: =IF($B28<='El og plugin hybrid'!E$34,(IF('El og plugin hybrid'!E$44=0,(('El og plugin hybrid'!E$29*'El og plugin hybrid'!E$13/1000)*'Interne beregninger - E&PH'!$C28)*(1+'El og plugin hybrid'!E$37/100)^-$B28,('El og plugin hybrid'!E$44)*(1+'El og plugin hybrid'!E$37/100)^-$B28)),0) -> 0 | G28: =IF($B28<='El og plugin hybrid'!G$34,(IF('El og plugin hybrid'!G$44=0,(('El og plugin hybrid'!G$29*'El og plugin hybrid'!G$13/1000)*'Interne beregninger - E&PH'!$C28)*(1+'El og plugin hybrid'!G$37/100)^-$B28,('El og plugin hybrid'!G$44)*(1+'El og plugin hybrid'!G$37/100)^-$B28)),0) -> 0 | I28: =IF($B28<='El og plugin hybrid'!I$34,(IF('El og plugin hybrid'!I$44=0,(('El og plugin hybrid'!I$29*'El og plugin hybrid'!I$13/1000)*'Interne beregninger - E&PH'!$C28)*(1+'El og plugin hybrid'!I$37/100)^-$B28,('El og plugin hybrid'!I$44)*(1+'El og plugin hybrid'!I$37/100)^-$B28)),0) -> 0 | K28: =IF($B28<='El og plugin hybrid'!K$34,(IF('El og plugin hybrid'!K$44=0,(('El og plugin hybrid'!K$29*'El og plugin hybrid'!K$13/1000)*'Interne beregninger - E&PH'!$C28)*(1+'El og plugin hybrid'!K$37/100)^-$B28,('El og plugin hybrid'!K$44)*(1+'El og plugin hybrid'!K$37/100)^-$B28)),0) -> 0 | M28: =IF($B28<='El og plugin hybrid'!M$34,(IF('El og plugin hybrid'!M$44=0,(('El og plugin hybrid'!M$29*'El og plugin hybrid'!M$13/1000)*'Interne beregninger - E&PH'!$C28)*(1+'El og plugin hybrid'!M$37/100)^-$B28,('El og plugin hybrid'!M$44)*(1+'El og plugin hybrid'!M$37/100)^-$B28)),0) -> 0 | O28: =IF($B28<='El og plugin hybrid'!O$34,(IF('El og plugin hybrid'!O$44=0,(('El og plugin hybrid'!O$29*'El og plugin hybrid'!O$13/1000)*'Interne beregninger - E&PH'!$C28)*(1+'El og plugin hybrid'!O$37/100)^-$B28,('El og plugin hybrid'!O$44)*(1+'El og plugin hybrid'!O$37/100)^-$B28)),0) -> 0 | Q28: =IF($B28<='El og plugin hybrid'!Q$34,(IF('El og plugin hybrid'!Q$44=0,(('El og plugin hybrid'!Q$29*'El og plugin hybrid'!Q$13/1000)*'Interne beregninger - E&PH'!$C28)*(1+'El og plugin hybrid'!Q$37/100)^-$B28,('El og plugin hybrid'!Q$44)*(1+'El og plugin hybrid'!Q$37/100)^-$B28)),0) -> 0 | S28: =IF($B28<='El og plugin hybrid'!S$34,(IF('El og plugin hybrid'!S$44=0,(('El og plugin hybrid'!S$29*'El og plugin hybrid'!S$13/1000)*'Interne beregninger - E&PH'!$C28)*(1+'El og plugin hybrid'!S$37/100)^-$B28,('El og plugin hybrid'!S$44)*(1+'El og plugin hybrid'!S$37/100)^-$B28)),0) -> 0
B29: 5 | C29: =C28*(1+'El og plugin hybrid'!$E$36/100) -> 2.275980951 | E29: =IF($B29<='El og plugin hybrid'!E$34,(IF('El og plugin hybrid'!E$44=0,(('El og plugin hybrid'!E$29*'El og plugin hybrid'!E$13/1000)*'Interne beregninger - E&PH'!$C29)*(1+'El og plugin hybrid'!E$37/100)^-$B29,('El og plugin hybrid'!E$44)*(1+'El og plugin hybrid'!E$37/100)^-$B29)),0) -> 0 | G29: =IF($B29<='El og plugin hybrid'!G$34,(IF('El og plugin hybrid'!G$44=0,(('El og plugin hybrid'!G$29*'El og plugin hybrid'!G$13/1000)*'Interne beregninger - E&PH'!$C29)*(1+'El og plugin hybrid'!G$37/100)^-$B29,('El og plugin hybrid'!G$44)*(1+'El og plugin hybrid'!G$37/100)^-$B29)),0) -> 0 | I29: =IF($B29<='El og plugin hybrid'!I$34,(IF('El og plugin hybrid'!I$44=0,(('El og plugin hybrid'!I$29*'El og plugin hybrid'!I$13/1000)*'Interne beregninger - E&PH'!$C29)*(1+'El og plugin hybrid'!I$37/100)^-$B29,('El og plugin hybrid'!I$44)*(1+'El og plugin hybrid'!I$37/100)^-$B29)),0) -> 0 | K29: =IF($B29<='El og plugin hybrid'!K$34,(IF('El og plugin hybrid'!K$44=0,(('El og plugin hybrid'!K$29*'El og plugin hybrid'!K$13/1000)*'Interne beregninger - E&PH'!$C29)*(1+'El og plugin hybrid'!K$37/100)^-$B29,('El og plugin hybrid'!K$44)*(1+'El og plugin hybrid'!K$37/100)^-$B29)),0) -> 0 | M29: =IF($B29<='El og plugin hybrid'!M$34,(IF('El og plugin hybrid'!M$44=0,(('El og plugin hybrid'!M$29*'El og plugin hybrid'!M$13/1000)*'Interne beregninger - E&PH'!$C29)*(1+'El og plugin hybrid'!M$37/100)^-$B29,('El og plugin hybrid'!M$44)*(1+'El og plugin hybrid'!M$37/100)^-$B29)),0) -> 0 | O29: =IF($B29<='El og plugin hybrid'!O$34,(IF('El og plugin hybrid'!O$44=0,(('El og plugin hybrid'!O$29*'El og plugin hybrid'!O$13/1000)*'Interne beregninger - E&PH'!$C29)*(1+'El og plugin hybrid'!O$37/100)^-$B29,('El og plugin hybrid'!O$44)*(1+'El og plugin hybrid'!O$37/100)^-$B29)),0) -> 0 | Q29: =IF($B29<='El og plugin hybrid'!Q$34,(IF('El og plugin hybrid'!Q$44=0,(('El og plugin hybrid'!Q$29*'El og plugin hybrid'!Q$13/1000)*'Interne beregninger - E&PH'!$C29)*(1+'El og plugin hybrid'!Q$37/100)^-$B29,('El og plugin hybrid'!Q$44)*(1+'El og plugin hybrid'!Q$37/100)^-$B29)),0) -> 0 | S29: =IF($B29<='El og plugin hybrid'!S$34,(IF('El og plugin hybrid'!S$44=0,(('El og plugin hybrid'!S$29*'El og plugin hybrid'!S$13/1000)*'Interne beregninger - E&PH'!$C29)*(1+'El og plugin hybrid'!S$37/100)^-$B29,('El og plugin hybrid'!S$44)*(1+'El og plugin hybrid'!S$37/100)^-$B29)),0) -> 0
B30: 6 | C30: =C29*(1+'El og plugin hybrid'!$E$36/100) -> 2.314013444 | E30: =IF($B30<='El og plugin hybrid'!E$34,(IF('El og plugin hybrid'!E$44=0,(('El og plugin hybrid'!E$29*'El og plugin hybrid'!E$13/1000)*'Interne beregninger - E&PH'!$C30)*(1+'El og plugin hybrid'!E$37/100)^-$B30,('El og plugin hybrid'!E$44)*(1+'El og plugin hybrid'!E$37/100)^-$B30)),0) -> 0 | G30: =IF($B30<='El og plugin hybrid'!G$34,(IF('El og plugin hybrid'!G$44=0,(('El og plugin hybrid'!G$29*'El og plugin hybrid'!G$13/1000)*'Interne beregninger - E&PH'!$C30)*(1+'El og plugin hybrid'!G$37/100)^-$B30,('El og plugin hybrid'!G$44)*(1+'El og plugin hybrid'!G$37/100)^-$B30)),0) -> 0 | I30: =IF($B30<='El og plugin hybrid'!I$34,(IF('El og plugin hybrid'!I$44=0,(('El og plugin hybrid'!I$29*'El og plugin hybrid'!I$13/1000)*'Interne beregninger - E&PH'!$C30)*(1+'El og plugin hybrid'!I$37/100)^-$B30,('El og plugin hybrid'!I$44)*(1+'El og plugin hybrid'!I$37/100)^-$B30)),0) -> 0 | K30: =IF($B30<='El og plugin hybrid'!K$34,(IF('El og plugin hybrid'!K$44=0,(('El og plugin hybrid'!K$29*'El og plugin hybrid'!K$13/1000)*'Interne beregninger - E&PH'!$C30)*(1+'El og plugin hybrid'!K$37/100)^-$B30,('El og plugin hybrid'!K$44)*(1+'El og plugin hybrid'!K$37/100)^-$B30)),0) -> 0 | M30: =IF($B30<='El og plugin hybrid'!M$34,(IF('El og plugin hybrid'!M$44=0,(('El og plugin hybrid'!M$29*'El og plugin hybrid'!M$13/1000)*'Interne beregninger - E&PH'!$C30)*(1+'El og plugin hybrid'!M$37/100)^-$B30,('El og plugin hybrid'!M$44)*(1+'El og plugin hybrid'!M$37/100)^-$B30)),0) -> 0 | O30: =IF($B30<='El og plugin hybrid'!O$34,(IF('El og plugin hybrid'!O$44=0,(('El og plugin hybrid'!O$29*'El og plugin hybrid'!O$13/1000)*'Interne beregninger - E&PH'!$C30)*(1+'El og plugin hybrid'!O$37/100)^-$B30,('El og plugin hybrid'!O$44)*(1+'El og plugin hybrid'!O$37/100)^-$B30)),0) -> 0 | Q30: =IF($B30<='El og plugin hybrid'!Q$34,(IF('El og plugin hybrid'!Q$44=0,(('El og plugin hybrid'!Q$29*'El og plugin hybrid'!Q$13/1000)*'Interne beregninger - E&PH'!$C30)*(1+'El og plugin hybrid'!Q$37/100)^-$B30,('El og plugin hybrid'!Q$44)*(1+'El og plugin hybrid'!Q$37/100)^-$B30)),0) -> 0 | S30: =IF($B30<='El og plugin hybrid'!S$34,(IF('El og plugin hybrid'!S$44=0,(('El og plugin hybrid'!S$29*'El og plugin hybrid'!S$13/1000)*'Interne beregninger - E&PH'!$C30)*(1+'El og plugin hybrid'!S$37/100)^-$B30,('El og plugin hybrid'!S$44)*(1+'El og plugin hybrid'!S$37/100)^-$B30)),0) -> 0
B31: 7 | C31: =C30*(1+'El og plugin hybrid'!$E$36/100) -> 2.352681474 | E31: =IF($B31<='El og plugin hybrid'!E$34,(IF('El og plugin hybrid'!E$44=0,(('El og plugin hybrid'!E$29*'El og plugin hybrid'!E$13/1000)*'Interne beregninger - E&PH'!$C31)*(1+'El og plugin hybrid'!E$37/100)^-$B31,('El og plugin hybrid'!E$44)*(1+'El og plugin hybrid'!E$37/100)^-$B31)),0) -> 0 | G31: =IF($B31<='El og plugin hybrid'!G$34,(IF('El og plugin hybrid'!G$44=0,(('El og plugin hybrid'!G$29*'El og plugin hybrid'!G$13/1000)*'Interne beregninger - E&PH'!$C31)*(1+'El og plugin hybrid'!G$37/100)^-$B31,('El og plugin hybrid'!G$44)*(1+'El og plugin hybrid'!G$37/100)^-$B31)),0) -> 0 | I31: =IF($B31<='El og plugin hybrid'!I$34,(IF('El og plugin hybrid'!I$44=0,(('El og plugin hybrid'!I$29*'El og plugin hybrid'!I$13/1000)*'Interne beregninger - E&PH'!$C31)*(1+'El og plugin hybrid'!I$37/100)^-$B31,('El og plugin hybrid'!I$44)*(1+'El og plugin hybrid'!I$37/100)^-$B31)),0) -> 0 | K31: =IF($B31<='El og plugin hybrid'!K$34,(IF('El og plugin hybrid'!K$44=0,(('El og plugin hybrid'!K$29*'El og plugin hybrid'!K$13/1000)*'Interne beregninger - E&PH'!$C31)*(1+'El og plugin hybrid'!K$37/100)^-$B31,('El og plugin hybrid'!K$44)*(1+'El og plugin hybrid'!K$37/100)^-$B31)),0) -> 0 | M31: =IF($B31<='El og plugin hybrid'!M$34,(IF('El og plugin hybrid'!M$44=0,(('El og plugin hybrid'!M$29*'El og plugin hybrid'!M$13/1000)*'Interne beregninger - E&PH'!$C31)*(1+'El og plugin hybrid'!M$37/100)^-$B31,('El og plugin hybrid'!M$44)*(1+'El og plugin hybrid'!M$37/100)^-$B31)),0) -> 0 | O31: =IF($B31<='El og plugin hybrid'!O$34,(IF('El og plugin hybrid'!O$44=0,(('El og plugin hybrid'!O$29*'El og plugin hybrid'!O$13/1000)*'Interne beregninger - E&PH'!$C31)*(1+'El og plugin hybrid'!O$37/100)^-$B31,('El og plugin hybrid'!O$44)*(1+'El og plugin hybrid'!O$37/100)^-$B31)),0) -> 0 | Q31: =IF($B31<='El og plugin hybrid'!Q$34,(IF('El og plugin hybrid'!Q$44=0,(('El og plugin hybrid'!Q$29*'El og plugin hybrid'!Q$13/1000)*'Interne beregninger - E&PH'!$C31)*(1+'El og plugin hybrid'!Q$37/100)^-$B31,('El og plugin hybrid'!Q$44)*(1+'El og plugin hybrid'!Q$37/100)^-$B31)),0) -> 0 | S31: =IF($B31<='El og plugin hybrid'!S$34,(IF('El og plugin hybrid'!S$44=0,(('El og plugin hybrid'!S$29*'El og plugin hybrid'!S$13/1000)*'Interne beregninger - E&PH'!$C31)*(1+'El og plugin hybrid'!S$37/100)^-$B31,('El og plugin hybrid'!S$44)*(1+'El og plugin hybrid'!S$37/100)^-$B31)),0) -> 0
B32: 8 | C32: =C31*(1+'El og plugin hybrid'!$E$36/100) -> 2.391995661 | E32: =IF($B32<='El og plugin hybrid'!E$34,(IF('El og plugin hybrid'!E$44=0,(('El og plugin hybrid'!E$29*'El og plugin hybrid'!E$13/1000)*'Interne beregninger - E&PH'!$C32)*(1+'El og plugin hybrid'!E$37/100)^-$B32,('El og plugin hybrid'!E$44)*(1+'El og plugin hybrid'!E$37/100)^-$B32)),0) -> 0 | G32: =IF($B32<='El og plugin hybrid'!G$34,(IF('El og plugin hybrid'!G$44=0,(('El og plugin hybrid'!G$29*'El og plugin hybrid'!G$13/1000)*'Interne beregninger - E&PH'!$C32)*(1+'El og plugin hybrid'!G$37/100)^-$B32,('El og plugin hybrid'!G$44)*(1+'El og plugin hybrid'!G$37/100)^-$B32)),0) -> 0 | I32: =IF($B32<='El og plugin hybrid'!I$34,(IF('El og plugin hybrid'!I$44=0,(('El og plugin hybrid'!I$29*'El og plugin hybrid'!I$13/1000)*'Interne beregninger - E&PH'!$C32)*(1+'El og plugin hybrid'!I$37/100)^-$B32,('El og plugin hybrid'!I$44)*(1+'El og plugin hybrid'!I$37/100)^-$B32)),0) -> 0 | K32: =IF($B32<='El og plugin hybrid'!K$34,(IF('El og plugin hybrid'!K$44=0,(('El og plugin hybrid'!K$29*'El og plugin hybrid'!K$13/1000)*'Interne beregninger - E&PH'!$C32)*(1+'El og plugin hybrid'!K$37/100)^-$B32,('El og plugin hybrid'!K$44)*(1+'El og plugin hybrid'!K$37/100)^-$B32)),0) -> 0 | M32: =IF($B32<='El og plugin hybrid'!M$34,(IF('El og plugin hybrid'!M$44=0,(('El og plugin hybrid'!M$29*'El og plugin hybrid'!M$13/1000)*'Interne beregninger - E&PH'!$C32)*(1+'El og plugin hybrid'!M$37/100)^-$B32,('El og plugin hybrid'!M$44)*(1+'El og plugin hybrid'!M$37/100)^-$B32)),0) -> 0 | O32: =IF($B32<='El og plugin hybrid'!O$34,(IF('El og plugin hybrid'!O$44=0,(('El og plugin hybrid'!O$29*'El og plugin hybrid'!O$13/1000)*'Interne beregninger - E&PH'!$C32)*(1+'El og plugin hybrid'!O$37/100)^-$B32,('El og plugin hybrid'!O$44)*(1+'El og plugin hybrid'!O$37/100)^-$B32)),0) -> 0 | Q32: =IF($B32<='El og plugin hybrid'!Q$34,(IF('El og plugin hybrid'!Q$44=0,(('El og plugin hybrid'!Q$29*'El og plugin hybrid'!Q$13/1000)*'Interne beregninger - E&PH'!$C32)*(1+'El og plugin hybrid'!Q$37/100)^-$B32,('El og plugin hybrid'!Q$44)*(1+'El og plugin hybrid'!Q$37/100)^-$B32)),0) -> 0 | S32: =IF($B32<='El og plugin hybrid'!S$34,(IF('El og plugin hybrid'!S$44=0,(('El og plugin hybrid'!S$29*'El og plugin hybrid'!S$13/1000)*'Interne beregninger - E&PH'!$C32)*(1+'El og plugin hybrid'!S$37/100)^-$B32,('El og plugin hybrid'!S$44)*(1+'El og plugin hybrid'!S$37/100)^-$B32)),0) -> 0
B33: 9 | C33: =C32*(1+'El og plugin hybrid'!$E$36/100) -> 2.431966803 | E33: =IF($B33<='El og plugin hybrid'!E$34,(IF('El og plugin hybrid'!E$44=0,(('El og plugin hybrid'!E$29*'El og plugin hybrid'!E$13/1000)*'Interne beregninger - E&PH'!$C33)*(1+'El og plugin hybrid'!E$37/100)^-$B33,('El og plugin hybrid'!E$44)*(1+'El og plugin hybrid'!E$37/100)^-$B33)),0) -> 0 | G33: =IF($B33<='El og plugin hybrid'!G$34,(IF('El og plugin hybrid'!G$44=0,(('El og plugin hybrid'!G$29*'El og plugin hybrid'!G$13/1000)*'Interne beregninger - E&PH'!$C33)*(1+'El og plugin hybrid'!G$37/100)^-$B33,('El og plugin hybrid'!G$44)*(1+'El og plugin hybrid'!G$37/100)^-$B33)),0) -> 0 | I33: =IF($B33<='El og plugin hybrid'!I$34,(IF('El og plugin hybrid'!I$44=0,(('El og plugin hybrid'!I$29*'El og plugin hybrid'!I$13/1000)*'Interne beregninger - E&PH'!$C33)*(1+'El og plugin hybrid'!I$37/100)^-$B33,('El og plugin hybrid'!I$44)*(1+'El og plugin hybrid'!I$37/100)^-$B33)),0) -> 0 | K33: =IF($B33<='El og plugin hybrid'!K$34,(IF('El og plugin hybrid'!K$44=0,(('El og plugin hybrid'!K$29*'El og plugin hybrid'!K$13/1000)*'Interne beregninger - E&PH'!$C33)*(1+'El og plugin hybrid'!K$37/100)^-$B33,('El og plugin hybrid'!K$44)*(1+'El og plugin hybrid'!K$37/100)^-$B33)),0) -> 0 | M33: =IF($B33<='El og plugin hybrid'!M$34,(IF('El og plugin hybrid'!M$44=0,(('El og plugin hybrid'!M$29*'El og plugin hybrid'!M$13/1000)*'Interne beregninger - E&PH'!$C33)*(1+'El og plugin hybrid'!M$37/100)^-$B33,('El og plugin hybrid'!M$44)*(1+'El og plugin hybrid'!M$37/100)^-$B33)),0) -> 0 | O33: =IF($B33<='El og plugin hybrid'!O$34,(IF('El og plugin hybrid'!O$44=0,(('El og plugin hybrid'!O$29*'El og plugin hybrid'!O$13/1000)*'Interne beregninger - E&PH'!$C33)*(1+'El og plugin hybrid'!O$37/100)^-$B33,('El og plugin hybrid'!O$44)*(1+'El og plugin hybrid'!O$37/100)^-$B33)),0) -> 0 | Q33: =IF($B33<='El og plugin hybrid'!Q$34,(IF('El og plugin hybrid'!Q$44=0,(('El og plugin hybrid'!Q$29*'El og plugin hybrid'!Q$13/1000)*'Interne beregninger - E&PH'!$C33)*(1+'El og plugin hybrid'!Q$37/100)^-$B33,('El og plugin hybrid'!Q$44)*(1+'El og plugin hybrid'!Q$37/100)^-$B33)),0) -> 0 | S33: =IF($B33<='El og plugin hybrid'!S$34,(IF('El og plugin hybrid'!S$44=0,(('El og plugin hybrid'!S$29*'El og plugin hybrid'!S$13/1000)*'Interne beregninger - E&PH'!$C33)*(1+'El og plugin hybrid'!S$37/100)^-$B33,('El og plugin hybrid'!S$44)*(1+'El og plugin hybrid'!S$37/100)^-$B33)),0) -> 0
B34: 10 | C34: =C33*(1+'El og plugin hybrid'!$E$36/100) -> 2.472605877 | E34: =IF($B34<='El og plugin hybrid'!E$34,(IF('El og plugin hybrid'!E$44=0,(('El og plugin hybrid'!E$29*'El og plugin hybrid'!E$13/1000)*'Interne beregninger - E&PH'!$C34)*(1+'El og plugin hybrid'!E$37/100)^-$B34,('El og plugin hybrid'!E$44)*(1+'El og plugin hybrid'!E$37/100)^-$B34)),0) -> 0 | G34: =IF($B34<='El og plugin hybrid'!G$34,(IF('El og plugin hybrid'!G$44=0,(('El og plugin hybrid'!G$29*'El og plugin hybrid'!G$13/1000)*'Interne beregninger - E&PH'!$C34)*(1+'El og plugin hybrid'!G$37/100)^-$B34,('El og plugin hybrid'!G$44)*(1+'El og plugin hybrid'!G$37/100)^-$B34)),0) -> 0 | I34: =IF($B34<='El og plugin hybrid'!I$34,(IF('El og plugin hybrid'!I$44=0,(('El og plugin hybrid'!I$29*'El og plugin hybrid'!I$13/1000)*'Interne beregninger - E&PH'!$C34)*(1+'El og plugin hybrid'!I$37/100)^-$B34,('El og plugin hybrid'!I$44)*(1+'El og plugin hybrid'!I$37/100)^-$B34)),0) -> 0 | K34: =IF($B34<='El og plugin hybrid'!K$34,(IF('El og plugin hybrid'!K$44=0,(('El og plugin hybrid'!K$29*'El og plugin hybrid'!K$13/1000)*'Interne beregninger - E&PH'!$C34)*(1+'El og plugin hybrid'!K$37/100)^-$B34,('El og plugin hybrid'!K$44)*(1+'El og plugin hybrid'!K$37/100)^-$B34)),0) -> 0 | M34: =IF($B34<='El og plugin hybrid'!M$34,(IF('El og plugin hybrid'!M$44=0,(('El og plugin hybrid'!M$29*'El og plugin hybrid'!M$13/1000)*'Interne beregninger - E&PH'!$C34)*(1+'El og plugin hybrid'!M$37/100)^-$B34,('El og plugin hybrid'!M$44)*(1+'El og plugin hybrid'!M$37/100)^-$B34)),0) -> 0 | O34: =IF($B34<='El og plugin hybrid'!O$34,(IF('El og plugin hybrid'!O$44=0,(('El og plugin hybrid'!O$29*'El og plugin hybrid'!O$13/1000)*'Interne beregninger - E&PH'!$C34)*(1+'El og plugin hybrid'!O$37/100)^-$B34,('El og plugin hybrid'!O$44)*(1+'El og plugin hybrid'!O$37/100)^-$B34)),0) -> 0 | Q34: =IF($B34<='El og plugin hybrid'!Q$34,(IF('El og plugin hybrid'!Q$44=0,(('El og plugin hybrid'!Q$29*'El og plugin hybrid'!Q$13/1000)*'Interne beregninger - E&PH'!$C34)*(1+'El og plugin hybrid'!Q$37/100)^-$B34,('El og plugin hybrid'!Q$44)*(1+'El og plugin hybrid'!Q$37/100)^-$B34)),0) -> 0 | S34: =IF($B34<='El og plugin hybrid'!S$34,(IF('El og plugin hybrid'!S$44=0,(('El og plugin hybrid'!S$29*'El og plugin hybrid'!S$13/1000)*'Interne beregninger - E&PH'!$C34)*(1+'El og plugin hybrid'!S$37/100)^-$B34,('El og plugin hybrid'!S$44)*(1+'El og plugin hybrid'!S$37/100)^-$B34)),0) -> 0
B35: 11 | C35: =C34*(1+'El og plugin hybrid'!$E$36/100) -> 2.513924046 | E35: =IF($B35<='El og plugin hybrid'!E$34,(IF('El og plugin hybrid'!E$44=0,(('El og plugin hybrid'!E$29*'El og plugin hybrid'!E$13/1000)*'Interne beregninger - E&PH'!$C35)*(1+'El og plugin hybrid'!E$37/100)^-$B35,('El og plugin hybrid'!E$44)*(1+'El og plugin hybrid'!E$37/100)^-$B35)),0) -> 0 | G35: =IF($B35<='El og plugin hybrid'!G$34,(IF('El og plugin hybrid'!G$44=0,(('El og plugin hybrid'!G$29*'El og plugin hybrid'!G$13/1000)*'Interne beregninger - E&PH'!$C35)*(1+'El og plugin hybrid'!G$37/100)^-$B35,('El og plugin hybrid'!G$44)*(1+'El og plugin hybrid'!G$37/100)^-$B35)),0) -> 0 | I35: =IF($B35<='El og plugin hybrid'!I$34,(IF('El og plugin hybrid'!I$44=0,(('El og plugin hybrid'!I$29*'El og plugin hybrid'!I$13/1000)*'Interne beregninger - E&PH'!$C35)*(1+'El og plugin hybrid'!I$37/100)^-$B35,('El og plugin hybrid'!I$44)*(1+'El og plugin hybrid'!I$37/100)^-$B35)),0) -> 0 | K35: =IF($B35<='El og plugin hybrid'!K$34,(IF('El og plugin hybrid'!K$44=0,(('El og plugin hybrid'!K$29*'El og plugin hybrid'!K$13/1000)*'Interne beregninger - E&PH'!$C35)*(1+'El og plugin hybrid'!K$37/100)^-$B35,('El og plugin hybrid'!K$44)*(1+'El og plugin hybrid'!K$37/100)^-$B35)),0) -> 0 | M35: =IF($B35<='El og plugin hybrid'!M$34,(IF('El og plugin hybrid'!M$44=0,(('El og plugin hybrid'!M$29*'El og plugin hybrid'!M$13/1000)*'Interne beregninger - E&PH'!$C35)*(1+'El og plugin hybrid'!M$37/100)^-$B35,('El og plugin hybrid'!M$44)*(1+'El og plugin hybrid'!M$37/100)^-$B35)),0) -> 0 | O35: =IF($B35<='El og plugin hybrid'!O$34,(IF('El og plugin hybrid'!O$44=0,(('El og plugin hybrid'!O$29*'El og plugin hybrid'!O$13/1000)*'Interne beregninger - E&PH'!$C35)*(1+'El og plugin hybrid'!O$37/100)^-$B35,('El og plugin hybrid'!O$44)*(1+'El og plugin hybrid'!O$37/100)^-$B35)),0) -> 0 | Q35: =IF($B35<='El og plugin hybrid'!Q$34,(IF('El og plugin hybrid'!Q$44=0,(('El og plugin hybrid'!Q$29*'El og plugin hybrid'!Q$13/1000)*'Interne beregninger - E&PH'!$C35)*(1+'El og plugin hybrid'!Q$37/100)^-$B35,('El og plugin hybrid'!Q$44)*(1+'El og plugin hybrid'!Q$37/100)^-$B35)),0) -> 0 | S35: =IF($B35<='El og plugin hybrid'!S$34,(IF('El og plugin hybrid'!S$44=0,(('El og plugin hybrid'!S$29*'El og plugin hybrid'!S$13/1000)*'Interne beregninger - E&PH'!$C35)*(1+'El og plugin hybrid'!S$37/100)^-$B35,('El og plugin hybrid'!S$44)*(1+'El og plugin hybrid'!S$37/100)^-$B35)),0) -> 0
B36: 12 | C36: =C35*(1+'El og plugin hybrid'!$E$36/100) -> 2.555932657 | E36: =IF($B36<='El og plugin hybrid'!E$34,(IF('El og plugin hybrid'!E$44=0,(('El og plugin hybrid'!E$29*'El og plugin hybrid'!E$13/1000)*'Interne beregninger - E&PH'!$C36)*(1+'El og plugin hybrid'!E$37/100)^-$B36,('El og plugin hybrid'!E$44)*(1+'El og plugin hybrid'!E$37/100)^-$B36)),0) -> 0 | G36: =IF($B36<='El og plugin hybrid'!G$34,(IF('El og plugin hybrid'!G$44=0,(('El og plugin hybrid'!G$29*'El og plugin hybrid'!G$13/1000)*'Interne beregninger - E&PH'!$C36)*(1+'El og plugin hybrid'!G$37/100)^-$B36,('El og plugin hybrid'!G$44)*(1+'El og plugin hybrid'!G$37/100)^-$B36)),0) -> 0 | I36: =IF($B36<='El og plugin hybrid'!I$34,(IF('El og plugin hybrid'!I$44=0,(('El og plugin hybrid'!I$29*'El og plugin hybrid'!I$13/1000)*'Interne beregninger - E&PH'!$C36)*(1+'El og plugin hybrid'!I$37/100)^-$B36,('El og plugin hybrid'!I$44)*(1+'El og plugin hybrid'!I$37/100)^-$B36)),0) -> 0 | K36: =IF($B36<='El og plugin hybrid'!K$34,(IF('El og plugin hybrid'!K$44=0,(('El og plugin hybrid'!K$29*'El og plugin hybrid'!K$13/1000)*'Interne beregninger - E&PH'!$C36)*(1+'El og plugin hybrid'!K$37/100)^-$B36,('El og plugin hybrid'!K$44)*(1+'El og plugin hybrid'!K$37/100)^-$B36)),0) -> 0 | M36: =IF($B36<='El og plugin hybrid'!M$34,(IF('El og plugin hybrid'!M$44=0,(('El og plugin hybrid'!M$29*'El og plugin hybrid'!M$13/1000)*'Interne beregninger - E&PH'!$C36)*(1+'El og plugin hybrid'!M$37/100)^-$B36,('El og plugin hybrid'!M$44)*(1+'El og plugin hybrid'!M$37/100)^-$B36)),0) -> 0 | O36: =IF($B36<='El og plugin hybrid'!O$34,(IF('El og plugin hybrid'!O$44=0,(('El og plugin hybrid'!O$29*'El og plugin hybrid'!O$13/1000)*'Interne beregninger - E&PH'!$C36)*(1+'El og plugin hybrid'!O$37/100)^-$B36,('El og plugin hybrid'!O$44)*(1+'El og plugin hybrid'!O$37/100)^-$B36)),0) -> 0 | Q36: =IF($B36<='El og plugin hybrid'!Q$34,(IF('El og plugin hybrid'!Q$44=0,(('El og plugin hybrid'!Q$29*'El og plugin hybrid'!Q$13/1000)*'Interne beregninger - E&PH'!$C36)*(1+'El og plugin hybrid'!Q$37/100)^-$B36,('El og plugin hybrid'!Q$44)*(1+'El og plugin hybrid'!Q$37/100)^-$B36)),0) -> 0 | S36: =IF($B36<='El og plugin hybrid'!S$34,(IF('El og plugin hybrid'!S$44=0,(('El og plugin hybrid'!S$29*'El og plugin hybrid'!S$13/1000)*'Interne beregninger - E&PH'!$C36)*(1+'El og plugin hybrid'!S$37/100)^-$B36,('El og plugin hybrid'!S$44)*(1+'El og plugin hybrid'!S$37/100)^-$B36)),0) -> 0
B37: 13 | C37: =C36*(1+'El og plugin hybrid'!$E$36/100) -> 2.598643247 | E37: =IF($B37<='El og plugin hybrid'!E$34,(IF('El og plugin hybrid'!E$44=0,(('El og plugin hybrid'!E$29*'El og plugin hybrid'!E$13/1000)*'Interne beregninger - E&PH'!$C37)*(1+'El og plugin hybrid'!E$37/100)^-$B37,('El og plugin hybrid'!E$44)*(1+'El og plugin hybrid'!E$37/100)^-$B37)),0) -> 0 | G37: =IF($B37<='El og plugin hybrid'!G$34,(IF('El og plugin hybrid'!G$44=0,(('El og plugin hybrid'!G$29*'El og plugin hybrid'!G$13/1000)*'Interne beregninger - E&PH'!$C37)*(1+'El og plugin hybrid'!G$37/100)^-$B37,('El og plugin hybrid'!G$44)*(1+'El og plugin hybrid'!G$37/100)^-$B37)),0) -> 0 | I37: =IF($B37<='El og plugin hybrid'!I$34,(IF('El og plugin hybrid'!I$44=0,(('El og plugin hybrid'!I$29*'El og plugin hybrid'!I$13/1000)*'Interne beregninger - E&PH'!$C37)*(1+'El og plugin hybrid'!I$37/100)^-$B37,('El og plugin hybrid'!I$44)*(1+'El og plugin hybrid'!I$37/100)^-$B37)),0) -> 0 | K37: =IF($B37<='El og plugin hybrid'!K$34,(IF('El og plugin hybrid'!K$44=0,(('El og plugin hybrid'!K$29*'El og plugin hybrid'!K$13/1000)*'Interne beregninger - E&PH'!$C37)*(1+'El og plugin hybrid'!K$37/100)^-$B37,('El og plugin hybrid'!K$44)*(1+'El og plugin hybrid'!K$37/100)^-$B37)),0) -> 0 | M37: =IF($B37<='El og plugin hybrid'!M$34,(IF('El og plugin hybrid'!M$44=0,(('El og plugin hybrid'!M$29*'El og plugin hybrid'!M$13/1000)*'Interne beregninger - E&PH'!$C37)*(1+'El og plugin hybrid'!M$37/100)^-$B37,('El og plugin hybrid'!M$44)*(1+'El og plugin hybrid'!M$37/100)^-$B37)),0) -> 0 | O37: =IF($B37<='El og plugin hybrid'!O$34,(IF('El og plugin hybrid'!O$44=0,(('El og plugin hybrid'!O$29*'El og plugin hybrid'!O$13/1000)*'Interne beregninger - E&PH'!$C37)*(1+'El og plugin hybrid'!O$37/100)^-$B37,('El og plugin hybrid'!O$44)*(1+'El og plugin hybrid'!O$37/100)^-$B37)),0) -> 0 | Q37: =IF($B37<='El og plugin hybrid'!Q$34,(IF('El og plugin hybrid'!Q$44=0,(('El og plugin hybrid'!Q$29*'El og plugin hybrid'!Q$13/1000)*'Interne beregninger - E&PH'!$C37)*(1+'El og plugin hybrid'!Q$37/100)^-$B37,('El og plugin hybrid'!Q$44)*(1+'El og plugin hybrid'!Q$37/100)^-$B37)),0) -> 0 | S37: =IF($B37<='El og plugin hybrid'!S$34,(IF('El og plugin hybrid'!S$44=0,(('El og plugin hybrid'!S$29*'El og plugin hybrid'!S$13/1000)*'Interne beregninger - E&PH'!$C37)*(1+'El og plugin hybrid'!S$37/100)^-$B37,('El og plugin hybrid'!S$44)*(1+'El og plugin hybrid'!S$37/100)^-$B37)),0) -> 0
B38: 14 | C38: =C37*(1+'El og plugin hybrid'!$E$36/100) -> 2.642067548 | E38: =IF($B38<='El og plugin hybrid'!E$34,(IF('El og plugin hybrid'!E$44=0,(('El og plugin hybrid'!E$29*'El og plugin hybrid'!E$13/1000)*'Interne beregninger - E&PH'!$C38)*(1+'El og plugin hybrid'!E$37/100)^-$B38,('El og plugin hybrid'!E$44)*(1+'El og plugin hybrid'!E$37/100)^-$B38)),0) -> 0 | G38: =IF($B38<='El og plugin hybrid'!G$34,(IF('El og plugin hybrid'!G$44=0,(('El og plugin hybrid'!G$29*'El og plugin hybrid'!G$13/1000)*'Interne beregninger - E&PH'!$C38)*(1+'El og plugin hybrid'!G$37/100)^-$B38,('El og plugin hybrid'!G$44)*(1+'El og plugin hybrid'!G$37/100)^-$B38)),0) -> 0 | I38: =IF($B38<='El og plugin hybrid'!I$34,(IF('El og plugin hybrid'!I$44=0,(('El og plugin hybrid'!I$29*'El og plugin hybrid'!I$13/1000)*'Interne beregninger - E&PH'!$C38)*(1+'El og plugin hybrid'!I$37/100)^-$B38,('El og plugin hybrid'!I$44)*(1+'El og plugin hybrid'!I$37/100)^-$B38)),0) -> 0 | K38: =IF($B38<='El og plugin hybrid'!K$34,(IF('El og plugin hybrid'!K$44=0,(('El og plugin hybrid'!K$29*'El og plugin hybrid'!K$13/1000)*'Interne beregninger - E&PH'!$C38)*(1+'El og plugin hybrid'!K$37/100)^-$B38,('El og plugin hybrid'!K$44)*(1+'El og plugin hybrid'!K$37/100)^-$B38)),0) -> 0 | M38: =IF($B38<='El og plugin hybrid'!M$34,(IF('El og plugin hybrid'!M$44=0,(('El og plugin hybrid'!M$29*'El og plugin hybrid'!M$13/1000)*'Interne beregninger - E&PH'!$C38)*(1+'El og plugin hybrid'!M$37/100)^-$B38,('El og plugin hybrid'!M$44)*(1+'El og plugin hybrid'!M$37/100)^-$B38)),0) -> 0 | O38: =IF($B38<='El og plugin hybrid'!O$34,(IF('El og plugin hybrid'!O$44=0,(('El og plugin hybrid'!O$29*'El og plugin hybrid'!O$13/1000)*'Interne beregninger - E&PH'!$C38)*(1+'El og plugin hybrid'!O$37/100)^-$B38,('El og plugin hybrid'!O$44)*(1+'El og plugin hybrid'!O$37/100)^-$B38)),0) -> 0 | Q38: =IF($B38<='El og plugin hybrid'!Q$34,(IF('El og plugin hybrid'!Q$44=0,(('El og plugin hybrid'!Q$29*'El og plugin hybrid'!Q$13/1000)*'Interne beregninger - E&PH'!$C38)*(1+'El og plugin hybrid'!Q$37/100)^-$B38,('El og plugin hybrid'!Q$44)*(1+'El og plugin hybrid'!Q$37/100)^-$B38)),0) -> 0 | S38: =IF($B38<='El og plugin hybrid'!S$34,(IF('El og plugin hybrid'!S$44=0,(('El og plugin hybrid'!S$29*'El og plugin hybrid'!S$13/1000)*'Interne beregninger - E&PH'!$C38)*(1+'El og plugin hybrid'!S$37/100)^-$B38,('El og plugin hybrid'!S$44)*(1+'El og plugin hybrid'!S$37/100)^-$B38)),0) -> 0
B39: 15 | C39: =C38*(1+'El og plugin hybrid'!$E$36/100) -> 2.686217484 | E39: =IF($B39<='El og plugin hybrid'!E$34,(IF('El og plugin hybrid'!E$44=0,(('El og plugin hybrid'!E$29*'El og plugin hybrid'!E$13/1000)*'Interne beregninger - E&PH'!$C39)*(1+'El og plugin hybrid'!E$37/100)^-$B39,('El og plugin hybrid'!E$44)*(1+'El og plugin hybrid'!E$37/100)^-$B39)),0) -> 0 | G39: =IF($B39<='El og plugin hybrid'!G$34,(IF('El og plugin hybrid'!G$44=0,(('El og plugin hybrid'!G$29*'El og plugin hybrid'!G$13/1000)*'Interne beregninger - E&PH'!$C39)*(1+'El og plugin hybrid'!G$37/100)^-$B39,('El og plugin hybrid'!G$44)*(1+'El og plugin hybrid'!G$37/100)^-$B39)),0) -> 0 | I39: =IF($B39<='El og plugin hybrid'!I$34,(IF('El og plugin hybrid'!I$44=0,(('El og plugin hybrid'!I$29*'El og plugin hybrid'!I$13/1000)*'Interne beregninger - E&PH'!$C39)*(1+'El og plugin hybrid'!I$37/100)^-$B39,('El og plugin hybrid'!I$44)*(1+'El og plugin hybrid'!I$37/100)^-$B39)),0) -> 0 | K39: =IF($B39<='El og plugin hybrid'!K$34,(IF('El og plugin hybrid'!K$44=0,(('El og plugin hybrid'!K$29*'El og plugin hybrid'!K$13/1000)*'Interne beregninger - E&PH'!$C39)*(1+'El og plugin hybrid'!K$37/100)^-$B39,('El og plugin hybrid'!K$44)*(1+'El og plugin hybrid'!K$37/100)^-$B39)),0) -> 0 | M39: =IF($B39<='El og plugin hybrid'!M$34,(IF('El og plugin hybrid'!M$44=0,(('El og plugin hybrid'!M$29*'El og plugin hybrid'!M$13/1000)*'Interne beregninger - E&PH'!$C39)*(1+'El og plugin hybrid'!M$37/100)^-$B39,('El og plugin hybrid'!M$44)*(1+'El og plugin hybrid'!M$37/100)^-$B39)),0) -> 0 | O39: =IF($B39<='El og plugin hybrid'!O$34,(IF('El og plugin hybrid'!O$44=0,(('El og plugin hybrid'!O$29*'El og plugin hybrid'!O$13/1000)*'Interne beregninger - E&PH'!$C39)*(1+'El og plugin hybrid'!O$37/100)^-$B39,('El og plugin hybrid'!O$44)*(1+'El og plugin hybrid'!O$37/100)^-$B39)),0) -> 0 | Q39: =IF($B39<='El og plugin hybrid'!Q$34,(IF('El og plugin hybrid'!Q$44=0,(('El og plugin hybrid'!Q$29*'El og plugin hybrid'!Q$13/1000)*'Interne beregninger - E&PH'!$C39)*(1+'El og plugin hybrid'!Q$37/100)^-$B39,('El og plugin hybrid'!Q$44)*(1+'El og plugin hybrid'!Q$37/100)^-$B39)),0) -> 0 | S39: =IF($B39<='El og plugin hybrid'!S$34,(IF('El og plugin hybrid'!S$44=0,(('El og plugin hybrid'!S$29*'El og plugin hybrid'!S$13/1000)*'Interne beregninger - E&PH'!$C39)*(1+'El og plugin hybrid'!S$37/100)^-$B39,('El og plugin hybrid'!S$44)*(1+'El og plugin hybrid'!S$37/100)^-$B39)),0) -> 0
A41: Driftsomkostninger plugin hybrid
B42: År indeks | C42: Benzinpris | D42: Dieselpris | E42: ='El og plugin hybrid'!E8 -> PRODUKT 1 EL | F42: Valgt pris 1 | G42: ='El og plugin hybrid'!G8 -> PRODUKT 2 EL | H42: Valgt pris 2 | I42: ='El og plugin hybrid'!I8 -> PRODUKT 3 EL | J42: Valgt pris 3 | K42: ='El og plugin hybrid'!K8 -> PRODUKT 4 EL | L42: Valgt pris 4 | M42: ='El og plugin hybrid'!M8 -> PRODUKT 5 EL | N42: Valgt pris 5 | O42: ='El og plugin hybrid'!O8 -> PRODUKT 6 EL | P42: Valgt pris 6 | Q42: ='El og plugin hybrid'!Q8 -> PRODUKT 7 EL | R42: Valgt pris 7 | S42: ='El og plugin hybrid'!S8 -> PRODUKT 8 EL | T42: Valgt pris 8
B43: 1 | C43: ='El og plugin hybrid'!E56 -> 12.33 | D43: =+'El og plugin hybrid'!E57 -> 10.83 | E43: =(IF('El og plugin hybrid'!E$23=0,0,(IF($B43<='El og plugin hybrid'!E$34,(('El og plugin hybrid'!E$29/'El og plugin hybrid'!E$23)*F43),0))*(1+'El og plugin hybrid'!E$37/100)^-$B43)) -> 0 | F43: =IF('El og plugin hybrid'!E$51="El og benzin",$C43,IF('El og plugin hybrid'!E$51="El og diesel",$D43,IF('El og plugin hybrid'!E$51="El",0,"Brændstof ikke valgt"))) -> Brændstof ikke valgt | G43: =(IF('El og plugin hybrid'!G$23=0,0,(IF($B43<='El og plugin hybrid'!G$34,(('El og plugin hybrid'!G$29/'El og plugin hybrid'!G$23)*H43),0))*(1+'El og plugin hybrid'!G$37/100)^-$B43)) -> 0 | H43: =IF('El og plugin hybrid'!G$51="El og benzin",$C43,IF('El og plugin hybrid'!G$51="El og diesel",$D43,IF('El og plugin hybrid'!G$51="El",0,"Brændstof ikke valgt"))) -> Brændstof ikke valgt | I43: =(IF('El og plugin hybrid'!I$23=0,0,(IF($B43<='El og plugin hybrid'!I$34,(('El og plugin hybrid'!I$29/'El og plugin hybrid'!I$23)*J43),0))*(1+'El og plugin hybrid'!I$37/100)^-$B43)) -> 0 | J43: =IF('El og plugin hybrid'!I$51="El og benzin",$C43,IF('El og plugin hybrid'!I$51="El og diesel",$D43,IF('El og plugin hybrid'!I$51="El",0,"Brændstof ikke valgt"))) -> Brændstof ikke valgt | K43: =(IF('El og plugin hybrid'!K$23=0,0,(IF($B43<='El og plugin hybrid'!K$34,(('El og plugin hybrid'!K$29/'El og plugin hybrid'!K$23)*L43),0))*(1+'El og plugin hybrid'!K$37/100)^-$B43)) -> 0 | L43: =IF('El og plugin hybrid'!K$51="El og benzin",$C43,IF('El og plugin hybrid'!K$51="El og diesel",$D43,IF('El og plugin hybrid'!K$51="El",0,"Brændstof ikke valgt"))) -> Brændstof ikke valgt | M43: =(IF('El og plugin hybrid'!M$23=0,0,(IF($B43<='El og plugin hybrid'!M$34,(('El og plugin hybrid'!M$29/'El og plugin hybrid'!M$23)*N43),0))*(1+'El og plugin hybrid'!M$37/100)^-$B43)) -> 0 | N43: =IF('El og plugin hybrid'!M$51="El og benzin",$C43,IF('El og plugin hybrid'!M$51="El og diesel",$D43,IF('El og plugin hybrid'!M$51="El",0,"Brændstof ikke valgt"))) -> Brændstof ikke valgt | O43: =(IF('El og plugin hybrid'!O$23=0,0,(IF($B43<='El og plugin hybrid'!O$34,(('El og plugin hybrid'!O$29/'El og plugin hybrid'!O$23)*P43),0))*(1+'El og plugin hybrid'!O$37/100)^-$B43)) -> 0 | P43: =IF('El og plugin hybrid'!O$51="El og benzin",$C43,IF('El og plugin hybrid'!O$51="El og diesel",$D43,IF('El og plugin hybrid'!O$51="El",0,"Brændstof ikke valgt"))) -> Brændstof ikke valgt | Q43: =(IF('El og plugin hybrid'!Q$23=0,0,(IF($B43<='El og plugin hybrid'!Q$34,(('El og plugin hybrid'!Q$29/'El og plugin hybrid'!Q$23)*R43),0))*(1+'El og plugin hybrid'!Q$37/100)^-$B43)) -> 0 | R43: =IF('El og plugin hybrid'!Q$51="El og benzin",$C43,IF('El og plugin hybrid'!Q$51="El og diesel",$D43,IF('El og plugin hybrid'!Q$51="El",0,"Brændstof ikke valgt"))) -> Brændstof ikke valgt | S43: =(IF('El og plugin hybrid'!S$23=0,0,(IF($B43<='El og plugin hybrid'!S$34,(('El og plugin hybrid'!S$29/'El og plugin hybrid'!S$23)*T43),0))*(1+'El og plugin hybrid'!S$37/100)^-$B43)) -> 0 | T43: =IF('El og plugin hybrid'!S$51="El og benzin",$C43,IF('El og plugin hybrid'!S$51="El og diesel",$D43,IF('El og plugin hybrid'!S$51="El",0,"Brændstof ikke valgt"))) -> Brændstof ikke valgt
B44: 2 | C44: =C43*(1+'El og plugin hybrid'!$E$58/100) -> 12.50077618 | D44: =D43*(1+'El og plugin hybrid'!$E$59/100) -> 10.98678944 | E44: =(IF('El og plugin hybrid'!E$23=0,0,(IF($B44<='El og plugin hybrid'!E$34,(('El og plugin hybrid'!E$29/'El og plugin hybrid'!E$23)*F44),0))*(1+'El og plugin hybrid'!E$37/100)^-$B44)) -> 0 | F44: =IF('El og plugin hybrid'!E$51="El og benzin",$C44,IF('El og plugin hybrid'!E$51="El og diesel",$D44,IF('El og plugin hybrid'!E$51="El",0,"Brændstof ikke valgt"))) -> Brændstof ikke valgt | G44: =(IF('El og plugin hybrid'!G$23=0,0,(IF($B44<='El og plugin hybrid'!G$34,(('El og plugin hybrid'!G$29/'El og plugin hybrid'!G$23)*H44),0))*(1+'El og plugin hybrid'!G$37/100)^-$B44)) -> 0 | H44: =IF('El og plugin hybrid'!G$51="El og benzin",$C44,IF('El og plugin hybrid'!G$51="El og diesel",$D44,IF('El og plugin hybrid'!G$51="El",0,"Brændstof ikke valgt"))) -> Brændstof ikke valgt | I44: =(IF('El og plugin hybrid'!I$23=0,0,(IF($B44<='El og plugin hybrid'!I$34,(('El og plugin hybrid'!I$29/'El og plugin hybrid'!I$23)*J44),0))*(1+'El og plugin hybrid'!I$37/100)^-$B44)) -> 0 | J44: =IF('El og plugin hybrid'!I$51="El og benzin",$C44,IF('El og plugin hybrid'!I$51="El og diesel",$D44,IF('El og plugin hybrid'!I$51="El",0,"Brændstof ikke valgt"))) -> Brændstof ikke valgt | K44: =(IF('El og plugin hybrid'!K$23=0,0,(IF($B44<='El og plugin hybrid'!K$34,(('El og plugin hybrid'!K$29/'El og plugin hybrid'!K$23)*L44),0))*(1+'El og plugin hybrid'!K$37/100)^-$B44)) -> 0 | L44: =IF('El og plugin hybrid'!K$51="El og benzin",$C44,IF('El og plugin hybrid'!K$51="El og diesel",$D44,IF('El og plugin hybrid'!K$51="El",0,"Brændstof ikke valgt"))) -> Brændstof ikke valgt | M44: =(IF('El og plugin hybrid'!M$23=0,0,(IF($B44<='El og plugin hybrid'!M$34,(('El og plugin hybrid'!M$29/'El og plugin hybrid'!M$23)*N44),0))*(1+'El og plugin hybrid'!M$37/100)^-$B44)) -> 0 | N44: =IF('El og plugin hybrid'!M$51="El og benzin",$C44,IF('El og plugin hybrid'!M$51="El og diesel",$D44,IF('El og plugin hybrid'!M$51="El",0,"Brændstof ikke valgt"))) -> Brændstof ikke valgt | O44: =(IF('El og plugin hybrid'!O$23=0,0,(IF($B44<='El og plugin hybrid'!O$34,(('El og plugin hybrid'!O$29/'El og plugin hybrid'!O$23)*P44),0))*(1+'El og plugin hybrid'!O$37/100)^-$B44)) -> 0 | P44: =IF('El og plugin hybrid'!O$51="El og benzin",$C44,IF('El og plugin hybrid'!O$51="El og diesel",$D44,IF('El og plugin hybrid'!O$51="El",0,"Brændstof ikke valgt"))) -> Brændstof ikke valgt | Q44: =(IF('El og plugin hybrid'!Q$23=0,0,(IF($B44<='El og plugin hybrid'!Q$34,(('El og plugin hybrid'!Q$29/'El og plugin hybrid'!Q$23)*R44),0))*(1+'El og plugin hybrid'!Q$37/100)^-$B44)) -> 0 | R44: =IF('El og plugin hybrid'!Q$51="El og benzin",$C44,IF('El og plugin hybrid'!Q$51="El og diesel",$D44,IF('El og plugin hybrid'!Q$51="El",0,"Brændstof ikke valgt"))) -> Brændstof ikke valgt | S44: =(IF('El og plugin hybrid'!S$23=0,0,(IF($B44<='El og plugin hybrid'!S$34,(('El og plugin hybrid'!S$29/'El og plugin hybrid'!S$23)*T44),0))*(1+'El og plugin hybrid'!S$37/100)^-$B44)) -> 0 | T44: =IF('El og plugin hybrid'!S$51="El og benzin",$C44,IF('El og plugin hybrid'!S$51="El og diesel",$D44,IF('El og plugin hybrid'!S$51="El",0,"Brændstof ikke valgt"))) -> Brændstof ikke valgt
B45: 3 | C45: =C44*(1+'El og plugin hybrid'!$E$58/100) -> 12.67391769 | D45: =D44*(1+'El og plugin hybrid'!$E$59/100) -> 11.14584878 | E45: =(IF('El og plugin hybrid'!E$23=0,0,(IF($B45<='El og plugin hybrid'!E$34,(('El og plugin hybrid'!E$29/'El og plugin hybrid'!E$23)*F45),0))*(1+'El og plugin hybrid'!E$37/100)^-$B45)) -> 0 | F45: =IF('El og plugin hybrid'!E$51="El og benzin",$C45,IF('El og plugin hybrid'!E$51="El og diesel",$D45,IF('El og plugin hybrid'!E$51="El",0,"Brændstof ikke valgt"))) -> Brændstof ikke valgt | G45: =(IF('El og plugin hybrid'!G$23=0,0,(IF($B45<='El og plugin hybrid'!G$34,(('El og plugin hybrid'!G$29/'El og plugin hybrid'!G$23)*H45),0))*(1+'El og plugin hybrid'!G$37/100)^-$B45)) -> 0 | H45: =IF('El og plugin hybrid'!G$51="El og benzin",$C45,IF('El og plugin hybrid'!G$51="El og diesel",$D45,IF('El og plugin hybrid'!G$51="El",0,"Brændstof ikke valgt"))) -> Brændstof ikke valgt | I45: =(IF('El og plugin hybrid'!I$23=0,0,(IF($B45<='El og plugin hybrid'!I$34,(('El og plugin hybrid'!I$29/'El og plugin hybrid'!I$23)*J45),0))*(1+'El og plugin hybrid'!I$37/100)^-$B45)) -> 0 | J45: =IF('El og plugin hybrid'!I$51="El og benzin",$C45,IF('El og plugin hybrid'!I$51="El og diesel",$D45,IF('El og plugin hybrid'!I$51="El",0,"Brændstof ikke valgt"))) -> Brændstof ikke valgt | K45: =(IF('El og plugin hybrid'!K$23=0,0,(IF($B45<='El og plugin hybrid'!K$34,(('El og plugin hybrid'!K$29/'El og plugin hybrid'!K$23)*L45),0))*(1+'El og plugin hybrid'!K$37/100)^-$B45)) -> 0 | L45: =IF('El og plugin hybrid'!K$51="El og benzin",$C45,IF('El og plugin hybrid'!K$51="El og diesel",$D45,IF('El og plugin hybrid'!K$51="El",0,"Brændstof ikke valgt"))) -> Brændstof ikke valgt | M45: =(IF('El og plugin hybrid'!M$23=0,0,(IF($B45<='El og plugin hybrid'!M$34,(('El og plugin hybrid'!M$29/'El og plugin hybrid'!M$23)*N45),0))*(1+'El og plugin hybrid'!M$37/100)^-$B45)) -> 0 | N45: =IF('El og plugin hybrid'!M$51="El og benzin",$C45,IF('El og plugin hybrid'!M$51="El og diesel",$D45,IF('El og plugin hybrid'!M$51="El",0,"Brændstof ikke valgt"))) -> Brændstof ikke valgt | O45: =(IF('El og plugin hybrid'!O$23=0,0,(IF($B45<='El og plugin hybrid'!O$34,(('El og plugin hybrid'!O$29/'El og plugin hybrid'!O$23)*P45),0))*(1+'El og plugin hybrid'!O$37/100)^-$B45)) -> 0 | P45: =IF('El og plugin hybrid'!O$51="El og benzin",$C45,IF('El og plugin hybrid'!O$51="El og diesel",$D45,IF('El og plugin hybrid'!O$51="El",0,"Brændstof ikke valgt"))) -> Brændstof ikke valgt | Q45: =(IF('El og plugin hybrid'!Q$23=0,0,(IF($B45<='El og plugin hybrid'!Q$34,(('El og plugin hybrid'!Q$29/'El og plugin hybrid'!Q$23)*R45),0))*(1+'El og plugin hybrid'!Q$37/100)^-$B45)) -> 0 | R45: =IF('El og plugin hybrid'!Q$51="El og benzin",$C45,IF('El og plugin hybrid'!Q$51="El og diesel",$D45,IF('El og plugin hybrid'!Q$51="El",0,"Brændstof ikke valgt"))) -> Brændstof ikke valgt | S45: =(IF('El og plugin hybrid'!S$23=0,0,(IF($B45<='El og plugin hybrid'!S$34,(('El og plugin hybrid'!S$29/'El og plugin hybrid'!S$23)*T45),0))*(1+'El og plugin hybrid'!S$37/100)^-$B45)) -> 0 | T45: =IF('El og plugin hybrid'!S$51="El og benzin",$C45,IF('El og plugin hybrid'!S$51="El og diesel",$D45,IF('El og plugin hybrid'!S$51="El",0,"Brændstof ikke valgt"))) -> Brændstof ikke valgt
B46: 4 | C46: =C45*(1+'El og plugin hybrid'!$E$58/100) -> 12.84945729 | D46: =D45*(1+'El og plugin hybrid'!$E$59/100) -> 11.30721087 | E46: =(IF('El og plugin hybrid'!E$23=0,0,(IF($B46<='El og plugin hybrid'!E$34,(('El og plugin hybrid'!E$29/'El og plugin hybrid'!E$23)*F46),0))*(1+'El og plugin hybrid'!E$37/100)^-$B46)) -> 0 | F46: =IF('El og plugin hybrid'!E$51="El og benzin",$C46,IF('El og plugin hybrid'!E$51="El og diesel",$D46,IF('El og plugin hybrid'!E$51="El",0,"Brændstof ikke valgt"))) -> Brændstof ikke valgt | G46: =(IF('El og plugin hybrid'!G$23=0,0,(IF($B46<='El og plugin hybrid'!G$34,(('El og plugin hybrid'!G$29/'El og plugin hybrid'!G$23)*H46),0))*(1+'El og plugin hybrid'!G$37/100)^-$B46)) -> 0 | H46: =IF('El og plugin hybrid'!G$51="El og benzin",$C46,IF('El og plugin hybrid'!G$51="El og diesel",$D46,IF('El og plugin hybrid'!G$51="El",0,"Brændstof ikke valgt"))) -> Brændstof ikke valgt | I46: =(IF('El og plugin hybrid'!I$23=0,0,(IF($B46<='El og plugin hybrid'!I$34,(('El og plugin hybrid'!I$29/'El og plugin hybrid'!I$23)*J46),0))*(1+'El og plugin hybrid'!I$37/100)^-$B46)) -> 0 | J46: =IF('El og plugin hybrid'!I$51="El og benzin",$C46,IF('El og plugin hybrid'!I$51="El og diesel",$D46,IF('El og plugin hybrid'!I$51="El",0,"Brændstof ikke valgt"))) -> Brændstof ikke valgt | K46: =(IF('El og plugin hybrid'!K$23=0,0,(IF($B46<='El og plugin hybrid'!K$34,(('El og plugin hybrid'!K$29/'El og plugin hybrid'!K$23)*L46),0))*(1+'El og plugin hybrid'!K$37/100)^-$B46)) -> 0 | L46: =IF('El og plugin hybrid'!K$51="El og benzin",$C46,IF('El og plugin hybrid'!K$51="El og diesel",$D46,IF('El og plugin hybrid'!K$51="El",0,"Brændstof ikke valgt"))) -> Brændstof ikke valgt | M46: =(IF('El og plugin hybrid'!M$23=0,0,(IF($B46<='El og plugin hybrid'!M$34,(('El og plugin hybrid'!M$29/'El og plugin hybrid'!M$23)*N46),0))*(1+'El og plugin hybrid'!M$37/100)^-$B46)) -> 0 | N46: =IF('El og plugin hybrid'!M$51="El og benzin",$C46,IF('El og plugin hybrid'!M$51="El og diesel",$D46,IF('El og plugin hybrid'!M$51="El",0,"Brændstof ikke valgt"))) -> Brændstof ikke valgt | O46: =(IF('El og plugin hybrid'!O$23=0,0,(IF($B46<='El og plugin hybrid'!O$34,(('El og plugin hybrid'!O$29/'El og plugin hybrid'!O$23)*P46),0))*(1+'El og plugin hybrid'!O$37/100)^-$B46)) -> 0 | P46: =IF('El og plugin hybrid'!O$51="El og benzin",$C46,IF('El og plugin hybrid'!O$51="El og diesel",$D46,IF('El og plugin hybrid'!O$51="El",0,"Brændstof ikke valgt"))) -> Brændstof ikke valgt | Q46: =(IF('El og plugin hybrid'!Q$23=0,0,(IF($B46<='El og plugin hybrid'!Q$34,(('El og plugin hybrid'!Q$29/'El og plugin hybrid'!Q$23)*R46),0))*(1+'El og plugin hybrid'!Q$37/100)^-$B46)) -> 0 | R46: =IF('El og plugin hybrid'!Q$51="El og benzin",$C46,IF('El og plugin hybrid'!Q$51="El og diesel",$D46,IF('El og plugin hybrid'!Q$51="El",0,"Brændstof ikke valgt"))) -> Brændstof ikke valgt | S46: =(IF('El og plugin hybrid'!S$23=0,0,(IF($B46<='El og plugin hybrid'!S$34,(('El og plugin hybrid'!S$29/'El og plugin hybrid'!S$23)*T46),0))*(1+'El og plugin hybrid'!S$37/100)^-$B46)) -> 0 | T46: =IF('El og plugin hybrid'!S$51="El og benzin",$C46,IF('El og plugin hybrid'!S$51="El og diesel",$D46,IF('El og plugin hybrid'!S$51="El",0,"Brændstof ikke valgt"))) -> Brændstof ikke valgt
B47: 5 | C47: =C46*(1+'El og plugin hybrid'!$E$58/100) -> 13.02742819 | D47: =D46*(1+'El og plugin hybrid'!$E$59/100) -> 11.47090905 | E47: =(IF('El og plugin hybrid'!E$23=0,0,(IF($B47<='El og plugin hybrid'!E$34,(('El og plugin hybrid'!E$29/'El og plugin hybrid'!E$23)*F47),0))*(1+'El og plugin hybrid'!E$37/100)^-$B47)) -> 0 | F47: =IF('El og plugin hybrid'!E$51="El og benzin",$C47,IF('El og plugin hybrid'!E$51="El og diesel",$D47,IF('El og plugin hybrid'!E$51="El",0,"Brændstof ikke valgt"))) -> Brændstof ikke valgt | G47: =(IF('El og plugin hybrid'!G$23=0,0,(IF($B47<='El og plugin hybrid'!G$34,(('El og plugin hybrid'!G$29/'El og plugin hybrid'!G$23)*H47),0))*(1+'El og plugin hybrid'!G$37/100)^-$B47)) -> 0 | H47: =IF('El og plugin hybrid'!G$51="El og benzin",$C47,IF('El og plugin hybrid'!G$51="El og diesel",$D47,IF('El og plugin hybrid'!G$51="El",0,"Brændstof ikke valgt"))) -> Brændstof ikke valgt | I47: =(IF('El og plugin hybrid'!I$23=0,0,(IF($B47<='El og plugin hybrid'!I$34,(('El og plugin hybrid'!I$29/'El og plugin hybrid'!I$23)*J47),0))*(1+'El og plugin hybrid'!I$37/100)^-$B47)) -> 0 | J47: =IF('El og plugin hybrid'!I$51="El og benzin",$C47,IF('El og plugin hybrid'!I$51="El og diesel",$D47,IF('El og plugin hybrid'!I$51="El",0,"Brændstof ikke valgt"))) -> Brændstof ikke valgt | K47: =(IF('El og plugin hybrid'!K$23=0,0,(IF($B47<='El og plugin hybrid'!K$34,(('El og plugin hybrid'!K$29/'El og plugin hybrid'!K$23)*L47),0))*(1+'El og plugin hybrid'!K$37/100)^-$B47)) -> 0 | L47: =IF('El og plugin hybrid'!K$51="El og benzin",$C47,IF('El og plugin hybrid'!K$51="El og diesel",$D47,IF('El og plugin hybrid'!K$51="El",0,"Brændstof ikke valgt"))) -> Brændstof ikke valgt | M47: =(IF('El og plugin hybrid'!M$23=0,0,(IF($B47<='El og plugin hybrid'!M$34,(('El og plugin hybrid'!M$29/'El og plugin hybrid'!M$23)*N47),0))*(1+'El og plugin hybrid'!M$37/100)^-$B47)) -> 0 | N47: =IF('El og plugin hybrid'!M$51="El og benzin",$C47,IF('El og plugin hybrid'!M$51="El og diesel",$D47,IF('El og plugin hybrid'!M$51="El",0,"Brændstof ikke valgt"))) -> Brændstof ikke valgt | O47: =(IF('El og plugin hybrid'!O$23=0,0,(IF($B47<='El og plugin hybrid'!O$34,(('El og plugin hybrid'!O$29/'El og plugin hybrid'!O$23)*P47),0))*(1+'El og plugin hybrid'!O$37/100)^-$B47)) -> 0 | P47: =IF('El og plugin hybrid'!O$51="El og benzin",$C47,IF('El og plugin hybrid'!O$51="El og diesel",$D47,IF('El og plugin hybrid'!O$51="El",0,"Brændstof ikke valgt"))) -> Brændstof ikke valgt | Q47: =(IF('El og plugin hybrid'!Q$23=0,0,(IF($B47<='El og plugin hybrid'!Q$34,(('El og plugin hybrid'!Q$29/'El og plugin hybrid'!Q$23)*R47),0))*(1+'El og plugin hybrid'!Q$37/100)^-$B47)) -> 0 | R47: =IF('El og plugin hybrid'!Q$51="El og benzin",$C47,IF('El og plugin hybrid'!Q$51="El og diesel",$D47,IF('El og plugin hybrid'!Q$51="El",0,"Brændstof ikke valgt"))) -> Brændstof ikke valgt | S47: =(IF('El og plugin hybrid'!S$23=0,0,(IF($B47<='El og plugin hybrid'!S$34,(('El og plugin hybrid'!S$29/'El og plugin hybrid'!S$23)*T47),0))*(1+'El og plugin hybrid'!S$37/100)^-$B47)) -> 0 | T47: =IF('El og plugin hybrid'!S$51="El og benzin",$C47,IF('El og plugin hybrid'!S$51="El og diesel",$D47,IF('El og plugin hybrid'!S$51="El",0,"Brændstof ikke valgt"))) -> Brændstof ikke valgt
B48: 6 | C48: =C47*(1+'El og plugin hybrid'!$E$58/100) -> 13.20786408 | D48: =D47*(1+'El og plugin hybrid'!$E$59/100) -> 11.63697714 | E48: =(IF('El og plugin hybrid'!E$23=0,0,(IF($B48<='El og plugin hybrid'!E$34,(('El og plugin hybrid'!E$29/'El og plugin hybrid'!E$23)*F48),0))*(1+'El og plugin hybrid'!E$37/100)^-$B48)) -> 0 | F48: =IF('El og plugin hybrid'!E$51="El og benzin",$C48,IF('El og plugin hybrid'!E$51="El og diesel",$D48,IF('El og plugin hybrid'!E$51="El",0,"Brændstof ikke valgt"))) -> Brændstof ikke valgt | G48: =(IF('El og plugin hybrid'!G$23=0,0,(IF($B48<='El og plugin hybrid'!G$34,(('El og plugin hybrid'!G$29/'El og plugin hybrid'!G$23)*H48),0))*(1+'El og plugin hybrid'!G$37/100)^-$B48)) -> 0 | H48: =IF('El og plugin hybrid'!G$51="El og benzin",$C48,IF('El og plugin hybrid'!G$51="El og diesel",$D48,IF('El og plugin hybrid'!G$51="El",0,"Brændstof ikke valgt"))) -> Brændstof ikke valgt | I48: =(IF('El og plugin hybrid'!I$23=0,0,(IF($B48<='El og plugin hybrid'!I$34,(('El og plugin hybrid'!I$29/'El og plugin hybrid'!I$23)*J48),0))*(1+'El og plugin hybrid'!I$37/100)^-$B48)) -> 0 | J48: =IF('El og plugin hybrid'!I$51="El og benzin",$C48,IF('El og plugin hybrid'!I$51="El og diesel",$D48,IF('El og plugin hybrid'!I$51="El",0,"Brændstof ikke valgt"))) -> Brændstof ikke valgt | K48: =(IF('El og plugin hybrid'!K$23=0,0,(IF($B48<='El og plugin hybrid'!K$34,(('El og plugin hybrid'!K$29/'El og plugin hybrid'!K$23)*L48),0))*(1+'El og plugin hybrid'!K$37/100)^-$B48)) -> 0 | L48: =IF('El og plugin hybrid'!K$51="El og benzin",$C48,IF('El og plugin hybrid'!K$51="El og diesel",$D48,IF('El og plugin hybrid'!K$51="El",0,"Brændstof ikke valgt"))) -> Brændstof ikke valgt | M48: =(IF('El og plugin hybrid'!M$23=0,0,(IF($B48<='El og plugin hybrid'!M$34,(('El og plugin hybrid'!M$29/'El og plugin hybrid'!M$23)*N48),0))*(1+'El og plugin hybrid'!M$37/100)^-$B48)) -> 0 | N48: =IF('El og plugin hybrid'!M$51="El og benzin",$C48,IF('El og plugin hybrid'!M$51="El og diesel",$D48,IF('El og plugin hybrid'!M$51="El",0,"Brændstof ikke valgt"))) -> Brændstof ikke valgt | O48: =(IF('El og plugin hybrid'!O$23=0,0,(IF($B48<='El og plugin hybrid'!O$34,(('El og plugin hybrid'!O$29/'El og plugin hybrid'!O$23)*P48),0))*(1+'El og plugin hybrid'!O$37/100)^-$B48)) -> 0 | P48: =IF('El og plugin hybrid'!O$51="El og benzin",$C48,IF('El og plugin hybrid'!O$51="El og diesel",$D48,IF('El og plugin hybrid'!O$51="El",0,"Brændstof ikke valgt"))) -> Brændstof ikke valgt | Q48: =(IF('El og plugin hybrid'!Q$23=0,0,(IF($B48<='El og plugin hybrid'!Q$34,(('El og plugin hybrid'!Q$29/'El og plugin hybrid'!Q$23)*R48),0))*(1+'El og plugin hybrid'!Q$37/100)^-$B48)) -> 0 | R48: =IF('El og plugin hybrid'!Q$51="El og benzin",$C48,IF('El og plugin hybrid'!Q$51="El og diesel",$D48,IF('El og plugin hybrid'!Q$51="El",0,"Brændstof ikke valgt"))) -> Brændstof ikke valgt | S48: =(IF('El og plugin hybrid'!S$23=0,0,(IF($B48<='El og plugin hybrid'!S$34,(('El og plugin hybrid'!S$29/'El og plugin hybrid'!S$23)*T48),0))*(1+'El og plugin hybrid'!S$37/100)^-$B48)) -> 0 | T48: =IF('El og plugin hybrid'!S$51="El og benzin",$C48,IF('El og plugin hybrid'!S$51="El og diesel",$D48,IF('El og plugin hybrid'!S$51="El",0,"Brændstof ikke valgt"))) -> Brændstof ikke valgt
B49: 7 | C49: =C48*(1+'El og plugin hybrid'!$E$58/100) -> 13.39079908 | D49: =D48*(1+'El og plugin hybrid'!$E$59/100) -> 11.80544945 | E49: =(IF('El og plugin hybrid'!E$23=0,0,(IF($B49<='El og plugin hybrid'!E$34,(('El og plugin hybrid'!E$29/'El og plugin hybrid'!E$23)*F49),0))*(1+'El og plugin hybrid'!E$37/100)^-$B49)) -> 0 | F49: =IF('El og plugin hybrid'!E$51="El og benzin",$C49,IF('El og plugin hybrid'!E$51="El og diesel",$D49,IF('El og plugin hybrid'!E$51="El",0,"Brændstof ikke valgt"))) -> Brændstof ikke valgt | G49: =(IF('El og plugin hybrid'!G$23=0,0,(IF($B49<='El og plugin hybrid'!G$34,(('El og plugin hybrid'!G$29/'El og plugin hybrid'!G$23)*H49),0))*(1+'El og plugin hybrid'!G$37/100)^-$B49)) -> 0 | H49: =IF('El og plugin hybrid'!G$51="El og benzin",$C49,IF('El og plugin hybrid'!G$51="El og diesel",$D49,IF('El og plugin hybrid'!G$51="El",0,"Brændstof ikke valgt"))) -> Brændstof ikke valgt | I49: =(IF('El og plugin hybrid'!I$23=0,0,(IF($B49<='El og plugin hybrid'!I$34,(('El og plugin hybrid'!I$29/'El og plugin hybrid'!I$23)*J49),0))*(1+'El og plugin hybrid'!I$37/100)^-$B49)) -> 0 | J49: =IF('El og plugin hybrid'!I$51="El og benzin",$C49,IF('El og plugin hybrid'!I$51="El og diesel",$D49,IF('El og plugin hybrid'!I$51="El",0,"Brændstof ikke valgt"))) -> Brændstof ikke valgt | K49: =(IF('El og plugin hybrid'!K$23=0,0,(IF($B49<='El og plugin hybrid'!K$34,(('El og plugin hybrid'!K$29/'El og plugin hybrid'!K$23)*L49),0))*(1+'El og plugin hybrid'!K$37/100)^-$B49)) -> 0 | L49: =IF('El og plugin hybrid'!K$51="El og benzin",$C49,IF('El og plugin hybrid'!K$51="El og diesel",$D49,IF('El og plugin hybrid'!K$51="El",0,"Brændstof ikke valgt"))) -> Brændstof ikke valgt | M49: =(IF('El og plugin hybrid'!M$23=0,0,(IF($B49<='El og plugin hybrid'!M$34,(('El og plugin hybrid'!M$29/'El og plugin hybrid'!M$23)*N49),0))*(1+'El og plugin hybrid'!M$37/100)^-$B49)) -> 0 | N49: =IF('El og plugin hybrid'!M$51="El og benzin",$C49,IF('El og plugin hybrid'!M$51="El og diesel",$D49,IF('El og plugin hybrid'!M$51="El",0,"Brændstof ikke valgt"))) -> Brændstof ikke valgt | O49: =(IF('El og plugin hybrid'!O$23=0,0,(IF($B49<='El og plugin hybrid'!O$34,(('El og plugin hybrid'!O$29/'El og plugin hybrid'!O$23)*P49),0))*(1+'El og plugin hybrid'!O$37/100)^-$B49)) -> 0 | P49: =IF('El og plugin hybrid'!O$51="El og benzin",$C49,IF('El og plugin hybrid'!O$51="El og diesel",$D49,IF('El og plugin hybrid'!O$51="El",0,"Brændstof ikke valgt"))) -> Brændstof ikke valgt | Q49: =(IF('El og plugin hybrid'!Q$23=0,0,(IF($B49<='El og plugin hybrid'!Q$34,(('El og plugin hybrid'!Q$29/'El og plugin hybrid'!Q$23)*R49),0))*(1+'El og plugin hybrid'!Q$37/100)^-$B49)) -> 0 | R49: =IF('El og plugin hybrid'!Q$51="El og benzin",$C49,IF('El og plugin hybrid'!Q$51="El og diesel",$D49,IF('El og plugin hybrid'!Q$51="El",0,"Brændstof ikke valgt"))) -> Brændstof ikke valgt | S49: =(IF('El og plugin hybrid'!S$23=0,0,(IF($B49<='El og plugin hybrid'!S$34,(('El og plugin hybrid'!S$29/'El og plugin hybrid'!S$23)*T49),0))*(1+'El og plugin hybrid'!S$37/100)^-$B49)) -> 0 | T49: =IF('El og plugin hybrid'!S$51="El og benzin",$C49,IF('El og plugin hybrid'!S$51="El og diesel",$D49,IF('El og plugin hybrid'!S$51="El",0,"Brændstof ikke valgt"))) -> Brændstof ikke valgt
B50: 8 | C50: =C49*(1+'El og plugin hybrid'!$E$58/100) -> 13.57626782 | D50: =D49*(1+'El og plugin hybrid'!$E$59/100) -> 11.97636079 | E50: =(IF('El og plugin hybrid'!E$23=0,0,(IF($B50<='El og plugin hybrid'!E$34,(('El og plugin hybrid'!E$29/'El og plugin hybrid'!E$23)*F50),0))*(1+'El og plugin hybrid'!E$37/100)^-$B50)) -> 0 | F50: =IF('El og plugin hybrid'!E$51="El og benzin",$C50,IF('El og plugin hybrid'!E$51="El og diesel",$D50,IF('El og plugin hybrid'!E$51="El",0,"Brændstof ikke valgt"))) -> Brændstof ikke valgt | G50: =(IF('El og plugin hybrid'!G$23=0,0,(IF($B50<='El og plugin hybrid'!G$34,(('El og plugin hybrid'!G$29/'El og plugin hybrid'!G$23)*H50),0))*(1+'El og plugin hybrid'!G$37/100)^-$B50)) -> 0 | H50: =IF('El og plugin hybrid'!G$51="El og benzin",$C50,IF('El og plugin hybrid'!G$51="El og diesel",$D50,IF('El og plugin hybrid'!G$51="El",0,"Brændstof ikke valgt"))) -> Brændstof ikke valgt | I50: =(IF('El og plugin hybrid'!I$23=0,0,(IF($B50<='El og plugin hybrid'!I$34,(('El og plugin hybrid'!I$29/'El og plugin hybrid'!I$23)*J50),0))*(1+'El og plugin hybrid'!I$37/100)^-$B50)) -> 0 | J50: =IF('El og plugin hybrid'!I$51="El og benzin",$C50,IF('El og plugin hybrid'!I$51="El og diesel",$D50,IF('El og plugin hybrid'!I$51="El",0,"Brændstof ikke valgt"))) -> Brændstof ikke valgt | K50: =(IF('El og plugin hybrid'!K$23=0,0,(IF($B50<='El og plugin hybrid'!K$34,(('El og plugin hybrid'!K$29/'El og plugin hybrid'!K$23)*L50),0))*(1+'El og plugin hybrid'!K$37/100)^-$B50)) -> 0 | L50: =IF('El og plugin hybrid'!K$51="El og benzin",$C50,IF('El og plugin hybrid'!K$51="El og diesel",$D50,IF('El og plugin hybrid'!K$51="El",0,"Brændstof ikke valgt"))) -> Brændstof ikke valgt | M50: =(IF('El og plugin hybrid'!M$23=0,0,(IF($B50<='El og plugin hybrid'!M$34,(('El og plugin hybrid'!M$29/'El og plugin hybrid'!M$23)*N50),0))*(1+'El og plugin hybrid'!M$37/100)^-$B50)) -> 0 | N50: =IF('El og plugin hybrid'!M$51="El og benzin",$C50,IF('El og plugin hybrid'!M$51="El og diesel",$D50,IF('El og plugin hybrid'!M$51="El",0,"Brændstof ikke valgt"))) -> Brændstof ikke valgt | O50: =(IF('El og plugin hybrid'!O$23=0,0,(IF($B50<='El og plugin hybrid'!O$34,(('El og plugin hybrid'!O$29/'El og plugin hybrid'!O$23)*P50),0))*(1+'El og plugin hybrid'!O$37/100)^-$B50)) -> 0 | P50: =IF('El og plugin hybrid'!O$51="El og benzin",$C50,IF('El og plugin hybrid'!O$51="El og diesel",$D50,IF('El og plugin hybrid'!O$51="El",0,"Brændstof ikke valgt"))) -> Brændstof ikke valgt | Q50: =(IF('El og plugin hybrid'!Q$23=0,0,(IF($B50<='El og plugin hybrid'!Q$34,(('El og plugin hybrid'!Q$29/'El og plugin hybrid'!Q$23)*R50),0))*(1+'El og plugin hybrid'!Q$37/100)^-$B50)) -> 0 | R50: =IF('El og plugin hybrid'!Q$51="El og benzin",$C50,IF('El og plugin hybrid'!Q$51="El og diesel",$D50,IF('El og plugin hybrid'!Q$51="El",0,"Brændstof ikke valgt"))) -> Brændstof ikke valgt | S50: =(IF('El og plugin hybrid'!S$23=0,0,(IF($B50<='El og plugin hybrid'!S$34,(('El og plugin hybrid'!S$29/'El og plugin hybrid'!S$23)*T50),0))*(1+'El og plugin hybrid'!S$37/100)^-$B50)) -> 0 | T50: =IF('El og plugin hybrid'!S$51="El og benzin",$C50,IF('El og plugin hybrid'!S$51="El og diesel",$D50,IF('El og plugin hybrid'!S$51="El",0,"Brændstof ikke valgt"))) -> Brændstof ikke valgt
B51: 9 | C51: =C50*(1+'El og plugin hybrid'!$E$58/100) -> 13.76430538 | D51: =D50*(1+'El og plugin hybrid'!$E$59/100) -> 12.14974648 | E51: =(IF('El og plugin hybrid'!E$23=0,0,(IF($B51<='El og plugin hybrid'!E$34,(('El og plugin hybrid'!E$29/'El og plugin hybrid'!E$23)*F51),0))*(1+'El og plugin hybrid'!E$37/100)^-$B51)) -> 0 | F51: =IF('El og plugin hybrid'!E$51="El og benzin",$C51,IF('El og plugin hybrid'!E$51="El og diesel",$D51,IF('El og plugin hybrid'!E$51="El",0,"Brændstof ikke valgt"))) -> Brændstof ikke valgt | G51: =(IF('El og plugin hybrid'!G$23=0,0,(IF($B51<='El og plugin hybrid'!G$34,(('El og plugin hybrid'!G$29/'El og plugin hybrid'!G$23)*H51),0))*(1+'El og plugin hybrid'!G$37/100)^-$B51)) -> 0 | H51: =IF('El og plugin hybrid'!G$51="El og benzin",$C51,IF('El og plugin hybrid'!G$51="El og diesel",$D51,IF('El og plugin hybrid'!G$51="El",0,"Brændstof ikke valgt"))) -> Brændstof ikke valgt | I51: =(IF('El og plugin hybrid'!I$23=0,0,(IF($B51<='El og plugin hybrid'!I$34,(('El og plugin hybrid'!I$29/'El og plugin hybrid'!I$23)*J51),0))*(1+'El og plugin hybrid'!I$37/100)^-$B51)) -> 0 | J51: =IF('El og plugin hybrid'!I$51="El og benzin",$C51,IF('El og plugin hybrid'!I$51="El og diesel",$D51,IF('El og plugin hybrid'!I$51="El",0,"Brændstof ikke valgt"))) -> Brændstof ikke valgt | K51: =(IF('El og plugin hybrid'!K$23=0,0,(IF($B51<='El og plugin hybrid'!K$34,(('El og plugin hybrid'!K$29/'El og plugin hybrid'!K$23)*L51),0))*(1+'El og plugin hybrid'!K$37/100)^-$B51)) -> 0 | L51: =IF('El og plugin hybrid'!K$51="El og benzin",$C51,IF('El og plugin hybrid'!K$51="El og diesel",$D51,IF('El og plugin hybrid'!K$51="El",0,"Brændstof ikke valgt"))) -> Brændstof ikke valgt | M51: =(IF('El og plugin hybrid'!M$23=0,0,(IF($B51<='El og plugin hybrid'!M$34,(('El og plugin hybrid'!M$29/'El og plugin hybrid'!M$23)*N51),0))*(1+'El og plugin hybrid'!M$37/100)^-$B51)) -> 0 | N51: =IF('El og plugin hybrid'!M$51="El og benzin",$C51,IF('El og plugin hybrid'!M$51="El og diesel",$D51,IF('El og plugin hybrid'!M$51="El",0,"Brændstof ikke valgt"))) -> Brændstof ikke valgt | O51: =(IF('El og plugin hybrid'!O$23=0,0,(IF($B51<='El og plugin hybrid'!O$34,(('El og plugin hybrid'!O$29/'El og plugin hybrid'!O$23)*P51),0))*(1+'El og plugin hybrid'!O$37/100)^-$B51)) -> 0 | P51: =IF('El og plugin hybrid'!O$51="El og benzin",$C51,IF('El og plugin hybrid'!O$51="El og diesel",$D51,IF('El og plugin hybrid'!O$51="El",0,"Brændstof ikke valgt"))) -> Brændstof ikke valgt | Q51: =(IF('El og plugin hybrid'!Q$23=0,0,(IF($B51<='El og plugin hybrid'!Q$34,(('El og plugin hybrid'!Q$29/'El og plugin hybrid'!Q$23)*R51),0))*(1+'El og plugin hybrid'!Q$37/100)^-$B51)) -> 0 | R51: =IF('El og plugin hybrid'!Q$51="El og benzin",$C51,IF('El og plugin hybrid'!Q$51="El og diesel",$D51,IF('El og plugin hybrid'!Q$51="El",0,"Brændstof ikke valgt"))) -> Brændstof ikke valgt | S51: =(IF('El og plugin hybrid'!S$23=0,0,(IF($B51<='El og plugin hybrid'!S$34,(('El og plugin hybrid'!S$29/'El og plugin hybrid'!S$23)*T51),0))*(1+'El og plugin hybrid'!S$37/100)^-$B51)) -> 0 | T51: =IF('El og plugin hybrid'!S$51="El og benzin",$C51,IF('El og plugin hybrid'!S$51="El og diesel",$D51,IF('El og plugin hybrid'!S$51="El",0,"Brændstof ikke valgt"))) -> Brændstof ikke valgt
B52: 10 | C52: =C51*(1+'El og plugin hybrid'!$E$58/100) -> 13.95494735 | D52: =D51*(1+'El og plugin hybrid'!$E$59/100) -> 12.32564232 | E52: =(IF('El og plugin hybrid'!E$23=0,0,(IF($B52<='El og plugin hybrid'!E$34,(('El og plugin hybrid'!E$29/'El og plugin hybrid'!E$23)*F52),0))*(1+'El og plugin hybrid'!E$37/100)^-$B52)) -> 0 | F52: =IF('El og plugin hybrid'!E$51="El og benzin",$C52,IF('El og plugin hybrid'!E$51="El og diesel",$D52,IF('El og plugin hybrid'!E$51="El",0,"Brændstof ikke valgt"))) -> Brændstof ikke valgt | G52: =(IF('El og plugin hybrid'!G$23=0,0,(IF($B52<='El og plugin hybrid'!G$34,(('El og plugin hybrid'!G$29/'El og plugin hybrid'!G$23)*H52),0))*(1+'El og plugin hybrid'!G$37/100)^-$B52)) -> 0 | H52: =IF('El og plugin hybrid'!G$51="El og benzin",$C52,IF('El og plugin hybrid'!G$51="El og diesel",$D52,IF('El og plugin hybrid'!G$51="El",0,"Brændstof ikke valgt"))) -> Brændstof ikke valgt | I52: =(IF('El og plugin hybrid'!I$23=0,0,(IF($B52<='El og plugin hybrid'!I$34,(('El og plugin hybrid'!I$29/'El og plugin hybrid'!I$23)*J52),0))*(1+'El og plugin hybrid'!I$37/100)^-$B52)) -> 0 | J52: =IF('El og plugin hybrid'!I$51="El og benzin",$C52,IF('El og plugin hybrid'!I$51="El og diesel",$D52,IF('El og plugin hybrid'!I$51="El",0,"Brændstof ikke valgt"))) -> Brændstof ikke valgt | K52: =(IF('El og plugin hybrid'!K$23=0,0,(IF($B52<='El og plugin hybrid'!K$34,(('El og plugin hybrid'!K$29/'El og plugin hybrid'!K$23)*L52),0))*(1+'El og plugin hybrid'!K$37/100)^-$B52)) -> 0 | L52: =IF('El og plugin hybrid'!K$51="El og benzin",$C52,IF('El og plugin hybrid'!K$51="El og diesel",$D52,IF('El og plugin hybrid'!K$51="El",0,"Brændstof ikke valgt"))) -> Brændstof ikke valgt | M52: =(IF('El og plugin hybrid'!M$23=0,0,(IF($B52<='El og plugin hybrid'!M$34,(('El og plugin hybrid'!M$29/'El og plugin hybrid'!M$23)*N52),0))*(1+'El og plugin hybrid'!M$37/100)^-$B52)) -> 0 | N52: =IF('El og plugin hybrid'!M$51="El og benzin",$C52,IF('El og plugin hybrid'!M$51="El og diesel",$D52,IF('El og plugin hybrid'!M$51="El",0,"Brændstof ikke valgt"))) -> Brændstof ikke valgt | O52: =(IF('El og plugin hybrid'!O$23=0,0,(IF($B52<='El og plugin hybrid'!O$34,(('El og plugin hybrid'!O$29/'El og plugin hybrid'!O$23)*P52),0))*(1+'El og plugin hybrid'!O$37/100)^-$B52)) -> 0 | P52: =IF('El og plugin hybrid'!O$51="El og benzin",$C52,IF('El og plugin hybrid'!O$51="El og diesel",$D52,IF('El og plugin hybrid'!O$51="El",0,"Brændstof ikke valgt"))) -> Brændstof ikke valgt | Q52: =(IF('El og plugin hybrid'!Q$23=0,0,(IF($B52<='El og plugin hybrid'!Q$34,(('El og plugin hybrid'!Q$29/'El og plugin hybrid'!Q$23)*R52),0))*(1+'El og plugin hybrid'!Q$37/100)^-$B52)) -> 0 | R52: =IF('El og plugin hybrid'!Q$51="El og benzin",$C52,IF('El og plugin hybrid'!Q$51="El og diesel",$D52,IF('El og plugin hybrid'!Q$51="El",0,"Brændstof ikke valgt"))) -> Brændstof ikke valgt | S52: =(IF('El og plugin hybrid'!S$23=0,0,(IF($B52<='El og plugin hybrid'!S$34,(('El og plugin hybrid'!S$29/'El og plugin hybrid'!S$23)*T52),0))*(1+'El og plugin hybrid'!S$37/100)^-$B52)) -> 0 | T52: =IF('El og plugin hybrid'!S$51="El og benzin",$C52,IF('El og plugin hybrid'!S$51="El og diesel",$D52,IF('El og plugin hybrid'!S$51="El",0,"Brændstof ikke valgt"))) -> Brændstof ikke valgt
B53: 11 | C53: =C52*(1+'El og plugin hybrid'!$E$58/100) -> 14.1482298 | D53: =D52*(1+'El og plugin hybrid'!$E$59/100) -> 12.50408466 | E53: =(IF('El og plugin hybrid'!E$23=0,0,(IF($B53<='El og plugin hybrid'!E$34,(('El og plugin hybrid'!E$29/'El og plugin hybrid'!E$23)*F53),0))*(1+'El og plugin hybrid'!E$37/100)^-$B53)) -> 0 | F53: =IF('El og plugin hybrid'!E$51="El og benzin",$C53,IF('El og plugin hybrid'!E$51="El og diesel",$D53,IF('El og plugin hybrid'!E$51="El",0,"Brændstof ikke valgt"))) -> Brændstof ikke valgt | G53: =(IF('El og plugin hybrid'!G$23=0,0,(IF($B53<='El og plugin hybrid'!G$34,(('El og plugin hybrid'!G$29/'El og plugin hybrid'!G$23)*H53),0))*(1+'El og plugin hybrid'!G$37/100)^-$B53)) -> 0 | H53: =IF('El og plugin hybrid'!G$51="El og benzin",$C53,IF('El og plugin hybrid'!G$51="El og diesel",$D53,IF('El og plugin hybrid'!G$51="El",0,"Brændstof ikke valgt"))) -> Brændstof ikke valgt | I53: =(IF('El og plugin hybrid'!I$23=0,0,(IF($B53<='El og plugin hybrid'!I$34,(('El og plugin hybrid'!I$29/'El og plugin hybrid'!I$23)*J53),0))*(1+'El og plugin hybrid'!I$37/100)^-$B53)) -> 0 | J53: =IF('El og plugin hybrid'!I$51="El og benzin",$C53,IF('El og plugin hybrid'!I$51="El og diesel",$D53,IF('El og plugin hybrid'!I$51="El",0,"Brændstof ikke valgt"))) -> Brændstof ikke valgt | K53: =(IF('El og plugin hybrid'!K$23=0,0,(IF($B53<='El og plugin hybrid'!K$34,(('El og plugin hybrid'!K$29/'El og plugin hybrid'!K$23)*L53),0))*(1+'El og plugin hybrid'!K$37/100)^-$B53)) -> 0 | L53: =IF('El og plugin hybrid'!K$51="El og benzin",$C53,IF('El og plugin hybrid'!K$51="El og diesel",$D53,IF('El og plugin hybrid'!K$51="El",0,"Brændstof ikke valgt"))) -> Brændstof ikke valgt | M53: =(IF('El og plugin hybrid'!M$23=0,0,(IF($B53<='El og plugin hybrid'!M$34,(('El og plugin hybrid'!M$29/'El og plugin hybrid'!M$23)*N53),0))*(1+'El og plugin hybrid'!M$37/100)^-$B53)) -> 0 | N53: =IF('El og plugin hybrid'!M$51="El og benzin",$C53,IF('El og plugin hybrid'!M$51="El og diesel",$D53,IF('El og plugin hybrid'!M$51="El",0,"Brændstof ikke valgt"))) -> Brændstof ikke valgt | O53: =(IF('El og plugin hybrid'!O$23=0,0,(IF($B53<='El og plugin hybrid'!O$34,(('El og plugin hybrid'!O$29/'El og plugin hybrid'!O$23)*P53),0))*(1+'El og plugin hybrid'!O$37/100)^-$B53)) -> 0 | P53: =IF('El og plugin hybrid'!O$51="El og benzin",$C53,IF('El og plugin hybrid'!O$51="El og diesel",$D53,IF('El og plugin hybrid'!O$51="El",0,"Brændstof ikke valgt"))) -> Brændstof ikke valgt | Q53: =(IF('El og plugin hybrid'!Q$23=0,0,(IF($B53<='El og plugin hybrid'!Q$34,(('El og plugin hybrid'!Q$29/'El og plugin hybrid'!Q$23)*R53),0))*(1+'El og plugin hybrid'!Q$37/100)^-$B53)) -> 0 | R53: =IF('El og plugin hybrid'!Q$51="El og benzin",$C53,IF('El og plugin hybrid'!Q$51="El og diesel",$D53,IF('El og plugin hybrid'!Q$51="El",0,"Brændstof ikke valgt"))) -> Brændstof ikke valgt | S53: =(IF('El og plugin hybrid'!S$23=0,0,(IF($B53<='El og plugin hybrid'!S$34,(('El og plugin hybrid'!S$29/'El og plugin hybrid'!S$23)*T53),0))*(1+'El og plugin hybrid'!S$37/100)^-$B53)) -> 0 | T53: =IF('El og plugin hybrid'!S$51="El og benzin",$C53,IF('El og plugin hybrid'!S$51="El og diesel",$D53,IF('El og plugin hybrid'!S$51="El",0,"Brændstof ikke valgt"))) -> Brændstof ikke valgt
B54: 12 | C54: =C53*(1+'El og plugin hybrid'!$E$58/100) -> 14.34418931 | D54: =D53*(1+'El og plugin hybrid'!$E$59/100) -> 12.68511038 | E54: =(IF('El og plugin hybrid'!E$23=0,0,(IF($B54<='El og plugin hybrid'!E$34,(('El og plugin hybrid'!E$29/'El og plugin hybrid'!E$23)*F54),0))*(1+'El og plugin hybrid'!E$37/100)^-$B54)) -> 0 | F54: =IF('El og plugin hybrid'!E$51="El og benzin",$C54,IF('El og plugin hybrid'!E$51="El og diesel",$D54,IF('El og plugin hybrid'!E$51="El",0,"Brændstof ikke valgt"))) -> Brændstof ikke valgt | G54: =(IF('El og plugin hybrid'!G$23=0,0,(IF($B54<='El og plugin hybrid'!G$34,(('El og plugin hybrid'!G$29/'El og plugin hybrid'!G$23)*H54),0))*(1+'El og plugin hybrid'!G$37/100)^-$B54)) -> 0 | H54: =IF('El og plugin hybrid'!G$51="El og benzin",$C54,IF('El og plugin hybrid'!G$51="El og diesel",$D54,IF('El og plugin hybrid'!G$51="El",0,"Brændstof ikke valgt"))) -> Brændstof ikke valgt | I54: =(IF('El og plugin hybrid'!I$23=0,0,(IF($B54<='El og plugin hybrid'!I$34,(('El og plugin hybrid'!I$29/'El og plugin hybrid'!I$23)*J54),0))*(1+'El og plugin hybrid'!I$37/100)^-$B54)) -> 0 | J54: =IF('El og plugin hybrid'!I$51="El og benzin",$C54,IF('El og plugin hybrid'!I$51="El og diesel",$D54,IF('El og plugin hybrid'!I$51="El",0,"Brændstof ikke valgt"))) -> Brændstof ikke valgt | K54: =(IF('El og plugin hybrid'!K$23=0,0,(IF($B54<='El og plugin hybrid'!K$34,(('El og plugin hybrid'!K$29/'El og plugin hybrid'!K$23)*L54),0))*(1+'El og plugin hybrid'!K$37/100)^-$B54)) -> 0 | L54: =IF('El og plugin hybrid'!K$51="El og benzin",$C54,IF('El og plugin hybrid'!K$51="El og diesel",$D54,IF('El og plugin hybrid'!K$51="El",0,"Brændstof ikke valgt"))) -> Brændstof ikke valgt | M54: =(IF('El og plugin hybrid'!M$23=0,0,(IF($B54<='El og plugin hybrid'!M$34,(('El og plugin hybrid'!M$29/'El og plugin hybrid'!M$23)*N54),0))*(1+'El og plugin hybrid'!M$37/100)^-$B54)) -> 0 | N54: =IF('El og plugin hybrid'!M$51="El og benzin",$C54,IF('El og plugin hybrid'!M$51="El og diesel",$D54,IF('El og plugin hybrid'!M$51="El",0,"Brændstof ikke valgt"))) -> Brændstof ikke valgt | O54: =(IF('El og plugin hybrid'!O$23=0,0,(IF($B54<='El og plugin hybrid'!O$34,(('El og plugin hybrid'!O$29/'El og plugin hybrid'!O$23)*P54),0))*(1+'El og plugin hybrid'!O$37/100)^-$B54)) -> 0 | P54: =IF('El og plugin hybrid'!O$51="El og benzin",$C54,IF('El og plugin hybrid'!O$51="El og diesel",$D54,IF('El og plugin hybrid'!O$51="El",0,"Brændstof ikke valgt"))) -> Brændstof ikke valgt | Q54: =(IF('El og plugin hybrid'!Q$23=0,0,(IF($B54<='El og plugin hybrid'!Q$34,(('El og plugin hybrid'!Q$29/'El og plugin hybrid'!Q$23)*R54),0))*(1+'El og plugin hybrid'!Q$37/100)^-$B54)) -> 0 | R54: =IF('El og plugin hybrid'!Q$51="El og benzin",$C54,IF('El og plugin hybrid'!Q$51="El og diesel",$D54,IF('El og plugin hybrid'!Q$51="El",0,"Brændstof ikke valgt"))) -> Brændstof ikke valgt | S54: =(IF('El og plugin hybrid'!S$23=0,0,(IF($B54<='El og plugin hybrid'!S$34,(('El og plugin hybrid'!S$29/'El og plugin hybrid'!S$23)*T54),0))*(1+'El og plugin hybrid'!S$37/100)^-$B54)) -> 0 | T54: =IF('El og plugin hybrid'!S$51="El og benzin",$C54,IF('El og plugin hybrid'!S$51="El og diesel",$D54,IF('El og plugin hybrid'!S$51="El",0,"Brændstof ikke valgt"))) -> Brændstof ikke valgt
B55: 13 | C55: =C54*(1+'El og plugin hybrid'!$E$58/100) -> 14.54286294 | D55: =D54*(1+'El og plugin hybrid'!$E$59/100) -> 12.86875686 | E55: =(IF('El og plugin hybrid'!E$23=0,0,(IF($B55<='El og plugin hybrid'!E$34,(('El og plugin hybrid'!E$29/'El og plugin hybrid'!E$23)*F55),0))*(1+'El og plugin hybrid'!E$37/100)^-$B55)) -> 0 | F55: =IF('El og plugin hybrid'!E$51="El og benzin",$C55,IF('El og plugin hybrid'!E$51="El og diesel",$D55,IF('El og plugin hybrid'!E$51="El",0,"Brændstof ikke valgt"))) -> Brændstof ikke valgt | G55: =(IF('El og plugin hybrid'!G$23=0,0,(IF($B55<='El og plugin hybrid'!G$34,(('El og plugin hybrid'!G$29/'El og plugin hybrid'!G$23)*H55),0))*(1+'El og plugin hybrid'!G$37/100)^-$B55)) -> 0 | H55: =IF('El og plugin hybrid'!G$51="El og benzin",$C55,IF('El og plugin hybrid'!G$51="El og diesel",$D55,IF('El og plugin hybrid'!G$51="El",0,"Brændstof ikke valgt"))) -> Brændstof ikke valgt | I55: =(IF('El og plugin hybrid'!I$23=0,0,(IF($B55<='El og plugin hybrid'!I$34,(('El og plugin hybrid'!I$29/'El og plugin hybrid'!I$23)*J55),0))*(1+'El og plugin hybrid'!I$37/100)^-$B55)) -> 0 | J55: =IF('El og plugin hybrid'!I$51="El og benzin",$C55,IF('El og plugin hybrid'!I$51="El og diesel",$D55,IF('El og plugin hybrid'!I$51="El",0,"Brændstof ikke valgt"))) -> Brændstof ikke valgt | K55: =(IF('El og plugin hybrid'!K$23=0,0,(IF($B55<='El og plugin hybrid'!K$34,(('El og plugin hybrid'!K$29/'El og plugin hybrid'!K$23)*L55),0))*(1+'El og plugin hybrid'!K$37/100)^-$B55)) -> 0 | L55: =IF('El og plugin hybrid'!K$51="El og benzin",$C55,IF('El og plugin hybrid'!K$51="El og diesel",$D55,IF('El og plugin hybrid'!K$51="El",0,"Brændstof ikke valgt"))) -> Brændstof ikke valgt | M55: =(IF('El og plugin hybrid'!M$23=0,0,(IF($B55<='El og plugin hybrid'!M$34,(('El og plugin hybrid'!M$29/'El og plugin hybrid'!M$23)*N55),0))*(1+'El og plugin hybrid'!M$37/100)^-$B55)) -> 0 | N55: =IF('El og plugin hybrid'!M$51="El og benzin",$C55,IF('El og plugin hybrid'!M$51="El og diesel",$D55,IF('El og plugin hybrid'!M$51="El",0,"Brændstof ikke valgt"))) -> Brændstof ikke valgt | O55: =(IF('El og plugin hybrid'!O$23=0,0,(IF($B55<='El og plugin hybrid'!O$34,(('El og plugin hybrid'!O$29/'El og plugin hybrid'!O$23)*P55),0))*(1+'El og plugin hybrid'!O$37/100)^-$B55)) -> 0 | P55: =IF('El og plugin hybrid'!O$51="El og benzin",$C55,IF('El og plugin hybrid'!O$51="El og diesel",$D55,IF('El og plugin hybrid'!O$51="El",0,"Brændstof ikke valgt"))) -> Brændstof ikke valgt | Q55: =(IF('El og plugin hybrid'!Q$23=0,0,(IF($B55<='El og plugin hybrid'!Q$34,(('El og plugin hybrid'!Q$29/'El og plugin hybrid'!Q$23)*R55),0))*(1+'El og plugin hybrid'!Q$37/100)^-$B55)) -> 0 | R55: =IF('El og plugin hybrid'!Q$51="El og benzin",$C55,IF('El og plugin hybrid'!Q$51="El og diesel",$D55,IF('El og plugin hybrid'!Q$51="El",0,"Brændstof ikke valgt"))) -> Brændstof ikke valgt | S55: =(IF('El og plugin hybrid'!S$23=0,0,(IF($B55<='El og plugin hybrid'!S$34,(('El og plugin hybrid'!S$29/'El og plugin hybrid'!S$23)*T55),0))*(1+'El og plugin hybrid'!S$37/100)^-$B55)) -> 0 | T55: =IF('El og plugin hybrid'!S$51="El og benzin",$C55,IF('El og plugin hybrid'!S$51="El og diesel",$D55,IF('El og plugin hybrid'!S$51="El",0,"Brændstof ikke valgt"))) -> Brændstof ikke valgt
B56: 14 | C56: =C55*(1+'El og plugin hybrid'!$E$58/100) -> 14.74428829 | D56: =D55*(1+'El og plugin hybrid'!$E$59/100) -> 13.05506205 | E56: =(IF('El og plugin hybrid'!E$23=0,0,(IF($B56<='El og plugin hybrid'!E$34,(('El og plugin hybrid'!E$29/'El og plugin hybrid'!E$23)*F56),0))*(1+'El og plugin hybrid'!E$37/100)^-$B56)) -> 0 | F56: =IF('El og plugin hybrid'!E$51="El og benzin",$C56,IF('El og plugin hybrid'!E$51="El og diesel",$D56,IF('El og plugin hybrid'!E$51="El",0,"Brændstof ikke valgt"))) -> Brændstof ikke valgt | G56: =(IF('El og plugin hybrid'!G$23=0,0,(IF($B56<='El og plugin hybrid'!G$34,(('El og plugin hybrid'!G$29/'El og plugin hybrid'!G$23)*H56),0))*(1+'El og plugin hybrid'!G$37/100)^-$B56)) -> 0 | H56: =IF('El og plugin hybrid'!G$51="El og benzin",$C56,IF('El og plugin hybrid'!G$51="El og diesel",$D56,IF('El og plugin hybrid'!G$51="El",0,"Brændstof ikke valgt"))) -> Brændstof ikke valgt | I56: =(IF('El og plugin hybrid'!I$23=0,0,(IF($B56<='El og plugin hybrid'!I$34,(('El og plugin hybrid'!I$29/'El og plugin hybrid'!I$23)*J56),0))*(1+'El og plugin hybrid'!I$37/100)^-$B56)) -> 0 | J56: =IF('El og plugin hybrid'!I$51="El og benzin",$C56,IF('El og plugin hybrid'!I$51="El og diesel",$D56,IF('El og plugin hybrid'!I$51="El",0,"Brændstof ikke valgt"))) -> Brændstof ikke valgt | K56: =(IF('El og plugin hybrid'!K$23=0,0,(IF($B56<='El og plugin hybrid'!K$34,(('El og plugin hybrid'!K$29/'El og plugin hybrid'!K$23)*L56),0))*(1+'El og plugin hybrid'!K$37/100)^-$B56)) -> 0 | L56: =IF('El og plugin hybrid'!K$51="El og benzin",$C56,IF('El og plugin hybrid'!K$51="El og diesel",$D56,IF('El og plugin hybrid'!K$51="El",0,"Brændstof ikke valgt"))) -> Brændstof ikke valgt | M56: =(IF('El og plugin hybrid'!M$23=0,0,(IF($B56<='El og plugin hybrid'!M$34,(('El og plugin hybrid'!M$29/'El og plugin hybrid'!M$23)*N56),0))*(1+'El og plugin hybrid'!M$37/100)^-$B56)) -> 0 | N56: =IF('El og plugin hybrid'!M$51="El og benzin",$C56,IF('El og plugin hybrid'!M$51="El og diesel",$D56,IF('El og plugin hybrid'!M$51="El",0,"Brændstof ikke valgt"))) -> Brændstof ikke valgt | O56: =(IF('El og plugin hybrid'!O$23=0,0,(IF($B56<='El og plugin hybrid'!O$34,(('El og plugin hybrid'!O$29/'El og plugin hybrid'!O$23)*P56),0))*(1+'El og plugin hybrid'!O$37/100)^-$B56)) -> 0 | P56: =IF('El og plugin hybrid'!O$51="El og benzin",$C56,IF('El og plugin hybrid'!O$51="El og diesel",$D56,IF('El og plugin hybrid'!O$51="El",0,"Brændstof ikke valgt"))) -> Brændstof ikke valgt | Q56: =(IF('El og plugin hybrid'!Q$23=0,0,(IF($B56<='El og plugin hybrid'!Q$34,(('El og plugin hybrid'!Q$29/'El og plugin hybrid'!Q$23)*R56),0))*(1+'El og plugin hybrid'!Q$37/100)^-$B56)) -> 0 | R56: =IF('El og plugin hybrid'!Q$51="El og benzin",$C56,IF('El og plugin hybrid'!Q$51="El og diesel",$D56,IF('El og plugin hybrid'!Q$51="El",0,"Brændstof ikke valgt"))) -> Brændstof ikke valgt | S56: =(IF('El og plugin hybrid'!S$23=0,0,(IF($B56<='El og plugin hybrid'!S$34,(('El og plugin hybrid'!S$29/'El og plugin hybrid'!S$23)*T56),0))*(1+'El og plugin hybrid'!S$37/100)^-$B56)) -> 0 | T56: =IF('El og plugin hybrid'!S$51="El og benzin",$C56,IF('El og plugin hybrid'!S$51="El og diesel",$D56,IF('El og plugin hybrid'!S$51="El",0,"Brændstof ikke valgt"))) -> Brændstof ikke valgt
B57: 15 | C57: =C56*(1+'El og plugin hybrid'!$E$58/100) -> 14.94850348 | D57: =D56*(1+'El og plugin hybrid'!$E$59/100) -> 13.24406444 | E57: =(IF('El og plugin hybrid'!E$23=0,0,(IF($B57<='El og plugin hybrid'!E$34,(('El og plugin hybrid'!E$29/'El og plugin hybrid'!E$23)*F57),0))*(1+'El og plugin hybrid'!E$37/100)^-$B57)) -> 0 | F57: =IF('El og plugin hybrid'!E$51="El og benzin",$C57,IF('El og plugin hybrid'!E$51="El og diesel",$D57,IF('El og plugin hybrid'!E$51="El",0,"Brændstof ikke valgt"))) -> Brændstof ikke valgt | G57: =(IF('El og plugin hybrid'!G$23=0,0,(IF($B57<='El og plugin hybrid'!G$34,(('El og plugin hybrid'!G$29/'El og plugin hybrid'!G$23)*H57),0))*(1+'El og plugin hybrid'!G$37/100)^-$B57)) -> 0 | H57: =IF('El og plugin hybrid'!G$51="El og benzin",$C57,IF('El og plugin hybrid'!G$51="El og diesel",$D57,IF('El og plugin hybrid'!G$51="El",0,"Brændstof ikke valgt"))) -> Brændstof ikke valgt | I57: =(IF('El og plugin hybrid'!I$23=0,0,(IF($B57<='El og plugin hybrid'!I$34,(('El og plugin hybrid'!I$29/'El og plugin hybrid'!I$23)*J57),0))*(1+'El og plugin hybrid'!I$37/100)^-$B57)) -> 0 | J57: =IF('El og plugin hybrid'!I$51="El og benzin",$C57,IF('El og plugin hybrid'!I$51="El og diesel",$D57,IF('El og plugin hybrid'!I$51="El",0,"Brændstof ikke valgt"))) -> Brændstof ikke valgt | K57: =(IF('El og plugin hybrid'!K$23=0,0,(IF($B57<='El og plugin hybrid'!K$34,(('El og plugin hybrid'!K$29/'El og plugin hybrid'!K$23)*L57),0))*(1+'El og plugin hybrid'!K$37/100)^-$B57)) -> 0 | L57: =IF('El og plugin hybrid'!K$51="El og benzin",$C57,IF('El og plugin hybrid'!K$51="El og diesel",$D57,IF('El og plugin hybrid'!K$51="El",0,"Brændstof ikke valgt"))) -> Brændstof ikke valgt | M57: =(IF('El og plugin hybrid'!M$23=0,0,(IF($B57<='El og plugin hybrid'!M$34,(('El og plugin hybrid'!M$29/'El og plugin hybrid'!M$23)*N57),0))*(1+'El og plugin hybrid'!M$37/100)^-$B57)) -> 0 | N57: =IF('El og plugin hybrid'!M$51="El og benzin",$C57,IF('El og plugin hybrid'!M$51="El og diesel",$D57,IF('El og plugin hybrid'!M$51="El",0,"Brændstof ikke valgt"))) -> Brændstof ikke valgt | O57: =(IF('El og plugin hybrid'!O$23=0,0,(IF($B57<='El og plugin hybrid'!O$34,(('El og plugin hybrid'!O$29/'El og plugin hybrid'!O$23)*P57),0))*(1+'El og plugin hybrid'!O$37/100)^-$B57)) -> 0 | P57: =IF('El og plugin hybrid'!O$51="El og benzin",$C57,IF('El og plugin hybrid'!O$51="El og diesel",$D57,IF('El og plugin hybrid'!O$51="El",0,"Brændstof ikke valgt"))) -> Brændstof ikke valgt | Q57: =(IF('El og plugin hybrid'!Q$23=0,0,(IF($B57<='El og plugin hybrid'!Q$34,(('El og plugin hybrid'!Q$29/'El og plugin hybrid'!Q$23)*R57),0))*(1+'El og plugin hybrid'!Q$37/100)^-$B57)) -> 0 | R57: =IF('El og plugin hybrid'!Q$51="El og benzin",$C57,IF('El og plugin hybrid'!Q$51="El og diesel",$D57,IF('El og plugin hybrid'!Q$51="El",0,"Brændstof ikke valgt"))) -> Brændstof ikke valgt | S57: =(IF('El og plugin hybrid'!S$23=0,0,(IF($B57<='El og plugin hybrid'!S$34,(('El og plugin hybrid'!S$29/'El og plugin hybrid'!S$23)*T57),0))*(1+'El og plugin hybrid'!S$37/100)^-$B57)) -> 0 | T57: =IF('El og plugin hybrid'!S$51="El og benzin",$C57,IF('El og plugin hybrid'!S$51="El og diesel",$D57,IF('El og plugin hybrid'!S$51="El",0,"Brændstof ikke valgt"))) -> Brændstof ikke valgt
A59: ='El og plugin hybrid'!C15 -> Service, vedligehold og løbende omkostninger
B60: År indeks | E60: ='El og plugin hybrid'!E8 -> PRODUKT 1 EL | G60: ='El og plugin hybrid'!G8 -> PRODUKT 2 EL | I60: ='El og plugin hybrid'!I8 -> PRODUKT 3 EL | K60: ='El og plugin hybrid'!K8 -> PRODUKT 4 EL | M60: ='El og plugin hybrid'!M8 -> PRODUKT 5 EL | O60: ='El og plugin hybrid'!O8 -> PRODUKT 6 EL | Q60: ='El og plugin hybrid'!Q8 -> PRODUKT 7 EL | S60: ='El og plugin hybrid'!S8 -> PRODUKT 8 EL
B61: 1 | C61: =B61 -> 1 | E61: =(IF($B61<='El og plugin hybrid'!E$34,'El og plugin hybrid'!E$16,0)+IF($B61<='El og plugin hybrid'!E$34,'El og plugin hybrid'!E$17,0)+IF($B61<='El og plugin hybrid'!E$34,'El og plugin hybrid'!E$47,0)+IF($B61<='El og plugin hybrid'!E$34,'El og plugin hybrid'!E$48,0))*(1+'El og plugin hybrid'!E$37/100)^-$B61 -> 0 | G61: =(IF($B61<='El og plugin hybrid'!G$34,'El og plugin hybrid'!G$16,0)+IF($B61<='El og plugin hybrid'!G$34,'El og plugin hybrid'!G$17,0)+IF($B61<='El og plugin hybrid'!G$34,'El og plugin hybrid'!G$47,0)+IF($B61<='El og plugin hybrid'!G$34,'El og plugin hybrid'!G$48,0))*(1+'El og plugin hybrid'!G$37/100)^-$B61 -> 0 | I61: =(IF($B61<='El og plugin hybrid'!I$34,'El og plugin hybrid'!I$16,0)+IF($B61<='El og plugin hybrid'!I$34,'El og plugin hybrid'!I$17,0)+IF($B61<='El og plugin hybrid'!I$34,'El og plugin hybrid'!I$47,0)+IF($B61<='El og plugin hybrid'!I$34,'El og plugin hybrid'!I$48,0))*(1+'El og plugin hybrid'!I$37/100)^-$B61 -> 0 | K61: =(IF($B61<='El og plugin hybrid'!K$34,'El og plugin hybrid'!K$16,0)+IF($B61<='El og plugin hybrid'!K$34,'El og plugin hybrid'!K$17,0)+IF($B61<='El og plugin hybrid'!K$34,'El og plugin hybrid'!K$47,0)+IF($B61<='El og plugin hybrid'!K$34,'El og plugin hybrid'!K$48,0))*(1+'El og plugin hybrid'!K$37/100)^-$B61 -> 0 | M61: =(IF($B61<='El og plugin hybrid'!M$34,'El og plugin hybrid'!M$16,0)+IF($B61<='El og plugin hybrid'!M$34,'El og plugin hybrid'!M$17,0)+IF($B61<='El og plugin hybrid'!M$34,'El og plugin hybrid'!M$47,0)+IF($B61<='El og plugin hybrid'!M$34,'El og plugin hybrid'!M$48,0))*(1+'El og plugin hybrid'!M$37/100)^-$B61 -> 0 | O61: =(IF($B61<='El og plugin hybrid'!O$34,'El og plugin hybrid'!O$16,0)+IF($B61<='El og plugin hybrid'!O$34,'El og plugin hybrid'!O$17,0)+IF($B61<='El og plugin hybrid'!O$34,'El og plugin hybrid'!O$47,0)+IF($B61<='El og plugin hybrid'!O$34,'El og plugin hybrid'!O$48,0))*(1+'El og plugin hybrid'!O$37/100)^-$B61 -> 0 | Q61: =(IF($B61<='El og plugin hybrid'!Q$34,'El og plugin hybrid'!Q$16,0)+IF($B61<='El og plugin hybrid'!Q$34,'El og plugin hybrid'!Q$17,0)+IF($B61<='El og plugin hybrid'!Q$34,'El og plugin hybrid'!Q$47,0)+IF($B61<='El og plugin hybrid'!Q$34,'El og plugin hybrid'!Q$48,0))*(1+'El og plugin hybrid'!Q$37/100)^-$B61 -> 0 | S61: =(IF($B61<='El og plugin hybrid'!S$34,'El og plugin hybrid'!S$16,0)+IF($B61<='El og plugin hybrid'!S$34,'El og plugin hybrid'!S$17,0)+IF($B61<='El og plugin hybrid'!S$34,'El og plugin hybrid'!S$47,0)+IF($B61<='El og plugin hybrid'!S$34,'El og plugin hybrid'!S$48,0))*(1+'El og plugin hybrid'!S$37/100)^-$B61 -> 0
B62: 2 | C62: =B62 -> 2 | E62: =(IF($B62<='El og plugin hybrid'!E$34,'El og plugin hybrid'!E$16,0)+IF($B62<='El og plugin hybrid'!E$34,'El og plugin hybrid'!E$17,0)+IF($B62<='El og plugin hybrid'!E$34,'El og plugin hybrid'!E$47,0)+IF($B62<='El og plugin hybrid'!E$34,'El og plugin hybrid'!E$48,0))*(1+'El og plugin hybrid'!E$37/100)^-$B62 -> 0 | G62: =(IF($B62<='El og plugin hybrid'!G$34,'El og plugin hybrid'!G$16,0)+IF($B62<='El og plugin hybrid'!G$34,'El og plugin hybrid'!G$17,0)+IF($B62<='El og plugin hybrid'!G$34,'El og plugin hybrid'!G$47,0)+IF($B62<='El og plugin hybrid'!G$34,'El og plugin hybrid'!G$48,0))*(1+'El og plugin hybrid'!G$37/100)^-$B62 -> 0 | I62: =(IF($B62<='El og plugin hybrid'!I$34,'El og plugin hybrid'!I$16,0)+IF($B62<='El og plugin hybrid'!I$34,'El og plugin hybrid'!I$17,0)+IF($B62<='El og plugin hybrid'!I$34,'El og plugin hybrid'!I$47,0)+IF($B62<='El og plugin hybrid'!I$34,'El og plugin hybrid'!I$48,0))*(1+'El og plugin hybrid'!I$37/100)^-$B62 -> 0 | K62: =(IF($B62<='El og plugin hybrid'!K$34,'El og plugin hybrid'!K$16,0)+IF($B62<='El og plugin hybrid'!K$34,'El og plugin hybrid'!K$17,0)+IF($B62<='El og plugin hybrid'!K$34,'El og plugin hybrid'!K$47,0)+IF($B62<='El og plugin hybrid'!K$34,'El og plugin hybrid'!K$48,0))*(1+'El og plugin hybrid'!K$37/100)^-$B62 -> 0 | M62: =(IF($B62<='El og plugin hybrid'!M$34,'El og plugin hybrid'!M$16,0)+IF($B62<='El og plugin hybrid'!M$34,'El og plugin hybrid'!M$17,0)+IF($B62<='El og plugin hybrid'!M$34,'El og plugin hybrid'!M$47,0)+IF($B62<='El og plugin hybrid'!M$34,'El og plugin hybrid'!M$48,0))*(1+'El og plugin hybrid'!M$37/100)^-$B62 -> 0 | O62: =(IF($B62<='El og plugin hybrid'!O$34,'El og plugin hybrid'!O$16,0)+IF($B62<='El og plugin hybrid'!O$34,'El og plugin hybrid'!O$17,0)+IF($B62<='El og plugin hybrid'!O$34,'El og plugin hybrid'!O$47,0)+IF($B62<='El og plugin hybrid'!O$34,'El og plugin hybrid'!O$48,0))*(1+'El og plugin hybrid'!O$37/100)^-$B62 -> 0 | Q62: =(IF($B62<='El og plugin hybrid'!Q$34,'El og plugin hybrid'!Q$16,0)+IF($B62<='El og plugin hybrid'!Q$34,'El og plugin hybrid'!Q$17,0)+IF($B62<='El og plugin hybrid'!Q$34,'El og plugin hybrid'!Q$47,0)+IF($B62<='El og plugin hybrid'!Q$34,'El og plugin hybrid'!Q$48,0))*(1+'El og plugin hybrid'!Q$37/100)^-$B62 -> 0 | S62: =(IF($B62<='El og plugin hybrid'!S$34,'El og plugin hybrid'!S$16,0)+IF($B62<='El og plugin hybrid'!S$34,'El og plugin hybrid'!S$17,0)+IF($B62<='El og plugin hybrid'!S$34,'El og plugin hybrid'!S$47,0)+IF($B62<='El og plugin hybrid'!S$34,'El og plugin hybrid'!S$48,0))*(1+'El og plugin hybrid'!S$37/100)^-$B62 -> 0
B63: 3 | C63: 3 | E63: =(IF($B63<='El og plugin hybrid'!E$34,'El og plugin hybrid'!E$16,0)+IF($B63<='El og plugin hybrid'!E$34,'El og plugin hybrid'!E$17,0)+IF($B63<='El og plugin hybrid'!E$34,'El og plugin hybrid'!E$47,0)+IF($B63<='El og plugin hybrid'!E$34,'El og plugin hybrid'!E$48,0))*(1+'El og plugin hybrid'!E$37/100)^-$B63 -> 0 | G63: =(IF($B63<='El og plugin hybrid'!G$34,'El og plugin hybrid'!G$16,0)+IF($B63<='El og plugin hybrid'!G$34,'El og plugin hybrid'!G$17,0)+IF($B63<='El og plugin hybrid'!G$34,'El og plugin hybrid'!G$47,0)+IF($B63<='El og plugin hybrid'!G$34,'El og plugin hybrid'!G$48,0))*(1+'El og plugin hybrid'!G$37/100)^-$B63 -> 0 | I63: =(IF($B63<='El og plugin hybrid'!I$34,'El og plugin hybrid'!I$16,0)+IF($B63<='El og plugin hybrid'!I$34,'El og plugin hybrid'!I$17,0)+IF($B63<='El og plugin hybrid'!I$34,'El og plugin hybrid'!I$47,0)+IF($B63<='El og plugin hybrid'!I$34,'El og plugin hybrid'!I$48,0))*(1+'El og plugin hybrid'!I$37/100)^-$B63 -> 0 | K63: =(IF($B63<='El og plugin hybrid'!K$34,'El og plugin hybrid'!K$16,0)+IF($B63<='El og plugin hybrid'!K$34,'El og plugin hybrid'!K$17,0)+IF($B63<='El og plugin hybrid'!K$34,'El og plugin hybrid'!K$47,0)+IF($B63<='El og plugin hybrid'!K$34,'El og plugin hybrid'!K$48,0))*(1+'El og plugin hybrid'!K$37/100)^-$B63 -> 0 | M63: =(IF($B63<='El og plugin hybrid'!M$34,'El og plugin hybrid'!M$16,0)+IF($B63<='El og plugin hybrid'!M$34,'El og plugin hybrid'!M$17,0)+IF($B63<='El og plugin hybrid'!M$34,'El og plugin hybrid'!M$47,0)+IF($B63<='El og plugin hybrid'!M$34,'El og plugin hybrid'!M$48,0))*(1+'El og plugin hybrid'!M$37/100)^-$B63 -> 0 | O63: =(IF($B63<='El og plugin hybrid'!O$34,'El og plugin hybrid'!O$16,0)+IF($B63<='El og plugin hybrid'!O$34,'El og plugin hybrid'!O$17,0)+IF($B63<='El og plugin hybrid'!O$34,'El og plugin hybrid'!O$47,0)+IF($B63<='El og plugin hybrid'!O$34,'El og plugin hybrid'!O$48,0))*(1+'El og plugin hybrid'!O$37/100)^-$B63 -> 0 | Q63: =(IF($B63<='El og plugin hybrid'!Q$34,'El og plugin hybrid'!Q$16,0)+IF($B63<='El og plugin hybrid'!Q$34,'El og plugin hybrid'!Q$17,0)+IF($B63<='El og plugin hybrid'!Q$34,'El og plugin hybrid'!Q$47,0)+IF($B63<='El og plugin hybrid'!Q$34,'El og plugin hybrid'!Q$48,0))*(1+'El og plugin hybrid'!Q$37/100)^-$B63 -> 0 | S63: =(IF($B63<='El og plugin hybrid'!S$34,'El og plugin hybrid'!S$16,0)+IF($B63<='El og plugin hybrid'!S$34,'El og plugin hybrid'!S$17,0)+IF($B63<='El og plugin hybrid'!S$34,'El og plugin hybrid'!S$47,0)+IF($B63<='El og plugin hybrid'!S$34,'El og plugin hybrid'!S$48,0))*(1+'El og plugin hybrid'!S$37/100)^-$B63 -> 0
B64: 4 | C64: 4 | E64: =(IF($B64<='El og plugin hybrid'!E$34,'El og plugin hybrid'!E$16,0)+IF($B64<='El og plugin hybrid'!E$34,'El og plugin hybrid'!E$17,0)+IF($B64<='El og plugin hybrid'!E$34,'El og plugin hybrid'!E$47,0)+IF($B64<='El og plugin hybrid'!E$34,'El og plugin hybrid'!E$48,0))*(1+'El og plugin hybrid'!E$37/100)^-$B64 -> 0 | G64: =(IF($B64<='El og plugin hybrid'!G$34,'El og plugin hybrid'!G$16,0)+IF($B64<='El og plugin hybrid'!G$34,'El og plugin hybrid'!G$17,0)+IF($B64<='El og plugin hybrid'!G$34,'El og plugin hybrid'!G$47,0)+IF($B64<='El og plugin hybrid'!G$34,'El og plugin hybrid'!G$48,0))*(1+'El og plugin hybrid'!G$37/100)^-$B64 -> 0 | I64: =(IF($B64<='El og plugin hybrid'!I$34,'El og plugin hybrid'!I$16,0)+IF($B64<='El og plugin hybrid'!I$34,'El og plugin hybrid'!I$17,0)+IF($B64<='El og plugin hybrid'!I$34,'El og plugin hybrid'!I$47,0)+IF($B64<='El og plugin hybrid'!I$34,'El og plugin hybrid'!I$48,0))*(1+'El og plugin hybrid'!I$37/100)^-$B64 -> 0 | K64: =(IF($B64<='El og plugin hybrid'!K$34,'El og plugin hybrid'!K$16,0)+IF($B64<='El og plugin hybrid'!K$34,'El og plugin hybrid'!K$17,0)+IF($B64<='El og plugin hybrid'!K$34,'El og plugin hybrid'!K$47,0)+IF($B64<='El og plugin hybrid'!K$34,'El og plugin hybrid'!K$48,0))*(1+'El og plugin hybrid'!K$37/100)^-$B64 -> 0 | M64: =(IF($B64<='El og plugin hybrid'!M$34,'El og plugin hybrid'!M$16,0)+IF($B64<='El og plugin hybrid'!M$34,'El og plugin hybrid'!M$17,0)+IF($B64<='El og plugin hybrid'!M$34,'El og plugin hybrid'!M$47,0)+IF($B64<='El og plugin hybrid'!M$34,'El og plugin hybrid'!M$48,0))*(1+'El og plugin hybrid'!M$37/100)^-$B64 -> 0 | O64: =(IF($B64<='El og plugin hybrid'!O$34,'El og plugin hybrid'!O$16,0)+IF($B64<='El og plugin hybrid'!O$34,'El og plugin hybrid'!O$17,0)+IF($B64<='El og plugin hybrid'!O$34,'El og plugin hybrid'!O$47,0)+IF($B64<='El og plugin hybrid'!O$34,'El og plugin hybrid'!O$48,0))*(1+'El og plugin hybrid'!O$37/100)^-$B64 -> 0 | Q64: =(IF($B64<='El og plugin hybrid'!Q$34,'El og plugin hybrid'!Q$16,0)+IF($B64<='El og plugin hybrid'!Q$34,'El og plugin hybrid'!Q$17,0)+IF($B64<='El og plugin hybrid'!Q$34,'El og plugin hybrid'!Q$47,0)+IF($B64<='El og plugin hybrid'!Q$34,'El og plugin hybrid'!Q$48,0))*(1+'El og plugin hybrid'!Q$37/100)^-$B64 -> 0 | S64: =(IF($B64<='El og plugin hybrid'!S$34,'El og plugin hybrid'!S$16,0)+IF($B64<='El og plugin hybrid'!S$34,'El og plugin hybrid'!S$17,0)+IF($B64<='El og plugin hybrid'!S$34,'El og plugin hybrid'!S$47,0)+IF($B64<='El og plugin hybrid'!S$34,'El og plugin hybrid'!S$48,0))*(1+'El og plugin hybrid'!S$37/100)^-$B64 -> 0
B65: 5 | C65: 5 | E65: =(IF($B65<='El og plugin hybrid'!E$34,'El og plugin hybrid'!E$16,0)+IF($B65<='El og plugin hybrid'!E$34,'El og plugin hybrid'!E$17,0)+IF($B65<='El og plugin hybrid'!E$34,'El og plugin hybrid'!E$47,0)+IF($B65<='El og plugin hybrid'!E$34,'El og plugin hybrid'!E$48,0))*(1+'El og plugin hybrid'!E$37/100)^-$B65 -> 0 | G65: =(IF($B65<='El og plugin hybrid'!G$34,'El og plugin hybrid'!G$16,0)+IF($B65<='El og plugin hybrid'!G$34,'El og plugin hybrid'!G$17,0)+IF($B65<='El og plugin hybrid'!G$34,'El og plugin hybrid'!G$47,0)+IF($B65<='El og plugin hybrid'!G$34,'El og plugin hybrid'!G$48,0))*(1+'El og plugin hybrid'!G$37/100)^-$B65 -> 0 | I65: =(IF($B65<='El og plugin hybrid'!I$34,'El og plugin hybrid'!I$16,0)+IF($B65<='El og plugin hybrid'!I$34,'El og plugin hybrid'!I$17,0)+IF($B65<='El og plugin hybrid'!I$34,'El og plugin hybrid'!I$47,0)+IF($B65<='El og plugin hybrid'!I$34,'El og plugin hybrid'!I$48,0))*(1+'El og plugin hybrid'!I$37/100)^-$B65 -> 0 | K65: =(IF($B65<='El og plugin hybrid'!K$34,'El og plugin hybrid'!K$16,0)+IF($B65<='El og plugin hybrid'!K$34,'El og plugin hybrid'!K$17,0)+IF($B65<='El og plugin hybrid'!K$34,'El og plugin hybrid'!K$47,0)+IF($B65<='El og plugin hybrid'!K$34,'El og plugin hybrid'!K$48,0))*(1+'El og plugin hybrid'!K$37/100)^-$B65 -> 0 | M65: =(IF($B65<='El og plugin hybrid'!M$34,'El og plugin hybrid'!M$16,0)+IF($B65<='El og plugin hybrid'!M$34,'El og plugin hybrid'!M$17,0)+IF($B65<='El og plugin hybrid'!M$34,'El og plugin hybrid'!M$47,0)+IF($B65<='El og plugin hybrid'!M$34,'El og plugin hybrid'!M$48,0))*(1+'El og plugin hybrid'!M$37/100)^-$B65 -> 0 | O65: =(IF($B65<='El og plugin hybrid'!O$34,'El og plugin hybrid'!O$16,0)+IF($B65<='El og plugin hybrid'!O$34,'El og plugin hybrid'!O$17,0)+IF($B65<='El og plugin hybrid'!O$34,'El og plugin hybrid'!O$47,0)+IF($B65<='El og plugin hybrid'!O$34,'El og plugin hybrid'!O$48,0))*(1+'El og plugin hybrid'!O$37/100)^-$B65 -> 0 | Q65: =(IF($B65<='El og plugin hybrid'!Q$34,'El og plugin hybrid'!Q$16,0)+IF($B65<='El og plugin hybrid'!Q$34,'El og plugin hybrid'!Q$17,0)+IF($B65<='El og plugin hybrid'!Q$34,'El og plugin hybrid'!Q$47,0)+IF($B65<='El og plugin hybrid'!Q$34,'El og plugin hybrid'!Q$48,0))*(1+'El og plugin hybrid'!Q$37/100)^-$B65 -> 0 | S65: =(IF($B65<='El og plugin hybrid'!S$34,'El og plugin hybrid'!S$16,0)+IF($B65<='El og plugin hybrid'!S$34,'El og plugin hybrid'!S$17,0)+IF($B65<='El og plugin hybrid'!S$34,'El og plugin hybrid'!S$47,0)+IF($B65<='El og plugin hybrid'!S$34,'El og plugin hybrid'!S$48,0))*(1+'El og plugin hybrid'!S$37/100)^-$B65 -> 0
B66: 6 | C66: 6 | E66: =(IF($B66<='El og plugin hybrid'!E$34,'El og plugin hybrid'!E$16,0)+IF($B66<='El og plugin hybrid'!E$34,'El og plugin hybrid'!E$17,0)+IF($B66<='El og plugin hybrid'!E$34,'El og plugin hybrid'!E$47,0)+IF($B66<='El og plugin hybrid'!E$34,'El og plugin hybrid'!E$48,0))*(1+'El og plugin hybrid'!E$37/100)^-$B66 -> 0 | G66: =(IF($B66<='El og plugin hybrid'!G$34,'El og plugin hybrid'!G$16,0)+IF($B66<='El og plugin hybrid'!G$34,'El og plugin hybrid'!G$17,0)+IF($B66<='El og plugin hybrid'!G$34,'El og plugin hybrid'!G$47,0)+IF($B66<='El og plugin hybrid'!G$34,'El og plugin hybrid'!G$48,0))*(1+'El og plugin hybrid'!G$37/100)^-$B66 -> 0 | I66: =(IF($B66<='El og plugin hybrid'!I$34,'El og plugin hybrid'!I$16,0)+IF($B66<='El og plugin hybrid'!I$34,'El og plugin hybrid'!I$17,0)+IF($B66<='El og plugin hybrid'!I$34,'El og plugin hybrid'!I$47,0)+IF($B66<='El og plugin hybrid'!I$34,'El og plugin hybrid'!I$48,0))*(1+'El og plugin hybrid'!I$37/100)^-$B66 -> 0 | K66: =(IF($B66<='El og plugin hybrid'!K$34,'El og plugin hybrid'!K$16,0)+IF($B66<='El og plugin hybrid'!K$34,'El og plugin hybrid'!K$17,0)+IF($B66<='El og plugin hybrid'!K$34,'El og plugin hybrid'!K$47,0)+IF($B66<='El og plugin hybrid'!K$34,'El og plugin hybrid'!K$48,0))*(1+'El og plugin hybrid'!K$37/100)^-$B66 -> 0 | M66: =(IF($B66<='El og plugin hybrid'!M$34,'El og plugin hybrid'!M$16,0)+IF($B66<='El og plugin hybrid'!M$34,'El og plugin hybrid'!M$17,0)+IF($B66<='El og plugin hybrid'!M$34,'El og plugin hybrid'!M$47,0)+IF($B66<='El og plugin hybrid'!M$34,'El og plugin hybrid'!M$48,0))*(1+'El og plugin hybrid'!M$37/100)^-$B66 -> 0 | O66: =(IF($B66<='El og plugin hybrid'!O$34,'El og plugin hybrid'!O$16,0)+IF($B66<='El og plugin hybrid'!O$34,'El og plugin hybrid'!O$17,0)+IF($B66<='El og plugin hybrid'!O$34,'El og plugin hybrid'!O$47,0)+IF($B66<='El og plugin hybrid'!O$34,'El og plugin hybrid'!O$48,0))*(1+'El og plugin hybrid'!O$37/100)^-$B66 -> 0 | Q66: =(IF($B66<='El og plugin hybrid'!Q$34,'El og plugin hybrid'!Q$16,0)+IF($B66<='El og plugin hybrid'!Q$34,'El og plugin hybrid'!Q$17,0)+IF($B66<='El og plugin hybrid'!Q$34,'El og plugin hybrid'!Q$47,0)+IF($B66<='El og plugin hybrid'!Q$34,'El og plugin hybrid'!Q$48,0))*(1+'El og plugin hybrid'!Q$37/100)^-$B66 -> 0 | S66: =(IF($B66<='El og plugin hybrid'!S$34,'El og plugin hybrid'!S$16,0)+IF($B66<='El og plugin hybrid'!S$34,'El og plugin hybrid'!S$17,0)+IF($B66<='El og plugin hybrid'!S$34,'El og plugin hybrid'!S$47,0)+IF($B66<='El og plugin hybrid'!S$34,'El og plugin hybrid'!S$48,0))*(1+'El og plugin hybrid'!S$37/100)^-$B66 -> 0
B67: 7 | C67: 7 | E67: =(IF($B67<='El og plugin hybrid'!E$34,'El og plugin hybrid'!E$16,0)+IF($B67<='El og plugin hybrid'!E$34,'El og plugin hybrid'!E$17,0)+IF($B67<='El og plugin hybrid'!E$34,'El og plugin hybrid'!E$47,0)+IF($B67<='El og plugin hybrid'!E$34,'El og plugin hybrid'!E$48,0))*(1+'El og plugin hybrid'!E$37/100)^-$B67 -> 0 | G67: =(IF($B67<='El og plugin hybrid'!G$34,'El og plugin hybrid'!G$16,0)+IF($B67<='El og plugin hybrid'!G$34,'El og plugin hybrid'!G$17,0)+IF($B67<='El og plugin hybrid'!G$34,'El og plugin hybrid'!G$47,0)+IF($B67<='El og plugin hybrid'!G$34,'El og plugin hybrid'!G$48,0))*(1+'El og plugin hybrid'!G$37/100)^-$B67 -> 0 | I67: =(IF($B67<='El og plugin hybrid'!I$34,'El og plugin hybrid'!I$16,0)+IF($B67<='El og plugin hybrid'!I$34,'El og plugin hybrid'!I$17,0)+IF($B67<='El og plugin hybrid'!I$34,'El og plugin hybrid'!I$47,0)+IF($B67<='El og plugin hybrid'!I$34,'El og plugin hybrid'!I$48,0))*(1+'El og plugin hybrid'!I$37/100)^-$B67 -> 0 | K67: =(IF($B67<='El og plugin hybrid'!K$34,'El og plugin hybrid'!K$16,0)+IF($B67<='El og plugin hybrid'!K$34,'El og plugin hybrid'!K$17,0)+IF($B67<='El og plugin hybrid'!K$34,'El og plugin hybrid'!K$47,0)+IF($B67<='El og plugin hybrid'!K$34,'El og plugin hybrid'!K$48,0))*(1+'El og plugin hybrid'!K$37/100)^-$B67 -> 0 | M67: =(IF($B67<='El og plugin hybrid'!M$34,'El og plugin hybrid'!M$16,0)+IF($B67<='El og plugin hybrid'!M$34,'El og plugin hybrid'!M$17,0)+IF($B67<='El og plugin hybrid'!M$34,'El og plugin hybrid'!M$47,0)+IF($B67<='El og plugin hybrid'!M$34,'El og plugin hybrid'!M$48,0))*(1+'El og plugin hybrid'!M$37/100)^-$B67 -> 0 | O67: =(IF($B67<='El og plugin hybrid'!O$34,'El og plugin hybrid'!O$16,0)+IF($B67<='El og plugin hybrid'!O$34,'El og plugin hybrid'!O$17,0)+IF($B67<='El og plugin hybrid'!O$34,'El og plugin hybrid'!O$47,0)+IF($B67<='El og plugin hybrid'!O$34,'El og plugin hybrid'!O$48,0))*(1+'El og plugin hybrid'!O$37/100)^-$B67 -> 0 | Q67: =(IF($B67<='El og plugin hybrid'!Q$34,'El og plugin hybrid'!Q$16,0)+IF($B67<='El og plugin hybrid'!Q$34,'El og plugin hybrid'!Q$17,0)+IF($B67<='El og plugin hybrid'!Q$34,'El og plugin hybrid'!Q$47,0)+IF($B67<='El og plugin hybrid'!Q$34,'El og plugin hybrid'!Q$48,0))*(1+'El og plugin hybrid'!Q$37/100)^-$B67 -> 0 | S67: =(IF($B67<='El og plugin hybrid'!S$34,'El og plugin hybrid'!S$16,0)+IF($B67<='El og plugin hybrid'!S$34,'El og plugin hybrid'!S$17,0)+IF($B67<='El og plugin hybrid'!S$34,'El og plugin hybrid'!S$47,0)+IF($B67<='El og plugin hybrid'!S$34,'El og plugin hybrid'!S$48,0))*(1+'El og plugin hybrid'!S$37/100)^-$B67 -> 0
B68: 8 | C68: 8 | E68: =(IF($B68<='El og plugin hybrid'!E$34,'El og plugin hybrid'!E$16,0)+IF($B68<='El og plugin hybrid'!E$34,'El og plugin hybrid'!E$17,0)+IF($B68<='El og plugin hybrid'!E$34,'El og plugin hybrid'!E$47,0)+IF($B68<='El og plugin hybrid'!E$34,'El og plugin hybrid'!E$48,0))*(1+'El og plugin hybrid'!E$37/100)^-$B68 -> 0 | G68: =(IF($B68<='El og plugin hybrid'!G$34,'El og plugin hybrid'!G$16,0)+IF($B68<='El og plugin hybrid'!G$34,'El og plugin hybrid'!G$17,0)+IF($B68<='El og plugin hybrid'!G$34,'El og plugin hybrid'!G$47,0)+IF($B68<='El og plugin hybrid'!G$34,'El og plugin hybrid'!G$48,0))*(1+'El og plugin hybrid'!G$37/100)^-$B68 -> 0 | I68: =(IF($B68<='El og plugin hybrid'!I$34,'El og plugin hybrid'!I$16,0)+IF($B68<='El og plugin hybrid'!I$34,'El og plugin hybrid'!I$17,0)+IF($B68<='El og plugin hybrid'!I$34,'El og plugin hybrid'!I$47,0)+IF($B68<='El og plugin hybrid'!I$34,'El og plugin hybrid'!I$48,0))*(1+'El og plugin hybrid'!I$37/100)^-$B68 -> 0 | K68: =(IF($B68<='El og plugin hybrid'!K$34,'El og plugin hybrid'!K$16,0)+IF($B68<='El og plugin hybrid'!K$34,'El og plugin hybrid'!K$17,0)+IF($B68<='El og plugin hybrid'!K$34,'El og plugin hybrid'!K$47,0)+IF($B68<='El og plugin hybrid'!K$34,'El og plugin hybrid'!K$48,0))*(1+'El og plugin hybrid'!K$37/100)^-$B68 -> 0 | M68: =(IF($B68<='El og plugin hybrid'!M$34,'El og plugin hybrid'!M$16,0)+IF($B68<='El og plugin hybrid'!M$34,'El og plugin hybrid'!M$17,0)+IF($B68<='El og plugin hybrid'!M$34,'El og plugin hybrid'!M$47,0)+IF($B68<='El og plugin hybrid'!M$34,'El og plugin hybrid'!M$48,0))*(1+'El og plugin hybrid'!M$37/100)^-$B68 -> 0 | O68: =(IF($B68<='El og plugin hybrid'!O$34,'El og plugin hybrid'!O$16,0)+IF($B68<='El og plugin hybrid'!O$34,'El og plugin hybrid'!O$17,0)+IF($B68<='El og plugin hybrid'!O$34,'El og plugin hybrid'!O$47,0)+IF($B68<='El og plugin hybrid'!O$34,'El og plugin hybrid'!O$48,0))*(1+'El og plugin hybrid'!O$37/100)^-$B68 -> 0 | Q68: =(IF($B68<='El og plugin hybrid'!Q$34,'El og plugin hybrid'!Q$16,0)+IF($B68<='El og plugin hybrid'!Q$34,'El og plugin hybrid'!Q$17,0)+IF($B68<='El og plugin hybrid'!Q$34,'El og plugin hybrid'!Q$47,0)+IF($B68<='El og plugin hybrid'!Q$34,'El og plugin hybrid'!Q$48,0))*(1+'El og plugin hybrid'!Q$37/100)^-$B68 -> 0 | S68: =(IF($B68<='El og plugin hybrid'!S$34,'El og plugin hybrid'!S$16,0)+IF($B68<='El og plugin hybrid'!S$34,'El og plugin hybrid'!S$17,0)+IF($B68<='El og plugin hybrid'!S$34,'El og plugin hybrid'!S$47,0)+IF($B68<='El og plugin hybrid'!S$34,'El og plugin hybrid'!S$48,0))*(1+'El og plugin hybrid'!S$37/100)^-$B68 -> 0
B69: 9 | C69: 9 | E69: =(IF($B69<='El og plugin hybrid'!E$34,'El og plugin hybrid'!E$16,0)+IF($B69<='El og plugin hybrid'!E$34,'El og plugin hybrid'!E$17,0)+IF($B69<='El og plugin hybrid'!E$34,'El og plugin hybrid'!E$47,0)+IF($B69<='El og plugin hybrid'!E$34,'El og plugin hybrid'!E$48,0))*(1+'El og plugin hybrid'!E$37/100)^-$B69 -> 0 | G69: =(IF($B69<='El og plugin hybrid'!G$34,'El og plugin hybrid'!G$16,0)+IF($B69<='El og plugin hybrid'!G$34,'El og plugin hybrid'!G$17,0)+IF($B69<='El og plugin hybrid'!G$34,'El og plugin hybrid'!G$47,0)+IF($B69<='El og plugin hybrid'!G$34,'El og plugin hybrid'!G$48,0))*(1+'El og plugin hybrid'!G$37/100)^-$B69 -> 0 | I69: =(IF($B69<='El og plugin hybrid'!I$34,'El og plugin hybrid'!I$16,0)+IF($B69<='El og plugin hybrid'!I$34,'El og plugin hybrid'!I$17,0)+IF($B69<='El og plugin hybrid'!I$34,'El og plugin hybrid'!I$47,0)+IF($B69<='El og plugin hybrid'!I$34,'El og plugin hybrid'!I$48,0))*(1+'El og plugin hybrid'!I$37/100)^-$B69 -> 0 | K69: =(IF($B69<='El og plugin hybrid'!K$34,'El og plugin hybrid'!K$16,0)+IF($B69<='El og plugin hybrid'!K$34,'El og plugin hybrid'!K$17,0)+IF($B69<='El og plugin hybrid'!K$34,'El og plugin hybrid'!K$47,0)+IF($B69<='El og plugin hybrid'!K$34,'El og plugin hybrid'!K$48,0))*(1+'El og plugin hybrid'!K$37/100)^-$B69 -> 0 | M69: =(IF($B69<='El og plugin hybrid'!M$34,'El og plugin hybrid'!M$16,0)+IF($B69<='El og plugin hybrid'!M$34,'El og plugin hybrid'!M$17,0)+IF($B69<='El og plugin hybrid'!M$34,'El og plugin hybrid'!M$47,0)+IF($B69<='El og plugin hybrid'!M$34,'El og plugin hybrid'!M$48,0))*(1+'El og plugin hybrid'!M$37/100)^-$B69 -> 0 | O69: =(IF($B69<='El og plugin hybrid'!O$34,'El og plugin hybrid'!O$16,0)+IF($B69<='El og plugin hybrid'!O$34,'El og plugin hybrid'!O$17,0)+IF($B69<='El og plugin hybrid'!O$34,'El og plugin hybrid'!O$47,0)+IF($B69<='El og plugin hybrid'!O$34,'El og plugin hybrid'!O$48,0))*(1+'El og plugin hybrid'!O$37/100)^-$B69 -> 0 | Q69: =(IF($B69<='El og plugin hybrid'!Q$34,'El og plugin hybrid'!Q$16,0)+IF($B69<='El og plugin hybrid'!Q$34,'El og plugin hybrid'!Q$17,0)+IF($B69<='El og plugin hybrid'!Q$34,'El og plugin hybrid'!Q$47,0)+IF($B69<='El og plugin hybrid'!Q$34,'El og plugin hybrid'!Q$48,0))*(1+'El og plugin hybrid'!Q$37/100)^-$B69 -> 0 | S69: =(IF($B69<='El og plugin hybrid'!S$34,'El og plugin hybrid'!S$16,0)+IF($B69<='El og plugin hybrid'!S$34,'El og plugin hybrid'!S$17,0)+IF($B69<='El og plugin hybrid'!S$34,'El og plugin hybrid'!S$47,0)+IF($B69<='El og plugin hybrid'!S$34,'El og plugin hybrid'!S$48,0))*(1+'El og plugin hybrid'!S$37/100)^-$B69 -> 0
B70: 10 | C70: 10 | E70: =(IF($B70<='El og plugin hybrid'!E$34,'El og plugin hybrid'!E$16,0)+IF($B70<='El og plugin hybrid'!E$34,'El og plugin hybrid'!E$17,0)+IF($B70<='El og plugin hybrid'!E$34,'El og plugin hybrid'!E$47,0)+IF($B70<='El og plugin hybrid'!E$34,'El og plugin hybrid'!E$48,0))*(1+'El og plugin hybrid'!E$37/100)^-$B70 -> 0 | G70: =(IF($B70<='El og plugin hybrid'!G$34,'El og plugin hybrid'!G$16,0)+IF($B70<='El og plugin hybrid'!G$34,'El og plugin hybrid'!G$17,0)+IF($B70<='El og plugin hybrid'!G$34,'El og plugin hybrid'!G$47,0)+IF($B70<='El og plugin hybrid'!G$34,'El og plugin hybrid'!G$48,0))*(1+'El og plugin hybrid'!G$37/100)^-$B70 -> 0 | I70: =(IF($B70<='El og plugin hybrid'!I$34,'El og plugin hybrid'!I$16,0)+IF($B70<='El og plugin hybrid'!I$34,'El og plugin hybrid'!I$17,0)+IF($B70<='El og plugin hybrid'!I$34,'El og plugin hybrid'!I$47,0)+IF($B70<='El og plugin hybrid'!I$34,'El og plugin hybrid'!I$48,0))*(1+'El og plugin hybrid'!I$37/100)^-$B70 -> 0 | K70: =(IF($B70<='El og plugin hybrid'!K$34,'El og plugin hybrid'!K$16,0)+IF($B70<='El og plugin hybrid'!K$34,'El og plugin hybrid'!K$17,0)+IF($B70<='El og plugin hybrid'!K$34,'El og plugin hybrid'!K$47,0)+IF($B70<='El og plugin hybrid'!K$34,'El og plugin hybrid'!K$48,0))*(1+'El og plugin hybrid'!K$37/100)^-$B70 -> 0 | M70: =(IF($B70<='El og plugin hybrid'!M$34,'El og plugin hybrid'!M$16,0)+IF($B70<='El og plugin hybrid'!M$34,'El og plugin hybrid'!M$17,0)+IF($B70<='El og plugin hybrid'!M$34,'El og plugin hybrid'!M$47,0)+IF($B70<='El og plugin hybrid'!M$34,'El og plugin hybrid'!M$48,0))*(1+'El og plugin hybrid'!M$37/100)^-$B70 -> 0 | O70: =(IF($B70<='El og plugin hybrid'!O$34,'El og plugin hybrid'!O$16,0)+IF($B70<='El og plugin hybrid'!O$34,'El og plugin hybrid'!O$17,0)+IF($B70<='El og plugin hybrid'!O$34,'El og plugin hybrid'!O$47,0)+IF($B70<='El og plugin hybrid'!O$34,'El og plugin hybrid'!O$48,0))*(1+'El og plugin hybrid'!O$37/100)^-$B70 -> 0 | Q70: =(IF($B70<='El og plugin hybrid'!Q$34,'El og plugin hybrid'!Q$16,0)+IF($B70<='El og plugin hybrid'!Q$34,'El og plugin hybrid'!Q$17,0)+IF($B70<='El og plugin hybrid'!Q$34,'El og plugin hybrid'!Q$47,0)+IF($B70<='El og plugin hybrid'!Q$34,'El og plugin hybrid'!Q$48,0))*(1+'El og plugin hybrid'!Q$37/100)^-$B70 -> 0 | S70: =(IF($B70<='El og plugin hybrid'!S$34,'El og plugin hybrid'!S$16,0)+IF($B70<='El og plugin hybrid'!S$34,'El og plugin hybrid'!S$17,0)+IF($B70<='El og plugin hybrid'!S$34,'El og plugin hybrid'!S$47,0)+IF($B70<='El og plugin hybrid'!S$34,'El og plugin hybrid'!S$48,0))*(1+'El og plugin hybrid'!S$37/100)^-$B70 -> 0
B71: 11 | C71: 11 | E71: =(IF($B71<='El og plugin hybrid'!E$34,'El og plugin hybrid'!E$16,0)+IF($B71<='El og plugin hybrid'!E$34,'El og plugin hybrid'!E$17,0)+IF($B71<='El og plugin hybrid'!E$34,'El og plugin hybrid'!E$47,0)+IF($B71<='El og plugin hybrid'!E$34,'El og plugin hybrid'!E$48,0))*(1+'El og plugin hybrid'!E$37/100)^-$B71 -> 0 | G71: =(IF($B71<='El og plugin hybrid'!G$34,'El og plugin hybrid'!G$16,0)+IF($B71<='El og plugin hybrid'!G$34,'El og plugin hybrid'!G$17,0)+IF($B71<='El og plugin hybrid'!G$34,'El og plugin hybrid'!G$47,0)+IF($B71<='El og plugin hybrid'!G$34,'El og plugin hybrid'!G$48,0))*(1+'El og plugin hybrid'!G$37/100)^-$B71 -> 0 | I71: =(IF($B71<='El og plugin hybrid'!I$34,'El og plugin hybrid'!I$16,0)+IF($B71<='El og plugin hybrid'!I$34,'El og plugin hybrid'!I$17,0)+IF($B71<='El og plugin hybrid'!I$34,'El og plugin hybrid'!I$47,0)+IF($B71<='El og plugin hybrid'!I$34,'El og plugin hybrid'!I$48,0))*(1+'El og plugin hybrid'!I$37/100)^-$B71 -> 0 | K71: =(IF($B71<='El og plugin hybrid'!K$34,'El og plugin hybrid'!K$16,0)+IF($B71<='El og plugin hybrid'!K$34,'El og plugin hybrid'!K$17,0)+IF($B71<='El og plugin hybrid'!K$34,'El og plugin hybrid'!K$47,0)+IF($B71<='El og plugin hybrid'!K$34,'El og plugin hybrid'!K$48,0))*(1+'El og plugin hybrid'!K$37/100)^-$B71 -> 0 | M71: =(IF($B71<='El og plugin hybrid'!M$34,'El og plugin hybrid'!M$16,0)+IF($B71<='El og plugin hybrid'!M$34,'El og plugin hybrid'!M$17,0)+IF($B71<='El og plugin hybrid'!M$34,'El og plugin hybrid'!M$47,0)+IF($B71<='El og plugin hybrid'!M$34,'El og plugin hybrid'!M$48,0))*(1+'El og plugin hybrid'!M$37/100)^-$B71 -> 0 | O71: =(IF($B71<='El og plugin hybrid'!O$34,'El og plugin hybrid'!O$16,0)+IF($B71<='El og plugin hybrid'!O$34,'El og plugin hybrid'!O$17,0)+IF($B71<='El og plugin hybrid'!O$34,'El og plugin hybrid'!O$47,0)+IF($B71<='El og plugin hybrid'!O$34,'El og plugin hybrid'!O$48,0))*(1+'El og plugin hybrid'!O$37/100)^-$B71 -> 0 | Q71: =(IF($B71<='El og plugin hybrid'!Q$34,'El og plugin hybrid'!Q$16,0)+IF($B71<='El og plugin hybrid'!Q$34,'El og plugin hybrid'!Q$17,0)+IF($B71<='El og plugin hybrid'!Q$34,'El og plugin hybrid'!Q$47,0)+IF($B71<='El og plugin hybrid'!Q$34,'El og plugin hybrid'!Q$48,0))*(1+'El og plugin hybrid'!Q$37/100)^-$B71 -> 0 | S71: =(IF($B71<='El og plugin hybrid'!S$34,'El og plugin hybrid'!S$16,0)+IF($B71<='El og plugin hybrid'!S$34,'El og plugin hybrid'!S$17,0)+IF($B71<='El og plugin hybrid'!S$34,'El og plugin hybrid'!S$47,0)+IF($B71<='El og plugin hybrid'!S$34,'El og plugin hybrid'!S$48,0))*(1+'El og plugin hybrid'!S$37/100)^-$B71 -> 0
B72: 12 | C72: 12 | E72: =(IF($B72<='El og plugin hybrid'!E$34,'El og plugin hybrid'!E$16,0)+IF($B72<='El og plugin hybrid'!E$34,'El og plugin hybrid'!E$17,0)+IF($B72<='El og plugin hybrid'!E$34,'El og plugin hybrid'!E$47,0)+IF($B72<='El og plugin hybrid'!E$34,'El og plugin hybrid'!E$48,0))*(1+'El og plugin hybrid'!E$37/100)^-$B72 -> 0 | G72: =(IF($B72<='El og plugin hybrid'!G$34,'El og plugin hybrid'!G$16,0)+IF($B72<='El og plugin hybrid'!G$34,'El og plugin hybrid'!G$17,0)+IF($B72<='El og plugin hybrid'!G$34,'El og plugin hybrid'!G$47,0)+IF($B72<='El og plugin hybrid'!G$34,'El og plugin hybrid'!G$48,0))*(1+'El og plugin hybrid'!G$37/100)^-$B72 -> 0 | I72: =(IF($B72<='El og plugin hybrid'!I$34,'El og plugin hybrid'!I$16,0)+IF($B72<='El og plugin hybrid'!I$34,'El og plugin hybrid'!I$17,0)+IF($B72<='El og plugin hybrid'!I$34,'El og plugin hybrid'!I$47,0)+IF($B72<='El og plugin hybrid'!I$34,'El og plugin hybrid'!I$48,0))*(1+'El og plugin hybrid'!I$37/100)^-$B72 -> 0 | K72: =(IF($B72<='El og plugin hybrid'!K$34,'El og plugin hybrid'!K$16,0)+IF($B72<='El og plugin hybrid'!K$34,'El og plugin hybrid'!K$17,0)+IF($B72<='El og plugin hybrid'!K$34,'El og plugin hybrid'!K$47,0)+IF($B72<='El og plugin hybrid'!K$34,'El og plugin hybrid'!K$48,0))*(1+'El og plugin hybrid'!K$37/100)^-$B72 -> 0 | M72: =(IF($B72<='El og plugin hybrid'!M$34,'El og plugin hybrid'!M$16,0)+IF($B72<='El og plugin hybrid'!M$34,'El og plugin hybrid'!M$17,0)+IF($B72<='El og plugin hybrid'!M$34,'El og plugin hybrid'!M$47,0)+IF($B72<='El og plugin hybrid'!M$34,'El og plugin hybrid'!M$48,0))*(1+'El og plugin hybrid'!M$37/100)^-$B72 -> 0 | O72: =(IF($B72<='El og plugin hybrid'!O$34,'El og plugin hybrid'!O$16,0)+IF($B72<='El og plugin hybrid'!O$34,'El og plugin hybrid'!O$17,0)+IF($B72<='El og plugin hybrid'!O$34,'El og plugin hybrid'!O$47,0)+IF($B72<='El og plugin hybrid'!O$34,'El og plugin hybrid'!O$48,0))*(1+'El og plugin hybrid'!O$37/100)^-$B72 -> 0 | Q72: =(IF($B72<='El og plugin hybrid'!Q$34,'El og plugin hybrid'!Q$16,0)+IF($B72<='El og plugin hybrid'!Q$34,'El og plugin hybrid'!Q$17,0)+IF($B72<='El og plugin hybrid'!Q$34,'El og plugin hybrid'!Q$47,0)+IF($B72<='El og plugin hybrid'!Q$34,'El og plugin hybrid'!Q$48,0))*(1+'El og plugin hybrid'!Q$37/100)^-$B72 -> 0 | S72: =(IF($B72<='El og plugin hybrid'!S$34,'El og plugin hybrid'!S$16,0)+IF($B72<='El og plugin hybrid'!S$34,'El og plugin hybrid'!S$17,0)+IF($B72<='El og plugin hybrid'!S$34,'El og plugin hybrid'!S$47,0)+IF($B72<='El og plugin hybrid'!S$34,'El og plugin hybrid'!S$48,0))*(1+'El og plugin hybrid'!S$37/100)^-$B72 -> 0
B73: 13 | C73: 13 | E73: =(IF($B73<='El og plugin hybrid'!E$34,'El og plugin hybrid'!E$16,0)+IF($B73<='El og plugin hybrid'!E$34,'El og plugin hybrid'!E$17,0)+IF($B73<='El og plugin hybrid'!E$34,'El og plugin hybrid'!E$47,0)+IF($B73<='El og plugin hybrid'!E$34,'El og plugin hybrid'!E$48,0))*(1+'El og plugin hybrid'!E$37/100)^-$B73 -> 0 | G73: =(IF($B73<='El og plugin hybrid'!G$34,'El og plugin hybrid'!G$16,0)+IF($B73<='El og plugin hybrid'!G$34,'El og plugin hybrid'!G$17,0)+IF($B73<='El og plugin hybrid'!G$34,'El og plugin hybrid'!G$47,0)+IF($B73<='El og plugin hybrid'!G$34,'El og plugin hybrid'!G$48,0))*(1+'El og plugin hybrid'!G$37/100)^-$B73 -> 0 | I73: =(IF($B73<='El og plugin hybrid'!I$34,'El og plugin hybrid'!I$16,0)+IF($B73<='El og plugin hybrid'!I$34,'El og plugin hybrid'!I$17,0)+IF($B73<='El og plugin hybrid'!I$34,'El og plugin hybrid'!I$47,0)+IF($B73<='El og plugin hybrid'!I$34,'El og plugin hybrid'!I$48,0))*(1+'El og plugin hybrid'!I$37/100)^-$B73 -> 0 | K73: =(IF($B73<='El og plugin hybrid'!K$34,'El og plugin hybrid'!K$16,0)+IF($B73<='El og plugin hybrid'!K$34,'El og plugin hybrid'!K$17,0)+IF($B73<='El og plugin hybrid'!K$34,'El og plugin hybrid'!K$47,0)+IF($B73<='El og plugin hybrid'!K$34,'El og plugin hybrid'!K$48,0))*(1+'El og plugin hybrid'!K$37/100)^-$B73 -> 0 | M73: =(IF($B73<='El og plugin hybrid'!M$34,'El og plugin hybrid'!M$16,0)+IF($B73<='El og plugin hybrid'!M$34,'El og plugin hybrid'!M$17,0)+IF($B73<='El og plugin hybrid'!M$34,'El og plugin hybrid'!M$47,0)+IF($B73<='El og plugin hybrid'!M$34,'El og plugin hybrid'!M$48,0))*(1+'El og plugin hybrid'!M$37/100)^-$B73 -> 0 | O73: =(IF($B73<='El og plugin hybrid'!O$34,'El og plugin hybrid'!O$16,0)+IF($B73<='El og plugin hybrid'!O$34,'El og plugin hybrid'!O$17,0)+IF($B73<='El og plugin hybrid'!O$34,'El og plugin hybrid'!O$47,0)+IF($B73<='El og plugin hybrid'!O$34,'El og plugin hybrid'!O$48,0))*(1+'El og plugin hybrid'!O$37/100)^-$B73 -> 0 | Q73: =(IF($B73<='El og plugin hybrid'!Q$34,'El og plugin hybrid'!Q$16,0)+IF($B73<='El og plugin hybrid'!Q$34,'El og plugin hybrid'!Q$17,0)+IF($B73<='El og plugin hybrid'!Q$34,'El og plugin hybrid'!Q$47,0)+IF($B73<='El og plugin hybrid'!Q$34,'El og plugin hybrid'!Q$48,0))*(1+'El og plugin hybrid'!Q$37/100)^-$B73 -> 0 | S73: =(IF($B73<='El og plugin hybrid'!S$34,'El og plugin hybrid'!S$16,0)+IF($B73<='El og plugin hybrid'!S$34,'El og plugin hybrid'!S$17,0)+IF($B73<='El og plugin hybrid'!S$34,'El og plugin hybrid'!S$47,0)+IF($B73<='El og plugin hybrid'!S$34,'El og plugin hybrid'!S$48,0))*(1+'El og plugin hybrid'!S$37/100)^-$B73 -> 0
B74: 14 | C74: 14 | E74: =(IF($B74<='El og plugin hybrid'!E$34,'El og plugin hybrid'!E$16,0)+IF($B74<='El og plugin hybrid'!E$34,'El og plugin hybrid'!E$17,0)+IF($B74<='El og plugin hybrid'!E$34,'El og plugin hybrid'!E$47,0)+IF($B74<='El og plugin hybrid'!E$34,'El og plugin hybrid'!E$48,0))*(1+'El og plugin hybrid'!E$37/100)^-$B74 -> 0 | G74: =(IF($B74<='El og plugin hybrid'!G$34,'El og plugin hybrid'!G$16,0)+IF($B74<='El og plugin hybrid'!G$34,'El og plugin hybrid'!G$17,0)+IF($B74<='El og plugin hybrid'!G$34,'El og plugin hybrid'!G$47,0)+IF($B74<='El og plugin hybrid'!G$34,'El og plugin hybrid'!G$48,0))*(1+'El og plugin hybrid'!G$37/100)^-$B74 -> 0 | I74: =(IF($B74<='El og plugin hybrid'!I$34,'El og plugin hybrid'!I$16,0)+IF($B74<='El og plugin hybrid'!I$34,'El og plugin hybrid'!I$17,0)+IF($B74<='El og plugin hybrid'!I$34,'El og plugin hybrid'!I$47,0)+IF($B74<='El og plugin hybrid'!I$34,'El og plugin hybrid'!I$48,0))*(1+'El og plugin hybrid'!I$37/100)^-$B74 -> 0 | K74: =(IF($B74<='El og plugin hybrid'!K$34,'El og plugin hybrid'!K$16,0)+IF($B74<='El og plugin hybrid'!K$34,'El og plugin hybrid'!K$17,0)+IF($B74<='El og plugin hybrid'!K$34,'El og plugin hybrid'!K$47,0)+IF($B74<='El og plugin hybrid'!K$34,'El og plugin hybrid'!K$48,0))*(1+'El og plugin hybrid'!K$37/100)^-$B74 -> 0 | M74: =(IF($B74<='El og plugin hybrid'!M$34,'El og plugin hybrid'!M$16,0)+IF($B74<='El og plugin hybrid'!M$34,'El og plugin hybrid'!M$17,0)+IF($B74<='El og plugin hybrid'!M$34,'El og plugin hybrid'!M$47,0)+IF($B74<='El og plugin hybrid'!M$34,'El og plugin hybrid'!M$48,0))*(1+'El og plugin hybrid'!M$37/100)^-$B74 -> 0 | O74: =(IF($B74<='El og plugin hybrid'!O$34,'El og plugin hybrid'!O$16,0)+IF($B74<='El og plugin hybrid'!O$34,'El og plugin hybrid'!O$17,0)+IF($B74<='El og plugin hybrid'!O$34,'El og plugin hybrid'!O$47,0)+IF($B74<='El og plugin hybrid'!O$34,'El og plugin hybrid'!O$48,0))*(1+'El og plugin hybrid'!O$37/100)^-$B74 -> 0 | Q74: =(IF($B74<='El og plugin hybrid'!Q$34,'El og plugin hybrid'!Q$16,0)+IF($B74<='El og plugin hybrid'!Q$34,'El og plugin hybrid'!Q$17,0)+IF($B74<='El og plugin hybrid'!Q$34,'El og plugin hybrid'!Q$47,0)+IF($B74<='El og plugin hybrid'!Q$34,'El og plugin hybrid'!Q$48,0))*(1+'El og plugin hybrid'!Q$37/100)^-$B74 -> 0 | S74: =(IF($B74<='El og plugin hybrid'!S$34,'El og plugin hybrid'!S$16,0)+IF($B74<='El og plugin hybrid'!S$34,'El og plugin hybrid'!S$17,0)+IF($B74<='El og plugin hybrid'!S$34,'El og plugin hybrid'!S$47,0)+IF($B74<='El og plugin hybrid'!S$34,'El og plugin hybrid'!S$48,0))*(1+'El og plugin hybrid'!S$37/100)^-$B74 -> 0
B75: 15 | C75: 15 | E75: =(IF($B75<='El og plugin hybrid'!E$34,'El og plugin hybrid'!E$16,0)+IF($B75<='El og plugin hybrid'!E$34,'El og plugin hybrid'!E$17,0)+IF($B75<='El og plugin hybrid'!E$34,'El og plugin hybrid'!E$47,0)+IF($B75<='El og plugin hybrid'!E$34,'El og plugin hybrid'!E$48,0))*(1+'El og plugin hybrid'!E$37/100)^-$B75 -> 0 | G75: =(IF($B75<='El og plugin hybrid'!G$34,'El og plugin hybrid'!G$16,0)+IF($B75<='El og plugin hybrid'!G$34,'El og plugin hybrid'!G$17,0)+IF($B75<='El og plugin hybrid'!G$34,'El og plugin hybrid'!G$47,0)+IF($B75<='El og plugin hybrid'!G$34,'El og plugin hybrid'!G$48,0))*(1+'El og plugin hybrid'!G$37/100)^-$B75 -> 0 | I75: =(IF($B75<='El og plugin hybrid'!I$34,'El og plugin hybrid'!I$16,0)+IF($B75<='El og plugin hybrid'!I$34,'El og plugin hybrid'!I$17,0)+IF($B75<='El og plugin hybrid'!I$34,'El og plugin hybrid'!I$47,0)+IF($B75<='El og plugin hybrid'!I$34,'El og plugin hybrid'!I$48,0))*(1+'El og plugin hybrid'!I$37/100)^-$B75 -> 0 | K75: =(IF($B75<='El og plugin hybrid'!K$34,'El og plugin hybrid'!K$16,0)+IF($B75<='El og plugin hybrid'!K$34,'El og plugin hybrid'!K$17,0)+IF($B75<='El og plugin hybrid'!K$34,'El og plugin hybrid'!K$47,0)+IF($B75<='El og plugin hybrid'!K$34,'El og plugin hybrid'!K$48,0))*(1+'El og plugin hybrid'!K$37/100)^-$B75 -> 0 | M75: =(IF($B75<='El og plugin hybrid'!M$34,'El og plugin hybrid'!M$16,0)+IF($B75<='El og plugin hybrid'!M$34,'El og plugin hybrid'!M$17,0)+IF($B75<='El og plugin hybrid'!M$34,'El og plugin hybrid'!M$47,0)+IF($B75<='El og plugin hybrid'!M$34,'El og plugin hybrid'!M$48,0))*(1+'El og plugin hybrid'!M$37/100)^-$B75 -> 0 | O75: =(IF($B75<='El og plugin hybrid'!O$34,'El og plugin hybrid'!O$16,0)+IF($B75<='El og plugin hybrid'!O$34,'El og plugin hybrid'!O$17,0)+IF($B75<='El og plugin hybrid'!O$34,'El og plugin hybrid'!O$47,0)+IF($B75<='El og plugin hybrid'!O$34,'El og plugin hybrid'!O$48,0))*(1+'El og plugin hybrid'!O$37/100)^-$B75 -> 0 | Q75: =(IF($B75<='El og plugin hybrid'!Q$34,'El og plugin hybrid'!Q$16,0)+IF($B75<='El og plugin hybrid'!Q$34,'El og plugin hybrid'!Q$17,0)+IF($B75<='El og plugin hybrid'!Q$34,'El og plugin hybrid'!Q$47,0)+IF($B75<='El og plugin hybrid'!Q$34,'El og plugin hybrid'!Q$48,0))*(1+'El og plugin hybrid'!Q$37/100)^-$B75 -> 0 | S75: =(IF($B75<='El og plugin hybrid'!S$34,'El og plugin hybrid'!S$16,0)+IF($B75<='El og plugin hybrid'!S$34,'El og plugin hybrid'!S$17,0)+IF($B75<='El og plugin hybrid'!S$34,'El og plugin hybrid'!S$47,0)+IF($B75<='El og plugin hybrid'!S$34,'El og plugin hybrid'!S$48,0))*(1+'El og plugin hybrid'!S$37/100)^-$B75 -> 0
A77: Efterbrugsomkostninger | C77: BEREGNES IKKE FOR OPERATIONEL LEASING!
B78: År indeks | E78: ='El og plugin hybrid'!E8 -> PRODUKT 1 EL | G78: ='El og plugin hybrid'!G8 -> PRODUKT 2 EL | I78: ='El og plugin hybrid'!I8 -> PRODUKT 3 EL | K78: ='El og plugin hybrid'!K8 -> PRODUKT 4 EL | M78: ='El og plugin hybrid'!M8 -> PRODUKT 5 EL | O78: ='El og plugin hybrid'!O8 -> PRODUKT 6 EL | Q78: ='El og plugin hybrid'!Q8 -> PRODUKT 7 EL | S78: ='El og plugin hybrid'!S8 -> PRODUKT 8 EL
B79: 1 | C79: =B79 -> 1
B80: 2 | C80: =B80 -> 2
B81: 3 | C81: 3
B82: 4 | C82: 4
B83: 5 | C83: 5
B84: 6 | C84: 6
B85: 7 | C85: 7
B86: 8 | C86: 8
B87: 9 | C87: 9
B88: 10 | C88: 10
B89: 11 | C89: 11
B90: 12 | C90: 12
B91: 13 | C91: 13
B92: 14 | C92: 14
B93: 15 | C93: 15
A95: Gennemsnitlige årlige omkostninger
B96: År indeks | E96: ='El og plugin hybrid'!E8 -> PRODUKT 1 EL | G96: ='El og plugin hybrid'!G8 -> PRODUKT 2 EL | I96: ='El og plugin hybrid'!I8 -> PRODUKT 3 EL | K96: ='El og plugin hybrid'!K8 -> PRODUKT 4 EL | M96: ='El og plugin hybrid'!M8 -> PRODUKT 5 EL | O96: ='El og plugin hybrid'!O8 -> PRODUKT 6 EL | Q96: ='El og plugin hybrid'!Q8 -> PRODUKT 7 EL | S96: ='El og plugin hybrid'!S8 -> PRODUKT 8 EL
B97: 1 | C97: =B97 -> 1 | E97: ='El og plugin hybrid'!E$70 -> 0 | G97: ='El og plugin hybrid'!G$70 -> 0 | I97: ='El og plugin hybrid'!I$70 -> 0 | K97: =IF($B97<='El og plugin hybrid'!K$34,'El og plugin hybrid'!K$70,0) -> 0 | M97: =IF($B97<='El og plugin hybrid'!M$34,'El og plugin hybrid'!M$70,0) -> 0 | O97: =IF($B97<='El og plugin hybrid'!O$34,'El og plugin hybrid'!O$70,0) -> 0 | Q97: =IF($B97<='El og plugin hybrid'!Q$34,'El og plugin hybrid'!Q$70,0) -> 0 | S97: =IF($B97<='El og plugin hybrid'!S$34,'El og plugin hybrid'!S$70,0) -> 0
B98: 2 | C98: =B98 -> 2 | E98: =PMT('El og plugin hybrid'!E$37/100,$B98,-E8) -> 0 | G98: =PMT('El og plugin hybrid'!G$37/100,$B98,-G8) -> 0 | I98: =PMT('El og plugin hybrid'!I$37/100,$B98,-I8) -> 0 | K98: =IF($B98<='El og plugin hybrid'!K$34,PMT('El og plugin hybrid'!K$37/100,$B98,-K8),K97) -> 0 | M98: =IF($B98<='El og plugin hybrid'!M$34,PMT('El og plugin hybrid'!M$37/100,$B98,-M8),M97) -> 0 | O98: =IF($B98<='El og plugin hybrid'!O$34,PMT('El og plugin hybrid'!O$37/100,$B98,-O8),O97) -> 0 | Q98: =IF($B98<='El og plugin hybrid'!Q$34,PMT('El og plugin hybrid'!Q$37/100,$B98,-Q8),Q97) -> 0 | S98: =IF($B98<='El og plugin hybrid'!S$34,PMT('El og plugin hybrid'!S$37/100,$B98,-S8),S97) -> 0
B99: 3 | C99: 3 | E99: =PMT('El og plugin hybrid'!E$37/100,$B99,-E9) -> 0 | G99: =PMT('El og plugin hybrid'!G$37/100,$B99,-G9) -> 0 | I99: =PMT('El og plugin hybrid'!I$37/100,$B99,-I9) -> 0 | K99: =IF($B99<='El og plugin hybrid'!K$34,PMT('El og plugin hybrid'!K$37/100,$B99,-K9),K98) -> 0 | M99: =IF($B99<='El og plugin hybrid'!M$34,PMT('El og plugin hybrid'!M$37/100,$B99,-M9),M98) -> 0 | O99: =IF($B99<='El og plugin hybrid'!O$34,PMT('El og plugin hybrid'!O$37/100,$B99,-O9),O98) -> 0 | Q99: =IF($B99<='El og plugin hybrid'!Q$34,PMT('El og plugin hybrid'!Q$37/100,$B99,-Q9),Q98) -> 0 | S99: =IF($B99<='El og plugin hybrid'!S$34,PMT('El og plugin hybrid'!S$37/100,$B99,-S9),S98) -> 0
B100: 4 | C100: 4 | E100: =PMT('El og plugin hybrid'!E$37/100,$B100,-E10) -> 0 | G100: =PMT('El og plugin hybrid'!G$37/100,$B100,-G10) -> 0 | I100: =PMT('El og plugin hybrid'!I$37/100,$B100,-I10) -> 0 | K100: =IF($B100<='El og plugin hybrid'!K$34,PMT('El og plugin hybrid'!K$37/100,$B100,-K10),K99) -> 0 | M100: =IF($B100<='El og plugin hybrid'!M$34,PMT('El og plugin hybrid'!M$37/100,$B100,-M10),M99) -> 0 | O100: =IF($B100<='El og plugin hybrid'!O$34,PMT('El og plugin hybrid'!O$37/100,$B100,-O10),O99) -> 0 | Q100: =IF($B100<='El og plugin hybrid'!Q$34,PMT('El og plugin hybrid'!Q$37/100,$B100,-Q10),Q99) -> 0 | S100: =IF($B100<='El og plugin hybrid'!S$34,PMT('El og plugin hybrid'!S$37/100,$B100,-S10),S99) -> 0
B101: 5 | C101: 5 | E101: =PMT('El og plugin hybrid'!E$37/100,$B101,-E11) -> 0 | G101: =PMT('El og plugin hybrid'!G$37/100,$B101,-G11) -> 0 | I101: =PMT('El og plugin hybrid'!I$37/100,$B101,-I11) -> 0 | K101: =IF($B101<='El og plugin hybrid'!K$34,PMT('El og plugin hybrid'!K$37/100,$B101,-K11),K100) -> 0 | M101: =IF($B101<='El og plugin hybrid'!M$34,PMT('El og plugin hybrid'!M$37/100,$B101,-M11),M100) -> 0 | O101: =IF($B101<='El og plugin hybrid'!O$34,PMT('El og plugin hybrid'!O$37/100,$B101,-O11),O100) -> 0 | Q101: =IF($B101<='El og plugin hybrid'!Q$34,PMT('El og plugin hybrid'!Q$37/100,$B101,-Q11),Q100) -> 0 | S101: =IF($B101<='El og plugin hybrid'!S$34,PMT('El og plugin hybrid'!S$37/100,$B101,-S11),S100) -> 0
B102: 6 | C102: 6 | E102: =PMT('El og plugin hybrid'!E$37/100,$B102,-E12) -> 0 | G102: =PMT('El og plugin hybrid'!G$37/100,$B102,-G12) -> 0 | I102: =PMT('El og plugin hybrid'!I$37/100,$B102,-I12) -> 0 | K102: =IF($B102<='El og plugin hybrid'!K$34,PMT('El og plugin hybrid'!K$37/100,$B102,-K12),K101) -> 0 | M102: =IF($B102<='El og plugin hybrid'!M$34,PMT('El og plugin hybrid'!M$37/100,$B102,-M12),M101) -> 0 | O102: =IF($B102<='El og plugin hybrid'!O$34,PMT('El og plugin hybrid'!O$37/100,$B102,-O12),O101) -> 0 | Q102: =IF($B102<='El og plugin hybrid'!Q$34,PMT('El og plugin hybrid'!Q$37/100,$B102,-Q12),Q101) -> 0 | S102: =IF($B102<='El og plugin hybrid'!S$34,PMT('El og plugin hybrid'!S$37/100,$B102,-S12),S101) -> 0
B103: 7 | C103: 7 | E103: =PMT('El og plugin hybrid'!E$37/100,$B103,-E13) -> 0 | G103: =PMT('El og plugin hybrid'!G$37/100,$B103,-G13) -> 0 | I103: =PMT('El og plugin hybrid'!I$37/100,$B103,-I13) -> 0 | K103: =IF($B103<='El og plugin hybrid'!K$34,PMT('El og plugin hybrid'!K$37/100,$B103,-K13),K102) -> 0 | M103: =IF($B103<='El og plugin hybrid'!M$34,PMT('El og plugin hybrid'!M$37/100,$B103,-M13),M102) -> 0 | O103: =IF($B103<='El og plugin hybrid'!O$34,PMT('El og plugin hybrid'!O$37/100,$B103,-O13),O102) -> 0 | Q103: =IF($B103<='El og plugin hybrid'!Q$34,PMT('El og plugin hybrid'!Q$37/100,$B103,-Q13),Q102) -> 0 | S103: =IF($B103<='El og plugin hybrid'!S$34,PMT('El og plugin hybrid'!S$37/100,$B103,-S13),S102) -> 0
B104: 8 | C104: 8 | E104: =PMT('El og plugin hybrid'!E$37/100,$B104,-E14) -> 0 | G104: =PMT('El og plugin hybrid'!G$37/100,$B104,-G14) -> 0 | I104: =PMT('El og plugin hybrid'!I$37/100,$B104,-I14) -> 0 | K104: =IF($B104<='El og plugin hybrid'!K$34,PMT('El og plugin hybrid'!K$37/100,$B104,-K14),K103) -> 0 | M104: =IF($B104<='El og plugin hybrid'!M$34,PMT('El og plugin hybrid'!M$37/100,$B104,-M14),M103) -> 0 | O104: =IF($B104<='El og plugin hybrid'!O$34,PMT('El og plugin hybrid'!O$37/100,$B104,-O14),O103) -> 0 | Q104: =IF($B104<='El og plugin hybrid'!Q$34,PMT('El og plugin hybrid'!Q$37/100,$B104,-Q14),Q103) -> 0 | S104: =IF($B104<='El og plugin hybrid'!S$34,PMT('El og plugin hybrid'!S$37/100,$B104,-S14),S103) -> 0
B105: 9 | C105: 9 | E105: =PMT('El og plugin hybrid'!E$37/100,$B105,-E15) -> 0 | G105: =PMT('El og plugin hybrid'!G$37/100,$B105,-G15) -> 0 | I105: =PMT('El og plugin hybrid'!I$37/100,$B105,-I15) -> 0 | K105: =IF($B105<='El og plugin hybrid'!K$34,PMT('El og plugin hybrid'!K$37/100,$B105,-K15),K104) -> 0 | M105: =IF($B105<='El og plugin hybrid'!M$34,PMT('El og plugin hybrid'!M$37/100,$B105,-M15),M104) -> 0 | O105: =IF($B105<='El og plugin hybrid'!O$34,PMT('El og plugin hybrid'!O$37/100,$B105,-O15),O104) -> 0 | Q105: =IF($B105<='El og plugin hybrid'!Q$34,PMT('El og plugin hybrid'!Q$37/100,$B105,-Q15),Q104) -> 0 | S105: =IF($B105<='El og plugin hybrid'!S$34,PMT('El og plugin hybrid'!S$37/100,$B105,-S15),S104) -> 0
B106: 10 | C106: 10 | E106: =PMT('El og plugin hybrid'!E$37/100,$B106,-E16) -> 0 | G106: =PMT('El og plugin hybrid'!G$37/100,$B106,-G16) -> 0 | I106: =PMT('El og plugin hybrid'!I$37/100,$B106,-I16) -> 0 | K106: =IF($B106<='El og plugin hybrid'!K$34,PMT('El og plugin hybrid'!K$37/100,$B106,-K16),K105) -> 0 | M106: =IF($B106<='El og plugin hybrid'!M$34,PMT('El og plugin hybrid'!M$37/100,$B106,-M16),M105) -> 0 | O106: =IF($B106<='El og plugin hybrid'!O$34,PMT('El og plugin hybrid'!O$37/100,$B106,-O16),O105) -> 0 | Q106: =IF($B106<='El og plugin hybrid'!Q$34,PMT('El og plugin hybrid'!Q$37/100,$B106,-Q16),Q105) -> 0 | S106: =IF($B106<='El og plugin hybrid'!S$34,PMT('El og plugin hybrid'!S$37/100,$B106,-S16),S105) -> 0
B107: 11 | C107: 11 | E107: =PMT('El og plugin hybrid'!E$37/100,$B107,-E17) -> 0 | G107: =PMT('El og plugin hybrid'!G$37/100,$B107,-G17) -> 0 | I107: =PMT('El og plugin hybrid'!I$37/100,$B107,-I17) -> 0 | K107: =IF($B107<='El og plugin hybrid'!K$34,PMT('El og plugin hybrid'!K$37/100,$B107,-K17),K106) -> 0 | M107: =IF($B107<='El og plugin hybrid'!M$34,PMT('El og plugin hybrid'!M$37/100,$B107,-M17),M106) -> 0 | O107: =IF($B107<='El og plugin hybrid'!O$34,PMT('El og plugin hybrid'!O$37/100,$B107,-O17),O106) -> 0 | Q107: =IF($B107<='El og plugin hybrid'!Q$34,PMT('El og plugin hybrid'!Q$37/100,$B107,-Q17),Q106) -> 0 | S107: =IF($B107<='El og plugin hybrid'!S$34,PMT('El og plugin hybrid'!S$37/100,$B107,-S17),S106) -> 0
B108: 12 | C108: 12 | E108: =PMT('El og plugin hybrid'!E$37/100,$B108,-E18) -> 0 | G108: =PMT('El og plugin hybrid'!G$37/100,$B108,-G18) -> 0 | I108: =PMT('El og plugin hybrid'!I$37/100,$B108,-I18) -> 0 | K108: =IF($B108<='El og plugin hybrid'!K$34,PMT('El og plugin hybrid'!K$37/100,$B108,-K18),K107) -> 0 | M108: =IF($B108<='El og plugin hybrid'!M$34,PMT('El og plugin hybrid'!M$37/100,$B108,-M18),M107) -> 0 | O108: =IF($B108<='El og plugin hybrid'!O$34,PMT('El og plugin hybrid'!O$37/100,$B108,-O18),O107) -> 0 | Q108: =IF($B108<='El og plugin hybrid'!Q$34,PMT('El og plugin hybrid'!Q$37/100,$B108,-Q18),Q107) -> 0 | S108: =IF($B108<='El og plugin hybrid'!S$34,PMT('El og plugin hybrid'!S$37/100,$B108,-S18),S107) -> 0
B109: 13 | C109: 13 | E109: =PMT('El og plugin hybrid'!E$37/100,$B109,-E19) -> 0 | G109: =PMT('El og plugin hybrid'!G$37/100,$B109,-G19) -> 0 | I109: =PMT('El og plugin hybrid'!I$37/100,$B109,-I19) -> 0 | K109: =IF($B109<='El og plugin hybrid'!K$34,PMT('El og plugin hybrid'!K$37/100,$B109,-K19),K108) -> 0 | M109: =IF($B109<='El og plugin hybrid'!M$34,PMT('El og plugin hybrid'!M$37/100,$B109,-M19),M108) -> 0 | O109: =IF($B109<='El og plugin hybrid'!O$34,PMT('El og plugin hybrid'!O$37/100,$B109,-O19),O108) -> 0 | Q109: =IF($B109<='El og plugin hybrid'!Q$34,PMT('El og plugin hybrid'!Q$37/100,$B109,-Q19),Q108) -> 0 | S109: =IF($B109<='El og plugin hybrid'!S$34,PMT('El og plugin hybrid'!S$37/100,$B109,-S19),S108) -> 0
B110: 14 | C110: 14 | E110: =PMT('El og plugin hybrid'!E$37/100,$B110,-E20) -> 0 | G110: =PMT('El og plugin hybrid'!G$37/100,$B110,-G20) -> 0 | I110: =PMT('El og plugin hybrid'!I$37/100,$B110,-I20) -> 0 | K110: =IF($B110<='El og plugin hybrid'!K$34,PMT('El og plugin hybrid'!K$37/100,$B110,-K20),K109) -> 0 | M110: =IF($B110<='El og plugin hybrid'!M$34,PMT('El og plugin hybrid'!M$37/100,$B110,-M20),M109) -> 0 | O110: =IF($B110<='El og plugin hybrid'!O$34,PMT('El og plugin hybrid'!O$37/100,$B110,-O20),O109) -> 0 | Q110: =IF($B110<='El og plugin hybrid'!Q$34,PMT('El og plugin hybrid'!Q$37/100,$B110,-Q20),Q109) -> 0 | S110: =IF($B110<='El og plugin hybrid'!S$34,PMT('El og plugin hybrid'!S$37/100,$B110,-S20),S109) -> 0
B111: 15 | C111: 15 | E111: =PMT('El og plugin hybrid'!E$37/100,$B111,-E21) -> 0 | G111: =PMT('El og plugin hybrid'!G$37/100,$B111,-G21) -> 0 | I111: =PMT('El og plugin hybrid'!I$37/100,$B111,-I21) -> 0 | K111: =IF($B111<='El og plugin hybrid'!K$34,PMT('El og plugin hybrid'!K$37/100,$B111,-K21),K110) -> 0 | M111: =IF($B111<='El og plugin hybrid'!M$34,PMT('El og plugin hybrid'!M$37/100,$B111,-M21),M110) -> 0 | O111: =IF($B111<='El og plugin hybrid'!O$34,PMT('El og plugin hybrid'!O$37/100,$B111,-O21),O110) -> 0 | Q111: =IF($B111<='El og plugin hybrid'!Q$34,PMT('El og plugin hybrid'!Q$37/100,$B111,-Q21),Q110) -> 0 | S111: =IF($B111<='El og plugin hybrid'!S$34,PMT('El og plugin hybrid'!S$37/100,$B111,-S21),S110) -> 0

Sheet ENS udvikling i elpris (hidden)
A1: Energistyrelsens 'Samfundsøkonomiske beregningsforudsætninger 2019 af oktober 2019'
A2: Tabel 7: Samfundsøkonomiske priser på el
A4: 2019-priser kr./MWh | B4: Rå samfundsøkonomisk pris på el | C4: An virksomhed* (> 15 MWh) | D4: An husholdning* (< 15 MWh)
A5: 2019 | B5: 350 | C5: 491.0402722 | D5: 675.2707996
A6: 2020 | B6: 370 | C6: 512.2605697 | D6: 696.4910971 | E6: =((C6/$C$5)^(1/(A6-$A$5)))-1 -> 0.04321498391 | F6: =AVERAGE($E$6:E6) -> 0.04321498391
A7: 2021 | B7: 360 | C7: 501.6368715 | D7: 685.8673989 | E7: =((C7/$C$5)^(1/(A7-$A$5)))-1 -> 0.0107323575 | F7: =AVERAGE($E$6:E7) -> 0.02697367071
A8: 2022 | B8: 360 | C8: 501.6286876 | D8: 685.859215 | E8: =((C8/$C$5)^(1/(A8-$A$5)))-1 -> 0.00713669055 | F8: =AVERAGE($E$6:E8) -> 0.02036134399
A9: 2023 | B9: 380 | C9: 522.8515553 | D9: 707.0820827 | E9: 0.01581664095 | F9: =AVERAGE($E$6:E9) -> 0.01922516823
A10: 2024 | B10: 390 | C10: 533.4618739 | D10: 717.6924013 | E10: 0.01671037391 | F10: =AVERAGE($E$6:E10) -> 0.01872220937
A11: 2025 | B11: 400 | C11: 544.0739599 | D11: 728.3044873 | E11: 0.01724009893 | F11: =AVERAGE($E$6:E11) -> 0.01847519096
